Workbook

Sheet شيت الرابع
A1: غ | C1: إدارة قويسنا التعليمية0 | F1: =TEXT(F3,"dddd") -> Wednesday | I1: بداية رقم الجلوس | J1: عدد التلاميذ | N1: منقطعين | P1: لغة عربية | W1: رياضيات | AD1: لغة إنجليزية | AK1: دراسات | AR1: علــــــوم | AY1: نشاط (فنى) | BD1: نشاط (رياضى) | BI1: نشاط (حاسب آلى) | BN1: نشاط (1) | BS1: نشاط (2) | CA1: التربية الدينية
C2: مدرسة عرب الرمال الإبتدائية سكة حديد0 | K2: =COUNT(G12:G300) -> 125 | N2: =COUNTIF(BX12:BX117,"غ") -> 2 | P2: نصف العام | S2: آخر العام | W2: نصف العام | Z2: آخر العام | AD2: نصف العام | AG2: آخر العام | AK2: نصف العام | AN2: آخر العام | AR2: نصف العام | AU2: آخر العام | AZ2: ناجح | BB2: =BB4-BB3 -> 123 | BE2: ناجح | BG2: =BG4-BG3 -> 123 | BJ2: ناجح | BL2: =BL4-BL3 -> 123 | BO2: ناجح | BQ2: =BQ4-BQ3 -> 123 | BT2: ناجح | BV2: =BV4-BV3 -> 123 | CA2: نصف العام | CD2: آخر العام
F3: =TODAY() -> 2018-10-10 | P3: ناجح | Q3: =Q5-Q4 -> 117 | S3: ناجح | T3: =T5-T4 -> 117 | U3: دون المستوى | W3: ناجح | X3: =X5-X4 -> 118 | Z3: ناجح | AA3: =AA5-AA4 -> 121 | AB3: دون المستوى | AD3: ناجح | AE3: =AE5-AE4 -> 120 | AG3: ناجح | AH3: =AH5-AH4 -> 123 | AI3: دون المستوى | AK3: ناجح | AL3: =AL5-AL4 -> 115 | AN3: ناجح | AO3: =AO5-AO4 -> 118 | AP3: دون المستوى | AR3: ناجح | AS3: =AS5-AS4 -> 121 | AU3: ناجح | AV3: =AV5-AV4 -> 123 | AW3: دون المستوى | AZ3: راسب | BB3: =COUNTIF(BC12:BC117,"دون المستوى") -> 0 | BE3: راسب | BG3: =COUNTIF(BH12:BH117,"دون المستوى") -> 0 | BJ3: راسب | BL3: =COUNTIF(BM12:BM117,"دون المستوى") -> 0 | BO3: راسب | BQ3: =COUNTIF(BR12:BR117,"دون المستوى") -> 0 | BT3: راسب | BV3: =COUNTIF(BW12:BW117,"دون المستوى") -> 0 | CA3: ناجح | CB3: =CB5-CB4 -> 117 | CD3: ناجح | CE3: =CE5-CE4 -> 118 | CF3: دون المستوى
H4: دمج ( 3 ) | I4: 1 | P4: راسب | Q4: =SUMPRODUCT(--(Q12:Q136<20)+(Q12:Q136="غ")) -> 6 | S4: راسب | T4: =COUNTIF(V12:V136,"دون المستوى") -> 6 | U4: =COUNTIF(V12:V118,"دون المستوى") -> 6 | W4: راسب | X4: =SUMPRODUCT(--(X12:X136<20)+(X12:X136="غ")) -> 5 | Z4: راسب | AA4: =COUNTIF(AC12:AC136,"دون المستوى") -> 2 | AB4: =COUNTIF(AC12:AC118,"دون المستوى") -> 2 | AD4: راسب | AE4: =SUMPRODUCT(--(AE12:AE136<20)+(AE12:AE136="غ")) -> 3 | AG4: راسب | AH4: =COUNTIF(AJ12:AJ136,"دون المستوى") -> 0 | AI4: =COUNTIF(AJ12:AJ118,"دون المستوى") -> 0 | AK4: راسب | AL4: =SUMPRODUCT(--(AL12:AL136<20)+(AL12:AL136="غ")) -> 8 | AN4: راسب | AO4: =COUNTIF(AQ12:AQ136,"دون المستوى") -> 5 | AP4: =COUNTIF(AQ12:AQ118,"دون المستوى") -> 5 | AR4: راسب | AS4: =SUMPRODUCT(--(AS12:AS136<20)+(AS12:AS136="غ")) -> 2 | AU4: راسب | AV4: =COUNTIF(AX12:AX136,"دون المستوى") -> 0 | AW4: =COUNTIF(AX12:AX118,"دون المستوى") -> 0 | AZ4: حاضر | BB4: =$K$2-BB5 -> 123 | BE4: حاضر | BG4: =$K$2-BG5 -> 123 | BJ4: حاضر | BL4: =$K$2-BL5 -> 123 | BO4: حاضر | BQ4: =$K$2-BQ5 -> 123 | BT4: حاضر | BV4: =$K$2-BV5 -> 123 | CA4: راسب | CB4: =SUMPRODUCT(--(CB12:CB136<20)+(CB12:CB136="غ")) -> 6 | CD4: راسب | CE4: =COUNTIF(CG12:CG136,"دون المستوى") -> 5 | CF4: =COUNTIF(CG12:CG118,"دون المستوى") -> 5
F5: =TODAY() -> 2018-10-10 | H5: باقى للإعاده ( عاطف محمد السيد يوسف ) | P5: حاضر | Q5: =K2-Q6 -> 123 | S5: حاضر | T5: =$K$2-T6 -> 123 | W5: حاضر | X5: =$K$2-X6 -> 123 | Z5: حاضر | AA5: =$K$2-AA6 -> 123 | AD5: حاضر | AE5: =$K$2-AE6 -> 123 | AG5: حاضر | AH5: =$K$2-AH6 -> 123 | AK5: حاضر | AL5: =$K$2-AL6 -> 123 | AN5: حاضر | AO5: =$K$2-AO6 -> 123 | AR5: حاضر | AS5: =$K$2-AS6 -> 123 | AU5: حاضر | AV5: =$K$2-AV6 -> 123 | AY5: غياب | AZ5: =COUNTIF(AZ12:AZ135,"غ") -> 3 | BB5: =COUNTIF(BB12:BB136,"غ") -> 2 | BD5: غياب | BE5: =COUNTIF(BE12:BE135,"غ") -> 3 | BG5: =COUNTIF(BG12:BG136,"غ") -> 2 | BI5: غياب | BJ5: =COUNTIF(BJ12:BJ135,"غ") -> 3 | BL5: =COUNTIF(BL12:BL136,"غ") -> 2 | BN5: غياب | BO5: =COUNTIF(BO12:BO135,"غ") -> 3 | BQ5: =COUNTIF(BQ12:BQ136,"غ") -> 2 | BS5: غياب | BT5: =COUNTIF(BT12:BT135,"غ") -> 3 | BV5: =COUNTIF(BV12:BV136,"غ") -> 2 | CA5: حاضر | CB5: =$K$2-CB6 -> 123 | CD5: حاضر | CE5: =$K$2-CE6 -> 123
P6: غياب | Q6: =COUNTIF(Q12:Q136,"غ") -> 2 | S6: غياب | T6: =COUNTIF(S12:S136,"غ") -> 2 | W6: غياب | X6: =COUNTIF(X12:X136,"غ") -> 2 | Z6: غياب | AA6: =COUNTIF(Z12:Z136,"غ") -> 2 | AD6: غياب | AE6: =COUNTIF(AE12:AE136,"غ") -> 2 | AG6: غياب | AH6: =COUNTIF(AG12:AG136,"غ") -> 2 | AK6: غياب | AL6: =COUNTIF(AL12:AL136,"غ") -> 2 | AN6: غياب | AO6: =COUNTIF(AN12:AN136,"غ") -> 2 | AR6: غياب | AS6: =COUNTIF(AS12:AS136,"غ") -> 2 | AU6: غياب | AV6: =COUNTIF(AU12:AU136,"غ") -> 2 | AY6: النسبة المئوية | BB6: =BB2/BB4 -> 1 | BD6: النسبة المئوية | BG6: =BG2/BG4 -> 1 | BI6: النسبة المئوية | BL6: =BL2/BL4 -> 1 | BN6: النسبة المئوية | BQ6: =BQ2/BQ4 -> 1 | BS6: النسبة المئوية | BV6: =BV2/BV4 -> 1 | CA6: غياب | CB6: =COUNTIF(CB12:CB117,"غ") -> 2 | CD6: غياب | CE6: =COUNTIF(CD12:CD117,"غ") -> 2
P7: النسبة | Q7: =Q3/Q5 -> 0.9512195122 | S7: النسبة | T7: =T3/T5 -> 0.9512195122 | W7: النسبة | X7: =X3/X5 -> 0.9593495935 | Z7: النسبة | AA7: =AA3/AA5 -> 0.9837398374 | AD7: النسبة | AE7: =AE3/AE5 -> 0.9756097561 | AG7: النسبة | AH7: =AH3/AH5 -> 1 | AK7: النسبة | AL7: =AL3/AL5 -> 0.9349593496 | AN7: النسبة | AO7: =AO3/AO5 -> 0.9593495935 | AR7: النسبة | AS7: =AS3/AS5 -> 0.9837398374 | AU7: النسبة | AV7: =AV3/AV5 -> 1 | CA7: النسبة | CB7: =CB3/CB5 -> 0.9512195122 | CD7: النسبة | CE7: =CE3/CE5 -> 0.9593495935
A8: الرقم القومى | B8: تاريخ الميلاد | C8: سرى ترم أول | D8: سرى ترم ثان | E8: الرقم السرى ترم أول | F8: الرقم السرى ترم ثان | G8: م | H8: إســــــــم التلميذ | I8: رقم الجلوس | J8: تاريخ الميلاد | M8: السن فى أول أكتوبر | P8: لغة عربية | V8: المستوى | W8: رياضيات | AC8: المستوى | AD8: لغة إنجليزية | AJ8: المستوى | AK8: دراسات | AQ8: المستوى | AR8: علوم | AX8: المستوى | AY8: نشاط (فنى) | BC8: المستوى | BD8: نشاط (رياضى) | BH8: المستوى | BI8: نشاط (حاسب آلى) | BM8: المستوى | BN8: نشاط (1) | BR8: المستوى | BS8: نشاط (2) | BW8: المستوى | BX8: المجموع الكلى | BY8: المستوى | BZ8: المجموع بدون أنشطة | CA8: التربية الدينية | CG8: المستوى | CH8: المجموع الإعتبارى | CI8: الترتيب | EC8: نسبة 65
P9: نصف العام | R9: آخر العام | T9: مجموع | U9: الدرجة | W9: نصف العام | Y9: آخر العام | AA9: مجموع | AB9: الدرجة | AD9: نصف العام | AF9: آخر العام | AH9: مجموع | AI9: الدرجة | AK9: نصف العام | AM9: آخر العام | AO9: مجموع | AP9: الدرجة | AR9: نصف العام | AT9: آخر العام | AV9: مجموع | AW9: الدرجة | AY9: نصف العام | AZ9: آخر العام | BA9: مجموع | BB9: الدرجة | BD9: نصف العام | BE9: آخر العام | BF9: مجموع | BG9: الدرجة | BI9: نصف العام | BJ9: آخر العام | BK9: مجموع | BL9: الدرجة | BN9: نصف العام | BO9: آخر العام | BP9: مجموع | BQ9: الدرجة | BS9: نصف العام | BT9: آخر العام | BU9: مجموع | BV9: الدرجة | CA9: نصف العام | CC9: آخر العام | CE9: مجموع | CF9: الدرجة | CY9: الصف الخامس 2017/2016 | DJ9: الصف الرابع 2018/2017
P10: تقويم شامل | Q10: إختبار | R10: ملف | S10: إختبار | W10: تقويم شامل | X10: إختبار | Y10: تقويم شامل | Z10: إختبار | AD10: تقويم شامل | AE10: إختبار | AF10: تقويم شامل | AG10: إختبار | AK10: تقويم شامل | AL10: إختبار | AM10: تقويم شامل | AN10: إختبار | AR10: تقويم شامل | AS10: إختبار | AT10: تقويم شامل | AU10: إختبار | AY10: تقويم شامل | AZ10: تقويم شامل | BD10: تقويم شامل | BE10: تقويم شامل | BI10: تقويم شامل | BJ10: تقويم شامل | BN10: تقويم شامل | BO10: تقويم شامل | BS10: تقويم شامل | BT10: تقويم شامل | CA10: تقويم شامل | CB10: إختبار | CC10: ملف | CD10: إختبار | CV10: ناجح | CW10: =COUNTIF(CV12:CV217,"ناجح") -> 115 | CY10: إحصاء الناجحون | DJ10: الأوائــــــــــــــل بدون الأنشطه آخر العام | DQ10: درجـــــــــــــات الأوائــــــــــــــل | EC10: عربى | ED10: رياضيات | EE10: إنجليزى | EF10: دراسات | EG10: علوم | EH10: فنى | EI10: رياضى | EJ10: نشاط1 | EK10: نشاط2 | EL10: دين
J11: يوم | K11: شهر | L11: سنة | M11: 2017-10-01 | P11: 40 | Q11: 60 | R11: 40 | S11: 60 | T11: =P11+Q11+R11+S11 -> 200 | U11: 100 | W11: 40 | X11: 60 | Y11: 40 | Z11: 60 | AA11: =W11+X11+Y11+Z11 -> 200 | AB11: 80 | AD11: 40 | AE11: 60 | AF11: 40 | AG11: 60 | AH11: =AD11+AE11+AF11+AG11 -> 200 | AI11: 40 | AK11: 40 | AL11: 60 | AM11: 40 | AN11: 60 | AO11: =AK11+AL11+AM11+AN11 -> 200 | AP11: 40 | AR11: 40 | AS11: 60 | AT11: 40 | AU11: 48+12 | AV11: 200 | AW11: 40 | AY11: 100 | AZ11: 100 | BA11: 200 | BB11: 20 | BD11: 100 | BE11: 100 | BF11: 200 | BG11: 20 | BI11: 100 | BJ11: 100 | BK11: 200 | BL11: 20 | BN11: 100 | BO11: 100 | BP11: 200 | BQ11: 20 | BS11: 100 | BT11: 100 | BU11: 200 | BV11: 20 | BX11: 340 | BZ11: 300 | CA11: 40 | CB11: 60 | CC11: 40 | CD11: 60 | CE11: =CA11+CB11+CC11+CD11 -> 200 | CF11: 40 | CH11: 360 | CK11: النتيجة النهائية | CS11: النتيجة النهائية | CV11: دور ثان | CW11: =COUNTIF(CV12:CV217,"دور ثان") -> 10 | CY11: عربى | CZ11: رياضيات | DA11: إنجليزى | DB11: دراسات | DC11: علوم | DD11: فنى | DE11: رياضى | DF11: نشاط1 | DG11: نشاط2 | DH11: دين | DJ11: رقم الجلوس | DK11: الاســــــــــــــــــم | DL11: المجموع | DM11: الترتيب | DN11: النسبة المئوية | DP11: الإســـــــم | DQ11: عربى | DR11: رياضيات | DS11: إنجليزى | DT11: دراسات | DU11: علوم | DV11: مجموع | DW11: فنى | DX11: رياضى | DY11: نشاط1 | DZ11: نشاط2 | EA11: دين | EC11: =COUNT(EC12:EC456) -> 120 | ED11: =COUNT(ED12:ED456) -> 120 | EE11: =COUNT(EE12:EE456) -> 120 | EF11: =COUNT(EF12:EF456) -> 115 | EG11: =COUNT(EG12:EG456) -> 125 | EH11: =COUNT(EH12:EH100) -> 88 | EI11: =COUNT(EI12:EI100) -> 88 | EJ11: =COUNT(EJ12:EJ100) -> 88 | EK11: =COUNT(EK12:EK100) -> 88 | EL11: =COUNT(EL12:EL456) -> 118
A12: 30810151702976 | B12: =TEXT(LEFT(A12,7)+17000000,"####-##-##")+0 -> 2008-10-15 | E12: 38 | F12: 52 | G12: =IF(H12="","",SUBTOTAL(3,$H$12:H12)) -> 1 | H12: ابراهيم السيد صبحى احمد الفارس | I12: =IF(OR($I$4=0,$H12=""),"",$I$4) -> 1 | J12: =DAY(B12) -> 15 | K12: =MONTH(B12) -> 10 | L12: =YEAR(B12) -> 2008 | M12: =DATEDIF(DATE(L12,K12,J12),$M$11,"md") -> 16 | N12: =DATEDIF(DATE(L12,K12,J12),$M$11,"ym") -> 11 | O12: =DATEDIF(DATE(L12,K12,J12),$M$11,"y") -> 8 | P12: 39 | Q12: 59 | R12: 38 | S12: 49 | T12: =IF(AND(P12="غ",Q12="غ",R12="غ",S12="غ"),"غ",IF(AND(P12="صفر",Q12="صفر",R12="صفر",S12="صفر"),"صفر",SUM(P12:S12))) -> 185 | U12: =IF(AND(T12="غ"),"غ",IF(AND(T12="صفر"),"صفر",T12*100/200)) -> 92.5 | V12: =IF(OR(U12="",S12=""),"",IF(AND(U12="غ",S12="غ"),"غ",IF(OR(S12<18,S12="غ",U12="غ",S12="صفر",U12="صفر",U12<50),"دون المستوى",IF(U12>=85,"ممتاز",IF(U12>=75,"جيد جداً",IF(U12>=65,"جيد",IF(U12>=50,"مقبول"))))))) -> ممتاز | W12: 38 | X12: 54 | Y12: 38 | Z12: 49 | AA12: =IF(AND(W12="غ",X12="غ",Y12="غ",Z12="غ"),"غ",IF(AND(W12="صفر",X12="صفر",Y12="صفر",Z12="صفر"),"صفر",SUM(W12:Z12))) -> 179 | AB12: =IF(AND(AA12="غ"),"غ",IF(AND(AA12="صفر"),"صفر",AA12*80/200)) -> 71.6 | AC12: =IF(OR(AB12="",Z12=""),"",IF(AND(AB12="غ",Z12="غ"),"غ",IF(OR(Z12<18,Z12="غ",AB12="غ",Z12="صفر",AB12="صفر",AB12<40),"دون المستوى",IF(AB12>=68,"ممتاز",IF(AB12>=60,"جيد جداً",IF(AB12>=52,"جيد",IF(AB12>=40,"مقبول"))))))) -> ممتاز | AD12: 40 | AE12: 57 | AF12: 40 | AG12: 54 | AH12: =IF(AND(AD12="غ",AE12="غ",AF12="غ",AG12="غ"),"غ",IF(AND(AD12="صفر",AE12="صفر",AF12="صفر",AG12="صفر"),"صفر",SUM(AD12:AG12))) -> 191 | AI12: =IF(AND(AH12="غ"),"غ",IF(AND(AH12="صفر"),"صفر",AH12*40/200)) -> 38.2 | AJ12: =IF(OR(AI12="",AG12=""),"",IF(AND(AI12="غ",AG12="غ"),"غ",IF(OR(AG12<18,AG12="غ",AI12="غ",AG12="صفر",AI12="صفر",AI12<20),"دون المستوى",IF(AI12>=32,"ممتاز",IF(AI12>=30,"جيد جداً",IF(AI12>=26,"جيد",IF(AI12>=20,"مقبول"))))))) -> ممتاز | AK12: 37 | AL12: 54 | AM12: 37 | AN12: 46 | AO12: =IF(AND(AK12="غ",AL12="غ",AM12="غ",AN12="غ"),"غ",IF(AND(AK12="صفر",AL12="صفر",AM12="صفر",AN12="صفر"),"صفر",SUM(AK12:AN12))) -> 174 | AP12: =IF(AND(AO12="غ"),"غ",IF(AND(AO12="صفر"),"صفر",AO12*40/200)) -> 34.8 | AQ12: =IF(OR(AP12="",AN12=""),"",IF(AND(AP12="غ",AN12="غ"),"غ",IF(OR(AN12<18,AN12="غ",AP12="غ",AN12="صفر",AP12="صفر",AP12<20),"دون المستوى",IF(AP12>=32,"ممتاز",IF(AP12>=30,"جيد جداً",IF(AP12>=26,"جيد",IF(AP12>=20,"مقبول"))))))) -> ممتاز | AR12: 36 | AS12: 55 | AT12: 40 | AU12: 60 | AV12: =IF(AND(AR12="غ",AS12="غ",AT12="غ",AU12="غ"),"غ",IF(AND(AR12="صفر",AS12="صفر",AT12="صفر",AU12="صفر"),"صفر",SUM(AR12:AU12))) -> 191 | AW12: =IF(AND(AV12="غ"),"غ",IF(AND(AV12="صفر"),"صفر",AV12*40/200)) -> 38.2 | AX12: =IF(OR(AW12="",AU12=""),"",IF(AND(AW12="غ",AU12="غ"),"غ",IF(OR(AU12<18,AU12="غ",AW12="غ",AU12="صفر",AW12="صفر",AW12<20),"دون المستوى",IF(AW12>=32,"ممتاز",IF(AW12>=30,"جيد جداً",IF(AW12>=26,"جيد",IF(AW12>=20,"مقبول"))))))) -> ممتاز | AY12: 95 | AZ12: 97 | BA12: =IF(AND(AY12="غ",AZ12="غ"),"غ",IF(AND(AY12="صفر",AZ12="صفر"),"صفر",SUM(AY12:AZ12))) -> 192 | BB12: =IF(AND(BA12="غ"),"غ",IF(AND(BA12="صفر"),"صفر",BA12*20/200)) -> 19.2 | BC12: =IF(BB12="غ","غ",IF(OR(BB12="غ",BB12="صفر",BB12<10),"دون المستوى",IF(BB12>=17,"ممتاز",IF(BB12>=15,"جيد جداً",IF(BB12>=13,"جيد",IF(BB12>=10,"مقبول")))))) -> ممتاز | BD12: 98 | BE12: 98 | BF12: =IF(AND(BD12="غ",BE12="غ"),"غ",IF(AND(BD12="صفر",BE12="صفر"),"صفر",SUM(BD12:BE12))) -> 196 | BG12: =IF(AND(BF12="غ"),"غ",IF(AND(BF12="صفر"),"صفر",BF12*20/200)) -> 19.6 | BH12: =IF(BG12="غ","غ",IF(OR(BG12="غ",BG12="صفر",BG12<10),"دون المستوى",IF(BG12>=17,"ممتاز",IF(BG12>=15,"جيد جداً",IF(BG12>=13,"جيد",IF(BG12>=10,"مقبول")))))) -> ممتاز | BI12: 95 | BJ12: 97 | BK12: =IF(AND(BI12="غ",BJ12="غ"),"غ",IF(AND(BI12="صفر",BJ12="صفر"),"صفر",SUM(BI12:BJ12))) -> 192 | BL12: =IF(AND(BK12="غ"),"غ",IF(AND(BK12="صفر"),"صفر",BK12*20/200)) -> 19.2 | BM12: =IF(BL12="غ","غ",IF(OR(BL12="غ",BL12="صفر",BL12<10),"دون المستوى",IF(BL12>=17,"ممتاز",IF(BL12>=15,"جيد جداً",IF(BL12>=13,"جيد",IF(BL12>=10,"مقبول")))))) -> ممتاز | BN12: 97 | BO12: 95 | BP12: =IF(AND(BN12="غ",BO12="غ"),"غ",IF(AND(BN12="صفر",BO12="صفر"),"صفر",SUM(BN12:BO12))) -> 192 | BQ12: =IF(AND(BP12="غ"),"غ",IF(AND(BP12="صفر"),"صفر",BP12*20/200)) -> 19.2 | BR12: =IF(BQ12="غ","غ",IF(OR(BQ12="غ",BQ12="صفر",BQ12<10),"دون المستوى",IF(BQ12>=17,"ممتاز",IF(BQ12>=15,"جيد جداً",IF(BQ12>=13,"جيد",IF(BQ12>=10,"مقبول")))))) -> ممتاز | BS12: 98 | BT12: 98 | BU12: =IF(AND(BS12="غ",BT12="غ"),"غ",IF(AND(BS12="صفر",BT12="صفر"),"صفر",SUM(BS12:BT12))) -> 196 | BV12: =IF(AND(BU12="غ"),"غ",IF(AND(BU12="صفر"),"صفر",BU12*20/200)) -> 19.6 | BW12: =IF(BV12="غ","غ",IF(OR(BV12="غ",BV12="صفر",BV12<10),"دون المستوى",IF(BV12>=17,"ممتاز",IF(BV12>=15,"جيد جداً",IF(BV12>=13,"جيد",IF(BV12>=10,"مقبول")))))) -> ممتاز | BX12: =IF(AND(AW12="غ",AP12="غ",AI12="غ",AB12="غ",U12="غ"),"غ",SUM(AW12,AP12,AI12,AB12,U12,BQ12,BV12)) -> 314.1 | BY12: =IF(BX12="غ","غ",IF(OR(BX12="غ",BX12<$BX$11*0.5),"دون المستوى",IF(BX12>=$BX$11*0.85,"ممتاز",IF(BX12>=$BX$11*0.75,"جيد جدا",IF(BX12>=$BX$11*0.65,"جيد",IF(BX12>=$BX$11*0.5,"مقبول")))))) -> ممتاز | BZ12: =IF(AND(AW12="غ",AP12="غ",AI12="غ",AB12="غ",U12="غ"),"غ",SUM(AW12,AP12,AI12,AB12,U12)) -> 275.3 | CA12: 40 | CB12: 50 | CC12: 38 | CD12: 51 | CE12: =IF(AND(CA12="غ",CB12="غ",CC12="غ",CD12="غ"),"غ",IF(AND(CA12="صفر",CB12="صفر",CC12="صفر",CD12="صفر"),"صفر",SUM(CA12:CD12))) -> 179 | CF12: =IF(AND(CE12="غ"),"غ",IF(AND(CE12="صفر"),"صفر",CE12*40/200)) -> 35.8 | CG12: =IF(OR(CF12="",CD12=""),"",IF(AND(CF12="غ",CD12="غ"),"غ",IF(OR(CD12<18,CD12="غ",CF12="غ",CD12="صفر",CF12="صفر",CF12<20),"دون المستوى",IF(CF12>=32,"ممتاز",IF(CF12>=30,"جيد جداً",IF(CF12>=26,"جيد",IF(CF12>=20,"مقبول"))))))) -> ممتاز | CH12: =IF(OR(BX12="غ",CF12="غ"),"غ",BX12+CF12) -> 349.9 | CI12: =IF(ISNUMBER(BX12)=FALSE,MAX($G$12:$G$10003)-MIN($G$12:$G$10003)+COUNTIF($BX$12:BX12,BX12),RANK(BX12,$BX$12:$BX$268,0)) -> 64 | CK12: =IF(OR(S12<18,S12="غ",U12<50,U12="غ")," - عربى ","") ->  | CL12: =IF(OR(Z12<18,Z12="غ",AB12<40,AB12="غ")," - رياضيات ","") ->  | CM12: =IF(OR(AG12<18,AG12="غ",AI12<20,AI12="غ")," - إنجليزى ","") ->  | CN12: =IF(OR(AN12<18,AN12="غ",AP12<20,AP12="غ")," - دراسات ","") ->  | CO12: =IF(OR(AU12<18,AU12="غ",AW12<20,AW12="غ")," - علوم ","") ->  | CP12: =IF(OR(CD12<18,CD12="غ",CF12<20,CF12="غ")," - دين ","") ->  | CS12: =CONCATENATE(CK12,CL12,CM12,CN12,CO12,CP12) ->  | CV12: =IF(CS12="","ناجح","دور ثان") -> ناجح | CY12: =COUNTIF(CK12:CK136,"") -> 117 | CZ12: =COUNTIF(CL12:CL136,"") -> 121 | DA12: =COUNTIF(CM12:CM136,"") -> 123 | DB12: =COUNTIF(CN12:CN136,"") -> 118 | DC12: =COUNTIF(CO12:CO117,"") -> 104 | DD12: =COUNTIF(BB12:BB117,">=10") -> 104 | DE12: =COUNTIF(BG12:BG117,">=10") -> 104 | DF12: =COUNTIF(BQ12:BQ117,">=10") -> 104 | DG12: =COUNTIF(BV12:BV117,">=10") -> 104 | DH12: =COUNTIF(CP12:CP136,"") -> 118 | DI12: =IF(AND(Q12="غ",S12="غ",X12="غ",Z12="غ",AE12="غ",AG12="غ",AL12="غ",AN12="غ",AS12="غ",AU12="غ"),"غ",IF(AND(Q12="صفر",S12="صفر",X12="صفر",Z12="صفر",AE12="صفر",AG12="صفر",AL12="صفر",AN12="صفر",AS12="صفر",AU12="صفر"),"صفر",SUM(Q12,S12,X12,Z12,AE12,AG12,AL12,AN12,AS12,AU12))) -> 537 | DJ12: =TOPTEN($BZ$12:$BZ$235,$I$12:$I$235,1,FALSE) -> 123 | DK12: =TOPTEN($BZ$12:$BZ$235,$H$12:$H$235,1,FALSE) -> هنا أحمد محمد عبد العليم فرج | DL12: =TOPTEN($BZ$12:$BZ$235,$BZ$12:$BZ$235,1,FALSE) -> 299.2 | DM12: =TOPTEN($BZ$12:$BZ$235,$BZ$12:$BZ$235,1,TRUE) -> الأول | DN12: =DL12/300 -> 0.9973333333 | DO12: =IF(AND(DL12>=140)," ناجح ","دور ثان ") -> ناجح | DP12: =DK12 -> هنا أحمد محمد عبد العليم فرج | DQ12: =TOPTEN($BX$12:$BX$117,$U$12:$U$117,1,FALSE) -> 100 | DR12: =TOPTEN($BX$12:$BX$117,$AB$12:$AB$117,1,FALSE) -> 77.6 | DS12: =TOPTEN($BX$12:$BX$117,$AI$12:$AI$117,1,FALSE) -> 40 | DT12: =TOPTEN($BX$12:$BX$117,$AP$12:$AP$117,1,FALSE) -> 39.6 | DU12: =TOPTEN($BX$12:$BX$117,$AW$12:$AW$117,1,FALSE) -> 39.6 | DV12: =TOPTEN($BX$12:$BX$117,$BX$12:$BX$117,1,FALSE) -> 335.9 | DW12: =TOPTEN($BX$12:$BX$117,$BB$12:$BB$117,1,FALSE) -> 19.6 | DX12: =TOPTEN($BX$12:$BX$117,$BG$12:$BG$117,1,FALSE) -> 19.5 | DY12: =TOPTEN($BX$12:$BX$117,$BQ$12:$BQ$117,1,FALSE) -> 19.6 | DZ12: =TOPTEN($BX$12:$BX$117,$BV$12:$BV$117,1,FALSE) -> 19.5 | EA12: =TOPTEN($BX$12:$BX$117,$CF$12:$CF$117,1,FALSE) -> 39.6 | EC12: =IF(Q12<26,"عربى",0) -> 0 | ED12: =IF(X12<26,"رياضيات",0) -> 0 | EE12: =IF(AE12<26,"إنجليزى",0) -> 0 | EF12: =IF(AL12<26,"دراسات",0) -> 0 | EG12: =IF(AS12<26,"علوم",0) -> 0 | EH12: =IF(BB12<13,"فنى",0) -> 0 | EI12: =IF(BG12<13,"رياضى",0) -> 0 | EJ12: =IF(BQ12<13,"نشاط1",0) -> 0 | EK12: =IF(BV12<13,"نشاط2",0) -> 0 | EL12: =IF(CB12<26,"دين",0) -> 0
A13: 30811191701375 | B13: 2008-11-19 | E13: 39 | F13: 53 | G13: =IF(H13="","",SUBTOTAL(3,$H$12:H13)) -> 2 | H13: احمد السيد عباس مصلحى | I13: =IF(OR($I$4=0,$H13=""),"",$I12+1) -> 2 | J13: 19 | K13: 11 | L13: 2008 | M13: 12 | N13: 10 | O13: 8 | P13: 37 | Q13: 39 | R13: 37 | S13: 41 | T13: =IF(AND(P13="غ",Q13="غ",R13="غ",S13="غ"),"غ",IF(AND(P13="صفر",Q13="صفر",R13="صفر",S13="صفر"),"صفر",SUM(P13:S13))) -> 154 | U13: =IF(AND(T13="غ"),"غ",IF(AND(T13="صفر"),"صفر",T13*100/200)) -> 77 | V13: =IF(OR(U13="",S13=""),"",IF(AND(U13="غ",S13="غ"),"غ",IF(OR(S13<18,S13="غ",U13="غ",S13="صفر",U13="صفر",U13<50),"دون المستوى",IF(U13>=85,"ممتاز",IF(U13>=75,"جيد جداً",IF(U13>=65,"جيد",IF(U13>=50,"مقبول"))))))) -> جيد جداً | W13: 37 | X13: 48 | Y13: 37 | Z13: 50 | AA13: =IF(AND(W13="غ",X13="غ",Y13="غ",Z13="غ"),"غ",IF(AND(W13="صفر",X13="صفر",Y13="صفر",Z13="صفر"),"صفر",SUM(W13:Z13))) -> 172 | AB13: =IF(AND(AA13="غ"),"غ",IF(AND(AA13="صفر"),"صفر",AA13*80/200)) -> 68.8 | AC13: =IF(OR(AB13="",Z13=""),"",IF(AND(AB13="غ",Z13="غ"),"غ",IF(OR(Z13<18,Z13="غ",AB13="غ",Z13="صفر",AB13="صفر",AB13<40),"دون المستوى",IF(AB13>=68,"ممتاز",IF(AB13>=60,"جيد جداً",IF(AB13>=52,"جيد",IF(AB13>=40,"مقبول"))))))) -> ممتاز | AD13: 38 | AE13: 54 | AF13: 39 | AG13: 60 | AH13: =IF(AND(AD13="غ",AE13="غ",AF13="غ",AG13="غ"),"غ",IF(AND(AD13="صفر",AE13="صفر",AF13="صفر",AG13="صفر"),"صفر",SUM(AD13:AG13))) -> 191 | AI13: =IF(AND(AH13="غ"),"غ",IF(AND(AH13="صفر"),"صفر",AH13*40/200)) -> 38.2 | AJ13: =IF(OR(AI13="",AG13=""),"",IF(AND(AI13="غ",AG13="غ"),"غ",IF(OR(AG13<18,AG13="غ",AI13="غ",AG13="صفر",AI13="صفر",AI13<20),"دون المستوى",IF(AI13>=32,"ممتاز",IF(AI13>=30,"جيد جداً",IF(AI13>=26,"جيد",IF(AI13>=20,"مقبول"))))))) -> ممتاز | AK13: 36 | AL13: 46 | AM13: 36 | AN13: 40 | AO13: =IF(AND(AK13="غ",AL13="غ",AM13="غ",AN13="غ"),"غ",IF(AND(AK13="صفر",AL13="صفر",AM13="صفر",AN13="صفر"),"صفر",SUM(AK13:AN13))) -> 158 | AP13: =IF(AND(AO13="غ"),"غ",IF(AND(AO13="صفر"),"صفر",AO13*40/200)) -> 31.6 | AQ13: =IF(OR(AP13="",AN13=""),"",IF(AND(AP13="غ",AN13="غ"),"غ",IF(OR(AN13<18,AN13="غ",AP13="غ",AN13="صفر",AP13="صفر",AP13<20),"دون المستوى",IF(AP13>=32,"ممتاز",IF(AP13>=30,"جيد جداً",IF(AP13>=26,"جيد",IF(AP13>=20,"مقبول"))))))) -> جيد جداً | AR13: 36 | AS13: 51 | AT13: 40 | AU13: 50 | AV13: =IF(AND(AR13="غ",AS13="غ",AT13="غ",AU13="غ"),"غ",IF(AND(AR13="صفر",AS13="صفر",AT13="صفر",AU13="صفر"),"صفر",SUM(AR13:AU13))) -> 177 | AW13: =IF(AND(AV13="غ"),"غ",IF(AND(AV13="صفر"),"صفر",AV13*40/200)) -> 35.4 | AX13: =IF(OR(AW13="",AU13=""),"",IF(AND(AW13="غ",AU13="غ"),"غ",IF(OR(AU13<18,AU13="غ",AW13="غ",AU13="صفر",AW13="صفر",AW13<20),"دون المستوى",IF(AW13>=32,"ممتاز",IF(AW13>=30,"جيد جداً",IF(AW13>=26,"جيد",IF(AW13>=20,"مقبول"))))))) -> ممتاز | AY13: 98 | AZ13: 97 | BA13: =IF(AND(AY13="غ",AZ13="غ"),"غ",IF(AND(AY13="صفر",AZ13="صفر"),"صفر",SUM(AY13:AZ13))) -> 195 | BB13: =IF(AND(BA13="غ"),"غ",IF(AND(BA13="صفر"),"صفر",BA13*20/200)) -> 19.5 | BC13: =IF(BB13="غ","غ",IF(OR(BB13="غ",BB13="صفر",BB13<10),"دون المستوى",IF(BB13>=17,"ممتاز",IF(BB13>=15,"جيد جداً",IF(BB13>=13,"جيد",IF(BB13>=10,"مقبول")))))) -> ممتاز | BD13: 98 | BE13: 98 | BF13: =IF(AND(BD13="غ",BE13="غ"),"غ",IF(AND(BD13="صفر",BE13="صفر"),"صفر",SUM(BD13:BE13))) -> 196 | BG13: =IF(AND(BF13="غ"),"غ",IF(AND(BF13="صفر"),"صفر",BF13*20/200)) -> 19.6 | BH13: =IF(BG13="غ","غ",IF(OR(BG13="غ",BG13="صفر",BG13<10),"دون المستوى",IF(BG13>=17,"ممتاز",IF(BG13>=15,"جيد جداً",IF(BG13>=13,"جيد",IF(BG13>=10,"مقبول")))))) -> ممتاز | BI13: 98 | BJ13: 97 | BK13: =IF(AND(BI13="غ",BJ13="غ"),"غ",IF(AND(BI13="صفر",BJ13="صفر"),"صفر",SUM(BI13:BJ13))) -> 195 | BL13: =IF(AND(BK13="غ"),"غ",IF(AND(BK13="صفر"),"صفر",BK13*20/200)) -> 19.5 | BM13: =IF(BL13="غ","غ",IF(OR(BL13="غ",BL13="صفر",BL13<10),"دون المستوى",IF(BL13>=17,"ممتاز",IF(BL13>=15,"جيد جداً",IF(BL13>=13,"جيد",IF(BL13>=10,"مقبول")))))) -> ممتاز | BN13: 97 | BO13: 98 | BP13: =IF(AND(BN13="غ",BO13="غ"),"غ",IF(AND(BN13="صفر",BO13="صفر"),"صفر",SUM(BN13:BO13))) -> 195 | BQ13: =IF(AND(BP13="غ"),"غ",IF(AND(BP13="صفر"),"صفر",BP13*20/200)) -> 19.5 | BR13: =IF(BQ13="غ","غ",IF(OR(BQ13="غ",BQ13="صفر",BQ13<10),"دون المستوى",IF(BQ13>=17,"ممتاز",IF(BQ13>=15,"جيد جداً",IF(BQ13>=13,"جيد",IF(BQ13>=10,"مقبول")))))) -> ممتاز | BS13: 98 | BT13: 98 | BU13: =IF(AND(BS13="غ",BT13="غ"),"غ",IF(AND(BS13="صفر",BT13="صفر"),"صفر",SUM(BS13:BT13))) -> 196 | BV13: =IF(AND(BU13="غ"),"غ",IF(AND(BU13="صفر"),"صفر",BU13*20/200)) -> 19.6 | BW13: =IF(BV13="غ","غ",IF(OR(BV13="غ",BV13="صفر",BV13<10),"دون المستوى",IF(BV13>=17,"ممتاز",IF(BV13>=15,"جيد جداً",IF(BV13>=13,"جيد",IF(BV13>=10,"مقبول")))))) -> ممتاز | BX13: =IF(AND(AW13="غ",AP13="غ",AI13="غ",AB13="غ",U13="غ"),"غ",SUM(AW13,AP13,AI13,AB13,U13,BQ13,BV13)) -> 290.1 | BY13: =IF(BX13="غ","غ",IF(OR(BX13="غ",BX13<$BX$11*0.5),"دون المستوى",IF(BX13>=$BX$11*0.85,"ممتاز",IF(BX13>=$BX$11*0.75,"جيد جدا",IF(BX13>=$BX$11*0.65,"جيد",IF(BX13>=$BX$11*0.5,"مقبول")))))) -> ممتاز | BZ13: =IF(AND(AW13="غ",AP13="غ",AI13="غ",AB13="غ",U13="غ"),"غ",SUM(AW13,AP13,AI13,AB13,U13)) -> 251 | CA13: 35 | CB13: 39 | CC13: 38 | CD13: 41 | CE13: =IF(AND(CA13="غ",CB13="غ",CC13="غ",CD13="غ"),"غ",IF(AND(CA13="صفر",CB13="صفر",CC13="صفر",CD13="صفر"),"صفر",SUM(CA13:CD13))) -> 153 | CF13: =IF(AND(CE13="غ"),"غ",IF(AND(CE13="صفر"),"صفر",CE13*40/200)) -> 30.6 | CG13: =IF(OR(CF13="",CD13=""),"",IF(AND(CF13="غ",CD13="غ"),"غ",IF(OR(CD13<18,CD13="غ",CF13="غ",CD13="صفر",CF13="صفر",CF13<20),"دون المستوى",IF(CF13>=32,"ممتاز",IF(CF13>=30,"جيد جداً",IF(CF13>=26,"جيد",IF(CF13>=20,"مقبول"))))))) -> جيد جداً | CH13: =IF(OR(BX13="غ",CF13="غ"),"غ",BX13+CF13) -> 320.7 | CI13: =IF(ISNUMBER(BX13)=FALSE,MAX($G$12:$G$10003)-MIN($G$12:$G$10003)+COUNTIF($BX$12:BX13,BX13),RANK(BX13,$BX$12:$BX$268,0)) -> 100 | CP13: =IF(OR(CD13<18,CD13="غ",CF13<20,CF13="غ")," - دين ","") ->  | CS13: =CONCATENATE(CK13,CL13,CM13,CN13,CO13,CP13) ->  | CV13: =IF(CS13="","ناجح","دور ثان") -> ناجح | DI13: =IF(AND(Q13="غ",S13="غ",X13="غ",Z13="غ",AE13="غ",AG13="غ",AL13="غ",AN13="غ",AS13="غ",AU13="غ"),"غ",IF(AND(Q13="صفر",S13="صفر",X13="صفر",Z13="صفر",AE13="صفر",AG13="صفر",AL13="صفر",AN13="صفر",AS13="صفر",AU13="صفر"),"صفر",SUM(Q13,S13,X13,Z13,AE13,AG13,AL13,AN13,AS13,AU13))) -> 479 | DJ13: =TOPTEN($BZ$12:$BZ$235,$I$12:$I$235,2,FALSE) -> 125 | DK13: =TOPTEN($BZ$12:$BZ$235,$H$12:$H$235,2,FALSE) -> يمنى عادل على محمد مصطفى | DL13: =TOPTEN($BZ$12:$BZ$235,$BZ$12:$BZ$235,2,FALSE) -> 299.2 | DM13: =TOPTEN($BZ$12:$BZ$235,$BZ$12:$BZ$235,2,TRUE) -> الأول مكرر | DN13: =DL13/300 -> 0.9973333333 | DO13: =IF(AND(DL13>=140)," ناجح ","دور ثان ") -> ناجح | DP13: =DK13 -> يمنى عادل على محمد مصطفى | DQ13: =TOPTEN($BX$12:$BX$117,$U$12:$U$117,2,FALSE) -> 99 | DR13: =TOPTEN($BX$12:$BX$117,$AB$12:$AB$117,2,FALSE) -> 79.6 | DS13: =TOPTEN($BX$12:$BX$117,$AI$12:$AI$117,2,FALSE) -> 39.2 | DT13: =TOPTEN($BX$12:$BX$117,$AP$12:$AP$117,2,FALSE) -> 38.8 | DU13: =TOPTEN($BX$12:$BX$117,$AW$12:$AW$117,2,FALSE) -> 38.8 | DV13: =TOPTEN($BX$12:$BX$117,$BX$12:$BX$117,2,FALSE) -> 334.6 | DW13: =TOPTEN($BX$12:$BX$117,$BB$12:$BB$117,2,FALSE) -> 19.6 | DX13: =TOPTEN($BX$12:$BX$117,$BG$12:$BG$117,2,FALSE) -> 19.6 | DY13: =TOPTEN($BX$12:$BX$117,$BQ$12:$BQ$117,2,FALSE) -> 19.6 | DZ13: =TOPTEN($BX$12:$BX$117,$BV$12:$BV$117,2,FALSE) -> 19.6 | EA13: =TOPTEN($BX$12:$BX$117,$CF$12:$CF$117,2,FALSE) -> 38.6 | EC13: 0 | ED13: 0 | EE13: 0 | EF13: 0 | EG13: 0 | EH13: 0 | EI13: 0 | EJ13: 0 | EK13: 0 | EL13: 0
A14: 30711151702854 | B14: 2007-11-15 | E14: 40 | F14: 54 | G14: =IF(H14="","",SUBTOTAL(3,$H$12:H14)) -> 3 | H14: أحمد أيمن السعيد المهدى العليمى | I14: 3 | J14: 15 | K14: 11 | L14: 2007 | M14: 16 | N14: 10 | O14: 9 | P14: 40 | Q14: 59 | R14: 39 | S14: 59 | T14: =IF(AND(P14="غ",Q14="غ",R14="غ",S14="غ"),"غ",IF(AND(P14="صفر",Q14="صفر",R14="صفر",S14="صفر"),"صفر",SUM(P14:S14))) -> 197 | U14: 98.5 | V14: ممتاز | W14: 39 | X14: 56 | Y14: 39 | Z14: 52 | AA14: 186 | AB14: 74.4 | AC14: ممتاز | AD14: 40 | AE14: 60 | AF14: 40 | AG14: 56 | AH14: 196 | AI14: 39.2 | AJ14: ممتاز | AK14: 36 | AL14: 56 | AM14: 36 | AN14: 56 | AO14: 184 | AP14: 36.8 | AQ14: ممتاز | AR14: 36 | AS14: 56 | AT14: 40 | AU14: 60 | AV14: 192 | AW14: 38.4 | AX14: ممتاز | AY14: 99 | AZ14: 97 | BA14: 196 | BB14: 19.6 | BC14: ممتاز | BD14: 98 | BE14: 98 | BF14: 196 | BG14: 19.6 | BH14: =IF(BG14="غ","غ",IF(OR(BG14="غ",BG14="صفر",BG14<10),"دون المستوى",IF(BG14>=17,"ممتاز",IF(BG14>=15,"جيد جداً",IF(BG14>=13,"جيد",IF(BG14>=10,"مقبول")))))) -> ممتاز | BI14: 99 | BJ14: 97 | BK14: 196 | BL14: 19.6 | BM14: ممتاز | BN14: 97 | BO14: 99 | BP14: 196 | BQ14: 19.6 | BR14: ممتاز | BS14: 98 | BT14: 98 | BU14: 196 | BV14: 19.6 | BW14: ممتاز | BX14: 326.5 | BY14: ممتاز | BZ14: 287.3 | CA14: 40 | CB14: 50 | CC14: 40 | CD14: 58 | CE14: 188 | CF14: 37.6 | CG14: ممتاز | CH14: 364.1 | CI14: =IF(ISNUMBER(BX14)=FALSE,MAX($G$12:$G$10003)-MIN($G$12:$G$10003)+COUNTIF($BX$12:BX14,BX14),RANK(BX14,$BX$12:$BX$268,0)) -> 41 | CS14: =CONCATENATE(CK14,CL14,CM14,CN14,CO14,CP14) ->  | CV14: ناجح | CY14: إحصاء االراسبون | DI14: 570 | DJ14: =TOPTEN($BZ$12:$BZ$235,$I$12:$I$235,3,FALSE) -> 116 | DK14: =TOPTEN($BZ$12:$BZ$235,$H$12:$H$235,3,FALSE) -> هاجر خالد محمود عطوه | DL14: =TOPTEN($BZ$12:$BZ$235,$BZ$12:$BZ$235,3,FALSE) -> 299 | DM14: =TOPTEN($BZ$12:$BZ$235,$BZ$12:$BZ$235,3,TRUE) -> الثاني | DN14: 0.9966666667 | DO14: ناجح | DP14: هاجر خالد محمود عطوه | DQ14: =TOPTEN($BX$12:$BX$117,$U$12:$U$117,3,FALSE) -> 98.5 | DR14: =TOPTEN($BX$12:$BX$117,$AB$12:$AB$117,3,FALSE) -> 77.6 | DS14: =TOPTEN($BX$12:$BX$117,$AI$12:$AI$117,3,FALSE) -> 39.6 | DT14: =TOPTEN($BX$12:$BX$117,$AP$12:$AP$117,3,FALSE) -> 40 | DU14: =TOPTEN($BX$12:$BX$117,$AW$12:$AW$117,3,FALSE) -> 38.6 | DV14: =TOPTEN($BX$12:$BX$117,$BX$12:$BX$117,3,FALSE) -> 333.5 | DW14: =TOPTEN($BX$12:$BX$117,$BB$12:$BB$117,3,FALSE) -> 19.6 | DX14: =TOPTEN($BX$12:$BX$117,$BG$12:$BG$117,3,FALSE) -> 19.6 | DY14: =TOPTEN($BX$12:$BX$117,$BQ$12:$BQ$117,3,FALSE) -> 19.6 | DZ14: =TOPTEN($BX$12:$BX$117,$BV$12:$BV$117,3,FALSE) -> 19.6 | EA14: =TOPTEN($BX$12:$BX$117,$CF$12:$CF$117,3,FALSE) -> 36.6 | EC14: 0 | ED14: 0 | EE14: 0 | EF14: 0 | EG14: 0 | EH14: 0 | EI14: 0 | EJ14: 0 | EK14: 0 | EL14: 0
A15: 30710181702151 | B15: 2007-10-18 | E15: 41 | F15: 55 | G15: =IF(H15="","",SUBTOTAL(3,$H$12:H15)) -> 4 | H15: احمد حسين عبدالله مرسى المرادى | I15: 4 | J15: 18 | K15: 10 | L15: 2007 | M15: 13 | N15: 11 | O15: 9 | P15: 37 | Q15: 48 | R15: 37 | S15: 34 | T15: 156 | U15: 78 | V15: جيد جداً | W15: 38 | X15: 42 | Y15: 38 | Z15: 31 | AA15: 149 | AB15: 59.6 | AC15: جيد | AD15: 36 | AE15: 49 | AF15: 38 | AG15: 48 | AH15: 171 | AI15: 34.2 | AJ15: ممتاز | AK15: 36 | AL15: 20 | AM15: 36 | AN15: 26 | AO15: 118 | AP15: 23.6 | AQ15: مقبول | AR15: 36 | AS15: 35 | AT15: 40 | AU15: 48 | AV15: 159 | AW15: 31.8 | AX15: جيد جداً | AY15: 97 | AZ15: 97 | BA15: 194 | BB15: 19.4 | BC15: ممتاز | BD15: 98 | BE15: 98 | BF15: 196 | BG15: 19.6 | BH15: ممتاز | BI15: 97 | BJ15: 97 | BK15: 194 | BL15: 19.4 | BM15: ممتاز | BN15: 97 | BO15: 97 | BP15: 194 | BQ15: 19.4 | BR15: ممتاز | BS15: 98 | BT15: 98 | BU15: 196 | BV15: 19.6 | BW15: ممتاز | BX15: 266.2 | BY15: جيد جدا | BZ15: 227.2 | CA15: 35 | CB15: 36 | CC15: 36 | CD15: 28 | CE15: 135 | CF15: 27 | CG15: جيد | CH15: 293.2 | CI15: =IF(ISNUMBER(BX15)=FALSE,MAX($G$12:$G$10003)-MIN($G$12:$G$10003)+COUNTIF($BX$12:BX15,BX15),RANK(BX15,$BX$12:$BX$268,0)) -> 113 | CV15: ناجح | CY15: عربى | CZ15: رياضيات | DA15: إنجليزى | DB15: دراسات | DC15: علوم | DD15: فنى | DE15: رياضى | DF15: نشاط1 | DG15: نشاط2 | DH15: دين | DI15: 381 | DJ15: =TOPTEN($BZ$12:$BZ$235,$I$12:$I$235,4,FALSE) -> 101 | DK15: =TOPTEN($BZ$12:$BZ$235,$H$12:$H$235,4,FALSE) -> مريم محمد حسن عبد الحفيظ | DL15: =TOPTEN($BZ$12:$BZ$235,$BZ$12:$BZ$235,4,FALSE) -> 296.8 | DM15: =TOPTEN($BZ$12:$BZ$235,$BZ$12:$BZ$235,4,TRUE) -> الثالث | DN15: 0.9893333333 | DO15: ناجح | DP15: مريم محمد حسن عبد الحفيظ | DQ15: =TOPTEN($BX$12:$BX$117,$U$12:$U$117,4,FALSE) -> 99.5 | DR15: =TOPTEN($BX$12:$BX$117,$AB$12:$AB$117,4,FALSE) -> 78.4 | DS15: =TOPTEN($BX$12:$BX$117,$AI$12:$AI$117,4,FALSE) -> 39.6 | DT15: =TOPTEN($BX$12:$BX$117,$AP$12:$AP$117,4,FALSE) -> 38.4 | DU15: =TOPTEN($BX$12:$BX$117,$AW$12:$AW$117,4,FALSE) -> 38.2 | DV15: =TOPTEN($BX$12:$BX$117,$BX$12:$BX$117,4,FALSE) -> 333.3 | DW15: =TOPTEN($BX$12:$BX$117,$BB$12:$BB$117,4,FALSE) -> 19.6 | DX15: =TOPTEN($BX$12:$BX$117,$BG$12:$BG$117,4,FALSE) -> 19.6 | DY15: =TOPTEN($BX$12:$BX$117,$BQ$12:$BQ$117,4,FALSE) -> 19.6 | DZ15: =TOPTEN($BX$12:$BX$117,$BV$12:$BV$117,4,FALSE) -> 19.6 | EA15: =TOPTEN($BX$12:$BX$117,$CF$12:$CF$117,4,FALSE) -> 37.8 | EC15: 0 | ED15: 0 | EE15: 0 | EF15: دراسات | EG15: 0 | EH15: 0 | EI15: 0 | EJ15: 0 | EK15: 0 | EL15: 0
A16: 30801111701854 | B16: 2008-01-11 | E16: 42 | F16: 56 | G16: =IF(H16="","",SUBTOTAL(3,$H$12:H16)) -> 5 | H16: أحمد رشدى وهبه حسن متولى | I16: 5 | J16: 11 | K16: 1 | L16: 2008 | M16: 20 | N16: 8 | O16: 9 | P16: 35 | Q16: 6 | R16: 35 | S16: صفر | T16: 76 | U16: 38 | V16: دون المستوى | W16: 37 | X16: 8 | Y16: 37 | Z16: 20 | AA16: 102 | AB16: 40.8 | AC16: مقبول | AD16: 26 | AE16: 27 | AF16: 25 | AG16: 22 | AH16: 100 | AI16: 20 | AJ16: مقبول | AK16: 25 | AL16: 14 | AM16: 25 | AN16: صفر | AO16: 64 | AP16: 12.8 | AQ16: دون المستوى | AR16: 38 | AS16: 32 | AT16: 40 | AU16: 50 | AV16: 160 | AW16: 32 | AX16: ممتاز | AY16: 98 | AZ16: 97 | BA16: 195 | BB16: 19.5 | BC16: ممتاز | BD16: 99 | BE16: 98 | BF16: 197 | BG16: 19.7 | BH16: ممتاز | BI16: 98 | BJ16: 97 | BK16: 195 | BL16: 19.5 | BM16: ممتاز | BN16: 97 | BO16: 98 | BP16: 195 | BQ16: 19.5 | BR16: ممتاز | BS16: 98 | BT16: 99 | BU16: 197 | BV16: 19.7 | BW16: ممتاز | BX16: 182.8 | BY16: مقبول | BZ16: 143.6 | CA16: 35 | CB16: 19 | CC16: 34 | CD16: 8 | CE16: 96 | CF16: 19.2 | CG16: دون المستوى | CH16: 202 | CI16: =IF(ISNUMBER(BX16)=FALSE,MAX($G$12:$G$10003)-MIN($G$12:$G$10003)+COUNTIF($BX$12:BX16,BX16),RANK(BX16,$BX$12:$BX$268,0)) -> 122 | CK16: - عربى | CN16: - دراسات | CP16: - دين | CS16: - عربى - دراسات - دين | CV16: دور ثان | CY16: =COUNTIF(CK12:CK136," - عربى ") -> 8 | CZ16: =COUNTIF(CL12:CL136," - رياضيات ") -> 4 | DA16: =COUNTIF(CM12:CM136," - إنجليزى ") -> 2 | DB16: =COUNTIF(CN12:CN136," - دراسات ") -> 7 | DC16: =COUNTIF(CO12:CO136," - علوم ") -> 2 | DD16: =COUNTIF(BB12:BB136,"<10") -> 0 | DE16: =COUNTIF(BG12:BG117,"<10") -> 0 | DF16: =COUNTIF(BQ12:BQ117,"<10") -> 0 | DG16: =COUNTIF(BV12:BV117,"<10") -> 0 | DH16: =COUNTIF(CP12:CP136," - دين ") -> 7 | DI16: 179 | DJ16: =TOPTEN($BZ$12:$BZ$235,$I$12:$I$235,5,FALSE) -> 113 | DK16: =TOPTEN($BZ$12:$BZ$235,$H$12:$H$235,5,FALSE) -> ندى محمد غريب عبد العال امام | DL16: =TOPTEN($BZ$12:$BZ$235,$BZ$12:$BZ$235,5,FALSE) -> 296.3 | DM16: =TOPTEN($BZ$12:$BZ$235,$BZ$12:$BZ$235,5,TRUE) -> الرابع | DN16: 0.9876666667 | DO16: ناجح | DP16: ندى محمد غريب عبد العال امام | DQ16: =TOPTEN($BX$12:$BX$117,$U$12:$U$117,5,FALSE) -> 99.5 | DR16: =TOPTEN($BX$12:$BX$117,$AB$12:$AB$117,5,FALSE) -> 77.6 | DS16: =TOPTEN($BX$12:$BX$117,$AI$12:$AI$117,5,FALSE) -> 38.8 | DT16: =TOPTEN($BX$12:$BX$117,$AP$12:$AP$117,5,FALSE) -> 38.8 | DU16: =TOPTEN($BX$12:$BX$117,$AW$12:$AW$117,5,FALSE) -> 39.2 | DV16: =TOPTEN($BX$12:$BX$117,$BX$12:$BX$117,5,FALSE) -> 333.1 | DW16: =TOPTEN($BX$12:$BX$117,$BB$12:$BB$117,5,FALSE) -> 19.6 | DX16: =TOPTEN($BX$12:$BX$117,$BG$12:$BG$117,5,FALSE) -> 19.6 | DY16: =TOPTEN($BX$12:$BX$117,$BQ$12:$BQ$117,5,FALSE) -> 19.6 | DZ16: =TOPTEN($BX$12:$BX$117,$BV$12:$BV$117,5,FALSE) -> 19.6 | EA16: =TOPTEN($BX$12:$BX$117,$CF$12:$CF$117,5,FALSE) -> 38.2 | EC16: عربى | ED16: رياضيات | EE16: 0 | EF16: دراسات | EG16: 0 | EH16: 0 | EI16: 0 | EJ16: 0 | EK16: 0 | EL16: دين
A17: 30807141702497 | B17: 2008-07-14 | E17: 43 | F17: 57 | G17: =IF(H17="","",SUBTOTAL(3,$H$12:H17)) -> 6 | H17: أحمد عادل محمد جلالة | I17: 6 | J17: 14 | K17: 7 | L17: 2008 | M17: 17 | N17: 2 | O17: 9 | P17: 39 | Q17: 57 | R17: 39 | S17: 57 | T17: 192 | U17: 96 | V17: ممتاز | W17: 40 | X17: 58 | Y17: 40 | Z17: 60 | AA17: 198 | AB17: 79.2 | AC17: ممتاز | AD17: 40 | AE17: 59 | AF17: 40 | AG17: 56 | AH17: 195 | AI17: 39 | AJ17: ممتاز | AK17: 37 | AL17: 54 | AM17: 37 | AN17: 58 | AO17: 186 | AP17: 37.2 | AQ17: ممتاز | AR17: 36 | AS17: 55 | AT17: 40 | AU17: 60 | AV17: 191 | AW17: 38.2 | AX17: ممتاز | AY17: 99 | AZ17: 99 | BA17: 198 | BB17: 19.8 | BC17: ممتاز | BD17: 98 | BE17: 98 | BF17: 196 | BG17: 19.6 | BH17: ممتاز | BI17: 99 | BJ17: 99 | BK17: 198 | BL17: 19.8 | BM17: ممتاز | BN17: 99 | BO17: 99 | BP17: 198 | BQ17: 19.8 | BR17: ممتاز | BS17: 98 | BT17: 98 | BU17: 196 | BV17: 19.6 | BW17: ممتاز | BX17: 329 | BY17: ممتاز | BZ17: 289.6 | CA17: 40 | CB17: 59 | CC17: 40 | CD17: 54 | CE17: 193 | CF17: 38.6 | CG17: ممتاز | CH17: 367.6 | CI17: =IF(ISNUMBER(BX17)=FALSE,MAX($G$12:$G$10003)-MIN($G$12:$G$10003)+COUNTIF($BX$12:BX17,BX17),RANK(BX17,$BX$12:$BX$268,0)) -> 29 | CV17: ناجح | DI17: 574 | DJ17: =TOPTEN($BZ$12:$BZ$235,$I$12:$I$235,6,FALSE) -> 74 | DK17: =TOPTEN($BZ$12:$BZ$235,$H$12:$H$235,6,FALSE) -> جنى أحمد عبد العزيزمحمد عبد الغنى | DL17: =TOPTEN($BZ$12:$BZ$235,$BZ$12:$BZ$235,6,FALSE) -> 295.4 | DM17: =TOPTEN($BZ$12:$BZ$235,$BZ$12:$BZ$235,6,TRUE) -> الخامس | DN17: 0.9846666667 | DO17: ناجح | DP17: جنى أحمد عبد العزيزمحمد عبد الغنى | DQ17: =TOPTEN($BX$12:$BX$117,$U$12:$U$117,6,FALSE) -> 100 | DR17: =TOPTEN($BX$12:$BX$117,$AB$12:$AB$117,6,FALSE) -> 76.4 | DS17: =TOPTEN($BX$12:$BX$117,$AI$12:$AI$117,6,FALSE) -> 40 | DT17: =TOPTEN($BX$12:$BX$117,$AP$12:$AP$117,6,FALSE) -> 38.4 | DU17: =TOPTEN($BX$12:$BX$117,$AW$12:$AW$117,6,FALSE) -> 38.8 | DV17: =TOPTEN($BX$12:$BX$117,$BX$12:$BX$117,6,FALSE) -> 332.6 | DW17: =TOPTEN($BX$12:$BX$117,$BB$12:$BB$117,6,FALSE) -> 19.4 | DX17: =TOPTEN($BX$12:$BX$117,$BG$12:$BG$117,6,FALSE) -> 19.6 | DY17: =TOPTEN($BX$12:$BX$117,$BQ$12:$BQ$117,6,FALSE) -> 19.4 | DZ17: =TOPTEN($BX$12:$BX$117,$BV$12:$BV$117,6,FALSE) -> 19.6 | EA17: =TOPTEN($BX$12:$BX$117,$CF$12:$CF$117,6,FALSE) -> 37.8 | EC17: 0 | ED17: 0 | EE17: 0 | EF17: 0 | EG17: 0 | EH17: 0 | EI17: 0 | EJ17: 0 | EK17: 0 | EL17: 0
A18: 30805261702072 | B18: 2008-05-26 | E18: 44 | F18: 58 | G18: =IF(H18="","",SUBTOTAL(3,$H$12:H18)) -> 7 | H18: أحمد عبد الرازق محمد الهادى | I18: 7 | J18: 26 | K18: 5 | L18: 2008 | M18: 5 | N18: 4 | O18: 9 | P18: 39 | Q18: 57 | R18: 40 | S18: 58 | T18: 194 | U18: 97 | V18: ممتاز | W18: 38 | X18: 54 | Y18: 38 | Z18: 58 | AA18: 188 | AB18: 75.2 | AC18: ممتاز | AD18: 40 | AE18: 51 | AF18: 40 | AG18: 54 | AH18: 185 | AI18: 37 | AJ18: ممتاز | AK18: 36 | AL18: 58 | AM18: 36 | AN18: 58 | AO18: 188 | AP18: 37.6 | AQ18: ممتاز | AR18: 35 | AS18: 60 | AT18: 40 | AU18: 60 | AV18: 195 | AW18: 39 | AX18: ممتاز | AY18: 99 | AZ18: 99 | BA18: 198 | BB18: 19.8 | BC18: ممتاز | BD18: 98 | BE18: 98 | BF18: 196 | BG18: 19.6 | BH18: ممتاز | BI18: 99 | BJ18: 99 | BK18: 198 | BL18: 19.8 | BM18: ممتاز | BN18: 99 | BO18: 99 | BP18: 198 | BQ18: 19.8 | BR18: ممتاز | BS18: 98 | BT18: 98 | BU18: 196 | BV18: 19.6 | BW18: ممتاز | BX18: 325.2 | BY18: ممتاز | BZ18: 285.8 | CA18: 40 | CB18: 50 | CC18: 40 | CD18: 54 | CE18: 184 | CF18: 36.8 | CG18: ممتاز | CH18: 362 | CI18: =IF(ISNUMBER(BX18)=FALSE,MAX($G$12:$G$10003)-MIN($G$12:$G$10003)+COUNTIF($BX$12:BX18,BX18),RANK(BX18,$BX$12:$BX$268,0)) -> 45 | CV18: ناجح | CY18: النسبة المئوية للمواد | DI18: 568 | DJ18: =TOPTEN($BZ$12:$BZ$235,$I$12:$I$235,7,FALSE) -> 105 | DK18: =TOPTEN($BZ$12:$BZ$235,$H$12:$H$235,7,FALSE) -> ملك حاتم عبد الله بكر | DL18: =TOPTEN($BZ$12:$BZ$235,$BZ$12:$BZ$235,7,FALSE) -> 294.3 | DM18: =TOPTEN($BZ$12:$BZ$235,$BZ$12:$BZ$235,7,TRUE) -> السادس | DN18: 0.981 | DO18: ناجح | DP18: ملك حاتم عبد الله بكر | DQ18: =TOPTEN($BX$12:$BX$117,$U$12:$U$117,7,FALSE) -> 100 | DR18: =TOPTEN($BX$12:$BX$117,$AB$12:$AB$117,7,FALSE) -> 76 | DS18: =TOPTEN($BX$12:$BX$117,$AI$12:$AI$117,7,FALSE) -> 39.8 | DT18: =TOPTEN($BX$12:$BX$117,$AP$12:$AP$117,7,FALSE) -> 38.4 | DU18: =TOPTEN($BX$12:$BX$117,$AW$12:$AW$117,7,FALSE) -> 39 | DV18: =TOPTEN($BX$12:$BX$117,$BX$12:$BX$117,7,FALSE) -> 332.6 | DW18: =TOPTEN($BX$12:$BX$117,$BB$12:$BB$117,7,FALSE) -> 19.8 | DX18: =TOPTEN($BX$12:$BX$117,$BG$12:$BG$117,7,FALSE) -> 19.6 | DY18: =TOPTEN($BX$12:$BX$117,$BQ$12:$BQ$117,7,FALSE) -> 19.8 | DZ18: =TOPTEN($BX$12:$BX$117,$BV$12:$BV$117,7,FALSE) -> 19.6 | EA18: =TOPTEN($BX$12:$BX$117,$CF$12:$CF$117,7,FALSE) -> 39.6 | EC18: 0 | ED18: 0 | EE18: 0 | EF18: 0 | EG18: 0 | EH18: 0 | EI18: 0 | EJ18: 0 | EK18: 0 | EL18: 0
A19: 30809211703138 | B19: 2008-09-21 | E19: 45 | F19: 59 | G19: =IF(H19="","",SUBTOTAL(3,$H$12:H19)) -> 8 | H19: أحمد عبد المنعم محمد امام | I19: 8 | J19: 21 | K19: 9 | L19: 2008 | M19: 10 | N19: 0 | O19: 9 | P19: 40 | Q19: 60 | R19: 40 | S19: 58 | T19: 198 | U19: 99 | V19: ممتاز | W19: 40 | X19: 50 | Y19: 40 | Z19: 56 | AA19: 186 | AB19: 74.4 | AC19: ممتاز | AD19: 40 | AE19: 57 | AF19: 40 | AG19: 52 | AH19: 189 | AI19: 37.8 | AJ19: ممتاز | AK19: 38 | AL19: 58 | AM19: 38 | AN19: 60 | AO19: 194 | AP19: 38.8 | AQ19: ممتاز | AR19: 38 | AS19: 60 | AT19: 40 | AU19: 60 | AV19: 198 | AW19: 39.6 | AX19: ممتاز | AY19: 99 | AZ19: 99 | BA19: 198 | BB19: 19.8 | BC19: ممتاز | BD19: 98 | BE19: 98 | BF19: 196 | BG19: 19.6 | BH19: ممتاز | BI19: 99 | BJ19: 99 | BK19: 198 | BL19: 19.8 | BM19: ممتاز | BN19: 99 | BO19: 99 | BP19: 198 | BQ19: 19.8 | BR19: ممتاز | BS19: 98 | BT19: 98 | BU19: 196 | BV19: 19.6 | BW19: ممتاز | BX19: 329 | BY19: ممتاز | BZ19: 289.6 | CA19: 40 | CB19: 52 | CC19: 40 | CD19: 39 | CE19: 171 | CF19: 34.2 | CG19: ممتاز | CH19: 363.2 | CI19: =IF(ISNUMBER(BX19)=FALSE,MAX($G$12:$G$10003)-MIN($G$12:$G$10003)+COUNTIF($BX$12:BX19,BX19),RANK(BX19,$BX$12:$BX$268,0)) -> 29 | CV19: ناجح | CY19: عربى | CZ19: رياضيات | DA19: إنجليزى | DB19: دراسات | DC19: علوم | DD19: فنى | DE19: رياضى | DF19: نشاط1 | DG19: نشاط2 | DH19: دين | DI19: 571 | DJ19: =TOPTEN($BZ$12:$BZ$235,$I$12:$I$235,8,FALSE) -> 30 | DK19: =TOPTEN($BZ$12:$BZ$235,$H$12:$H$235,8,FALSE) -> عمر ايهاب محمود محمد يوسف | DL19: =TOPTEN($BZ$12:$BZ$235,$BZ$12:$BZ$235,8,FALSE) -> 294.1 | DM19: =TOPTEN($BZ$12:$BZ$235,$BZ$12:$BZ$235,8,TRUE) -> السابع | DN19: 0.9803333333 | DO19: ناجح | DP19: عمر ايهاب محمود محمد يوسف | DQ19: =TOPTEN($BX$12:$BX$117,$U$12:$U$117,8,FALSE) -> 96.5 | DR19: =TOPTEN($BX$12:$BX$117,$AB$12:$AB$117,8,FALSE) -> 79.6 | DS19: =TOPTEN($BX$12:$BX$117,$AI$12:$AI$117,8,FALSE) -> 39.2 | DT19: =TOPTEN($BX$12:$BX$117,$AP$12:$AP$117,8,FALSE) -> 39.2 | DU19: =TOPTEN($BX$12:$BX$117,$AW$12:$AW$117,8,FALSE) -> 38.4 | DV19: =TOPTEN($BX$12:$BX$117,$BX$12:$BX$117,8,FALSE) -> 332.3 | DW19: =TOPTEN($BX$12:$BX$117,$BB$12:$BB$117,8,FALSE) -> 19.8 | DX19: =TOPTEN($BX$12:$BX$117,$BG$12:$BG$117,8,FALSE) -> 19.6 | DY19: =TOPTEN($BX$12:$BX$117,$BQ$12:$BQ$117,8,FALSE) -> 19.8 | DZ19: =TOPTEN($BX$12:$BX$117,$BV$12:$BV$117,8,FALSE) -> 19.6 | EA19: =TOPTEN($BX$12:$BX$117,$CF$12:$CF$117,8,FALSE) -> 36.2 | EC19: 0 | ED19: 0 | EE19: 0 | EF19: 0 | EG19: 0 | EH19: 0 | EI19: 0 | EJ19: 0 | EK19: 0 | EL19: 0
A20: 30808251702553 | B20: 2008-08-25 | E20: 46 | F20: 60 | G20: =IF(H20="","",SUBTOTAL(3,$H$12:H20)) -> 9 | H20: أحمد كرم أحمد محمد عبد الله | I20: 9 | J20: 25 | K20: 8 | L20: 2008 | M20: 6 | N20: 1 | O20: 9 | P20: 37 | Q20: 33 | R20: 37 | S20: 9 | T20: 116 | U20: 58 | V20: دون المستوى | W20: 37 | X20: 32 | Y20: 37 | Z20: 38 | AA20: 144 | AB20: 57.6 | AC20: جيد | AD20: 30 | AE20: 36 | AF20: 35 | AG20: 35 | AH20: 136 | AI20: 27.2 | AJ20: جيد | AK20: 37 | AL20: 16 | AM20: 37 | AN20: 24 | AO20: 114 | AP20: 22.8 | AQ20: مقبول | AR20: 35 | AS20: 29 | AT20: 40 | AU20: 58 | AV20: 162 | AW20: 32.4 | AX20: ممتاز | AY20: 99 | AZ20: 99 | BA20: 198 | BB20: 19.8 | BC20: ممتاز | BD20: 98 | BE20: 97 | BF20: 195 | BG20: 19.5 | BH20: ممتاز | BI20: 99 | BJ20: 99 | BK20: 198 | BL20: 19.8 | BM20: ممتاز | BN20: 99 | BO20: 99 | BP20: 198 | BQ20: 19.8 | BR20: ممتاز | BS20: 97 | BT20: 98 | BU20: 195 | BV20: 19.5 | BW20: ممتاز | BX20: 237.3 | BY20: جيد | BZ20: 198 | CA20: 36 | CB20: 35 | CC20: 36 | CD20: 32 | CE20: 139 | CF20: 27.8 | CG20: جيد | CH20: 265.1 | CI20: =IF(ISNUMBER(BX20)=FALSE,MAX($G$12:$G$10003)-MIN($G$12:$G$10003)+COUNTIF($BX$12:BX20,BX20),RANK(BX20,$BX$12:$BX$268,0)) -> 116 | CK20: - عربى | CS20: - عربى | CV20: =IF(CS20="","ناجح","دور ثان") -> دور ثان | CY20: =CY12/DG34 -> 0.9512195122 | CZ20: =CZ12/DG34 -> 0.9837398374 | DA20: =DA12/DG34 -> 1 | DB20: =DB12/DG34 -> 0.9593495935 | DC20: =DC12/DG34 -> 0.8455284553 | DD20: =DD12/DG34 -> 0.8455284553 | DE20: =DE12/DG34 -> 0.8455284553 | DF20: =DF12/DG34 -> 0.8455284553 | DG20: =DG12/DG34 -> 0.8455284553 | DH20: =DH12/DG34 -> 0.9593495935 | DI20: 310 | DJ20: =TOPTEN($BZ$12:$BZ$235,$I$12:$I$235,9,FALSE) -> 86 | DK20: =TOPTEN($BZ$12:$BZ$235,$H$12:$H$235,9,FALSE) -> روان السيد عبدالوهاب عبداللطيف | DL20: =TOPTEN($BZ$12:$BZ$235,$BZ$12:$BZ$235,9,FALSE) -> 293.9 | DM20: =TOPTEN($BZ$12:$BZ$235,$BZ$12:$BZ$235,9,TRUE) -> الثامن | DN20: 0.9796666667 | DO20: ناجح | DP20: روان السيد عبدالوهاب عبداللطيف | DQ20: =TOPTEN($BX$12:$BX$117,$U$12:$U$117,9,FALSE) -> 98.5 | DR20: =TOPTEN($BX$12:$BX$117,$AB$12:$AB$117,9,FALSE) -> 75.2 | DS20: =TOPTEN($BX$12:$BX$117,$AI$12:$AI$117,9,FALSE) -> 40 | DT20: =TOPTEN($BX$12:$BX$117,$AP$12:$AP$117,9,FALSE) -> 40 | DU20: =TOPTEN($BX$12:$BX$117,$AW$12:$AW$117,9,FALSE) -> 39.2 | DV20: =TOPTEN($BX$12:$BX$117,$BX$12:$BX$117,9,FALSE) -> 332.1 | DW20: =TOPTEN($BX$12:$BX$117,$BB$12:$BB$117,9,FALSE) -> 19.6 | DX20: =TOPTEN($BX$12:$BX$117,$BG$12:$BG$117,9,FALSE) -> 19.6 | DY20: =TOPTEN($BX$12:$BX$117,$BQ$12:$BQ$117,9,FALSE) -> 19.6 | DZ20: =TOPTEN($BX$12:$BX$117,$BV$12:$BV$117,9,FALSE) -> 19.6 | EA20: =TOPTEN($BX$12:$BX$117,$CF$12:$CF$117,9,FALSE) -> 36.8 | EC20: 0 | ED20: 0 | EE20: 0 | EF20: دراسات | EG20: 0 | EH20: 0 | EI20: 0 | EJ20: 0 | EK20: 0 | EL20: 0
A21: 30801251703172 | B21: 2008-01-25 | E21: 47 | F21: 61 | G21: =IF(H21="","",SUBTOTAL(3,$H$12:H21)) -> 10 | H21: احمد محمد حسن على الدهين | I21: 10 | J21: 25 | K21: 1 | L21: 2008 | M21: 6 | N21: 8 | O21: 9 | P21: 37 | Q21: 56 | R21: 40 | S21: 56 | T21: 189 | U21: 94.5 | V21: ممتاز | W21: 38 | X21: 52 | Y21: 38 | Z21: 56 | AA21: 184 | AB21: 73.6 | AC21: ممتاز | AD21: 40 | AE21: 56 | AF21: 40 | AG21: 48 | AH21: 184 | AI21: 36.8 | AJ21: ممتاز | AK21: 36 | AL21: 54 | AM21: 36 | AN21: 58 | AO21: 184 | AP21: 36.8 | AQ21: ممتاز | AR21: 35 | AS21: 56 | AT21: 40 | AU21: 60 | AV21: 191 | AW21: 38.2 | AX21: ممتاز | AY21: 99 | AZ21: 99 | BA21: 198 | BB21: 19.8 | BC21: ممتاز | BD21: 98 | BE21: 98 | BF21: 196 | BG21: 19.6 | BH21: ممتاز | BI21: 99 | BJ21: 99 | BK21: 198 | BL21: 19.8 | BM21: ممتاز | BN21: 99 | BO21: 99 | BP21: 198 | BQ21: 19.8 | BR21: ممتاز | BS21: 98 | BT21: 98 | BU21: 196 | BV21: 19.6 | BW21: ممتاز | BX21: 319.3 | BY21: ممتاز | BZ21: 279.9 | CA21: 40 | CB21: 52 | CC21: 36 | CD21: 42 | CE21: 170 | CF21: 34 | CG21: ممتاز | CH21: 353.3 | CI21: =IF(ISNUMBER(BX21)=FALSE,MAX($G$12:$G$10003)-MIN($G$12:$G$10003)+COUNTIF($BX$12:BX21,BX21),RANK(BX21,$BX$12:$BX$268,0)) -> 55 | CV21: ناجح | DI21: 552 | DJ21: =TOPTEN($BZ$12:$BZ$235,$I$12:$I$235,10,FALSE) -> 77 | DK21: =TOPTEN($BZ$12:$BZ$235,$H$12:$H$235,10,FALSE) -> جني الخضري وهبه الخضري | DL21: =TOPTEN($BZ$12:$BZ$235,$BZ$12:$BZ$235,10,FALSE) -> 293.6 | DM21: =TOPTEN($BZ$12:$BZ$235,$BZ$12:$BZ$235,10,TRUE) -> التاسع | DN21: 0.9786666667 | DO21: ناجح | DP21: جني الخضري وهبه الخضري | DQ21: =TOPTEN($BX$12:$BX$117,$U$12:$U$117,10,FALSE) -> 98.5 | DR21: =TOPTEN($BX$12:$BX$117,$AB$12:$AB$117,10,FALSE) -> 76.8 | DS21: =TOPTEN($BX$12:$BX$117,$AI$12:$AI$117,9,FALSE) -> 40 | DT21: =TOPTEN($BX$12:$BX$117,$AP$12:$AP$117,10,FALSE) -> 38.8 | DU21: =TOPTEN($BX$12:$BX$117,$AW$12:$AW$117,10,FALSE) -> 38.8 | DV21: =TOPTEN($BX$12:$BX$117,$BX$12:$BX$117,10,FALSE) -> 331.9 | DW21: =TOPTEN($BX$12:$BX$117,$BB$12:$BB$117,10,FALSE) -> 19.8 | DX21: =TOPTEN($BX$12:$BX$117,$BG$12:$BG$117,10,FALSE) -> 19.6 | DY21: =TOPTEN($BX$12:$BX$117,$BQ$12:$BQ$117,10,FALSE) -> 19.8 | DZ21: =TOPTEN($BX$12:$BX$117,$BV$12:$BV$117,10,FALSE) -> 19.6 | EA21: =TOPTEN($BX$12:$BX$117,$CF$12:$CF$117,10,FALSE) -> 34 | EC21: 0 | ED21: 0 | EE21: 0 | EF21: 0 | EG21: 0 | EH21: 0 | EI21: 0 | EJ21: 0 | EK21: 0 | EL21: 0
A22: 30811181703035 | B22: 2008-11-18 | E22: 48 | F22: 62 | G22: =IF(H22="","",SUBTOTAL(3,$H$12:H22)) -> 11 | H22: انس محروس عبد الرازق زايد | I22: 11 | J22: 18 | K22: 11 | L22: 2008 | M22: 13 | N22: 10 | O22: 8 | P22: 39 | Q22: 48 | R22: 37 | S22: 48 | T22: 172 | U22: 86 | V22: ممتاز | W22: 39 | X22: 40 | Y22: 39 | Z22: 44 | AA22: 162 | AB22: 64.8 | AC22: جيد جداً | AD22: 37 | AE22: 42 | AF22: 38 | AG22: 46 | AH22: 163 | AI22: 32.6 | AJ22: ممتاز | AK22: 37 | AL22: 52 | AM22: 37 | AN22: 52 | AO22: 178 | AP22: 35.6 | AQ22: ممتاز | AR22: 38 | AS22: 50 | AT22: 40 | AU22: 60 | AV22: 188 | AW22: 37.6 | AX22: ممتاز | AY22: 100 | AZ22: 99 | BA22: 199 | BB22: 19.9 | BC22: ممتاز | BD22: 100 | BE22: 99 | BF22: 199 | BG22: 19.9 | BH22: ممتاز | BI22: 100 | BJ22: 99 | BK22: 199 | BL22: 19.9 | BM22: ممتاز | BN22: 99 | BO22: 100 | BP22: 199 | BQ22: 19.9 | BR22: ممتاز | BS22: 99 | BT22: 100 | BU22: 199 | BV22: 19.9 | BW22: ممتاز | BX22: 296.4 | BY22: ممتاز | BZ22: 256.6 | CA22: 36 | CB22: 47 | CC22: 36 | CD22: 42 | CE22: 161 | CF22: 32.2 | CG22: ممتاز | CH22: 328.6 | CI22: =IF(ISNUMBER(BX22)=FALSE,MAX($G$12:$G$10003)-MIN($G$12:$G$10003)+COUNTIF($BX$12:BX22,BX22),RANK(BX22,$BX$12:$BX$268,0)) -> 95 | CV22: ناجح | DI22: 482 | DJ22: =TOPTEN($BZ$12:$BZ$235,$I$12:$I$235,11,FALSE) -> 78 | DK22: =TOPTEN($BZ$12:$BZ$235,$H$12:$H$235,11,FALSE) -> حبيبه محمد عبدالمنعم السيد | DL22: =TOPTEN($BZ$12:$BZ$235,$BZ$12:$BZ$235,11,FALSE) -> 293.2 | DM22: =TOPTEN($BZ$12:$BZ$235,$BZ$12:$BZ$235,11,TRUE) -> العاشر | DN22: 0.9773333333 | DO22: ناجح | DP22: حبيبه محمد عبدالمنعم السيد | DQ22: =TOPTEN($BX$12:$BX$117,$U$12:$U$117,11,FALSE) -> 97 | DR22: =TOPTEN($BX$12:$BX$117,$AB$12:$AB$117,11,FALSE) -> 77.2 | DS22: =TOPTEN($BX$12:$BX$117,$AI$12:$AI$117,9,FALSE) -> 40 | DT22: =TOPTEN($BX$12:$BX$117,$AP$12:$AP$117,11,FALSE) -> 38.8 | DU22: =TOPTEN($BX$12:$BX$117,$AW$12:$AW$117,11,FALSE) -> 39.2 | DV22: =TOPTEN($BX$12:$BX$117,$BX$12:$BX$117,11,FALSE) -> 331.4 | DW22: =TOPTEN($BX$12:$BX$117,$BB$12:$BB$117,11,FALSE) -> 19.8 | DX22: =TOPTEN($BX$12:$BX$117,$BG$12:$BG$117,11,FALSE) -> 19.6 | DY22: =TOPTEN($BX$12:$BX$117,$BQ$12:$BQ$117,11,FALSE) -> 19.8 | DZ22: =TOPTEN($BX$12:$BX$117,$BV$12:$BV$117,11,FALSE) -> 19.6 | EA22: =TOPTEN($BX$12:$BX$117,$CF$12:$CF$117,11,FALSE) -> 38.6 | EC22: 0 | ED22: 0 | EE22: 0 | EF22: 0 | EG22: 0 | EH22: 0 | EI22: 0 | EJ22: 0 | EK22: 0 | EL22: 0
A23: 30807071703172 | B23: 2008-07-07 | E23: 49 | F23: 63 | G23: =IF(H23="","",SUBTOTAL(3,$H$12:H23)) -> 12 | H23: اياد احمد جبر احمد جبر | I23: 12 | J23: 7 | K23: 7 | L23: 2008 | M23: 24 | N23: 2 | O23: 9 | P23: 39 | Q23: 57 | R23: 39 | S23: 55 | T23: 190 | U23: 95 | V23: ممتاز | W23: 38 | X23: 52 | Y23: 38 | Z23: 53 | AA23: 181 | AB23: 72.4 | AC23: ممتاز | AD23: 38 | AE23: 54 | AF23: 39 | AG23: 52 | AH23: 183 | AI23: 36.6 | AJ23: ممتاز | AK23: 37 | AL23: 58 | AM23: 37 | AN23: 58 | AO23: 190 | AP23: 38 | AQ23: ممتاز | AR23: 36 | AS23: 60 | AT23: 40 | AU23: 60 | AV23: 196 | AW23: 39.2 | AX23: ممتاز | AY23: 99 | AZ23: 97 | BA23: 196 | BB23: 19.6 | BC23: ممتاز | BD23: 98 | BE23: 98 | BF23: 196 | BG23: 19.6 | BH23: ممتاز | BI23: 99 | BJ23: 97 | BK23: 196 | BL23: 19.6 | BM23: ممتاز | BN23: 97 | BO23: 99 | BP23: 196 | BQ23: 19.6 | BR23: ممتاز | BS23: 98 | BT23: 98 | BU23: 196 | BV23: 19.6 | BW23: ممتاز | BX23: 320.4 | BY23: ممتاز | BZ23: 281.2 | CA23: 36 | CB23: 51 | CC23: 36 | CD23: 51 | CE23: 174 | CF23: 34.8 | CG23: ممتاز | CH23: 355.2 | CI23: =IF(ISNUMBER(BX23)=FALSE,MAX($G$12:$G$10003)-MIN($G$12:$G$10003)+COUNTIF($BX$12:BX23,BX23),RANK(BX23,$BX$12:$BX$268,0)) -> 53 | CV23: ناجح | DI23: 559 | DJ23: =TOPTEN($BZ$12:$BZ$235,$I$12:$I$235,12,FALSE) -> 56 | DK23: =TOPTEN($BZ$12:$BZ$235,$H$12:$H$235,12,FALSE) -> محمود عادل رزق عبد الهادى | DL23: =TOPTEN($BZ$12:$BZ$235,$BZ$12:$BZ$235,12,FALSE) -> 293.1 | DM23: =TOPTEN($BZ$12:$BZ$235,$BZ$12:$BZ$235,12,TRUE) -> الحادى عشر | DN23: 0.977 | DO23: ناجح | DP23: محمود عادل رزق عبد الهادى | DQ23: =TOPTEN($BX$12:$BX$117,$U$12:$U$117,12,FALSE) -> 97.5 | DR23: =TOPTEN($BX$12:$BX$117,$AB$12:$AB$117,12,FALSE) -> 78 | DS23: =TOPTEN($BX$12:$BX$117,$AI$12:$AI$117,12,FALSE) -> 39.2 | DT23: =TOPTEN($BX$12:$BX$117,$AP$12:$AP$117,12,FALSE) -> 39.6 | DU23: =TOPTEN($BX$12:$BX$117,$AW$12:$AW$117,12,FALSE) -> 38.8 | DV23: =TOPTEN($BX$12:$BX$117,$BX$12:$BX$117,12,FALSE) -> 331.4 | DW23: =TOPTEN($BX$12:$BX$117,$BB$12:$BB$117,12,FALSE) -> 19.8 | DX23: =TOPTEN($BX$12:$BX$117,$BG$12:$BG$117,12,FALSE) -> 18.5 | DY23: =TOPTEN($BX$12:$BX$117,$BQ$12:$BQ$117,12,FALSE) -> 19.8 | DZ23: =TOPTEN($BX$12:$BX$117,$BV$12:$BV$117,12,FALSE) -> 18.5 | EA23: =TOPTEN($BX$12:$BX$117,$CF$12:$CF$117,12,FALSE) -> 34.4 | EC23: 0 | ED23: 0 | EE23: 0 | EF23: 0 | EG23: 0 | EH23: 0 | EI23: 0 | EJ23: 0 | EK23: 0 | EL23: 0
A24: 30807161701438 | B24: 2008-07-16 | E24: 50 | F24: 64 | G24: =IF(H24="","",SUBTOTAL(3,$H$12:H24)) -> 13 | H24: باسم السيد عبد المعطى السيد | I24: 13 | J24: 16 | K24: 7 | L24: 2008 | M24: 15 | N24: 2 | O24: 9 | P24: 31 | Q24: 60 | R24: 30 | S24: 30 | T24: 151 | U24: 75.5 | V24: جيد جداً | W24: 36 | X24: 45 | Y24: 36 | Z24: 52 | AA24: 169 | AB24: 67.6 | AC24: جيد جداً | AD24: 25 | AE24: 60 | AF24: 20 | AG24: 39 | AH24: 144 | AI24: 28.8 | AJ24: جيد | AK24: 25 | AL24: 40 | AM24: 25 | AN24: 48 | AO24: 138 | AP24: 27.6 | AQ24: جيد | AR24: 39 | AS24: 51 | AT24: 40 | AU24: 54 | AV24: 184 | AW24: 36.8 | AX24: ممتاز | AY24: 99 | AZ24: 99 | BA24: 198 | BB24: 19.8 | BC24: ممتاز | BD24: 98 | BE24: 98 | BF24: 196 | BG24: 19.6 | BH24: ممتاز | BI24: 99 | BJ24: 99 | BK24: 198 | BL24: 19.8 | BM24: ممتاز | BN24: 99 | BO24: 99 | BP24: 198 | BQ24: 19.8 | BR24: ممتاز | BS24: 98 | BT24: 98 | BU24: 196 | BV24: 19.6 | BW24: ممتاز | BX24: 275.7 | BY24: جيد جدا | BZ24: 236.3 | CA24: 30 | CB24: 60 | CC24: 30 | CD24: 30 | CE24: 150 | CF24: 30 | CG24: جيد جداً | CH24: 305.7 | CI24: =IF(ISNUMBER(BX24)=FALSE,MAX($G$12:$G$10003)-MIN($G$12:$G$10003)+COUNTIF($BX$12:BX24,BX24),RANK(BX24,$BX$12:$BX$268,0)) -> 108 | CV24: ناجح | CY24: النتيجة العامة للصف الرابع | DI24: =IF(AND(Q24="غ",S24="غ",X24="غ",Z24="غ",AE24="غ",AG24="غ",AL24="غ",AN24="غ",AS24="غ",AU24="غ"),"غ",IF(AND(Q24="صفر",S24="صفر",X24="صفر",Z24="صفر",AE24="صفر",AG24="صفر",AL24="صفر",AN24="صفر",AS24="صفر",AU24="صفر"),"صفر",SUM(Q24,S24,X24,Z24,AE24,AG24,AL24,AN24,AS24,AU24))) -> 479 | EC24: 0 | ED24: 0 | EE24: 0 | EF24: 0 | EG24: 0 | EH24: 0 | EI24: 0 | EJ24: 0 | EK24: 0 | EL24: 0
A25: 30802021703234 | B25: 2008-02-02 | E25: 51 | F25: 65 | G25: =IF(H25="","",SUBTOTAL(3,$H$12:H25)) -> 14 | H25: رشاد محمود أحمد محمد المرادى | I25: 14 | J25: 2 | K25: 2 | L25: 2008 | M25: 29 | N25: 7 | O25: 9 | P25: 35 | Q25: 17 | R25: 35 | S25: 4 | T25: 91 | U25: 45.5 | V25: دون المستوى | W25: 36 | X25: 34 | Y25: 36 | Z25: 10 | AA25: 116 | AB25: 46.4 | AC25: دون المستوى | AD25: 25 | AE25: 32 | AF25: 25 | AG25: 32 | AH25: 114 | AI25: 22.8 | AJ25: مقبول | AK25: 25 | AL25: 16 | AM25: 25 | AN25: 8 | AO25: 74 | AP25: 14.8 | AQ25: دون المستوى | AR25: 38 | AS25: 34 | AT25: 40 | AU25: 34 | AV25: 146 | AW25: 29.2 | AX25: جيد | AY25: 99 | AZ25: 99 | BA25: 198 | BB25: 19.8 | BC25: ممتاز | BD25: 98 | BE25: 98 | BF25: 196 | BG25: 19.6 | BH25: ممتاز | BI25: 99 | BJ25: 99 | BK25: 198 | BL25: 19.8 | BM25: ممتاز | BN25: 99 | BO25: 99 | BP25: 198 | BQ25: 19.8 | BR25: ممتاز | BS25: 98 | BT25: 98 | BU25: 196 | BV25: 19.6 | BW25: ممتاز | BX25: 198.1 | BY25: مقبول | BZ25: 158.7 | CA25: 35 | CB25: 18 | CC25: 37 | CD25: 6 | CE25: 96 | CF25: 19.2 | CG25: دون المستوى | CH25: 217.3 | CI25: =IF(ISNUMBER(BX25)=FALSE,MAX($G$12:$G$10003)-MIN($G$12:$G$10003)+COUNTIF($BX$12:BX25,BX25),RANK(BX25,$BX$12:$BX$268,0)) -> 121 | CK25: - عربى | CL25: - رياضيات | CN25: - دراسات | CP25: - دين | CS25: - عربى - رياضيات - دراسات - دين | CV25: دور ثان | DI25: =IF(AND(Q25="غ",S25="غ",X25="غ",Z25="غ",AE25="غ",AG25="غ",AL25="غ",AN25="غ",AS25="غ",AU25="غ"),"غ",IF(AND(Q25="صفر",S25="صفر",X25="صفر",Z25="صفر",AE25="صفر",AG25="صفر",AL25="صفر",AN25="صفر",AS25="صفر",AU25="صفر"),"صفر",SUM(Q25,S25,X25,Z25,AE25,AG25,AL25,AN25,AS25,AU25))) -> 221 | EC25: عربى | ED25: 0 | EE25: 0 | EF25: دراسات | EG25: 0 | EH25: 0 | EI25: 0 | EJ25: 0 | EK25: 0 | EL25: دين
A26: 30806011708314 | B26: 2008-06-01 | E26: 52 | F26: 66 | G26: =IF(H26="","",SUBTOTAL(3,$H$12:H26)) -> 15 | H26: زياد عاطف محمد عبدالمنعم | I26: 15 | J26: 1 | K26: 6 | L26: 2008 | M26: 0 | N26: 4 | O26: 9 | P26: 40 | Q26: 58 | R26: 40 | S26: 56 | T26: 194 | U26: 97 | V26: ممتاز | W26: 39 | X26: 38 | Y26: 39 | Z26: 56 | AA26: 172 | AB26: 68.8 | AC26: ممتاز | AD26: 40 | AE26: 57 | AF26: 40 | AG26: 58 | AH26: 195 | AI26: 39 | AJ26: ممتاز | AK26: 36 | AL26: 58 | AM26: 36 | AN26: 56 | AO26: 186 | AP26: 37.2 | AQ26: ممتاز | AR26: 35 | AS26: 60 | AT26: 40 | AU26: 60 | AV26: 195 | AW26: 39 | AX26: ممتاز | AY26: 98 | AZ26: 97 | BA26: 195 | BB26: 19.5 | BC26: ممتاز | BD26: 99 | BE26: 96 | BF26: 195 | BG26: 19.5 | BH26: ممتاز | BI26: 98 | BJ26: 97 | BK26: 195 | BL26: 19.5 | BM26: ممتاز | BN26: 97 | BO26: 98 | BP26: 195 | BQ26: 19.5 | BR26: ممتاز | BS26: 96 | BT26: 99 | BU26: 195 | BV26: 19.5 | BW26: ممتاز | BX26: 320 | BY26: ممتاز | BZ26: 281 | CA26: 40 | CB26: 52 | CC26: 36 | CD26: 58 | CE26: 186 | CF26: 37.2 | CG26: ممتاز | CH26: 357.2 | CI26: =IF(ISNUMBER(BX26)=FALSE,MAX($G$12:$G$10003)-MIN($G$12:$G$10003)+COUNTIF($BX$12:BX26,BX26),RANK(BX26,$BX$12:$BX$268,0)) -> 54 | CV26: ناجح | DI26: 557 | DJ26: الصف الرابع 2018/2017 | EC26: 0 | ED26: 0 | EE26: 0 | EF26: 0 | EG26: 0 | EH26: 0 | EI26: 0 | EJ26: 0 | EK26: 0 | EL26: 0
A27: 30803091702878 | B27: 2008-03-09 | E27: 53 | F27: 67 | G27: =IF(H27="","",SUBTOTAL(3,$H$12:H27)) -> 16 | H27: زياد عبد المنعم السيد محمد زايد | I27: 16 | J27: 9 | K27: 3 | L27: 2008 | M27: 22 | N27: 6 | O27: 9 | P27: 40 | Q27: 56 | R27: 40 | S27: 56 | T27: 192 | U27: 96 | V27: ممتاز | W27: 38 | X27: 40 | Y27: 38 | Z27: 48 | AA27: 164 | AB27: 65.6 | AC27: جيد جداً | AD27: 40 | AE27: 57 | AF27: 40 | AG27: 58 | AH27: 195 | AI27: 39 | AJ27: ممتاز | AK27: 37 | AL27: 56 | AM27: 37 | AN27: 60 | AO27: 190 | AP27: 38 | AQ27: ممتاز | AR27: 36 | AS27: 60 | AT27: 40 | AU27: 60 | AV27: 196 | AW27: 39.2 | AX27: ممتاز | AY27: 99 | AZ27: 97 | BA27: 196 | BB27: 19.6 | BC27: ممتاز | BD27: 98 | BE27: 98 | BF27: 196 | BG27: 19.6 | BH27: ممتاز | BI27: 99 | BJ27: 97 | BK27: 196 | BL27: 19.6 | BM27: ممتاز | BN27: 97 | BO27: 99 | BP27: 196 | BQ27: 19.6 | BR27: ممتاز | BS27: 98 | BT27: 98 | BU27: 196 | BV27: 19.6 | BW27: ممتاز | BX27: 317 | BY27: ممتاز | BZ27: 277.8 | CA27: 40 | CB27: 52 | CC27: 40 | CD27: 57 | CE27: 189 | CF27: 37.8 | CG27: ممتاز | CH27: 354.8 | CI27: =IF(ISNUMBER(BX27)=FALSE,MAX($G$12:$G$10003)-MIN($G$12:$G$10003)+COUNTIF($BX$12:BX27,BX27),RANK(BX27,$BX$12:$BX$268,0)) -> 59 | CV27: =IF(CS27="","ناجح","دور ثان") -> ناجح | CZ27: ناجح | DA27: دور ثان | DC27: النسبة المئوية العامة = الناجح على الحاضر100x | DG27: عدد التلاميذ | DI27: 551 | DJ27: الأوائــــــــــــــل آخر العام | EC27: 0 | ED27: 0 | EE27: 0 | EF27: 0 | EG27: 0 | EH27: 0 | EI27: 0 | EJ27: 0 | EK27: 0 | EL27: 0
A28: 30808081708497 | B28: 2008-08-08 | E28: 54 | F28: 68 | G28: =IF(H28="","",SUBTOTAL(3,$H$12:H28)) -> 17 | H28: زياد هانى محمد الهادى عبد الرازق | I28: 17 | J28: 8 | K28: 8 | L28: 2008 | M28: 23 | N28: 1 | O28: 9 | P28: 40 | Q28: 59 | R28: 40 | S28: 57 | T28: 196 | U28: 98 | V28: ممتاز | W28: 38 | X28: 56 | Y28: 39 | Z28: 56 | AA28: 189 | AB28: 75.6 | AC28: ممتاز | AD28: 40 | AE28: 59 | AF28: 40 | AG28: 58 | AH28: 197 | AI28: 39.4 | AJ28: ممتاز | AK28: 36 | AL28: 58 | AM28: 36 | AN28: 60 | AO28: 190 | AP28: 38 | AQ28: ممتاز | AR28: 35 | AS28: 60 | AT28: 40 | AU28: 60 | AV28: 195 | AW28: 39 | AX28: ممتاز | AY28: 99 | AZ28: 97 | BA28: 196 | BB28: 19.6 | BC28: ممتاز | BD28: 98 | BE28: 98 | BF28: 196 | BG28: 19.6 | BH28: ممتاز | BI28: 99 | BJ28: 97 | BK28: 196 | BL28: 19.6 | BM28: ممتاز | BN28: 97 | BO28: 99 | BP28: 196 | BQ28: 19.6 | BR28: ممتاز | BS28: 98 | BT28: 98 | BU28: 196 | BV28: 19.6 | BW28: ممتاز | BX28: 329.2 | BY28: ممتاز | BZ28: 290 | CA28: 40 | CB28: 50 | CC28: 40 | CD28: 56 | CE28: 186 | CF28: 37.2 | CG28: ممتاز | CH28: 366.4 | CI28: =IF(ISNUMBER(BX28)=FALSE,MAX($G$12:$G$10003)-MIN($G$12:$G$10003)+COUNTIF($BX$12:BX28,BX28),RANK(BX28,$BX$12:$BX$268,0)) -> 28 | CV28: ناجح | DG28: =COUNT(G12:G222) -> 125 | DI28: 583 | DJ28: رقم الجلوس | DK28: الاســــــــــــــــــم | DL28: المجموع | DM28: الترتيب | DN28: النسبة المئوية | EC28: 0 | ED28: 0 | EE28: 0 | EF28: 0 | EG28: 0 | EH28: 0 | EI28: 0 | EJ28: 0 | EK28: 0 | EL28: 0
A29: 30801181701916 | B29: 2008-01-18 | E29: 55 | F29: 69 | G29: =IF(H29="","",SUBTOTAL(3,$H$12:H29)) -> 18 | H29: سعيد محمد السعيد محمود | I29: 18 | J29: 18 | K29: 1 | L29: 2008 | M29: 13 | N29: 8 | O29: 9 | P29: 31 | Q29: 36 | R29: غ | S29: 26 | T29: 93 | U29: 46.5 | V29: دون المستوى | W29: 39 | X29: 16 | Y29: غ | Z29: 45 | AA29: 100 | AB29: 40 | AC29: مقبول | AD29: 37 | AE29: 47 | AF29: غ | AG29: 47 | AH29: 131 | AI29: 26.2 | AJ29: جيد | AK29: 38 | AL29: 18 | AM29: غ | AN29: 38 | AO29: 94 | AP29: 18.8 | AQ29: دون المستوى | AR29: 36 | AS29: 50 | AT29: غ | AU29: 60 | AV29: 146 | AW29: 29.2 | AX29: جيد | AY29: 100 | AZ29: غ | BA29: 100 | BB29: 10 | BC29: مقبول | BD29: 100 | BE29: غ | BF29: 100 | BG29: 10 | BH29: مقبول | BI29: 100 | BJ29: غ | BK29: 100 | BL29: 10 | BM29: مقبول | BN29: 100 | BO29: غ | BP29: 100 | BQ29: 10 | BR29: مقبول | BS29: 100 | BT29: غ | BU29: 100 | BV29: 10 | BW29: مقبول | BX29: 180.7 | BY29: مقبول | BZ29: 160.7 | CA29: 36 | CB29: 28 | CC29: غ | CD29: 30 | CE29: 94 | CF29: 18.8 | CG29: دون المستوى | CH29: 199.5 | CI29: =IF(ISNUMBER(BX29)=FALSE,MAX($G$12:$G$10003)-MIN($G$12:$G$10003)+COUNTIF($BX$12:BX29,BX29),RANK(BX29,$BX$12:$BX$268,0)) -> 123 | CK29: - عربى | CN29: - دراسات | CP29: - دين | CS29: - عربى - دراسات - دين | CV29: دور ثان | CZ29: =COUNTIF(CV12:CV217,"ناجح") -> 115 | DA29: =COUNTIF(CV12:CV217,"دور ثان") -> 10 | DC29: =CZ29/DG34 -> 0.9349593496 | DI29: 383 | DJ29: =TOPTEN($DI$12:$DI$235,$I$12:$I$235,1,FALSE) -> 116 | DK29: =TOPTEN($DI$12:$DI$235,$H$12:$H$235,1,FALSE) -> هاجر خالد محمود عطوه | DL29: =TOPTEN($DI$12:$DI$235,$DI$12:$DI$235,1,FALSE) -> 600 | DM29: =TOPTEN($DI$12:$DI$235,$DI$12:$DI$235,1,TRUE) -> الأول | DN29: =DL29/600 -> 1 | EC29: 0 | ED29: رياضيات | EE29: 0 | EF29: دراسات | EG29: 0 | EH29: فنى | EI29: رياضى | EJ29: نشاط1 | EK29: نشاط2 | EL29: 0
A30: 30712191700893 | B30: 2007-12-19 | E30: 56 | F30: 70 | G30: =IF(H30="","",SUBTOTAL(3,$H$12:H30)) -> 19 | H30: عبد الرحمن أسامة محمود السيد | I30: 19 | J30: 19 | K30: 12 | L30: 2007 | M30: 12 | N30: 9 | O30: 9 | P30: 40 | Q30: 58 | R30: 40 | S30: 56 | T30: 194 | U30: 97 | V30: ممتاز | W30: 38 | X30: 46 | Y30: 38 | Z30: 54 | AA30: 176 | AB30: 70.4 | AC30: ممتاز | AD30: 40 | AE30: 60 | AF30: 40 | AG30: 60 | AH30: 200 | AI30: 40 | AJ30: ممتاز | AK30: 38 | AL30: 58 | AM30: 38 | AN30: 60 | AO30: 194 | AP30: 38.8 | AQ30: ممتاز | AR30: 38 | AS30: 59 | AT30: 40 | AU30: 60 | AV30: 197 | AW30: 39.4 | AX30: ممتاز | AY30: 97 | AZ30: 95 | BA30: 192 | BB30: 19.2 | BC30: ممتاز | BD30: 96 | BE30: 98 | BF30: 194 | BG30: 19.4 | BH30: ممتاز | BI30: 97 | BJ30: 95 | BK30: 192 | BL30: 19.2 | BM30: ممتاز | BN30: 95 | BO30: 97 | BP30: 192 | BQ30: 19.2 | BR30: ممتاز | BS30: 98 | BT30: 96 | BU30: 194 | BV30: 19.4 | BW30: ممتاز | BX30: 324.2 | BY30: ممتاز | BZ30: 285.6 | CA30: 40 | CB30: 52 | CC30: 40 | CD30: 52 | CE30: 184 | CF30: 36.8 | CG30: ممتاز | CH30: 361 | CI30: =IF(ISNUMBER(BX30)=FALSE,MAX($G$12:$G$10003)-MIN($G$12:$G$10003)+COUNTIF($BX$12:BX30,BX30),RANK(BX30,$BX$12:$BX$268,0)) -> 48 | CV30: ناجح | DG30: المنقطعين | DI30: 571 | DJ30: =TOPTEN($DI$12:$DI$235,$I$12:$I$235,2,FALSE) -> 123 | DK30: =TOPTEN($DI$12:$DI$235,$H$12:$H$235,2,FALSE) -> هنا أحمد محمد عبد العليم فرج | DL30: =TOPTEN($DI$12:$DI$235,$DI$12:$DI$235,2,FALSE) -> 600 | DM30: =TOPTEN($DI$12:$DI$235,$DI$12:$DI$235,2,TRUE) -> الأول مكرر | DN30: =DL30/600 -> 1 | EC30: 0 | ED30: 0 | EE30: 0 | EF30: 0 | EG30: 0 | EH30: 0 | EI30: 0 | EJ30: 0 | EK30: 0 | EL30: 0
A31: 30802231700378 | B31: 2008-02-23 | E31: 57 | F31: 71 | G31: =IF(H31="","",SUBTOTAL(3,$H$12:H31)) -> 20 | H31: عبد الرحمن عمرو السيد عبد الغفار | I31: 20 | J31: 23 | K31: 2 | L31: 2008 | M31: 8 | N31: 7 | O31: 9 | P31: 34 | Q31: 19 | R31: 36 | S31: 13 | T31: 102 | U31: 51 | V31: دون المستوى | W31: 37 | X31: 26 | Y31: 37 | Z31: 34 | AA31: 134 | AB31: 53.6 | AC31: جيد | AD31: 30 | AE31: 30 | AF31: 25 | AG31: 48 | AH31: 133 | AI31: 26.6 | AJ31: جيد | AK31: 36 | AL31: 20 | AM31: 36 | AN31: 18 | AO31: 110 | AP31: 22 | AQ31: مقبول | AR31: 36 | AS31: 28 | AT31: 40 | AU31: 32 | AV31: 136 | AW31: 27.2 | AX31: جيد | AY31: 99 | AZ31: 99 | BA31: 198 | BB31: 19.8 | BC31: ممتاز | BD31: 98 | BE31: 98 | BF31: 196 | BG31: 19.6 | BH31: ممتاز | BI31: 99 | BJ31: 99 | BK31: 198 | BL31: 19.8 | BM31: ممتاز | BN31: 99 | BO31: 99 | BP31: 198 | BQ31: 19.8 | BR31: ممتاز | BS31: 98 | BT31: 98 | BU31: 196 | BV31: 19.6 | BW31: ممتاز | BX31: 219.8 | BY31: مقبول | BZ31: 180.4 | CA31: 36 | CB31: 15 | CC31: 36 | CD31: 22 | CE31: 109 | CF31: 21.8 | CG31: مقبول | CH31: 241.6 | CI31: =IF(ISNUMBER(BX31)=FALSE,MAX($G$12:$G$10003)-MIN($G$12:$G$10003)+COUNTIF($BX$12:BX31,BX31),RANK(BX31,$BX$12:$BX$268,0)) -> 118 | CK31: - عربى | CS31: - عربى | CV31: دور ثان | DG31: =COUNTIF(BX12:BX217,"غ") -> 2 | DI31: 268 | DJ31: =TOPTEN($DI$12:$DI$235,$I$12:$I$235,3,FALSE) -> 125 | DK31: =TOPTEN($DI$12:$DI$235,$H$12:$H$235,3,FALSE) -> يمنى عادل على محمد مصطفى | DL31: =TOPTEN($DI$12:$DI$235,$DI$12:$DI$235,3,FALSE) -> 600 | DM31: =TOPTEN($DI$12:$DI$235,$DI$12:$DI$235,3,TRUE) -> الأول مكرر | DN31: 1 | EC31: عربى | ED31: 0 | EE31: 0 | EF31: دراسات | EG31: 0 | EH31: 0 | EI31: 0 | EJ31: 0 | EK31: 0 | EL31: دين
A32: 30806011708357 | B32: 2008-06-01 | E32: 58 | F32: 72 | G32: =IF(H32="","",SUBTOTAL(3,$H$12:H32)) -> 21 | H32: عبد الرحمن محمد كمال الصادق فرج | I32: 21 | J32: 1 | K32: 6 | L32: 2008 | M32: 0 | N32: 4 | O32: 9 | P32: 35 | Q32: 16 | R32: 35 | S32: 13 | T32: 99 | U32: 49.5 | V32: دون المستوى | W32: 36 | X32: 24 | Y32: 36 | Z32: 28 | AA32: 124 | AB32: 49.6 | AC32: مقبول | AD32: 25 | AE32: 23 | AF32: 25 | AG32: 28 | AH32: 101 | AI32: 20.2 | AJ32: مقبول | AK32: 25 | AL32: 14 | AM32: 25 | AN32: 12 | AO32: 76 | AP32: 15.2 | AQ32: دون المستوى | AR32: 38 | AS32: 43 | AT32: 40 | AU32: 54 | AV32: 175 | AW32: 35 | AX32: ممتاز | AY32: 98 | AZ32: 99 | BA32: 197 | BB32: 19.7 | BC32: ممتاز | BD32: 97 | BE32: 97 | BF32: 194 | BG32: 19.4 | BH32: ممتاز | BI32: 98 | BJ32: 99 | BK32: 197 | BL32: 19.7 | BM32: ممتاز | BN32: 99 | BO32: 98 | BP32: 197 | BQ32: 19.7 | BR32: ممتاز | BS32: 97 | BT32: 97 | BU32: 194 | BV32: 19.4 | BW32: ممتاز | BX32: 208.6 | BY32: مقبول | BZ32: 169.5 | CA32: 35 | CB32: 25 | CC32: 32 | CD32: 14 | CE32: 106 | CF32: 21.2 | CG32: دون المستوى | CH32: 229.8 | CI32: =IF(ISNUMBER(BX32)=FALSE,MAX($G$12:$G$10003)-MIN($G$12:$G$10003)+COUNTIF($BX$12:BX32,BX32),RANK(BX32,$BX$12:$BX$268,0)) -> 119 | CK32: - عربى | CN32: - دراسات | CP32: - دين | CS32: - عربى - دراسات - دين | CV32: دور ثان | DI32: 255 | DJ32: =TOPTEN($DI$12:$DI$235,$I$12:$I$235,4,FALSE) -> 74 | DK32: =TOPTEN($DI$12:$DI$235,$H$12:$H$235,4,FALSE) -> جنى أحمد عبد العزيزمحمد عبد الغنى | DL32: =TOPTEN($DI$12:$DI$235,$DI$12:$DI$235,4,FALSE) -> 592 | DM32: =TOPTEN($DI$12:$DI$235,$DI$12:$DI$235,4,TRUE) -> الثاني | DN32: 0.9866666667 | EC32: عربى | ED32: رياضيات | EE32: إنجليزى | EF32: دراسات | EG32: 0 | EH32: 0 | EI32: 0 | EJ32: 0 | EK32: 0 | EL32: دين
A33: 30808141701632 | B33: 2008-08-14 | E33: 59 | F33: 73 | G33: =IF(H33="","",SUBTOTAL(3,$H$12:H33)) -> 22 | H33: عبد الرحمن وجيه عبد الحليم عنتر | I33: 22 | J33: 14 | K33: 8 | L33: 2008 | M33: 17 | N33: 1 | O33: 9 | P33: 40 | Q33: 53 | R33: 40 | S33: 51 | T33: 184 | U33: 92 | V33: ممتاز | W33: 39 | X33: 40 | Y33: 39 | Z33: 45 | AA33: 163 | AB33: 65.2 | AC33: جيد جداً | AD33: 40 | AE33: 50 | AF33: 40 | AG33: 44 | AH33: 174 | AI33: 34.8 | AJ33: ممتاز | AK33: 33 | AL33: 54 | AM33: 33 | AN33: 42 | AO33: 162 | AP33: 32.4 | AQ33: ممتاز | AR33: 38 | AS33: 54 | AT33: 40 | AU33: 58 | AV33: 190 | AW33: 38 | AX33: ممتاز | AY33: 99 | AZ33: 99 | BA33: 198 | BB33: 19.8 | BC33: ممتاز | BD33: 99 | BE33: 97 | BF33: 196 | BG33: 19.6 | BH33: ممتاز | BI33: 99 | BJ33: 99 | BK33: 198 | BL33: 19.8 | BM33: ممتاز | BN33: 99 | BO33: 99 | BP33: 198 | BQ33: 19.8 | BR33: ممتاز | BS33: 97 | BT33: 99 | BU33: 196 | BV33: 19.6 | BW33: ممتاز | BX33: 301.8 | BY33: ممتاز | BZ33: 262.4 | CA33: 39 | CB33: 50 | CC33: 34 | CD33: 40 | CE33: 163 | CF33: 32.6 | CG33: ممتاز | CH33: 334.4 | CI33: =IF(ISNUMBER(BX33)=FALSE,MAX($G$12:$G$10003)-MIN($G$12:$G$10003)+COUNTIF($BX$12:BX33,BX33),RANK(BX33,$BX$12:$BX$268,0)) -> 84 | CV33: ناجح | DG33: الحاضرون | DI33: 491 | DJ33: =TOPTEN($DI$12:$DI$235,$I$12:$I$235,5,FALSE) -> 101 | DK33: =TOPTEN($DI$12:$DI$235,$H$12:$H$235,5,FALSE) -> مريم محمد حسن عبد الحفيظ | DL33: =TOPTEN($DI$12:$DI$235,$DI$12:$DI$235,5,FALSE) -> 592 | DM33: =TOPTEN($DI$12:$DI$235,$DI$12:$DI$235,5,TRUE) -> الثاني مكرر | DN33: 0.9866666667 | EC33: 0 | ED33: 0 | EE33: 0 | EF33: 0 | EG33: 0 | EH33: 0 | EI33: 0 | EJ33: 0 | EK33: 0 | EL33: 0
A34: 30809251705257 | B34: 2008-09-25 | E34: 60 | F34: 74 | G34: =IF(H34="","",SUBTOTAL(3,$H$12:H34)) -> 23 | H34: عبد السميع خالد عبد السميع بكر | I34: 23 | J34: 25 | K34: 9 | L34: 2008 | M34: 6 | N34: 0 | O34: 9 | P34: 36 | Q34: 39 | R34: 36 | S34: 46 | T34: 157 | U34: 78.5 | V34: جيد جداً | W34: 37 | X34: 50 | Y34: 37 | Z34: 48 | AA34: 172 | AB34: 68.8 | AC34: ممتاز | AD34: 36 | AE34: 34 | AF34: 37 | AG34: 42 | AH34: 149 | AI34: 29.8 | AJ34: جيد | AK34: 36 | AL34: 50 | AM34: 36 | AN34: 48 | AO34: 170 | AP34: 34 | AQ34: ممتاز | AR34: 36 | AS34: 52 | AT34: 40 | AU34: 58 | AV34: 186 | AW34: 37.2 | AX34: ممتاز | AY34: 99 | AZ34: 99 | BA34: 198 | BB34: 19.8 | BC34: ممتاز | BD34: 98 | BE34: 98 | BF34: 196 | BG34: 19.6 | BH34: ممتاز | BI34: 99 | BJ34: 99 | BK34: 198 | BL34: 19.8 | BM34: ممتاز | BN34: 99 | BO34: 99 | BP34: 198 | BQ34: 19.8 | BR34: ممتاز | BS34: 98 | BT34: 98 | BU34: 196 | BV34: 19.6 | BW34: ممتاز | BX34: 287.7 | BY34: جيد جدا | BZ34: 248.3 | CA34: 36 | CB34: 36 | CC34: 34 | CD34: 36 | CE34: 142 | CF34: 28.4 | CG34: جيد | CH34: 316.1 | CI34: =IF(ISNUMBER(BX34)=FALSE,MAX($G$12:$G$10003)-MIN($G$12:$G$10003)+COUNTIF($BX$12:BX34,BX34),RANK(BX34,$BX$12:$BX$268,0)) -> 104 | CV34: ناجح | DG34: =DG28-DG31 -> 123 | DI34: 467 | DJ34: =TOPTEN($DI$12:$DI$235,$I$12:$I$235,6,FALSE) -> 75 | DK34: =TOPTEN($DI$12:$DI$235,$H$12:$H$235,6,FALSE) -> جنى محمد حسن بازالشريف | DL34: =TOPTEN($DI$12:$DI$235,$DI$12:$DI$235,6,FALSE) -> 588 | DM34: =TOPTEN($DI$12:$DI$235,$DI$12:$DI$235,6,TRUE) -> الثالث | DN34: 0.98 | EC34: 0 | ED34: 0 | EE34: 0 | EF34: 0 | EG34: 0 | EH34: 0 | EI34: 0 | EJ34: 0 | EK34: 0 | EL34: 0
A35: 30807211702678 | B35: 2008-07-21 | E35: 61 | F35: 75 | G35: =IF(H35="","",SUBTOTAL(3,$H$12:H35)) -> 24 | H35: عبد العزيز السيد عبد العزيز محمد | I35: 24 | J35: 21 | K35: 7 | L35: 2008 | M35: 10 | N35: 2 | O35: 9 | P35: 40 | Q35: 60 | R35: 40 | S35: 60 | T35: 200 | U35: 100 | V35: ممتاز | W35: 39 | X35: 54 | Y35: 39 | Z35: 55 | AA35: 187 | AB35: 74.8 | AC35: ممتاز | AD35: 40 | AE35: 57 | AF35: 40 | AG35: 53 | AH35: 190 | AI35: 38 | AJ35: ممتاز | AK35: 37 | AL35: 58 | AM35: 37 | AN35: 58 | AO35: 190 | AP35: 38 | AQ35: ممتاز | AR35: 36 | AS35: 60 | AT35: 40 | AU35: 60 | AV35: 196 | AW35: 39.2 | AX35: ممتاز | AY35: 99 | AZ35: 98 | BA35: 197 | BB35: 19.7 | BC35: ممتاز | BD35: 99 | BE35: 98 | BF35: 197 | BG35: 19.7 | BH35: ممتاز | BI35: 99 | BJ35: 98 | BK35: 197 | BL35: 19.7 | BM35: ممتاز | BN35: 98 | BO35: 99 | BP35: 197 | BQ35: 19.7 | BR35: ممتاز | BS35: 98 | BT35: 99 | BU35: 197 | BV35: 19.7 | BW35: ممتاز | BX35: 329.4 | BY35: ممتاز | BZ35: 290 | CA35: 40 | CB35: 54 | CC35: 40 | CD35: 40 | CE35: 174 | CF35: 34.8 | CG35: ممتاز | CH35: 364.2 | CI35: =IF(ISNUMBER(BX35)=FALSE,MAX($G$12:$G$10003)-MIN($G$12:$G$10003)+COUNTIF($BX$12:BX35,BX35),RANK(BX35,$BX$12:$BX$268,0)) -> 26 | CV35: ناجح | DI35: 575 | DJ35: =TOPTEN($DI$12:$DI$235,$I$12:$I$235,7,FALSE) -> 49 | DK35: =TOPTEN($DI$12:$DI$235,$H$12:$H$235,7,FALSE) -> محمد علي محمد علي حسن | DL35: =TOPTEN($DI$12:$DI$235,$DI$12:$DI$235,7,FALSE) -> 587 | DM35: =TOPTEN($DI$12:$DI$235,$DI$12:$DI$235,7,TRUE) -> الرابع | DN35: 0.9783333333 | EC35: 0 | ED35: 0 | EE35: 0 | EF35: 0 | EG35: 0 | EH35: 0 | EI35: 0 | EJ35: 0 | EK35: 0 | EL35: 0
A36: 30803191702395 | B36: 2008-03-19 | E36: 62 | F36: 76 | G36: =IF(H36="","",SUBTOTAL(3,$H$12:H36)) -> 25 | H36: عبدالرحمن محمد يوسف عبدالله | I36: 25 | J36: 19 | K36: 3 | L36: 2008 | M36: 12 | N36: 6 | O36: 9 | P36: 40 | Q36: 60 | R36: 39 | S36: 57 | T36: 196 | U36: 98 | V36: ممتاز | W36: 39 | X36: 52 | Y36: 39 | Z36: 60 | AA36: 190 | AB36: 76 | AC36: ممتاز | AD36: 40 | AE36: 60 | AF36: 40 | AG36: 57 | AH36: 197 | AI36: 39.4 | AJ36: ممتاز | AK36: 36 | AL36: 56 | AM36: 36 | AN36: 56 | AO36: 184 | AP36: 36.8 | AQ36: ممتاز | AR36: 36 | AS36: 59 | AT36: 40 | AU36: 60 | AV36: 195 | AW36: 39 | AX36: ممتاز | AY36: 100 | AZ36: 100 | BA36: 200 | BB36: 20 | BC36: ممتاز | BD36: 98 | BE36: 98 | BF36: 196 | BG36: 19.6 | BH36: ممتاز | BI36: 100 | BJ36: 100 | BK36: 200 | BL36: 20 | BM36: ممتاز | BN36: 100 | BO36: 100 | BP36: 200 | BQ36: 20 | BR36: ممتاز | BS36: 98 | BT36: 98 | BU36: 196 | BV36: 19.6 | BW36: ممتاز | BX36: 328.8 | BY36: ممتاز | BZ36: 289.2 | CA36: 40 | CB36: 45 | CC36: 40 | CD36: 52 | CE36: 177 | CF36: 35.4 | CG36: ممتاز | CH36: 364.2 | CI36: =IF(ISNUMBER(BX36)=FALSE,MAX($G$12:$G$10003)-MIN($G$12:$G$10003)+COUNTIF($BX$12:BX36,BX36),RANK(BX36,$BX$12:$BX$268,0)) -> 31 | CV36: ناجح | DI36: 577 | DJ36: =TOPTEN($DI$12:$DI$235,$I$12:$I$235,8,FALSE) -> 86 | DK36: =TOPTEN($DI$12:$DI$235,$H$12:$H$235,8,FALSE) -> روان السيد عبدالوهاب عبداللطيف | DL36: =TOPTEN($DI$12:$DI$235,$DI$12:$DI$235,8,FALSE) -> 587 | DM36: =TOPTEN($DI$12:$DI$235,$DI$12:$DI$235,8,TRUE) -> الرابع مكرر | DN36: 0.9783333333 | EC36: 0 | ED36: 0 | EE36: 0 | EF36: 0 | EG36: 0 | EH36: 0 | EI36: 0 | EJ36: 0 | EK36: 0 | EL36: 0
A37: 30710191701293 | B37: 2007-10-19 | E37: 63 | F37: 77 | G37: =IF(H37="","",SUBTOTAL(3,$H$12:H37)) -> 26 | H37: على أشرف عباس سعيد عجور | I37: 26 | J37: 19 | K37: 10 | L37: 2007 | M37: 12 | N37: 11 | O37: 9 | P37: 29 | Q37: 45 | R37: 30 | S37: 42 | T37: 146 | U37: 73 | V37: جيد | W37: 36 | X37: 50 | Y37: 36 | Z37: 44 | AA37: 166 | AB37: 66.4 | AC37: جيد جداً | AD37: 20 | AE37: 60 | AF37: 20 | AG37: 42 | AH37: 142 | AI37: 28.4 | AJ37: جيد | AK37: 25 | AL37: 56 | AM37: 25 | AN37: 45 | AO37: 151 | AP37: 30.2 | AQ37: جيد جداً | AR37: 37 | AS37: 57 | AT37: 40 | AU37: 54 | AV37: 188 | AW37: 37.6 | AX37: ممتاز | AY37: 99 | AZ37: 97 | BA37: 196 | BB37: 19.6 | BC37: ممتاز | BD37: 98 | BE37: 98 | BF37: 196 | BG37: 19.6 | BH37: ممتاز | BI37: 99 | BJ37: 97 | BK37: 196 | BL37: 19.6 | BM37: ممتاز | BN37: 97 | BO37: 99 | BP37: 196 | BQ37: 19.6 | BR37: ممتاز | BS37: 98 | BT37: 98 | BU37: 196 | BV37: 19.6 | BW37: ممتاز | BX37: 274.8 | BY37: جيد جدا | BZ37: 235.6 | CA37: 35 | CB37: صفر | CC37: 35 | CD37: 30 | CE37: 100 | CF37: 20 | CG37: مقبول | CH37: 294.8 | CI37: =IF(ISNUMBER(BX37)=FALSE,MAX($G$12:$G$10003)-MIN($G$12:$G$10003)+COUNTIF($BX$12:BX37,BX37),RANK(BX37,$BX$12:$BX$268,0)) -> 109 | CV37: ناجح | DI37: 495 | DJ37: =TOPTEN($DI$12:$DI$235,$I$12:$I$235,9,FALSE) -> 113 | DK37: =TOPTEN($DI$12:$DI$235,$H$12:$H$235,9,FALSE) -> ندى محمد غريب عبد العال امام | DL37: =TOPTEN($DI$12:$DI$235,$DI$12:$DI$235,9,FALSE) -> 587 | DM37: =TOPTEN($DI$12:$DI$235,$DI$12:$DI$235,9,TRUE) -> الرابع مكرر | DN37: 0.9783333333 | EC37: 0 | ED37: 0 | EE37: 0 | EF37: 0 | EG37: 0 | EH37: 0 | EI37: 0 | EJ37: 0 | EK37: 0 | EL37: 0
A38: 30810011725577 | B38: 2008-10-01 | E38: 64 | F38: 78 | G38: =IF(H38="","",SUBTOTAL(3,$H$12:H38)) -> 27 | H38: على محمد على موسى حسين | I38: 27 | J38: 1 | K38: 10 | L38: 2008 | M38: 0 | N38: 0 | O38: 9 | P38: 38 | Q38: 52 | R38: 39 | S38: 52 | T38: 181 | U38: 90.5 | V38: ممتاز | W38: 37 | X38: 30 | Y38: 37 | Z38: 38 | AA38: 142 | AB38: 56.8 | AC38: جيد | AD38: 39 | AE38: 58 | AF38: 40 | AG38: 58 | AH38: 195 | AI38: 39 | AJ38: ممتاز | AK38: 37 | AL38: 50 | AM38: 37 | AN38: 54 | AO38: 178 | AP38: 35.6 | AQ38: ممتاز | AR38: 38 | AS38: 49 | AT38: 40 | AU38: 56 | AV38: 183 | AW38: 36.6 | AX38: ممتاز | AY38: 99 | AZ38: 99 | BA38: 198 | BB38: 19.8 | BC38: ممتاز | BD38: 98 | BE38: 97 | BF38: 195 | BG38: 19.5 | BH38: ممتاز | BI38: 99 | BJ38: 99 | BK38: 198 | BL38: 19.8 | BM38: ممتاز | BN38: 99 | BO38: 99 | BP38: 198 | BQ38: 19.8 | BR38: ممتاز | BS38: 97 | BT38: 98 | BU38: 195 | BV38: 19.5 | BW38: ممتاز | BX38: 297.8 | BY38: ممتاز | BZ38: 258.5 | CA38: 39 | CB38: 47 | CC38: 40 | CD38: 33 | CE38: 159 | CF38: 31.8 | CG38: جيد جداً | CH38: 329.6 | CI38: =IF(ISNUMBER(BX38)=FALSE,MAX($G$12:$G$10003)-MIN($G$12:$G$10003)+COUNTIF($BX$12:BX38,BX38),RANK(BX38,$BX$12:$BX$268,0)) -> 92 | CV38: ناجح | DI38: 497 | DJ38: =TOPTEN($DI$12:$DI$235,$I$12:$I$235,10,FALSE) -> 77 | DK38: =TOPTEN($DI$12:$DI$235,$H$12:$H$235,10,FALSE) -> جني الخضري وهبه الخضري | DL38: =TOPTEN($DI$12:$DI$235,$DI$12:$DI$235,10,FALSE) -> 586 | DM38: =TOPTEN($DI$12:$DI$235,$DI$12:$DI$235,10,TRUE) -> الخامس | DN38: 0.9766666667 | EC38: 0 | ED38: 0 | EE38: 0 | EF38: 0 | EG38: 0 | EH38: 0 | EI38: 0 | EJ38: 0 | EK38: 0 | EL38: 0
A39: 30806011708497 | B39: 2008-06-01 | E39: 65 | F39: 79 | G39: =IF(H39="","",SUBTOTAL(3,$H$12:H39)) -> 28 | H39: عمار سامح عبد الفتاح العونى | I39: 28 | J39: 1 | K39: 6 | L39: 2008 | M39: 0 | N39: 4 | O39: 9 | P39: 37 | Q39: 56 | R39: 39 | S39: 56 | T39: 188 | U39: 94 | V39: ممتاز | W39: 38 | X39: 46 | Y39: 38 | Z39: 49 | AA39: 171 | AB39: 68.4 | AC39: ممتاز | AD39: 40 | AE39: 60 | AF39: 40 | AG39: 56 | AH39: 196 | AI39: 39.2 | AJ39: ممتاز | AK39: 38 | AL39: 52 | AM39: 38 | AN39: 60 | AO39: 188 | AP39: 37.6 | AQ39: ممتاز | AR39: 37 | AS39: 58 | AT39: 40 | AU39: 58 | AV39: 193 | AW39: 38.6 | AX39: ممتاز | AY39: 99 | AZ39: 97 | BA39: 196 | BB39: 19.6 | BC39: ممتاز | BD39: 98 | BE39: 98 | BF39: 196 | BG39: 19.6 | BH39: ممتاز | BI39: 99 | BJ39: 97 | BK39: 196 | BL39: 19.6 | BM39: ممتاز | BN39: 97 | BO39: 99 | BP39: 196 | BQ39: 19.6 | BR39: ممتاز | BS39: 98 | BT39: 98 | BU39: 196 | BV39: 19.6 | BW39: ممتاز | BX39: 317 | BY39: ممتاز | BZ39: 277.8 | CA39: 40 | CB39: 39 | CC39: 36 | CD39: 55 | CE39: 170 | CF39: 34 | CG39: ممتاز | CH39: 351 | CI39: =IF(ISNUMBER(BX39)=FALSE,MAX($G$12:$G$10003)-MIN($G$12:$G$10003)+COUNTIF($BX$12:BX39,BX39),RANK(BX39,$BX$12:$BX$268,0)) -> 59 | CV39: ناجح | DI39: 551 | DJ39: =TOPTEN($DI$12:$DI$235,$I$12:$I$235,11,FALSE) -> 90 | DK39: =TOPTEN($DI$12:$DI$235,$H$12:$H$235,11,FALSE) -> سلمى أيمن محمود البحيرى | DL39: =TOPTEN($DI$12:$DI$235,$DI$12:$DI$235,11,FALSE) -> 586 | DM39: =TOPTEN($DI$12:$DI$235,$DI$12:$DI$235,11,TRUE) -> الخامس مكرر | DN39: 0.9766666667 | EC39: 0 | ED39: 0 | EE39: 0 | EF39: 0 | EG39: 0 | EH39: 0 | EI39: 0 | EJ39: 0 | EK39: 0 | EL39: 0
A40: 30808271701715 | B40: 2008-08-27 | E40: 66 | F40: 80 | G40: =IF(H40="","",SUBTOTAL(3,$H$12:H40)) -> 29 | H40: عمار محمد عفيفي محمد عيسي | I40: 29 | J40: 27 | K40: 8 | L40: 2008 | M40: 4 | N40: 1 | O40: 9 | P40: 37 | Q40: 41 | R40: 36 | S40: 23 | T40: 137 | U40: 68.5 | V40: جيد | W40: 37 | X40: 44 | Y40: 37 | Z40: 41 | AA40: 159 | AB40: 63.6 | AC40: جيد جداً | AD40: 37 | AE40: 48 | AF40: 37 | AG40: 38 | AH40: 160 | AI40: 32 | AJ40: ممتاز | AK40: 33 | AL40: 48 | AM40: 33 | AN40: 24 | AO40: 138 | AP40: 27.6 | AQ40: جيد | AR40: 38 | AS40: 43 | AT40: 40 | AU40: 46 | AV40: 167 | AW40: 33.4 | AX40: ممتاز | AY40: 99 | AZ40: 99 | BA40: 198 | BB40: 19.8 | BC40: ممتاز | BD40: 98 | BE40: 98 | BF40: 196 | BG40: 19.6 | BH40: ممتاز | BI40: 99 | BJ40: 99 | BK40: 198 | BL40: 19.8 | BM40: ممتاز | BN40: 99 | BO40: 99 | BP40: 198 | BQ40: 19.8 | BR40: ممتاز | BS40: 98 | BT40: 98 | BU40: 196 | BV40: 19.6 | BW40: ممتاز | BX40: 264.5 | BY40: جيد جدا | BZ40: 225.1 | CA40: 35 | CB40: 20 | CC40: 34 | CD40: 12 | CE40: 101 | CF40: 20.2 | CG40: دون المستوى | CH40: 284.7 | CI40: =IF(ISNUMBER(BX40)=FALSE,MAX($G$12:$G$10003)-MIN($G$12:$G$10003)+COUNTIF($BX$12:BX40,BX40),RANK(BX40,$BX$12:$BX$268,0)) -> 114 | CP40: - دين | CS40: - دين | CV40: دور ثان | DI40: 396 | DJ40: =TOPTEN($DI$12:$DI$235,$I$12:$I$235,12,FALSE) -> 87 | DK40: =TOPTEN($DI$12:$DI$235,$H$12:$H$235,12,FALSE) -> رويدا احمد صبحى عبد الرازق | DL40: =TOPTEN($DI$12:$DI$235,$DI$12:$DI$235,12,FALSE) -> 585 | DM40: =TOPTEN($DI$12:$DI$235,$DI$12:$DI$235,12,TRUE) -> السادس | DN40: 0.975 | EC40: 0 | ED40: 0 | EE40: 0 | EF40: 0 | EG40: 0 | EH40: 0 | EI40: 0 | EJ40: 0 | EK40: 0 | EL40: دين
A41: 30801041700294 | B41: 2008-01-04 | E41: 67 | F41: 81 | G41: =IF(H41="","",SUBTOTAL(3,$H$12:H41)) -> 30 | H41: عمر ايهاب محمود محمد يوسف | I41: 30 | J41: 4 | K41: 1 | L41: 2008 | M41: 27 | N41: 8 | O41: 9 | P41: 40 | Q41: 60 | R41: 40 | S41: 59 | T41: 199 | U41: 99.5 | V41: ممتاز | W41: 40 | X41: 58 | Y41: 40 | Z41: 58 | AA41: 196 | AB41: 78.4 | AC41: ممتاز | AD41: 40 | AE41: 60 | AF41: 40 | AG41: 58 | AH41: 198 | AI41: 39.6 | AJ41: ممتاز | AK41: 40 | AL41: 52 | AM41: 40 | AN41: 60 | AO41: 192 | AP41: 38.4 | AQ41: ممتاز | AR41: 37 | AS41: 54 | AT41: 40 | AU41: 60 | AV41: 191 | AW41: 38.2 | AX41: ممتاز | AY41: 99 | AZ41: 97 | BA41: 196 | BB41: 19.6 | BC41: ممتاز | BD41: 98 | BE41: 98 | BF41: 196 | BG41: 19.6 | BH41: ممتاز | BI41: 99 | BJ41: 97 | BK41: 196 | BL41: 19.6 | BM41: ممتاز | BN41: 97 | BO41: 99 | BP41: 196 | BQ41: 19.6 | BR41: ممتاز | BS41: 98 | BT41: 98 | BU41: 196 | BV41: 19.6 | BW41: ممتاز | BX41: 333.3 | BY41: ممتاز | BZ41: 294.1 | CA41: 40 | CB41: 55 | CC41: 40 | CD41: 54 | CE41: 189 | CF41: 37.8 | CG41: ممتاز | CH41: 371.1 | CI41: =IF(ISNUMBER(BX41)=FALSE,MAX($G$12:$G$10003)-MIN($G$12:$G$10003)+COUNTIF($BX$12:BX41,BX41),RANK(BX41,$BX$12:$BX$268,0)) -> 8 | CV41: ناجح | DI41: 579 | DJ41: =TOPTEN($DI$12:$DI$235,$I$12:$I$235,13,FALSE) -> 105 | DK41: =TOPTEN($DI$12:$DI$235,$H$12:$H$235,13,FALSE) -> ملك حاتم عبد الله بكر | DL41: =TOPTEN($DI$12:$DI$235,$DI$12:$DI$235,13,FALSE) -> 585 | DM41: =TOPTEN($DI$12:$DI$235,$DI$12:$DI$235,13,TRUE) -> السادس مكرر | DN41: =DL41/600 -> 0.975 | EC41: 0 | ED41: 0 | EE41: 0 | EF41: 0 | EG41: 0 | EH41: 0 | EI41: 0 | EJ41: 0 | EK41: 0 | EL41: 0
A42: 30805101701096 | B42: 2008-05-10 | E42: 68 | F42: 82 | G42: =IF(H42="","",SUBTOTAL(3,$H$12:H42)) -> 31 | H42: عمر عفيفى عفيفى قطب حسن | I42: 31 | J42: 10 | K42: 5 | L42: 2008 | M42: 21 | N42: 4 | O42: 9 | P42: 38 | Q42: 52 | R42: 38 | S42: 50 | T42: 178 | U42: 89 | V42: ممتاز | W42: 39 | X42: 58 | Y42: 39 | Z42: 56 | AA42: 192 | AB42: 76.8 | AC42: ممتاز | AD42: 37 | AE42: 59 | AF42: 39 | AG42: 56 | AH42: 191 | AI42: 38.2 | AJ42: ممتاز | AK42: 37 | AL42: 48 | AM42: 37 | AN42: 56 | AO42: 178 | AP42: 35.6 | AQ42: ممتاز | AR42: 36 | AS42: 60 | AT42: 40 | AU42: 58 | AV42: 194 | AW42: 38.8 | AX42: ممتاز | AY42: 99 | AZ42: 99 | BA42: 198 | BB42: 19.8 | BC42: ممتاز | BD42: 98 | BE42: 98 | BF42: 196 | BG42: 19.6 | BH42: ممتاز | BI42: 99 | BJ42: 99 | BK42: 198 | BL42: 19.8 | BM42: ممتاز | BN42: 99 | BO42: 99 | BP42: 198 | BQ42: 19.8 | BR42: ممتاز | BS42: 98 | BT42: 98 | BU42: 196 | BV42: 19.6 | BW42: ممتاز | BX42: 317.8 | BY42: ممتاز | BZ42: 278.4 | CA42: 40 | CB42: 52 | CC42: 36 | CD42: 45 | CE42: 173 | CF42: 34.6 | CG42: ممتاز | CH42: 352.4 | CI42: =IF(ISNUMBER(BX42)=FALSE,MAX($G$12:$G$10003)-MIN($G$12:$G$10003)+COUNTIF($BX$12:BX42,BX42),RANK(BX42,$BX$12:$BX$268,0)) -> 57 | CV42: ناجح | DI42: 553 | DJ42: =TOPTEN($DI$12:$DI$235,$I$12:$I$235,14,FALSE) -> 17 | DK42: =TOPTEN($DI$12:$DI$235,$H$12:$H$235,14,FALSE) -> زياد هانى محمد الهادى عبد الرازق | DL42: =TOPTEN($DI$12:$DI$235,$DI$12:$DI$235,14,FALSE) -> 583 | DM42: =TOPTEN($DI$12:$DI$235,$DI$12:$DI$235,14,TRUE) -> السابع | DN42: =DL42/600 -> 0.9716666667 | EC42: 0 | ED42: 0 | EE42: 0 | EF42: 0 | EG42: 0 | EH42: 0 | EI42: 0 | EJ42: 0 | EK42: 0 | EL42: 0
A43: 30806021702659 | B43: 2008-06-02 | E43: 69 | F43: 83 | G43: =IF(H43="","",SUBTOTAL(3,$H$12:H43)) -> 32 | H43: عمر محمد سمير عطية عفيفى | I43: 32 | J43: 2 | K43: 6 | L43: 2008 | M43: 29 | N43: 3 | O43: 9 | P43: 38 | Q43: 49 | R43: 36 | S43: 50 | T43: 173 | U43: 86.5 | V43: ممتاز | W43: 38 | X43: 44 | Y43: 38 | Z43: 58 | AA43: 178 | AB43: 71.2 | AC43: ممتاز | AD43: 39 | AE43: 53 | AF43: 40 | AG43: 56 | AH43: 188 | AI43: 37.6 | AJ43: ممتاز | AK43: 37 | AL43: 48 | AM43: 37 | AN43: 54 | AO43: 176 | AP43: 35.2 | AQ43: ممتاز | AR43: 38 | AS43: 54 | AT43: 40 | AU43: 58 | AV43: 190 | AW43: 38 | AX43: ممتاز | AY43: 99 | AZ43: 97 | BA43: 196 | BB43: 19.6 | BC43: ممتاز | BD43: 98 | BE43: 98 | BF43: 196 | BG43: 19.6 | BH43: ممتاز | BI43: 99 | BJ43: 97 | BK43: 196 | BL43: 19.6 | BM43: ممتاز | BN43: 97 | BO43: 99 | BP43: 196 | BQ43: 19.6 | BR43: ممتاز | BS43: 98 | BT43: 98 | BU43: 196 | BV43: 19.6 | BW43: ممتاز | BX43: 307.7 | BY43: ممتاز | BZ43: 268.5 | CA43: 36 | CB43: 46 | CC43: 36 | CD43: 43 | CE43: 161 | CF43: 32.2 | CG43: ممتاز | CH43: 339.9 | CI43: =IF(ISNUMBER(BX43)=FALSE,MAX($G$12:$G$10003)-MIN($G$12:$G$10003)+COUNTIF($BX$12:BX43,BX43),RANK(BX43,$BX$12:$BX$268,0)) -> 77 | CV43: ناجح | DI43: 524 | DJ43: =TOPTEN($DI$12:$DI$235,$I$12:$I$235,15,FALSE) -> 78 | DK43: =TOPTEN($DI$12:$DI$235,$H$12:$H$235,15,FALSE) -> حبيبه محمد عبدالمنعم السيد | DL43: =TOPTEN($DI$12:$DI$235,$DI$12:$DI$235,15,FALSE) -> 583 | DM43: =TOPTEN($DI$12:$DI$235,$DI$12:$DI$235,15,TRUE) -> السابع مكرر | DN43: =DL43/600 -> 0.9716666667 | EC43: 0 | ED43: 0 | EE43: 0 | EF43: 0 | EG43: 0 | EH43: 0 | EI43: 0 | EJ43: 0 | EK43: 0 | EL43: 0
A44: 30808081702553 | B44: =TEXT(LEFT(A44,7)+17000000,"####-##-##")+0 -> 2008-08-08 | E44: 70 | F44: 84 | G44: =IF(H44="","",SUBTOTAL(3,$H$12:H44)) -> 33 | H44: عمير محمد فهمى احمد الحنفى | I44: 33 | J44: =DAY(B44) -> 8 | K44: =MONTH(B44) -> 8 | L44: =YEAR(B44) -> 2008 | M44: =DATEDIF(DATE(L44,K44,J44),$M$11,"md") -> 23 | N44: =DATEDIF(DATE(L44,K44,J44),$M$11,"ym") -> 1 | O44: =DATEDIF(DATE(L44,K44,J44),$M$11,"y") -> 9 | P44: 38 | Q44: 54 | R44: 38 | S44: 47 | T44: 177 | U44: 88.5 | V44: ممتاز | W44: 38 | X44: 42 | Y44: 38 | Z44: 53 | AA44: 171 | AB44: 68.4 | AC44: ممتاز | AD44: 37 | AE44: 53 | AF44: 38 | AG44: 58 | AH44: 186 | AI44: 37.2 | AJ44: ممتاز | AK44: 39 | AL44: 50 | AM44: 39 | AN44: 58 | AO44: 186 | AP44: 37.2 | AQ44: ممتاز | AR44: 38 | AS44: 59 | AT44: 40 | AU44: 56 | AV44: 193 | AW44: 38.6 | AX44: ممتاز | AY44: 99 | AZ44: 99 | BA44: 198 | BB44: 19.8 | BC44: ممتاز | BD44: 98 | BE44: 97 | BF44: 195 | BG44: 19.5 | BH44: ممتاز | BI44: 99 | BJ44: 99 | BK44: 198 | BL44: 19.8 | BM44: ممتاز | BN44: 99 | BO44: 99 | BP44: 198 | BQ44: 19.8 | BR44: ممتاز | BS44: 97 | BT44: 98 | BU44: 195 | BV44: 19.5 | BW44: ممتاز | BX44: =IF(AND(AW44="غ",AP44="غ",AI44="غ",AB44="غ",U44="غ"),"غ",SUM(AW44,AP44,AI44,AB44,U44,BQ44,BV44)) -> 309.2 | BY44: ممتاز | BZ44: =IF(AND(AW44="غ",AP44="غ",AI44="غ",AB44="غ",U44="غ"),"غ",SUM(AW44,AP44,AI44,AB44,U44)) -> 269.9 | CA44: 39 | CB44: 41 | CC44: 36 | CD44: 52 | CE44: 168 | CF44: 33.6 | CG44: ممتاز | CH44: 342.8 | CI44: =IF(ISNUMBER(BX44)=FALSE,MAX($G$12:$G$10003)-MIN($G$12:$G$10003)+COUNTIF($BX$12:BX44,BX44),RANK(BX44,$BX$12:$BX$268,0)) -> 73 | CK44: =IF(OR(S44<18,S44="غ",U44<50,U44="غ")," - عربى ","") ->  | CL44: =IF(OR(Z44<18,Z44="غ",AB44<40,AB44="غ")," - رياضيات ","") ->  | CM44: =IF(OR(AG44<18,AG44="غ",AI44<20,AI44="غ")," - إنجليزى ","") ->  | CN44: =IF(OR(AN44<18,AN44="غ",AP44<20,AP44="غ")," - دراسات ","") ->  | CO44: =IF(OR(AU44<18,AU44="غ",AW44<20,AW44="غ")," - علوم ","") ->  | CV44: ناجح | DI44: =IF(AND(Q44="غ",S44="غ",X44="غ",Z44="غ",AE44="غ",AG44="غ",AL44="غ",AN44="غ",AS44="غ",AU44="غ"),"غ",IF(AND(Q44="صفر",S44="صفر",X44="صفر",Z44="صفر",AE44="صفر",AG44="صفر",AL44="صفر",AN44="صفر",AS44="صفر",AU44="صفر"),"صفر",SUM(Q44,S44,X44,Z44,AE44,AG44,AL44,AN44,AS44,AU44))) -> 530 | DJ44: =TOPTEN($DI$12:$DI$235,$I$12:$I$235,16,FALSE) -> 56 | DK44: =TOPTEN($DI$12:$DI$235,$H$12:$H$235,16,FALSE) -> محمود عادل رزق عبد الهادى | DL44: =TOPTEN($DI$12:$DI$235,$DI$12:$DI$235,16,FALSE) -> 582 | DM44: =TOPTEN($DI$12:$DI$235,$DI$12:$DI$235,16,TRUE) -> الثامن | DN44: =DL44/600 -> 0.97 | EC44: =IF(Q44<26,"عربى",0) -> 0 | ED44: =IF(X44<26,"رياضيات",0) -> 0 | EE44: =IF(AE44<26,"إنجليزى",0) -> 0 | EF44: =IF(AL44<26,"دراسات",0) -> 0 | EG44: =IF(AS44<26,"علوم",0) -> 0 | EH44: =IF(BB44<13,"فنى",0) -> 0 | EI44: =IF(BG44<13,"رياضى",0) -> 0 | EJ44: =IF(BQ44<13,"نشاط1",0) -> 0 | EK44: =IF(BV44<13,"نشاط2",0) -> 0 | EL44: =IF(CB44<26,"دين",0) -> 0
A45: 30801151703191 | B45: 2008-01-15 | E45: 71 | F45: 85 | G45: =IF(H45="","",SUBTOTAL(3,$H$12:H45)) -> 34 | H45: فارس مجاهد على الليثى | I45: =IF(OR($I$4=0,$H45=""),"",$I44+1) -> 34 | J45: 15 | K45: 1 | L45: 2008 | M45: 16 | N45: 8 | O45: 9 | P45: 40 | Q45: 57 | R45: 40 | S45: 55 | T45: 192 | U45: 96 | V45: ممتاز | W45: 40 | X45: 54 | Y45: 40 | Z45: 60 | AA45: 194 | AB45: 77.6 | AC45: ممتاز | AD45: 40 | AE45: 57 | AF45: 40 | AG45: 56 | AH45: 193 | AI45: 38.6 | AJ45: ممتاز | AK45: 40 | AL45: 52 | AM45: 40 | AN45: 58 | AO45: 190 | AP45: 38 | AQ45: ممتاز | AR45: 38 | AS45: 56 | AT45: 40 | AU45: 58 | AV45: 192 | AW45: 38.4 | AX45: ممتاز | AY45: 99 | AZ45: 97 | BA45: 196 | BB45: 19.6 | BC45: ممتاز | BD45: 98 | BE45: 98 | BF45: 196 | BG45: 19.6 | BH45: ممتاز | BI45: 99 | BJ45: 97 | BK45: 196 | BL45: 19.6 | BM45: ممتاز | BN45: 97 | BO45: 99 | BP45: 196 | BQ45: 19.6 | BR45: ممتاز | BS45: 98 | BT45: 98 | BU45: 196 | BV45: 19.6 | BW45: ممتاز | BX45: 327.8 | BY45: ممتاز | BZ45: 288.6 | CA45: 40 | CB45: 51 | CC45: 40 | CD45: 57 | CE45: 188 | CF45: 37.6 | CG45: ممتاز | CH45: 365.4 | CI45: =IF(ISNUMBER(BX45)=FALSE,MAX($G$12:$G$10003)-MIN($G$12:$G$10003)+COUNTIF($BX$12:BX45,BX45),RANK(BX45,$BX$12:$BX$268,0)) -> 36 | CV45: ناجح | DI45: 563 | DJ45: =TOPTEN($DI$12:$DI$235,$I$12:$I$235,17,FALSE) -> 85 | DK45: =TOPTEN($DI$12:$DI$235,$H$12:$H$235,17,FALSE) -> رزان محمد عبد العاطى عبد العزيز | DL45: =TOPTEN($DI$12:$DI$235,$DI$12:$DI$235,17,FALSE) -> 581 | DM45: =TOPTEN($DI$12:$DI$235,$DI$12:$DI$235,17,TRUE) -> التاسع | DN45: 0.9683333333 | EC45: 0 | ED45: 0 | EE45: 0 | EF45: 0 | EG45: 0 | EH45: 0 | EI45: 0 | EJ45: 0 | EK45: 0 | EL45: 0
A46: 30611291701152 | B46: 2006-11-29 | E46: 72 | F46: 86 | G46: =IF(H46="","",SUBTOTAL(3,$H$12:H46)) -> 35 | H46: فارس محمد عبد الله محمد هدهد | I46: 35 | J46: 29 | K46: 11 | L46: 2006 | M46: 2 | N46: 10 | O46: 10 | P46: غ | Q46: غ | R46: غ | S46: غ | T46: غ | U46: غ | V46: غ | W46: غ | X46: غ | Y46: غ | Z46: غ | AA46: غ | AB46: غ | AC46: غ | AD46: غ | AE46: غ | AF46: غ | AG46: غ | AH46: غ | AI46: غ | AJ46: غ | AK46: غ | AL46: غ | AM46: غ | AN46: غ | AO46: غ | AP46: غ | AQ46: غ | AR46: غ | AS46: غ | AT46: غ | AU46: غ | AV46: غ | AW46: غ | AX46: غ | AY46: غ | AZ46: غ | BA46: غ | BB46: غ | BC46: غ | BD46: غ | BE46: غ | BF46: غ | BG46: غ | BH46: غ | BI46: غ | BJ46: غ | BK46: غ | BL46: غ | BM46: غ | BN46: غ | BO46: غ | BP46: غ | BQ46: غ | BR46: غ | BS46: غ | BT46: غ | BU46: غ | BV46: غ | BW46: =IF(BV46="غ","غ",IF(OR(BV46="غ",BV46="صفر",BV46<10),"دون المستوى",IF(BV46>=17,"ممتاز",IF(BV46>=15,"جيد جداً",IF(BV46>=13,"جيد",IF(BV46>=10,"مقبول")))))) -> غ | BX46: غ | BY46: غ | BZ46: غ | CA46: غ | CB46: غ | CC46: غ | CD46: غ | CE46: غ | CF46: غ | CG46: =IF(OR(CF46="",CD46=""),"",IF(AND(CF46="غ",CD46="غ"),"غ",IF(OR(CD46<18,CD46="غ",CF46="غ",CD46="صفر",CF46="صفر",CF46<20),"دون المستوى",IF(CF46>=32,"ممتاز",IF(CF46>=30,"جيد جداً",IF(CF46>=26,"جيد",IF(CF46>=20,"مقبول"))))))) -> غ | CH46: غ | CI46: =IF(ISNUMBER(BX46)=FALSE,MAX($G$12:$G$10003)-MIN($G$12:$G$10003)+COUNTIF($BX$12:BX46,BX46),RANK(BX46,$BX$12:$BX$268,0)) -> 125 | CK46: - عربى | CL46: - رياضيات | CM46: - إنجليزى | CN46: - دراسات | CO46: - علوم | CP46: - دين | CS46: - عربى - رياضيات - إنجليزى - دراسات - علوم - دين | CV46: دور ثان | DI46: غ | DJ46: =TOPTEN($DI$12:$DI$235,$I$12:$I$235,18,FALSE) -> 99 | DK46: =TOPTEN($DI$12:$DI$235,$H$12:$H$235,18,FALSE) -> مريم احمد مأمون السيد زايد | DL46: =TOPTEN($DI$12:$DI$235,$DI$12:$DI$235,18,FALSE) -> 581 | DM46: =TOPTEN($DI$12:$DI$235,$DI$12:$DI$235,18,TRUE) -> التاسع مكرر | DN46: 0.9683333333 | EC46: 0 | ED46: 0 | EE46: 0 | EF46: 0 | EG46: 0 | EH46: 0 | EI46: 0 | EJ46: 0 | EK46: 0 | EL46: 0
A47: 30610251704438 | B47: 2006-10-25 | E47: 73 | F47: 87 | G47: =IF(H47="","",SUBTOTAL(3,$H$12:H47)) -> 36 | H47: فهد محمد عبد الحليم سيد المرادي | I47: 36 | J47: 25 | K47: 10 | L47: 2006 | M47: 6 | N47: 11 | O47: 10 | P47: غ | Q47: غ | R47: غ | S47: غ | T47: غ | U47: غ | V47: غ | W47: غ | X47: غ | Y47: غ | Z47: غ | AA47: غ | AB47: غ | AC47: غ | AD47: غ | AE47: غ | AF47: غ | AG47: غ | AH47: غ | AI47: غ | AJ47: غ | AK47: غ | AL47: غ | AM47: غ | AN47: غ | AO47: غ | AP47: غ | AQ47: غ | AR47: غ | AS47: غ | AT47: غ | AU47: غ | AV47: غ | AW47: غ | AX47: غ | AY47: غ | AZ47: غ | BA47: غ | BB47: غ | BC47: غ | BD47: غ | BE47: غ | BF47: غ | BG47: غ | BH47: غ | BI47: غ | BJ47: غ | BK47: غ | BL47: غ | BM47: غ | BN47: غ | BO47: غ | BP47: غ | BQ47: غ | BR47: غ | BS47: غ | BT47: غ | BU47: غ | BV47: غ | BW47: غ | BX47: غ | BY47: غ | BZ47: غ | CA47: غ | CB47: غ | CC47: غ | CD47: غ | CE47: غ | CF47: غ | CG47: غ | CH47: غ | CI47: =IF(ISNUMBER(BX47)=FALSE,MAX($G$12:$G$10003)-MIN($G$12:$G$10003)+COUNTIF($BX$12:BX47,BX47),RANK(BX47,$BX$12:$BX$268,0)) -> 126 | CK47: - عربى | CL47: - رياضيات | CM47: - إنجليزى | CN47: - دراسات | CO47: - علوم | CP47: - دين | CS47: - عربى - رياضيات - إنجليزى - دراسات - علوم - دين | CV47: دور ثان | DI47: غ | DJ47: =TOPTEN($DI$12:$DI$235,$I$12:$I$235,19,FALSE) -> 53 | DK47: =TOPTEN($DI$12:$DI$235,$H$12:$H$235,19,FALSE) -> محمود أحمد محروس السيد يكر | DL47: =TOPTEN($DI$12:$DI$235,$DI$12:$DI$235,19,FALSE) -> 580 | DM47: =TOPTEN($DI$12:$DI$235,$DI$12:$DI$235,19,TRUE) -> العاشر | DN47: 0.9666666667 | EC47: 0 | ED47: 0 | EE47: 0 | EF47: 0 | EG47: 0 | EH47: 0 | EI47: 0 | EJ47: 0 | EK47: 0 | EL47: 0
A48: 30809101702152 | B48: 2008-09-10 | E48: 74 | F48: 88 | G48: =IF(H48="","",SUBTOTAL(3,$H$12:H48)) -> 37 | H48: كريم أحمد عبد الرحمن السيد | I48: 37 | J48: 10 | K48: 9 | L48: 2008 | M48: 21 | N48: 0 | O48: 9 | P48: 40 | Q48: 59 | R48: 40 | S48: 55 | T48: 194 | U48: 97 | V48: ممتاز | W48: 39 | X48: 48 | Y48: 39 | Z48: 54 | AA48: 180 | AB48: 72 | AC48: ممتاز | AD48: 40 | AE48: 58 | AF48: 40 | AG48: 56 | AH48: 194 | AI48: 38.8 | AJ48: ممتاز | AK48: 40 | AL48: 58 | AM48: 40 | AN48: 58 | AO48: 196 | AP48: 39.2 | AQ48: ممتاز | AR48: 36 | AS48: 57 | AT48: 40 | AU48: 58 | AV48: 191 | AW48: 38.2 | AX48: ممتاز | AY48: 99 | AZ48: 97 | BA48: 196 | BB48: 19.6 | BC48: ممتاز | BD48: 98 | BE48: 98 | BF48: 196 | BG48: 19.6 | BH48: ممتاز | BI48: 99 | BJ48: 97 | BK48: 196 | BL48: 19.6 | BM48: ممتاز | BN48: 97 | BO48: 99 | BP48: 196 | BQ48: 19.6 | BR48: ممتاز | BS48: 98 | BT48: 98 | BU48: 196 | BV48: 19.6 | BW48: ممتاز | BX48: 324.4 | BY48: ممتاز | BZ48: 285.2 | CA48: 40 | CB48: 44 | CC48: 38 | CD48: 48 | CE48: 170 | CF48: 34 | CG48: ممتاز | CH48: 358.4 | CI48: =IF(ISNUMBER(BX48)=FALSE,MAX($G$12:$G$10003)-MIN($G$12:$G$10003)+COUNTIF($BX$12:BX48,BX48),RANK(BX48,$BX$12:$BX$268,0)) -> 47 | CV48: ناجح | DI48: 561 | DJ48: =TOPTEN($DI$12:$DI$235,$I$12:$I$235,20,FALSE) -> 88 | DK48: =TOPTEN($DI$12:$DI$235,$H$12:$H$235,20,FALSE) -> سارة ابراهيم محمد فتوح أحمد | DL48: =TOPTEN($DI$12:$DI$235,$DI$12:$DI$235,20,FALSE) -> 580 | DM48: =TOPTEN($DI$12:$DI$235,$DI$12:$DI$235,20,TRUE) -> العاشر مكرر | DN48: 0.9666666667 | EC48: 0 | ED48: 0 | EE48: 0 | EF48: 0 | EG48: 0 | EH48: 0 | EI48: 0 | EJ48: 0 | EK48: 0 | EL48: 0
A49: 30809291706175 | B49: 2008-09-29 | E49: 75 | F49: 1 | G49: =IF(H49="","",SUBTOTAL(3,$H$12:H49)) -> 38 | H49: كريم شوقى السيد محمد محمد | I49: 38 | J49: 29 | K49: 9 | L49: 2008 | M49: 2 | N49: 0 | O49: 9 | P49: 37 | Q49: 53 | R49: 35 | S49: 40 | T49: 165 | U49: 82.5 | V49: جيد جداً | W49: 38 | X49: 34 | Y49: 38 | Z49: 26 | AA49: 136 | AB49: 54.4 | AC49: جيد | AD49: 35 | AE49: 24 | AF49: 36 | AG49: 42 | AH49: 137 | AI49: 27.4 | AJ49: جيد | AK49: 37 | AL49: 44 | AM49: 37 | AN49: 52 | AO49: 170 | AP49: 34 | AQ49: ممتاز | AR49: 36 | AS49: 45 | AT49: 40 | AU49: 55 | AV49: 176 | AW49: 35.2 | AX49: ممتاز | AY49: 99 | AZ49: 97 | BA49: 196 | BB49: 19.6 | BC49: ممتاز | BD49: 98 | BE49: 98 | BF49: 196 | BG49: 19.6 | BH49: ممتاز | BI49: 99 | BJ49: 97 | BK49: 196 | BL49: 19.6 | BM49: ممتاز | BN49: 97 | BO49: 99 | BP49: 196 | BQ49: 19.6 | BR49: ممتاز | BS49: 98 | BT49: 98 | BU49: 196 | BV49: 19.6 | BW49: ممتاز | BX49: 272.7 | BY49: جيد جدا | BZ49: 233.5 | CA49: 40 | CB49: 42 | CC49: 38 | CD49: 39 | CE49: 159 | CF49: 31.8 | CG49: جيد جداً | CH49: 304.5 | CI49: =IF(ISNUMBER(BX49)=FALSE,MAX($G$12:$G$10003)-MIN($G$12:$G$10003)+COUNTIF($BX$12:BX49,BX49),RANK(BX49,$BX$12:$BX$268,0)) -> 110 | CV49: ناجح | DI49: 415 | DJ49: =TOPTEN($DI$12:$DI$235,$I$12:$I$235,21,FALSE) -> 100 | DK49: =TOPTEN($DI$12:$DI$235,$H$12:$H$235,21,FALSE) -> مريم بشير فتحي عبد الكريم | DL49: =TOPTEN($DI$12:$DI$235,$DI$12:$DI$235,21,FALSE) -> 580 | DM49: =TOPTEN($DI$12:$DI$235,$DI$12:$DI$235,21,TRUE) -> العاشر مكرر | DN49: 0.9666666667 | EC49: 0 | ED49: 0 | EE49: إنجليزى | EF49: 0 | EG49: 0 | EH49: 0 | EI49: 0 | EJ49: 0 | EK49: 0 | EL49: 0
A50: 30807131701395 | B50: 2008-07-13 | E50: 76 | F50: 2 | G50: =IF(H50="","",SUBTOTAL(3,$H$12:H50)) -> 39 | H50: ماجد محمد السيد بكر | I50: 39 | J50: 13 | K50: 7 | L50: 2008 | M50: 18 | N50: 2 | O50: 9 | P50: 39 | Q50: 58 | R50: 39 | S50: 54 | T50: 190 | U50: 95 | V50: ممتاز | W50: 40 | X50: 52 | Y50: 40 | Z50: 54 | AA50: 186 | AB50: 74.4 | AC50: ممتاز | AD50: 40 | AE50: 59 | AF50: 40 | AG50: 58 | AH50: 197 | AI50: 39.4 | AJ50: ممتاز | AK50: 37 | AL50: 54 | AM50: 37 | AN50: 58 | AO50: 186 | AP50: 37.2 | AQ50: ممتاز | AR50: 35 | AS50: 58 | AT50: 40 | AU50: 58 | AV50: 191 | AW50: 38.2 | AX50: ممتاز | AY50: 99 | AZ50: 97 | BA50: 196 | BB50: 19.6 | BC50: ممتاز | BD50: 98 | BE50: 98 | BF50: 196 | BG50: 19.6 | BH50: ممتاز | BI50: 99 | BJ50: 97 | BK50: 196 | BL50: 19.6 | BM50: ممتاز | BN50: 97 | BO50: 99 | BP50: 196 | BQ50: 19.6 | BR50: ممتاز | BS50: 98 | BT50: 98 | BU50: 196 | BV50: 19.6 | BW50: ممتاز | BX50: 323.4 | BY50: ممتاز | BZ50: 284.2 | CA50: 36 | CB50: 50 | CC50: 40 | CD50: 41 | CE50: 167 | CF50: 33.4 | CG50: ممتاز | CH50: 356.8 | CI50: =IF(ISNUMBER(BX50)=FALSE,MAX($G$12:$G$10003)-MIN($G$12:$G$10003)+COUNTIF($BX$12:BX50,BX50),RANK(BX50,$BX$12:$BX$268,0)) -> 49 | CV50: ناجح | DI50: 563 | DJ50: =TOPTEN($DI$12:$DI$235,$I$12:$I$235,22,FALSE) -> 30 | DK50: =TOPTEN($DI$12:$DI$235,$H$12:$H$235,22,FALSE) -> عمر ايهاب محمود محمد يوسف | DL50: =TOPTEN($DI$12:$DI$235,$DI$12:$DI$235,22,FALSE) -> 579 | DM50: =TOPTEN($DI$12:$DI$235,$DI$12:$DI$235,22,TRUE) -> الحادى عشر | DN50: 0.965 | EC50: 0 | ED50: 0 | EE50: 0 | EF50: 0 | EG50: 0 | EH50: 0 | EI50: 0 | EJ50: 0 | EK50: 0 | EL50: 0
A51: 30807011709813 | B51: 2008-07-01 | E51: 77 | F51: 3 | G51: =IF(H51="","",SUBTOTAL(3,$H$12:H51)) -> 40 | H51: مازن محمد مازن حسين عبدالوهاب | I51: 40 | J51: 1 | K51: 7 | L51: 2008 | M51: 0 | N51: 3 | O51: 9 | P51: 36 | Q51: 45 | R51: 30 | S51: 60 | T51: 171 | U51: 85.5 | V51: ممتاز | W51: 38 | X51: 50 | Y51: 38 | Z51: 60 | AA51: 186 | AB51: 74.4 | AC51: ممتاز | AD51: 40 | AE51: 60 | AF51: 40 | AG51: 60 | AH51: 200 | AI51: 40 | AJ51: ممتاز | AK51: 40 | AL51: 52 | AM51: 40 | AN51: 54 | AO51: 186 | AP51: 37.2 | AQ51: ممتاز | AR51: 37 | AS51: 57 | AT51: 40 | AU51: 54 | AV51: 188 | AW51: 37.6 | AX51: ممتاز | AY51: 99 | AZ51: 97 | BA51: 196 | BB51: 19.6 | BC51: ممتاز | BD51: 98 | BE51: 98 | BF51: 196 | BG51: 19.6 | BH51: ممتاز | BI51: 99 | BJ51: 97 | BK51: 196 | BL51: 19.6 | BM51: ممتاز | BN51: 97 | BO51: 99 | BP51: 196 | BQ51: 19.6 | BR51: ممتاز | BS51: 98 | BT51: 98 | BU51: 196 | BV51: 19.6 | BW51: ممتاز | BX51: 313.9 | BY51: ممتاز | BZ51: 274.7 | CA51: 36 | CB51: 60 | CC51: 36 | CD51: 60 | CE51: 192 | CF51: 38.4 | CG51: ممتاز | CH51: 352.3 | CI51: =IF(ISNUMBER(BX51)=FALSE,MAX($G$12:$G$10003)-MIN($G$12:$G$10003)+COUNTIF($BX$12:BX51,BX51),RANK(BX51,$BX$12:$BX$268,0)) -> 65 | CV51: ناجح | DI51: 552 | EC51: 0 | ED51: 0 | EE51: 0 | EF51: 0 | EG51: 0 | EH51: 0 | EI51: 0 | EJ51: 0 | EK51: 0 | EL51: 0
A52: 30809031701439 | B52: 2008-09-03 | E52: 78 | F52: 4 | G52: =IF(H52="","",SUBTOTAL(3,$H$12:H52)) -> 41 | H52: محمد أسامه عبد العاطى عبد العزيز | I52: 41 | J52: 3 | K52: 9 | L52: 2008 | M52: 28 | N52: 0 | O52: 9 | P52: 40 | Q52: 54 | R52: 39 | S52: 55 | T52: 188 | U52: 94 | V52: ممتاز | W52: 40 | X52: 38 | Y52: 40 | Z52: 59 | AA52: 177 | AB52: 70.8 | AC52: ممتاز | AD52: 40 | AE52: 60 | AF52: 40 | AG52: 58 | AH52: 198 | AI52: 39.6 | AJ52: ممتاز | AK52: 37 | AL52: 46 | AM52: 37 | AN52: 56 | AO52: 176 | AP52: 35.2 | AQ52: ممتاز | AR52: 36 | AS52: 56 | AT52: 40 | AU52: 60 | AV52: 192 | AW52: 38.4 | AX52: ممتاز | AY52: 99 | AZ52: 97 | BA52: 196 | BB52: 19.6 | BC52: ممتاز | BD52: 98 | BE52: 98 | BF52: 196 | BG52: 19.6 | BH52: ممتاز | BI52: 99 | BJ52: 97 | BK52: 196 | BL52: 19.6 | BM52: ممتاز | BN52: 97 | BO52: 99 | BP52: 196 | BQ52: 19.6 | BR52: ممتاز | BS52: 98 | BT52: 98 | BU52: 196 | BV52: 19.6 | BW52: ممتاز | BX52: 317.2 | BY52: ممتاز | BZ52: 278 | CA52: 40 | CB52: 46 | CC52: 40 | CD52: 54 | CE52: 180 | CF52: 36 | CG52: ممتاز | CH52: 353.2 | CI52: =IF(ISNUMBER(BX52)=FALSE,MAX($G$12:$G$10003)-MIN($G$12:$G$10003)+COUNTIF($BX$12:BX52,BX52),RANK(BX52,$BX$12:$BX$268,0)) -> 58 | CV52: ناجح | DI52: 542 | EC52: 0 | ED52: 0 | EE52: 0 | EF52: 0 | EG52: 0 | EH52: 0 | EI52: 0 | EJ52: 0 | EK52: 0 | EL52: 0
A53: 30804011705959 | B53: 2008-04-01 | E53: 79 | F53: 5 | G53: =IF(H53="","",SUBTOTAL(3,$H$12:H53)) -> 42 | H53: محمد السيد البيومى السيد | I53: 42 | J53: 1 | K53: 4 | L53: 2008 | M53: 0 | N53: 6 | O53: 9 | P53: 36 | Q53: 51 | R53: 37 | S53: 45 | T53: 169 | U53: 84.5 | V53: جيد جداً | W53: 38 | X53: 42 | Y53: 38 | Z53: 56 | AA53: 174 | AB53: 69.6 | AC53: ممتاز | AD53: 37 | AE53: 57 | AF53: 38 | AG53: 58 | AH53: 190 | AI53: 38 | AJ53: ممتاز | AK53: 37 | AL53: 56 | AM53: 37 | AN53: 30 | AO53: 160 | AP53: 32 | AQ53: ممتاز | AR53: 35 | AS53: 51 | AT53: 40 | AU53: 58 | AV53: 184 | AW53: 36.8 | AX53: ممتاز | AY53: 99 | AZ53: 97 | BA53: 196 | BB53: 19.6 | BC53: ممتاز | BD53: 98 | BE53: 98 | BF53: 196 | BG53: 19.6 | BH53: ممتاز | BI53: 99 | BJ53: 97 | BK53: 196 | BL53: 19.6 | BM53: ممتاز | BN53: 97 | BO53: 99 | BP53: 196 | BQ53: 19.6 | BR53: ممتاز | BS53: 98 | BT53: 98 | BU53: 196 | BV53: 19.6 | BW53: ممتاز | BX53: 300.1 | BY53: ممتاز | BZ53: 260.9 | CA53: 37 | CB53: 46 | CC53: 36 | CD53: 45 | CE53: 164 | CF53: 32.8 | CG53: ممتاز | CH53: 332.9 | CI53: =IF(ISNUMBER(BX53)=FALSE,MAX($G$12:$G$10003)-MIN($G$12:$G$10003)+COUNTIF($BX$12:BX53,BX53),RANK(BX53,$BX$12:$BX$268,0)) -> 87 | CV53: ناجح | DI53: 504 | EC53: 0 | ED53: 0 | EE53: 0 | EF53: 0 | EG53: 0 | EH53: 0 | EI53: 0 | EJ53: 0 | EK53: 0 | EL53: 0
A54: 30805211702357 | B54: 2008-05-21 | E54: 80 | F54: 6 | G54: =IF(H54="","",SUBTOTAL(3,$H$12:H54)) -> 43 | H54: محمد ايمن ابراهيم امام سليمان | I54: 43 | J54: 21 | K54: 5 | L54: 2008 | M54: 10 | N54: 4 | O54: 9 | P54: 38 | Q54: 58 | R54: 39 | S54: 57 | T54: 192 | U54: 96 | V54: ممتاز | W54: 40 | X54: 54 | Y54: 40 | Z54: 58 | AA54: 192 | AB54: 76.8 | AC54: ممتاز | AD54: 40 | AE54: 59 | AF54: 40 | AG54: 58 | AH54: 197 | AI54: 39.4 | AJ54: ممتاز | AK54: 37 | AL54: 58 | AM54: 37 | AN54: 56 | AO54: 188 | AP54: 37.6 | AQ54: ممتاز | AR54: 35 | AS54: 60 | AT54: 40 | AU54: 56 | AV54: 191 | AW54: 38.2 | AX54: ممتاز | AY54: 99 | AZ54: 99 | BA54: 198 | BB54: 19.8 | BC54: ممتاز | BD54: 98 | BE54: 98 | BF54: 196 | BG54: 19.6 | BH54: ممتاز | BI54: 99 | BJ54: 99 | BK54: 198 | BL54: 19.8 | BM54: ممتاز | BN54: 99 | BO54: 99 | BP54: 198 | BQ54: 19.8 | BR54: ممتاز | BS54: 98 | BT54: 98 | BU54: 196 | BV54: 19.6 | BW54: ممتاز | BX54: 327.4 | BY54: ممتاز | BZ54: 288 | CA54: 40 | CB54: 50 | CC54: 36 | CD54: 42 | CE54: 168 | CF54: 33.6 | CG54: ممتاز | CH54: 361 | CI54: =IF(ISNUMBER(BX54)=FALSE,MAX($G$12:$G$10003)-MIN($G$12:$G$10003)+COUNTIF($BX$12:BX54,BX54),RANK(BX54,$BX$12:$BX$268,0)) -> 39 | CV54: ناجح | DI54: 574 | EC54: 0 | ED54: 0 | EE54: 0 | EF54: 0 | EG54: 0 | EH54: 0 | EI54: 0 | EJ54: 0 | EK54: 0 | EL54: 0
A55: 30807091701796 | B55: 2008-07-09 | E55: 81 | F55: 7 | G55: =IF(H55="","",SUBTOTAL(3,$H$12:H55)) -> 44 | H55: محمد ايهاب محمد عبد الغفار | I55: 44 | J55: 9 | K55: 7 | L55: 2008 | M55: 22 | N55: 2 | O55: 9 | P55: 40 | Q55: 59 | R55: 39 | S55: 56 | T55: 194 | U55: 97 | V55: ممتاز | W55: 40 | X55: 56 | Y55: 40 | Z55: 53 | AA55: 189 | AB55: 75.6 | AC55: ممتاز | AD55: 40 | AE55: 60 | AF55: 40 | AG55: 56 | AH55: 196 | AI55: 39.2 | AJ55: ممتاز | AK55: 37 | AL55: 58 | AM55: 37 | AN55: 60 | AO55: 192 | AP55: 38.4 | AQ55: ممتاز | AR55: 35 | AS55: 60 | AT55: 40 | AU55: 54 | AV55: 189 | AW55: 37.8 | AX55: ممتاز | AY55: 97 | AZ55: 95 | BA55: 192 | BB55: 19.2 | BC55: ممتاز | BD55: 96 | BE55: 98 | BF55: 194 | BG55: 19.4 | BH55: ممتاز | BI55: 97 | BJ55: 95 | BK55: 192 | BL55: 19.2 | BM55: ممتاز | BN55: 95 | BO55: 97 | BP55: 192 | BQ55: 19.2 | BR55: ممتاز | BS55: 98 | BT55: 96 | BU55: 194 | BV55: 19.4 | BW55: ممتاز | BX55: 326.6 | BY55: ممتاز | BZ55: 288 | CA55: 40 | CB55: 49 | CC55: 40 | CD55: 50 | CE55: 179 | CF55: 35.8 | CG55: ممتاز | CH55: 362.4 | CI55: =IF(ISNUMBER(BX55)=FALSE,MAX($G$12:$G$10003)-MIN($G$12:$G$10003)+COUNTIF($BX$12:BX55,BX55),RANK(BX55,$BX$12:$BX$268,0)) -> 40 | CV55: ناجح | DI55: 572 | EC55: 0 | ED55: 0 | EE55: 0 | EF55: 0 | EG55: 0 | EH55: 0 | EI55: 0 | EJ55: 0 | EK55: 0 | EL55: 0
A56: 30805011703472 | B56: 2008-05-01 | E56: 82 | F56: 8 | G56: =IF(H56="","",SUBTOTAL(3,$H$12:H56)) -> 45 | H56: محمد خالد محمد رشاد الجزار | I56: 45 | J56: 1 | K56: 5 | L56: 2008 | M56: 0 | N56: 5 | O56: 9 | P56: 35 | Q56: 31 | R56: 36 | S56: 18 | T56: 120 | U56: 60 | V56: مقبول | W56: 36 | X56: 31 | Y56: 36 | Z56: 50 | AA56: 153 | AB56: 61.2 | AC56: جيد جداً | AD56: 25 | AE56: 25 | AF56: 25 | AG56: 39 | AH56: 114 | AI56: 22.8 | AJ56: مقبول | AK56: 38 | AL56: 26 | AM56: 38 | AN56: 24 | AO56: 126 | AP56: 25.2 | AQ56: مقبول | AR56: 36 | AS56: 37 | AT56: 40 | AU56: 34 | AV56: 147 | AW56: 29.4 | AX56: جيد | AY56: 97 | AZ56: 95 | BA56: 192 | BB56: 19.2 | BC56: ممتاز | BD56: 96 | BE56: 98 | BF56: 194 | BG56: 19.4 | BH56: ممتاز | BI56: 97 | BJ56: 95 | BK56: 192 | BL56: 19.2 | BM56: ممتاز | BN56: 95 | BO56: 97 | BP56: 192 | BQ56: 19.2 | BR56: ممتاز | BS56: 98 | BT56: 96 | BU56: 194 | BV56: 19.4 | BW56: ممتاز | BX56: 237.2 | BY56: جيد | BZ56: 198.6 | CA56: 35 | CB56: 12 | CC56: 36 | CD56: 20 | CE56: 103 | CF56: 20.6 | CG56: مقبول | CH56: 257.8 | CI56: =IF(ISNUMBER(BX56)=FALSE,MAX($G$12:$G$10003)-MIN($G$12:$G$10003)+COUNTIF($BX$12:BX56,BX56),RANK(BX56,$BX$12:$BX$268,0)) -> 117 | CV56: ناجح | DI56: 315 | EC56: 0 | ED56: 0 | EE56: إنجليزى | EF56: 0 | EG56: 0 | EH56: 0 | EI56: 0 | EJ56: 0 | EK56: 0 | EL56: دين
A57: 30806161702438 | B57: 2008-06-16 | E57: 83 | F57: 9 | G57: =IF(H57="","",SUBTOTAL(3,$H$12:H57)) -> 46 | H57: محمد طارق محمد السيد أبو الفتوح | I57: 46 | J57: 16 | K57: 6 | L57: 2008 | M57: 15 | N57: 3 | O57: 9 | P57: 37 | Q57: 46 | R57: 37 | S57: 48 | T57: 168 | U57: 84 | V57: جيد جداً | W57: 39 | X57: 44 | Y57: 39 | Z57: 47 | AA57: 169 | AB57: 67.6 | AC57: جيد جداً | AD57: 39 | AE57: 54 | AF57: 40 | AG57: 54 | AH57: 187 | AI57: 37.4 | AJ57: ممتاز | AK57: 38 | AL57: 48 | AM57: 38 | AN57: 58 | AO57: 182 | AP57: 36.4 | AQ57: ممتاز | AR57: 38 | AS57: 41 | AT57: 40 | AU57: 54 | AV57: 173 | AW57: 34.6 | AX57: ممتاز | AY57: 99 | AZ57: 99 | BA57: 198 | BB57: 19.8 | BC57: ممتاز | BD57: 98 | BE57: 98 | BF57: 196 | BG57: 19.6 | BH57: ممتاز | BI57: 99 | BJ57: 99 | BK57: 198 | BL57: 19.8 | BM57: ممتاز | BN57: 99 | BO57: 99 | BP57: 198 | BQ57: 19.8 | BR57: ممتاز | BS57: 98 | BT57: 98 | BU57: 196 | BV57: 19.6 | BW57: ممتاز | BX57: 299.4 | BY57: ممتاز | BZ57: 260 | CA57: 40 | CB57: 50 | CC57: 40 | CD57: 43 | CE57: 173 | CF57: 34.6 | CG57: ممتاز | CH57: 334 | CI57: =IF(ISNUMBER(BX57)=FALSE,MAX($G$12:$G$10003)-MIN($G$12:$G$10003)+COUNTIF($BX$12:BX57,BX57),RANK(BX57,$BX$12:$BX$268,0)) -> 90 | CV57: ناجح | DI57: 494 | EC57: 0 | ED57: 0 | EE57: 0 | EF57: 0 | EG57: 0 | EH57: 0 | EI57: 0 | EJ57: 0 | EK57: 0 | EL57: 0
A58: 30901011704737 | B58: 2009-01-01 | E58: 84 | F58: 10 | G58: =IF(H58="","",SUBTOTAL(3,$H$12:H58)) -> 47 | H58: محمد عادل نبيل فهيم | I58: 47 | J58: 1 | K58: 1 | L58: 2009 | M58: 0 | N58: 9 | O58: 8 | P58: 37 | Q58: 50 | R58: 37 | S58: 55 | T58: 179 | U58: 89.5 | V58: ممتاز | W58: 37 | X58: 48 | Y58: 37 | Z58: 44 | AA58: 166 | AB58: 66.4 | AC58: جيد جداً | AD58: 36 | AE58: 48 | AF58: 39 | AG58: 51 | AH58: 174 | AI58: 34.8 | AJ58: ممتاز | AK58: 37 | AL58: 50 | AM58: 37 | AN58: 48 | AO58: 172 | AP58: 34.4 | AQ58: ممتاز | AR58: 38 | AS58: 53 | AT58: 40 | AU58: 47 | AV58: 178 | AW58: 35.6 | AX58: ممتاز | AY58: 99 | AZ58: 99 | BA58: 198 | BB58: 19.8 | BC58: ممتاز | BD58: 98 | BE58: 98 | BF58: 196 | BG58: 19.6 | BH58: ممتاز | BI58: 99 | BJ58: 99 | BK58: 198 | BL58: 19.8 | BM58: ممتاز | BN58: 99 | BO58: 99 | BP58: 198 | BQ58: 19.8 | BR58: ممتاز | BS58: 98 | BT58: 98 | BU58: 196 | BV58: 19.6 | BW58: ممتاز | BX58: 300.1 | BY58: ممتاز | BZ58: 260.7 | CA58: 35 | CB58: 32 | CC58: 36 | CD58: 42 | CE58: 145 | CF58: 29 | CG58: جيد | CH58: 329.1 | CI58: =IF(ISNUMBER(BX58)=FALSE,MAX($G$12:$G$10003)-MIN($G$12:$G$10003)+COUNTIF($BX$12:BX58,BX58),RANK(BX58,$BX$12:$BX$268,0)) -> 87 | CV58: ناجح | DI58: 494 | EC58: 0 | ED58: 0 | EE58: 0 | EF58: 0 | EG58: 0 | EH58: 0 | EI58: 0 | EJ58: 0 | EK58: 0 | EL58: 0
A59: 30707191702019 | B59: 2007-07-19 | E59: 85 | F59: 11 | G59: =IF(H59="","",SUBTOTAL(3,$H$12:H59)) -> 48 | H59: محمد عبد المنعم عبد الرازق عبد المنعم | I59: 48 | J59: 19 | K59: 7 | L59: 2007 | M59: 12 | N59: 2 | O59: 10 | P59: 33 | Q59: 60 | R59: 30 | S59: 51 | T59: 174 | U59: 87 | V59: ممتاز | W59: 36 | X59: 60 | Y59: 36 | Z59: 60 | AA59: 192 | AB59: 76.8 | AC59: ممتاز | AD59: 25 | AE59: 60 | AF59: 25 | AG59: 42 | AH59: 152 | AI59: 30.4 | AJ59: جيد جداً | AK59: 25 | AL59: 56 | AM59: 25 | AN59: 48 | AO59: 154 | AP59: 30.8 | AQ59: جيد جداً | AR59: 36 | AS59: 45 | AT59: 40 | AU59: 54 | AV59: 175 | AW59: 35 | AX59: ممتاز | AY59: 97 | AZ59: 97 | BA59: 194 | BB59: 19.4 | BC59: ممتاز | BD59: 98 | BE59: 98 | BF59: 196 | BG59: 19.6 | BH59: ممتاز | BI59: 97 | BJ59: 97 | BK59: 194 | BL59: 19.4 | BM59: ممتاز | BN59: 97 | BO59: 97 | BP59: 194 | BQ59: 19.4 | BR59: ممتاز | BS59: 98 | BT59: 98 | BU59: 196 | BV59: 19.6 | BW59: ممتاز | BX59: 299 | BY59: ممتاز | BZ59: 260 | CA59: 30 | CB59: 55 | CC59: 30 | CD59: 30 | CE59: 145 | CF59: 29 | CG59: جيد | CH59: 328 | CI59: =IF(ISNUMBER(BX59)=FALSE,MAX($G$12:$G$10003)-MIN($G$12:$G$10003)+COUNTIF($BX$12:BX59,BX59),RANK(BX59,$BX$12:$BX$268,0)) -> 91 | CV59: ناجح | DI59: 536 | EC59: 0 | ED59: 0 | EE59: 0 | EF59: 0 | EG59: 0 | EH59: 0 | EI59: 0 | EJ59: 0 | EK59: 0 | EL59: 0
A60: 30805011703456 | B60: 2008-05-01 | E60: 86 | F60: 12 | G60: =IF(H60="","",SUBTOTAL(3,$H$12:H60)) -> 49 | H60: محمد علي محمد علي حسن | I60: 49 | J60: 1 | K60: 5 | L60: 2008 | M60: 0 | N60: 5 | O60: 9 | P60: 40 | Q60: 57 | R60: 38 | S60: 59 | T60: 194 | U60: 97 | V60: ممتاز | W60: 39 | X60: 58 | Y60: 39 | Z60: 57 | AA60: 193 | AB60: 77.2 | AC60: ممتاز | AD60: 40 | AE60: 60 | AF60: 39 | AG60: 60 | AH60: 199 | AI60: 39.8 | AJ60: ممتاز | AK60: 38 | AL60: 60 | AM60: 38 | AN60: 58 | AO60: 194 | AP60: 38.8 | AQ60: ممتاز | AR60: 38 | AS60: 58 | AT60: 40 | AU60: 60 | AV60: 196 | AW60: 39.2 | AX60: ممتاز | AY60: 99 | AZ60: 99 | BA60: 198 | BB60: 19.8 | BC60: ممتاز | BD60: 98 | BE60: 98 | BF60: 196 | BG60: 19.6 | BH60: ممتاز | BI60: 99 | BJ60: 99 | BK60: 198 | BL60: 19.8 | BM60: ممتاز | BN60: 99 | BO60: 99 | BP60: 198 | BQ60: 19.8 | BR60: ممتاز | BS60: 98 | BT60: 98 | BU60: 196 | BV60: 19.6 | BW60: ممتاز | BX60: 331.4 | BY60: ممتاز | BZ60: 292 | CA60: 40 | CB60: 59 | CC60: 40 | CD60: 54 | CE60: 193 | CF60: 38.6 | CG60: ممتاز | CH60: 370 | CI60: =IF(ISNUMBER(BX60)=FALSE,MAX($G$12:$G$10003)-MIN($G$12:$G$10003)+COUNTIF($BX$12:BX60,BX60),RANK(BX60,$BX$12:$BX$268,0)) -> 15 | CV60: ناجح | DI60: 587 | EC60: 0 | ED60: 0 | EE60: 0 | EF60: 0 | EG60: 0 | EH60: 0 | EI60: 0 | EJ60: 0 | EK60: 0 | EL60: 0
A61: 30808201703516 | B61: 2008-08-20 | E61: 87 | F61: 13 | G61: =IF(H61="","",SUBTOTAL(3,$H$12:H61)) -> 50 | H61: محمد عماد رمضان محمد عبد الحميد | I61: 50 | J61: 20 | K61: 8 | L61: 2008 | M61: 11 | N61: 1 | O61: 9 | P61: 40 | Q61: 54 | R61: 40 | S61: 55 | T61: 189 | U61: 94.5 | V61: ممتاز | W61: 39 | X61: 52 | Y61: 39 | Z61: 57 | AA61: 187 | AB61: 74.8 | AC61: ممتاز | AD61: 40 | AE61: 59 | AF61: 40 | AG61: 60 | AH61: 199 | AI61: 39.8 | AJ61: ممتاز | AK61: 37 | AL61: 56 | AM61: 37 | AN61: 54 | AO61: 184 | AP61: 36.8 | AQ61: ممتاز | AR61: 37 | AS61: 57 | AT61: 40 | AU61: 60 | AV61: 194 | AW61: 38.8 | AX61: ممتاز | AY61: 100 | AZ61: 100 | BA61: 200 | BB61: 20 | BC61: ممتاز | BD61: 100 | BE61: 100 | BF61: 200 | BG61: 20 | BH61: ممتاز | BI61: 100 | BJ61: 100 | BK61: 200 | BL61: 20 | BM61: ممتاز | BN61: 100 | BO61: 100 | BP61: 200 | BQ61: 20 | BR61: ممتاز | BS61: 100 | BT61: 100 | BU61: 200 | BV61: 20 | BW61: ممتاز | BX61: 324.7 | BY61: ممتاز | BZ61: 284.7 | CA61: 40 | CB61: 59 | CC61: 36 | CD61: 53 | CE61: 188 | CF61: 37.6 | CG61: ممتاز | CH61: 362.3 | CI61: =IF(ISNUMBER(BX61)=FALSE,MAX($G$12:$G$10003)-MIN($G$12:$G$10003)+COUNTIF($BX$12:BX61,BX61),RANK(BX61,$BX$12:$BX$268,0)) -> 46 | CV61: ناجح | DI61: 564 | EC61: 0 | ED61: 0 | EE61: 0 | EF61: 0 | EG61: 0 | EH61: 0 | EI61: 0 | EJ61: 0 | EK61: 0 | EL61: 0
A62: 30809251702673 | B62: 2008-09-25 | E62: 88 | F62: 14 | G62: =IF(H62="","",SUBTOTAL(3,$H$12:H62)) -> 51 | H62: محمد نبيل عبد العزيز بكر | I62: 51 | J62: 25 | K62: 9 | L62: 2008 | M62: 6 | N62: 0 | O62: 9 | P62: 36 | Q62: 54 | R62: 37 | S62: 48 | T62: 175 | U62: 87.5 | V62: ممتاز | W62: 39 | X62: 32 | Y62: 39 | Z62: 40 | AA62: 150 | AB62: 60 | AC62: جيد جداً | AD62: 37 | AE62: 48 | AF62: 37 | AG62: 53 | AH62: 175 | AI62: 35 | AJ62: ممتاز | AK62: 37 | AL62: 56 | AM62: 37 | AN62: 46 | AO62: 176 | AP62: 35.2 | AQ62: ممتاز | AR62: 36 | AS62: 49 | AT62: 40 | AU62: 56 | AV62: 181 | AW62: 36.2 | AX62: ممتاز | AY62: 99 | AZ62: 100 | BA62: 199 | BB62: 19.9 | BC62: ممتاز | BD62: 99 | BE62: 98 | BF62: 197 | BG62: 19.7 | BH62: ممتاز | BI62: 99 | BJ62: 100 | BK62: 199 | BL62: 19.9 | BM62: ممتاز | BN62: 100 | BO62: 99 | BP62: 199 | BQ62: 19.9 | BR62: ممتاز | BS62: 98 | BT62: 99 | BU62: 197 | BV62: 19.7 | BW62: ممتاز | BX62: 293.5 | BY62: ممتاز | BZ62: 253.9 | CA62: 37 | CB62: 32 | CC62: 34 | CD62: 31 | CE62: 134 | CF62: 26.8 | CG62: جيد | CH62: 320.3 | CI62: =IF(ISNUMBER(BX62)=FALSE,MAX($G$12:$G$10003)-MIN($G$12:$G$10003)+COUNTIF($BX$12:BX62,BX62),RANK(BX62,$BX$12:$BX$268,0)) -> 98 | CV62: ناجح | DI62: 482 | EC62: 0 | ED62: 0 | EE62: 0 | EF62: 0 | EG62: 0 | EH62: 0 | EI62: 0 | EJ62: 0 | EK62: 0 | EL62: 0
A63: 30809191702172 | B63: 2008-09-19 | E63: 89 | F63: 15 | G63: =IF(H63="","",SUBTOTAL(3,$H$12:H63)) -> 52 | H63: محمود أحمد ابراهيم متولى السيد | I63: 52 | J63: 19 | K63: 9 | L63: 2008 | M63: 12 | N63: 0 | O63: 9 | P63: 31 | Q63: 60 | R63: 30 | S63: 51 | T63: 172 | U63: 86 | V63: ممتاز | W63: 37 | X63: 40 | Y63: 37 | Z63: 60 | AA63: 174 | AB63: 69.6 | AC63: ممتاز | AD63: 25 | AE63: 60 | AF63: 25 | AG63: 51 | AH63: 161 | AI63: 32.2 | AJ63: ممتاز | AK63: 25 | AL63: 52 | AM63: 25 | AN63: 36 | AO63: 138 | AP63: 27.6 | AQ63: جيد | AR63: 36 | AS63: 57 | AT63: 40 | AU63: 35 | AV63: 168 | AW63: 33.6 | AX63: ممتاز | AY63: 99 | AZ63: 99 | BA63: 198 | BB63: 19.8 | BC63: ممتاز | BD63: 98 | BE63: 98 | BF63: 196 | BG63: 19.6 | BH63: ممتاز | BI63: 99 | BJ63: 99 | BK63: 198 | BL63: 19.8 | BM63: ممتاز | BN63: 99 | BO63: 99 | BP63: 198 | BQ63: 19.8 | BR63: ممتاز | BS63: 98 | BT63: 98 | BU63: 196 | BV63: 19.6 | BW63: ممتاز | BX63: 288.4 | BY63: جيد جدا | BZ63: 249 | CA63: 30 | CB63: 60 | CC63: 30 | CD63: 30 | CE63: 150 | CF63: 30 | CG63: جيد جداً | CH63: 318.4 | CI63: =IF(ISNUMBER(BX63)=FALSE,MAX($G$12:$G$10003)-MIN($G$12:$G$10003)+COUNTIF($BX$12:BX63,BX63),RANK(BX63,$BX$12:$BX$268,0)) -> 102 | CV63: ناجح | DI63: 502 | EC63: 0 | ED63: 0 | EE63: 0 | EF63: 0 | EG63: 0 | EH63: 0 | EI63: 0 | EJ63: 0 | EK63: 0 | EL63: 0
A64: 30809021701279 | B64: 2008-09-02 | E64: 90 | F64: 16 | G64: =IF(H64="","",SUBTOTAL(3,$H$12:H64)) -> 53 | H64: محمود أحمد محروس السيد يكر | I64: 53 | J64: 2 | K64: 9 | L64: 2008 | M64: 29 | N64: 0 | O64: 9 | P64: 40 | Q64: 59 | R64: 40 | S64: 54 | T64: 193 | U64: 96.5 | V64: ممتاز | W64: 40 | X64: 60 | Y64: 40 | Z64: 59 | AA64: 199 | AB64: 79.6 | AC64: ممتاز | AD64: 40 | AE64: 60 | AF64: 40 | AG64: 56 | AH64: 196 | AI64: 39.2 | AJ64: ممتاز | AK64: 40 | AL64: 58 | AM64: 40 | AN64: 58 | AO64: 196 | AP64: 39.2 | AQ64: ممتاز | AR64: 36 | AS64: 56 | AT64: 40 | AU64: 60 | AV64: 192 | AW64: 38.4 | AX64: ممتاز | AY64: 99 | AZ64: 99 | BA64: 198 | BB64: 19.8 | BC64: ممتاز | BD64: 98 | BE64: 98 | BF64: 196 | BG64: 19.6 | BH64: ممتاز | BI64: 99 | BJ64: 99 | BK64: 198 | BL64: 19.8 | BM64: ممتاز | BN64: 99 | BO64: 99 | BP64: 198 | BQ64: 19.8 | BR64: ممتاز | BS64: 98 | BT64: 98 | BU64: 196 | BV64: 19.6 | BW64: ممتاز | BX64: 332.3 | BY64: ممتاز | BZ64: 292.9 | CA64: 40 | CB64: 49 | CC64: 40 | CD64: 52 | CE64: 181 | CF64: 36.2 | CG64: ممتاز | CH64: 368.5 | CI64: =IF(ISNUMBER(BX64)=FALSE,MAX($G$12:$G$10003)-MIN($G$12:$G$10003)+COUNTIF($BX$12:BX64,BX64),RANK(BX64,$BX$12:$BX$268,0)) -> 12 | CV64: ناجح | DI64: 580 | EC64: 0 | ED64: 0 | EE64: 0 | EF64: 0 | EG64: 0 | EH64: 0 | EI64: 0 | EJ64: 0 | EK64: 0 | EL64: 0
A65: 30809291702218 | B65: 2008-09-29 | E65: 91 | F65: 17 | G65: =IF(H65="","",SUBTOTAL(3,$H$12:H65)) -> 54 | H65: محمود زايد عبد المنعم زايد | I65: 54 | J65: 29 | K65: 9 | L65: 2008 | M65: 2 | N65: 0 | O65: 9 | P65: 34 | Q65: 30 | R65: 36 | S65: 39 | T65: 139 | U65: 69.5 | V65: جيد | W65: 37 | X65: 52 | Y65: 37 | Z65: 44 | AA65: 170 | AB65: 68 | AC65: ممتاز | AD65: 30 | AE65: 54 | AF65: 31 | AG65: 52 | AH65: 167 | AI65: 33.4 | AJ65: ممتاز | AK65: 33 | AL65: 54 | AM65: 33 | AN65: 44 | AO65: 164 | AP65: 32.8 | AQ65: ممتاز | AR65: 36 | AS65: 56 | AT65: 40 | AU65: 60 | AV65: 192 | AW65: 38.4 | AX65: ممتاز | AY65: 98 | AZ65: 99 | BA65: 197 | BB65: 19.7 | BC65: ممتاز | BD65: 98 | BE65: 98 | BF65: 196 | BG65: 19.6 | BH65: ممتاز | BI65: 98 | BJ65: 99 | BK65: 197 | BL65: 19.7 | BM65: ممتاز | BN65: 99 | BO65: 98 | BP65: 197 | BQ65: 19.7 | BR65: ممتاز | BS65: 98 | BT65: 98 | BU65: 196 | BV65: 19.6 | BW65: ممتاز | BX65: 281.4 | BY65: جيد جدا | BZ65: 242.1 | CA65: 36 | CB65: 33 | CC65: 36 | CD65: 44 | CE65: 149 | CF65: 29.8 | CG65: جيد | CH65: 311.2 | CI65: =IF(ISNUMBER(BX65)=FALSE,MAX($G$12:$G$10003)-MIN($G$12:$G$10003)+COUNTIF($BX$12:BX65,BX65),RANK(BX65,$BX$12:$BX$268,0)) -> 107 | CV65: ناجح | DI65: 485 | EC65: 0 | ED65: 0 | EE65: 0 | EF65: 0 | EG65: 0 | EH65: 0 | EI65: 0 | EJ65: 0 | EK65: 0 | EL65: 0
A66: 30710271702495 | B66: 2007-10-27 | E66: 92 | F66: 18 | G66: =IF(H66="","",SUBTOTAL(3,$H$12:H66)) -> 55 | H66: محمود شوقي الحسيني عثمان | I66: 55 | J66: 27 | K66: 10 | L66: 2007 | M66: 4 | N66: 11 | O66: 9 | P66: 35 | Q66: 48 | R66: 37 | S66: 42 | T66: 162 | U66: 81 | V66: جيد جداً | W66: 37 | X66: 52 | Y66: 37 | Z66: 54 | AA66: 180 | AB66: 72 | AC66: ممتاز | AD66: 40 | AE66: 57 | AF66: 39 | AG66: 52 | AH66: 188 | AI66: 37.6 | AJ66: ممتاز | AK66: 25 | AL66: 52 | AM66: 25 | AN66: 48 | AO66: 150 | AP66: 30 | AQ66: جيد جداً | AR66: 37 | AS66: 55 | AT66: 40 | AU66: 56 | AV66: 188 | AW66: 37.6 | AX66: ممتاز | AY66: 99 | AZ66: 97 | BA66: 196 | BB66: 19.6 | BC66: ممتاز | BD66: 98 | BE66: 98 | BF66: 196 | BG66: 19.6 | BH66: ممتاز | BI66: 99 | BJ66: 97 | BK66: 196 | BL66: 19.6 | BM66: ممتاز | BN66: 97 | BO66: 99 | BP66: 196 | BQ66: 19.6 | BR66: ممتاز | BS66: 98 | BT66: 98 | BU66: 196 | BV66: 19.6 | BW66: ممتاز | BX66: 297.4 | BY66: ممتاز | BZ66: 258.2 | CA66: 36 | CB66: 35 | CC66: 38 | CD66: 28 | CE66: 137 | CF66: 27.4 | CG66: جيد | CH66: 324.8 | CI66: =IF(ISNUMBER(BX66)=FALSE,MAX($G$12:$G$10003)-MIN($G$12:$G$10003)+COUNTIF($BX$12:BX66,BX66),RANK(BX66,$BX$12:$BX$268,0)) -> 93 | CV66: ناجح | DI66: 516 | EC66: 0 | ED66: 0 | EE66: 0 | EF66: 0 | EG66: 0 | EH66: 0 | EI66: 0 | EJ66: 0 | EK66: 0 | EL66: 0
A67: 30803201703816 | B67: 2008-03-20 | E67: 93 | F67: 19 | G67: =IF(H67="","",SUBTOTAL(3,$H$12:H67)) -> 56 | H67: محمود عادل رزق عبد الهادى | I67: 56 | J67: 20 | K67: 3 | L67: 2008 | M67: 11 | N67: 6 | O67: 9 | P67: 40 | Q67: 60 | R67: 40 | S67: 55 | T67: 195 | U67: 97.5 | V67: ممتاز | W67: 40 | X67: 56 | Y67: 40 | Z67: 59 | AA67: 195 | AB67: 78 | AC67: ممتاز | AD67: 40 | AE67: 60 | AF67: 40 | AG67: 56 | AH67: 196 | AI67: 39.2 | AJ67: ممتاز | AK67: 40 | AL67: 60 | AM67: 40 | AN67: 58 | AO67: 198 | AP67: 39.6 | AQ67: ممتاز | AR67: 36 | AS67: 60 | AT67: 40 | AU67: 58 | AV67: 194 | AW67: 38.8 | AX67: ممتاز | AY67: 99 | AZ67: 99 | BA67: 198 | BB67: 19.8 | BC67: ممتاز | BD67: 98 | BE67: 87 | BF67: 185 | BG67: 18.5 | BH67: ممتاز | BI67: 99 | BJ67: 99 | BK67: 198 | BL67: 19.8 | BM67: ممتاز | BN67: 99 | BO67: 99 | BP67: 198 | BQ67: 19.8 | BR67: ممتاز | BS67: 87 | BT67: 98 | BU67: 185 | BV67: 18.5 | BW67: ممتاز | BX67: 331.4 | BY67: ممتاز | BZ67: 293.1 | CA67: 40 | CB67: 51 | CC67: 40 | CD67: 41 | CE67: 172 | CF67: 34.4 | CG67: ممتاز | CH67: 365.8 | CI67: =IF(ISNUMBER(BX67)=FALSE,MAX($G$12:$G$10003)-MIN($G$12:$G$10003)+COUNTIF($BX$12:BX67,BX67),RANK(BX67,$BX$12:$BX$268,0)) -> 15 | CV67: ناجح | DI67: 582 | EC67: 0 | ED67: 0 | EE67: 0 | EF67: 0 | EG67: 0 | EH67: 0 | EI67: 0 | EJ67: 0 | EK67: 0 | EL67: 0
A68: 30812161701857 | B68: 2008-12-16 | E68: 94 | F68: 20 | G68: =IF(H68="","",SUBTOTAL(3,$H$12:H68)) -> 57 | H68: محمود فوزى محمود سعيد | I68: 57 | J68: 16 | K68: 12 | L68: 2008 | M68: 15 | N68: 9 | O68: 8 | P68: 38 | Q68: 51 | R68: 36 | S68: 49 | T68: 174 | U68: 87 | V68: ممتاز | W68: 38 | X68: 50 | Y68: 37 | Z68: 54 | AA68: 179 | AB68: 71.6 | AC68: ممتاز | AD68: 37 | AE68: 57 | AF68: 34 | AG68: 55 | AH68: 183 | AI68: 36.6 | AJ68: ممتاز | AK68: 37 | AL68: 54 | AM68: 37 | AN68: 56 | AO68: 184 | AP68: 36.8 | AQ68: ممتاز | AR68: 36 | AS68: 56 | AT68: 40 | AU68: 60 | AV68: 192 | AW68: 38.4 | AX68: ممتاز | AY68: 97 | AZ68: 95 | BA68: 192 | BB68: 19.2 | BC68: ممتاز | BD68: 96 | BE68: 98 | BF68: 194 | BG68: 19.4 | BH68: ممتاز | BI68: 97 | BJ68: 95 | BK68: 192 | BL68: 19.2 | BM68: ممتاز | BN68: 95 | BO68: 97 | BP68: 192 | BQ68: 19.2 | BR68: ممتاز | BS68: 98 | BT68: 96 | BU68: 194 | BV68: 19.4 | BW68: ممتاز | BX68: 309 | BY68: ممتاز | BZ68: 270.4 | CA68: 40 | CB68: 48 | CC68: 36 | CD68: 38 | CE68: 162 | CF68: 32.4 | CG68: ممتاز | CH68: 341.4 | CI68: =IF(ISNUMBER(BX68)=FALSE,MAX($G$12:$G$10003)-MIN($G$12:$G$10003)+COUNTIF($BX$12:BX68,BX68),RANK(BX68,$BX$12:$BX$268,0)) -> 74 | CV68: ناجح | DI68: 542 | EC68: 0 | ED68: 0 | EE68: 0 | EF68: 0 | EG68: 0 | EH68: 0 | EI68: 0 | EJ68: 0 | EK68: 0 | EL68: 0
A69: 30901031702315 | B69: 2009-01-03 | E69: 95 | F69: 21 | G69: =IF(H69="","",SUBTOTAL(3,$H$12:H69)) -> 58 | H69: محمود وائل محمود حماد | I69: 58 | J69: 3 | K69: 1 | L69: 2009 | M69: 28 | N69: 8 | O69: 8 | P69: 40 | Q69: 55 | R69: 39 | S69: 50 | T69: 184 | U69: 92 | V69: ممتاز | W69: 37 | X69: 60 | Y69: 37 | Z69: 54 | AA69: 188 | AB69: 75.2 | AC69: ممتاز | AD69: 38 | AE69: 53 | AF69: 40 | AG69: 56 | AH69: 187 | AI69: 37.4 | AJ69: ممتاز | AK69: 37 | AL69: 56 | AM69: 37 | AN69: 60 | AO69: 190 | AP69: 38 | AQ69: ممتاز | AR69: 37 | AS69: 60 | AT69: 40 | AU69: 59 | AV69: 196 | AW69: 39.2 | AX69: ممتاز | AY69: 97 | AZ69: 97 | BA69: 194 | BB69: 19.4 | BC69: ممتاز | BD69: 98 | BE69: 98 | BF69: 196 | BG69: 19.6 | BH69: ممتاز | BI69: 97 | BJ69: 97 | BK69: 194 | BL69: 19.4 | BM69: ممتاز | BN69: 97 | BO69: 97 | BP69: 194 | BQ69: 19.4 | BR69: ممتاز | BS69: 98 | BT69: 98 | BU69: 196 | BV69: 19.6 | BW69: ممتاز | BX69: 320.8 | BY69: ممتاز | BZ69: 281.8 | CA69: 40 | CB69: 52 | CC69: 40 | CD69: 52 | CE69: 184 | CF69: 36.8 | CG69: ممتاز | CH69: 357.6 | CI69: =IF(ISNUMBER(BX69)=FALSE,MAX($G$12:$G$10003)-MIN($G$12:$G$10003)+COUNTIF($BX$12:BX69,BX69),RANK(BX69,$BX$12:$BX$268,0)) -> 52 | CV69: ناجح | DI69: 563 | EC69: 0 | ED69: 0 | EE69: 0 | EF69: 0 | EG69: 0 | EH69: 0 | EI69: 0 | EJ69: 0 | EK69: 0 | EL69: 0
A70: 30801011707596 | B70: 2008-01-01 | E70: 96 | F70: 22 | G70: =IF(H70="","",SUBTOTAL(3,$H$12:H70)) -> 59 | H70: مروان محمود على الليثى | I70: 59 | J70: 1 | K70: 1 | L70: 2008 | M70: 0 | N70: 9 | O70: 9 | P70: 40 | Q70: 54 | R70: 39 | S70: 59 | T70: 192 | U70: 96 | V70: ممتاز | W70: 38 | X70: 40 | Y70: 38 | Z70: 51 | AA70: 167 | AB70: 66.8 | AC70: جيد جداً | AD70: 40 | AE70: 49 | AF70: 40 | AG70: 54 | AH70: 183 | AI70: 36.6 | AJ70: ممتاز | AK70: 38 | AL70: 52 | AM70: 38 | AN70: 58 | AO70: 186 | AP70: 37.2 | AQ70: ممتاز | AR70: 37 | AS70: 60 | AT70: 40 | AU70: 58 | AV70: 195 | AW70: 39 | AX70: ممتاز | AY70: 99 | AZ70: 97 | BA70: 196 | BB70: 19.6 | BC70: ممتاز | BD70: 98 | BE70: 98 | BF70: 196 | BG70: 19.6 | BH70: ممتاز | BI70: 99 | BJ70: 97 | BK70: 196 | BL70: 19.6 | BM70: ممتاز | BN70: 97 | BO70: 99 | BP70: 196 | BQ70: 19.6 | BR70: ممتاز | BS70: 98 | BT70: 98 | BU70: 196 | BV70: 19.6 | BW70: ممتاز | BX70: 314.8 | BY70: ممتاز | BZ70: 275.6 | CA70: 40 | CB70: 52 | CC70: 40 | CD70: 55 | CE70: 187 | CF70: 37.4 | CG70: ممتاز | CH70: 352.2 | CI70: =IF(ISNUMBER(BX70)=FALSE,MAX($G$12:$G$10003)-MIN($G$12:$G$10003)+COUNTIF($BX$12:BX70,BX70),RANK(BX70,$BX$12:$BX$268,0)) -> 63 | CV70: ناجح | DI70: 535 | EC70: 0 | ED70: 0 | EE70: 0 | EF70: 0 | EG70: 0 | EH70: 0 | EI70: 0 | EJ70: 0 | EK70: 0 | EL70: 0
A71: 30810231700672 | B71: 2008-10-23 | E71: 97 | F71: 23 | G71: =IF(H71="","",SUBTOTAL(3,$H$12:H71)) -> 60 | H71: مصطفى السيد محمود الحسينى | I71: 60 | J71: 23 | K71: 10 | L71: 2008 | M71: 8 | N71: 11 | O71: 8 | P71: 36 | Q71: 22 | R71: 36 | S71: 18 | T71: 112 | U71: 56 | V71: مقبول | W71: 37 | X71: 18 | Y71: 37 | Z71: 14 | AA71: 106 | AB71: 42.4 | AC71: دون المستوى | AD71: 30 | AE71: 16 | AF71: 30 | AG71: 24 | AH71: 100 | AI71: 20 | AJ71: مقبول | AK71: 37 | AL71: 20 | AM71: 37 | AN71: 10 | AO71: 104 | AP71: 20.8 | AQ71: دون المستوى | AR71: 36 | AS71: 39 | AT71: 40 | AU71: 34 | AV71: 149 | AW71: 29.8 | AX71: جيد | AY71: 99 | AZ71: 99 | BA71: 198 | BB71: 19.8 | BC71: ممتاز | BD71: 98 | BE71: 98 | BF71: 196 | BG71: 19.6 | BH71: ممتاز | BI71: 99 | BJ71: 99 | BK71: 198 | BL71: 19.8 | BM71: ممتاز | BN71: 99 | BO71: 99 | BP71: 198 | BQ71: 19.8 | BR71: ممتاز | BS71: 98 | BT71: 98 | BU71: 196 | BV71: 19.6 | BW71: ممتاز | BX71: 208.4 | BY71: مقبول | BZ71: 169 | CA71: 38 | CB71: 20 | CC71: 36 | CD71: 18 | CE71: 112 | CF71: 22.4 | CG71: مقبول | CH71: 230.8 | CI71: =IF(ISNUMBER(BX71)=FALSE,MAX($G$12:$G$10003)-MIN($G$12:$G$10003)+COUNTIF($BX$12:BX71,BX71),RANK(BX71,$BX$12:$BX$268,0)) -> 120 | CL71: - رياضيات | CN71: - دراسات | CS71: - رياضيات - دراسات | CV71: دور ثان | DI71: 215 | EC71: عربى | ED71: رياضيات | EE71: إنجليزى | EF71: دراسات | EG71: 0 | EH71: 0 | EI71: 0 | EJ71: 0 | EK71: 0 | EL71: دين
A72: 30710121701431 | B72: 2007-10-12 | E72: 98 | F72: 24 | G72: =IF(H72="","",SUBTOTAL(3,$H$12:H72)) -> 61 | H72: يوسف احمد فايز عبدالمولى | I72: 61 | J72: 12 | K72: 10 | L72: 2007 | M72: 19 | N72: 11 | O72: 9 | P72: 38 | Q72: 51 | R72: 36 | S72: 48 | T72: 173 | U72: 86.5 | V72: ممتاز | W72: 38 | X72: 46 | Y72: 39 | Z72: 49 | AA72: 172 | AB72: 68.8 | AC72: ممتاز | AD72: 39 | AE72: 57 | AF72: 38 | AG72: 55 | AH72: 189 | AI72: 37.8 | AJ72: ممتاز | AK72: 37 | AL72: 48 | AM72: 37 | AN72: 56 | AO72: 178 | AP72: 35.6 | AQ72: ممتاز | AR72: 38 | AS72: 56 | AT72: 40 | AU72: 57 | AV72: 191 | AW72: 38.2 | AX72: ممتاز | AY72: 97 | AZ72: 95 | BA72: 192 | BB72: 19.2 | BC72: ممتاز | BD72: 96 | BE72: 98 | BF72: 194 | BG72: 19.4 | BH72: ممتاز | BI72: 97 | BJ72: 95 | BK72: 192 | BL72: 19.2 | BM72: ممتاز | BN72: 95 | BO72: 97 | BP72: 192 | BQ72: 19.2 | BR72: ممتاز | BS72: 98 | BT72: 96 | BU72: 194 | BV72: 19.4 | BW72: ممتاز | BX72: 305.5 | BY72: ممتاز | BZ72: 266.9 | CA72: 36 | CB72: 48 | CC72: 36 | CD72: 43 | CE72: 163 | CF72: 32.6 | CG72: ممتاز | CH72: 338.1 | CI72: =IF(ISNUMBER(BX72)=FALSE,MAX($G$12:$G$10003)-MIN($G$12:$G$10003)+COUNTIF($BX$12:BX72,BX72),RANK(BX72,$BX$12:$BX$268,0)) -> 79 | CV72: ناجح | DI72: 523 | EC72: 0 | ED72: 0 | EE72: 0 | EF72: 0 | EG72: 0 | EH72: 0 | EI72: 0 | EJ72: 0 | EK72: 0 | EL72: 0
A73: 30811261702617 | B73: 2008-11-26 | E73: 99 | F73: 25 | G73: =IF(H73="","",SUBTOTAL(3,$H$12:H73)) -> 62 | H73: يوسف الخضرى محمد الخضرى | I73: 62 | J73: 26 | K73: 11 | L73: 2008 | M73: 5 | N73: 10 | O73: 8 | P73: 40 | Q73: 58 | R73: 40 | S73: 55 | T73: 193 | U73: 96.5 | V73: ممتاز | W73: 40 | X73: 58 | Y73: 40 | Z73: 54 | AA73: 192 | AB73: 76.8 | AC73: ممتاز | AD73: 40 | AE73: 60 | AF73: 40 | AG73: 56 | AH73: 196 | AI73: 39.2 | AJ73: ممتاز | AK73: 40 | AL73: 60 | AM73: 40 | AN73: 60 | AO73: 200 | AP73: 40 | AQ73: ممتاز | AR73: 38 | AS73: 57 | AT73: 40 | AU73: 60 | AV73: 195 | AW73: 39 | AX73: ممتاز | AY73: 96 | AZ73: 98 | BA73: 194 | BB73: 19.4 | BC73: ممتاز | BD73: 97 | BE73: 98 | BF73: 195 | BG73: 19.5 | BH73: ممتاز | BI73: 96 | BJ73: 98 | BK73: 194 | BL73: 19.4 | BM73: ممتاز | BN73: 98 | BO73: 96 | BP73: 194 | BQ73: 19.4 | BR73: ممتاز | BS73: 98 | BT73: 97 | BU73: 195 | BV73: 19.5 | BW73: ممتاز | BX73: 330.4 | BY73: ممتاز | BZ73: 291.5 | CA73: 40 | CB73: 50 | CC73: 40 | CD73: 52 | CE73: 182 | CF73: 36.4 | CG73: ممتاز | CH73: 366.8 | CI73: =IF(ISNUMBER(BX73)=FALSE,MAX($G$12:$G$10003)-MIN($G$12:$G$10003)+COUNTIF($BX$12:BX73,BX73),RANK(BX73,$BX$12:$BX$268,0)) -> 23 | CV73: ناجح | DI73: 578 | EC73: 0 | ED73: 0 | EE73: 0 | EF73: 0 | EG73: 0 | EH73: 0 | EI73: 0 | EJ73: 0 | EK73: 0 | EL73: 0
A74: 30809191701575 | B74: 2008-09-19 | E74: 100 | F74: 26 | G74: =IF(H74="","",SUBTOTAL(3,$H$12:H74)) -> 63 | H74: يوسف أمير عبدالرازق يوسف | I74: 63 | J74: 19 | K74: 9 | L74: 2008 | M74: 12 | N74: 0 | O74: 9 | P74: 36 | Q74: 48 | R74: 37 | S74: 50 | T74: 171 | U74: 85.5 | V74: ممتاز | W74: 37 | X74: 50 | Y74: 37 | Z74: 46 | AA74: 170 | AB74: 68 | AC74: ممتاز | AD74: 36 | AE74: 51 | AF74: 37 | AG74: 57 | AH74: 181 | AI74: 36.2 | AJ74: ممتاز | AK74: 39 | AL74: 40 | AM74: 39 | AN74: 48 | AO74: 166 | AP74: 33.2 | AQ74: ممتاز | AR74: 36 | AS74: 60 | AT74: 40 | AU74: 53 | AV74: 189 | AW74: 37.8 | AX74: ممتاز | AY74: 99 | AZ74: 97 | BA74: 196 | BB74: 19.6 | BC74: ممتاز | BD74: 98 | BE74: 98 | BF74: 196 | BG74: 19.6 | BH74: ممتاز | BI74: 99 | BJ74: 97 | BK74: 196 | BL74: 19.6 | BM74: ممتاز | BN74: 97 | BO74: 99 | BP74: 196 | BQ74: 19.6 | BR74: ممتاز | BS74: 98 | BT74: 98 | BU74: 196 | BV74: 19.6 | BW74: ممتاز | BX74: 299.9 | BY74: ممتاز | BZ74: 260.7 | CA74: 38 | CB74: 39 | CC74: 36 | CD74: 39 | CE74: 152 | CF74: 30.4 | CG74: جيد جداً | CH74: 330.3 | CI74: =IF(ISNUMBER(BX74)=FALSE,MAX($G$12:$G$10003)-MIN($G$12:$G$10003)+COUNTIF($BX$12:BX74,BX74),RANK(BX74,$BX$12:$BX$268,0)) -> 89 | CV74: ناجح | DI74: 503 | EC74: 0 | ED74: 0 | EE74: 0 | EF74: 0 | EG74: 0 | EH74: 0 | EI74: 0 | EJ74: 0 | EK74: 0 | EL74: 0
A75: 30807311701458 | B75: 2008-07-31 | E75: 101 | F75: 27 | G75: =IF(H75="","",SUBTOTAL(3,$H$12:H75)) -> 64 | H75: يوسف محمد عبد الراضى حسنين | I75: 64 | J75: 31 | K75: 7 | L75: 2008 | M75: 0 | N75: 2 | O75: 9 | P75: 34 | Q75: 48 | R75: 36 | S75: 50 | T75: 168 | U75: 84 | V75: جيد جداً | W75: 37 | X75: 46 | Y75: 38 | Z75: 36 | AA75: 157 | AB75: 62.8 | AC75: جيد جداً | AD75: 37 | AE75: 52 | AF75: 35 | AG75: 56 | AH75: 180 | AI75: 36 | AJ75: ممتاز | AK75: 38 | AL75: 48 | AM75: 38 | AN75: 44 | AO75: 168 | AP75: 33.6 | AQ75: ممتاز | AR75: 38 | AS75: 58 | AT75: 40 | AU75: 49 | AV75: 185 | AW75: 37 | AX75: ممتاز | AY75: 97 | AZ75: 95 | BA75: 192 | BB75: 19.2 | BC75: ممتاز | BD75: 96 | BE75: 98 | BF75: 194 | BG75: 19.4 | BH75: ممتاز | BI75: 97 | BJ75: 95 | BK75: 192 | BL75: 19.2 | BM75: ممتاز | BN75: 95 | BO75: 97 | BP75: 192 | BQ75: 19.2 | BR75: ممتاز | BS75: 98 | BT75: 96 | BU75: 194 | BV75: 19.4 | BW75: ممتاز | BX75: 292 | BY75: ممتاز | BZ75: 253.4 | CA75: 36 | CB75: 32 | CC75: 36 | CD75: 34 | CE75: 138 | CF75: 27.6 | CG75: جيد | CH75: 319.6 | CI75: =IF(ISNUMBER(BX75)=FALSE,MAX($G$12:$G$10003)-MIN($G$12:$G$10003)+COUNTIF($BX$12:BX75,BX75),RANK(BX75,$BX$12:$BX$268,0)) -> 99 | CV75: ناجح | DI75: 487 | EC75: 0 | ED75: 0 | EE75: 0 | EF75: 0 | EG75: 0 | EH75: 0 | EI75: 0 | EJ75: 0 | EK75: 0 | EL75: 0
A76: 30803291701426 | B76: =TEXT(LEFT(A76,7)+17000000,"####-##-##")+0 -> 2008-03-29 | E76: 102 | F76: 28 | G76: =IF(H76="","",SUBTOTAL(3,$H$12:H76)) -> 65 | H76: أمنية عبد الحفيظ عبد الرازق مصطفى | I76: 65 | J76: =DAY(B76) -> 29 | K76: =MONTH(B76) -> 3 | L76: =YEAR(B76) -> 2008 | M76: =DATEDIF(DATE(L76,K76,J76),$M$11,"md") -> 2 | N76: =DATEDIF(DATE(L76,K76,J76),$M$11,"ym") -> 6 | O76: =DATEDIF(DATE(L76,K76,J76),$M$11,"y") -> 9 | P76: 37 | Q76: 48 | R76: 37 | S76: 48 | T76: 170 | U76: 85 | V76: ممتاز | W76: 38 | X76: 42 | Y76: 38 | Z76: 42 | AA76: 160 | AB76: 64 | AC76: جيد جداً | AD76: 38 | AE76: 57 | AF76: 37 | AG76: 52 | AH76: 184 | AI76: 36.8 | AJ76: ممتاز | AK76: 25 | AL76: 52 | AM76: 25 | AN76: 44 | AO76: 146 | AP76: 29.2 | AQ76: جيد | AR76: 36 | AS76: 49 | AT76: 39 | AU76: 52 | AV76: 176 | AW76: 35.2 | AX76: ممتاز | AY76: 99 | AZ76: 97 | BA76: 196 | BB76: 19.6 | BC76: ممتاز | BD76: 98 | BE76: 98 | BF76: 196 | BG76: 19.6 | BH76: ممتاز | BI76: 99 | BJ76: 97 | BK76: 196 | BL76: 19.6 | BM76: ممتاز | BN76: 97 | BO76: 99 | BP76: 196 | BQ76: 19.6 | BR76: ممتاز | BS76: 98 | BT76: 98 | BU76: 196 | BV76: 19.6 | BW76: ممتاز | BX76: =IF(AND(AW76="غ",AP76="غ",AI76="غ",AB76="غ",U76="غ"),"غ",SUM(AW76,AP76,AI76,AB76,U76,BQ76,BV76)) -> 289.4 | BY76: ممتاز | BZ76: =IF(AND(AW76="غ",AP76="غ",AI76="غ",AB76="غ",U76="غ"),"غ",SUM(AW76,AP76,AI76,AB76,U76)) -> 250.2 | CA76: 36 | CB76: 34 | CC76: 36 | CD76: 31 | CE76: 137 | CF76: 27.4 | CG76: جيد | CH76: 316.8 | CI76: =IF(ISNUMBER(BX76)=FALSE,MAX($G$12:$G$10003)-MIN($G$12:$G$10003)+COUNTIF($BX$12:BX76,BX76),RANK(BX76,$BX$12:$BX$268,0)) -> 101 | CK76: =IF(OR(S76<18,S76="غ",U76<50,U76="غ")," - عربى ","") ->  | CL76: =IF(OR(Z76<18,Z76="غ",AB76<40,AB76="غ")," - رياضيات ","") ->  | CM76: =IF(OR(AG76<18,AG76="غ",AI76<20,AI76="غ")," - إنجليزى ","") ->  | CN76: =IF(OR(AN76<18,AN76="غ",AP76<20,AP76="غ")," - دراسات ","") ->  | CO76: =IF(OR(AU76<18,AU76="غ",AW76<20,AW76="غ")," - علوم ","") ->  | CV76: ناجح | DI76: =IF(AND(Q76="غ",S76="غ",X76="غ",Z76="غ",AE76="غ",AG76="غ",AL76="غ",AN76="غ",AS76="غ",AU76="غ"),"غ",IF(AND(Q76="صفر",S76="صفر",X76="صفر",Z76="صفر",AE76="صفر",AG76="صفر",AL76="صفر",AN76="صفر",AS76="صفر",AU76="صفر"),"صفر",SUM(Q76,S76,X76,Z76,AE76,AG76,AL76,AN76,AS76,AU76))) -> 486 | EC76: =IF(Q76<26,"عربى",0) -> 0 | ED76: =IF(X76<26,"رياضيات",0) -> 0 | EE76: =IF(AE76<26,"إنجليزى",0) -> 0 | EF76: =IF(AL76<26,"دراسات",0) -> 0 | EG76: =IF(AS76<26,"علوم",0) -> 0 | EH76: =IF(BB76<13,"فنى",0) -> 0 | EI76: =IF(BG76<13,"رياضى",0) -> 0 | EJ76: =IF(BQ76<13,"نشاط1",0) -> 0 | EK76: =IF(BV76<13,"نشاط2",0) -> 0 | EL76: =IF(CB76<26,"دين",0) -> 0
A77: 30712011706465 | B77: =TEXT(LEFT(A77,7)+17000000,"####-##-##")+0 -> 2007-12-01 | E77: 103 | F77: 29 | G77: =IF(H77="","",SUBTOTAL(3,$H$12:H77)) -> 66 | H77: أمنية عبد المنعم عبد المنعم زايد | I77: =IF(OR($I$4=0,$H77=""),"",$I76+1) -> 66 | J77: 1 | K77: 12 | L77: 2007 | M77: 0 | N77: 10 | O77: 9 | P77: 40 | Q77: 60 | R77: 40 | S77: 59 | T77: =IF(AND(P77="غ",Q77="غ",R77="غ",S77="غ"),"غ",IF(AND(P77="صفر",Q77="صفر",R77="صفر",S77="صفر"),"صفر",SUM(P77:S77))) -> 199 | U77: =IF(AND(T77="غ"),"غ",IF(AND(T77="صفر"),"صفر",T77*100/200)) -> 99.5 | V77: =IF(OR(U77="",S77=""),"",IF(AND(U77="غ",S77="غ"),"غ",IF(OR(S77<18,S77="غ",U77="غ",S77="صفر",U77="صفر",U77<50),"دون المستوى",IF(U77>=85,"ممتاز",IF(U77>=75,"جيد جداً",IF(U77>=65,"جيد",IF(U77>=50,"مقبول"))))))) -> ممتاز | W77: 40 | X77: 54 | Y77: 39 | Z77: 56 | AA77: =IF(AND(W77="غ",X77="غ",Y77="غ",Z77="غ"),"غ",IF(AND(W77="صفر",X77="صفر",Y77="صفر",Z77="صفر"),"صفر",SUM(W77:Z77))) -> 189 | AB77: =IF(AND(AA77="غ"),"غ",IF(AND(AA77="صفر"),"صفر",AA77*80/200)) -> 75.6 | AC77: =IF(OR(AB77="",Z77=""),"",IF(AND(AB77="غ",Z77="غ"),"غ",IF(OR(Z77<18,Z77="غ",AB77="غ",Z77="صفر",AB77="صفر",AB77<40),"دون المستوى",IF(AB77>=68,"ممتاز",IF(AB77>=60,"جيد جداً",IF(AB77>=52,"جيد",IF(AB77>=40,"مقبول"))))))) -> ممتاز | AD77: 40 | AE77: 60 | AF77: 40 | AG77: 58 | AH77: =IF(AND(AD77="غ",AE77="غ",AF77="غ",AG77="غ"),"غ",IF(AND(AD77="صفر",AE77="صفر",AF77="صفر",AG77="صفر"),"صفر",SUM(AD77:AG77))) -> 198 | AI77: =IF(AND(AH77="غ"),"غ",IF(AND(AH77="صفر"),"صفر",AH77*40/200)) -> 39.6 | AJ77: =IF(OR(AI77="",AG77=""),"",IF(AND(AI77="غ",AG77="غ"),"غ",IF(OR(AG77<18,AG77="غ",AI77="غ",AG77="صفر",AI77="صفر",AI77<20),"دون المستوى",IF(AI77>=32,"ممتاز",IF(AI77>=30,"جيد جداً",IF(AI77>=26,"جيد",IF(AI77>=20,"مقبول"))))))) -> ممتاز | AK77: 38 | AL77: 58 | AM77: 38 | AN77: 56 | AO77: =IF(AND(AK77="غ",AL77="غ",AM77="غ",AN77="غ"),"غ",IF(AND(AK77="صفر",AL77="صفر",AM77="صفر",AN77="صفر"),"صفر",SUM(AK77:AN77))) -> 190 | AP77: =IF(AND(AO77="غ"),"غ",IF(AND(AO77="صفر"),"صفر",AO77*40/200)) -> 38 | AQ77: =IF(OR(AP77="",AN77=""),"",IF(AND(AP77="غ",AN77="غ"),"غ",IF(OR(AN77<18,AN77="غ",AP77="غ",AN77="صفر",AP77="صفر",AP77<20),"دون المستوى",IF(AP77>=32,"ممتاز",IF(AP77>=30,"جيد جداً",IF(AP77>=26,"جيد",IF(AP77>=20,"مقبول"))))))) -> ممتاز | AR77: 38 | AS77: 60 | AT77: 40 | AU77: 57 | AV77: =IF(AND(AR77="غ",AS77="غ",AT77="غ",AU77="غ"),"غ",IF(AND(AR77="صفر",AS77="صفر",AT77="صفر",AU77="صفر"),"صفر",SUM(AR77:AU77))) -> 195 | AW77: =IF(AND(AV77="غ"),"غ",IF(AND(AV77="صفر"),"صفر",AV77*40/200)) -> 39 | AX77: =IF(OR(AW77="",AU77=""),"",IF(AND(AW77="غ",AU77="غ"),"غ",IF(OR(AU77<18,AU77="غ",AW77="غ",AU77="صفر",AW77="صفر",AW77<20),"دون المستوى",IF(AW77>=32,"ممتاز",IF(AW77>=30,"جيد جداً",IF(AW77>=26,"جيد",IF(AW77>=20,"مقبول"))))))) -> ممتاز | AY77: 98 | AZ77: 95 | BA77: =IF(AND(AY77="غ",AZ77="غ"),"غ",IF(AND(AY77="صفر",AZ77="صفر"),"صفر",SUM(AY77:AZ77))) -> 193 | BB77: =IF(AND(BA77="غ"),"غ",IF(AND(BA77="صفر"),"صفر",BA77*20/200)) -> 19.3 | BC77: =IF(BB77="غ","غ",IF(OR(BB77="غ",BB77="صفر",BB77<10),"دون المستوى",IF(BB77>=17,"ممتاز",IF(BB77>=15,"جيد جداً",IF(BB77>=13,"جيد",IF(BB77>=10,"مقبول")))))) -> ممتاز | BD77: 97 | BE77: 96 | BF77: =IF(AND(BD77="غ",BE77="غ"),"غ",IF(AND(BD77="صفر",BE77="صفر"),"صفر",SUM(BD77:BE77))) -> 193 | BG77: =IF(AND(BF77="غ"),"غ",IF(AND(BF77="صفر"),"صفر",BF77*20/200)) -> 19.3 | BH77: =IF(BG77="غ","غ",IF(OR(BG77="غ",BG77="صفر",BG77<10),"دون المستوى",IF(BG77>=17,"ممتاز",IF(BG77>=15,"جيد جداً",IF(BG77>=13,"جيد",IF(BG77>=10,"مقبول")))))) -> ممتاز | BI77: 98 | BJ77: 95 | BK77: =IF(AND(BI77="غ",BJ77="غ"),"غ",IF(AND(BI77="صفر",BJ77="صفر"),"صفر",SUM(BI77:BJ77))) -> 193 | BL77: =IF(AND(BK77="غ"),"غ",IF(AND(BK77="صفر"),"صفر",BK77*20/200)) -> 19.3 | BM77: =IF(BL77="غ","غ",IF(OR(BL77="غ",BL77="صفر",BL77<10),"دون المستوى",IF(BL77>=17,"ممتاز",IF(BL77>=15,"جيد جداً",IF(BL77>=13,"جيد",IF(BL77>=10,"مقبول")))))) -> ممتاز | BN77: 95 | BO77: 98 | BP77: =IF(AND(BN77="غ",BO77="غ"),"غ",IF(AND(BN77="صفر",BO77="صفر"),"صفر",SUM(BN77:BO77))) -> 193 | BQ77: =IF(AND(BP77="غ"),"غ",IF(AND(BP77="صفر"),"صفر",BP77*20/200)) -> 19.3 | BR77: =IF(BQ77="غ","غ",IF(OR(BQ77="غ",BQ77="صفر",BQ77<10),"دون المستوى",IF(BQ77>=17,"ممتاز",IF(BQ77>=15,"جيد جداً",IF(BQ77>=13,"جيد",IF(BQ77>=10,"مقبول")))))) -> ممتاز | BS77: 96 | BT77: 97 | BU77: =IF(AND(BS77="غ",BT77="غ"),"غ",IF(AND(BS77="صفر",BT77="صفر"),"صفر",SUM(BS77:BT77))) -> 193 | BV77: =IF(AND(BU77="غ"),"غ",IF(AND(BU77="صفر"),"صفر",BU77*20/200)) -> 19.3 | BW77: =IF(BV77="غ","غ",IF(OR(BV77="غ",BV77="صفر",BV77<10),"دون المستوى",IF(BV77>=17,"ممتاز",IF(BV77>=15,"جيد جداً",IF(BV77>=13,"جيد",IF(BV77>=10,"مقبول")))))) -> ممتاز | BX77: 330.3 | BY77: =IF(BX77="غ","غ",IF(OR(BX77="غ",BX77<$BX$11*0.5),"دون المستوى",IF(BX77>=$BX$11*0.85,"ممتاز",IF(BX77>=$BX$11*0.75,"جيد جدا",IF(BX77>=$BX$11*0.65,"جيد",IF(BX77>=$BX$11*0.5,"مقبول")))))) -> ممتاز | BZ77: 291.7 | CA77: 40 | CB77: 39 | CC77: 40 | CD77: 55 | CE77: =IF(AND(CA77="غ",CB77="غ",CC77="غ",CD77="غ"),"غ",IF(AND(CA77="صفر",CB77="صفر",CC77="صفر",CD77="صفر"),"صفر",SUM(CA77:CD77))) -> 174 | CF77: =IF(AND(CE77="غ"),"غ",IF(AND(CE77="صفر"),"صفر",CE77*40/200)) -> 34.8 | CG77: =IF(OR(CF77="",CD77=""),"",IF(AND(CF77="غ",CD77="غ"),"غ",IF(OR(CD77<18,CD77="غ",CF77="غ",CD77="صفر",CF77="صفر",CF77<20),"دون المستوى",IF(CF77>=32,"ممتاز",IF(CF77>=30,"جيد جداً",IF(CF77>=26,"جيد",IF(CF77>=20,"مقبول"))))))) -> ممتاز | CH77: =IF(OR(BX77="غ",CF77="غ"),"غ",BX77+CF77) -> 365.1 | CI77: =IF(ISNUMBER(BX77)=FALSE,MAX($G$12:$G$10003)-MIN($G$12:$G$10003)+COUNTIF($BX$12:BX77,BX77),RANK(BX77,$BX$12:$BX$268,0)) -> 24 | CP77: =IF(OR(CD77<18,CD77="غ",CF77<20,CF77="غ")," - دين ","") ->  | CS77: =CONCATENATE(CK77,CL77,CM77,CN77,CO77,CP77) ->  | CV77: =IF(CS77="","ناجح","دور ثان") -> ناجح | DI77: 578 | EC77: 0 | ED77: 0 | EE77: 0 | EF77: 0 | EG77: 0 | EH77: 0 | EI77: 0 | EJ77: 0 | EK77: 0 | EL77: 0
A78: 30808181401607 | B78: 2008-08-18 | E78: 104 | F78: 30 | G78: =IF(H78="","",SUBTOTAL(3,$H$12:H78)) -> 67 | H78: انجى ايهاب يحيي عبدالحى على | I78: 67 | J78: 18 | K78: 8 | L78: 2008 | M78: 13 | N78: 1 | O78: 9 | P78: 38 | Q78: 59 | R78: 40 | S78: 54 | T78: 191 | U78: 95.5 | V78: ممتاز | W78: 40 | X78: 52 | Y78: 40 | Z78: 54 | AA78: 186 | AB78: 74.4 | AC78: ممتاز | AD78: 40 | AE78: 60 | AF78: 40 | AG78: 58 | AH78: 198 | AI78: 39.6 | AJ78: ممتاز | AK78: 40 | AL78: 60 | AM78: 40 | AN78: 56 | AO78: 196 | AP78: 39.2 | AQ78: ممتاز | AR78: 38 | AS78: 60 | AT78: 40 | AU78: 57 | AV78: 195 | AW78: 39 | AX78: ممتاز | AY78: 96 | AZ78: 97 | BA78: 193 | BB78: 19.3 | BC78: ممتاز | BD78: 95 | BE78: 96 | BF78: 191 | BG78: 19.1 | BH78: ممتاز | BI78: 96 | BJ78: 96 | BK78: 192 | BL78: 19.2 | BM78: ممتاز | BN78: 95 | BO78: 97 | BP78: 192 | BQ78: 19.2 | BR78: ممتاز | BS78: 96 | BT78: 97 | BU78: 193 | BV78: 19.3 | BW78: ممتاز | BX78: 326.2 | BY78: ممتاز | BZ78: 287.7 | CA78: 40 | CB78: 54 | CC78: 40 | CD78: 51 | CE78: 185 | CF78: 37 | CG78: ممتاز | CH78: 363.2 | CI78: =IF(ISNUMBER(BX78)=FALSE,MAX($G$12:$G$10003)-MIN($G$12:$G$10003)+COUNTIF($BX$12:BX78,BX78),RANK(BX78,$BX$12:$BX$268,0)) -> 44 | CV78: ناجح | DI78: 570 | EC78: 0 | ED78: 0 | EE78: 0 | EF78: 0 | EG78: 0 | EH78: 0 | EI78: 0 | EJ78: 0 | EK78: 0 | EL78: 0
A79: 30712131701289 | B79: 2007-12-13 | E79: 105 | F79: 31 | G79: =IF(H79="","",SUBTOTAL(3,$H$12:H79)) -> 68 | H79: أية ربيع عبد الحفيظ حسن علي | I79: 68 | J79: 13 | K79: 12 | L79: 2007 | M79: 18 | N79: 9 | O79: 9 | P79: 38 | Q79: 50 | R79: 38 | S79: 51 | T79: 177 | U79: 88.5 | V79: ممتاز | W79: 38 | X79: 54 | Y79: 38 | Z79: 54 | AA79: 184 | AB79: 73.6 | AC79: ممتاز | AD79: 38 | AE79: 57 | AF79: 38 | AG79: 49 | AH79: 182 | AI79: 36.4 | AJ79: ممتاز | AK79: 37 | AL79: 52 | AM79: 37 | AN79: 50 | AO79: 176 | AP79: 35.2 | AQ79: ممتاز | AR79: 36 | AS79: 53 | AT79: 39 | AU79: 57 | AV79: 185 | AW79: 37 | AX79: ممتاز | AY79: 99 | AZ79: 97 | BA79: 196 | BB79: 19.6 | BC79: ممتاز | BD79: 98 | BE79: 98 | BF79: 196 | BG79: 19.6 | BH79: ممتاز | BI79: 99 | BJ79: 97 | BK79: 196 | BL79: 19.6 | BM79: ممتاز | BN79: 97 | BO79: 99 | BP79: 196 | BQ79: 19.6 | BR79: ممتاز | BS79: 98 | BT79: 98 | BU79: 196 | BV79: 19.6 | BW79: ممتاز | BX79: 309.9 | BY79: ممتاز | BZ79: 270.7 | CA79: 36 | CB79: 43 | CC79: 40 | CD79: 47 | CE79: 166 | CF79: 33.2 | CG79: ممتاز | CH79: 343.1 | CI79: =IF(ISNUMBER(BX79)=FALSE,MAX($G$12:$G$10003)-MIN($G$12:$G$10003)+COUNTIF($BX$12:BX79,BX79),RANK(BX79,$BX$12:$BX$268,0)) -> 71 | CV79: ناجح | DI79: 527 | EC79: 0 | ED79: 0 | EE79: 0 | EF79: 0 | EG79: 0 | EH79: 0 | EI79: 0 | EJ79: 0 | EK79: 0 | EL79: 0
A80: 30809061702324 | B80: 2008-09-06 | E80: 106 | F80: 32 | G80: =IF(H80="","",SUBTOTAL(3,$H$12:H80)) -> 69 | H80: ايمان محمد جمال عبد الحليم | I80: 69 | J80: 6 | K80: 9 | L80: 2008 | M80: 25 | N80: 0 | O80: 9 | P80: 38 | Q80: 45 | R80: 37 | S80: 39 | T80: 159 | U80: 79.5 | V80: جيد جداً | W80: 38 | X80: 44 | Y80: 38 | Z80: 38 | AA80: 158 | AB80: 63.2 | AC80: جيد جداً | AD80: 38 | AE80: 57 | AF80: 40 | AG80: 51 | AH80: 186 | AI80: 37.2 | AJ80: ممتاز | AK80: 37 | AL80: 40 | AM80: 37 | AN80: 40 | AO80: 154 | AP80: 30.8 | AQ80: جيد جداً | AR80: 38 | AS80: 53 | AT80: 40 | AU80: 57 | AV80: 188 | AW80: 37.6 | AX80: ممتاز | AY80: 97 | AZ80: 95 | BA80: 192 | BB80: 19.2 | BC80: ممتاز | BD80: 96 | BE80: 97 | BF80: 193 | BG80: 19.3 | BH80: ممتاز | BI80: 97 | BJ80: 95 | BK80: 192 | BL80: 19.2 | BM80: ممتاز | BN80: 95 | BO80: 97 | BP80: 192 | BQ80: 19.2 | BR80: ممتاز | BS80: 97 | BT80: 96 | BU80: 193 | BV80: 19.3 | BW80: ممتاز | BX80: 286.8 | BY80: جيد جدا | BZ80: 248.3 | CA80: 40 | CB80: 40 | CC80: 36 | CD80: 46 | CE80: 162 | CF80: 32.4 | CG80: ممتاز | CH80: 319.2 | CI80: =IF(ISNUMBER(BX80)=FALSE,MAX($G$12:$G$10003)-MIN($G$12:$G$10003)+COUNTIF($BX$12:BX80,BX80),RANK(BX80,$BX$12:$BX$268,0)) -> 105 | CV80: ناجح | DI80: 464 | EC80: 0 | ED80: 0 | EE80: 0 | EF80: 0 | EG80: 0 | EH80: 0 | EI80: 0 | EJ80: 0 | EK80: 0 | EL80: 0
A81: 30805101704125 | B81: 2008-05-10 | E81: 107 | F81: 33 | G81: =IF(H81="","",SUBTOTAL(3,$H$12:H81)) -> 70 | H81: بسملة اشرف عبد الحليم عنتر | I81: 70 | J81: 10 | K81: 5 | L81: 2008 | M81: 21 | N81: 4 | O81: 9 | P81: 37 | Q81: 50 | R81: 36 | S81: 55 | T81: 178 | U81: 89 | V81: ممتاز | W81: 38 | X81: 42 | Y81: 38 | Z81: 50 | AA81: 168 | AB81: 67.2 | AC81: جيد جداً | AD81: 40 | AE81: 57 | AF81: 40 | AG81: 58 | AH81: 195 | AI81: 39 | AJ81: ممتاز | AK81: 37 | AL81: 58 | AM81: 37 | AN81: 54 | AO81: 186 | AP81: 37.2 | AQ81: ممتاز | AR81: 36 | AS81: 52 | AT81: 40 | AU81: 57 | AV81: 185 | AW81: 37 | AX81: ممتاز | AY81: 97 | AZ81: 95 | BA81: 192 | BB81: 19.2 | BC81: ممتاز | BD81: 96 | BE81: 96 | BF81: 192 | BG81: 19.2 | BH81: ممتاز | BI81: 97 | BJ81: 95 | BK81: 192 | BL81: 19.2 | BM81: ممتاز | BN81: 95 | BO81: 97 | BP81: 192 | BQ81: 19.2 | BR81: ممتاز | BS81: 96 | BT81: 96 | BU81: 192 | BV81: 19.2 | BW81: ممتاز | BX81: 307.8 | BY81: ممتاز | BZ81: 269.4 | CA81: 40 | CB81: 46 | CC81: 36 | CD81: 38 | CE81: 160 | CF81: 32 | CG81: ممتاز | CH81: 339.8 | CI81: =IF(ISNUMBER(BX81)=FALSE,MAX($G$12:$G$10003)-MIN($G$12:$G$10003)+COUNTIF($BX$12:BX81,BX81),RANK(BX81,$BX$12:$BX$268,0)) -> 76 | CV81: ناجح | DI81: 533 | EC81: 0 | ED81: 0 | EE81: 0 | EF81: 0 | EG81: 0 | EH81: 0 | EI81: 0 | EJ81: 0 | EK81: 0 | EL81: 0
A82: 30810261701983 | B82: 2008-10-26 | E82: 108 | F82: 34 | G82: =IF(H82="","",SUBTOTAL(3,$H$12:H82)) -> 71 | H82: تقى محمد اسماعيل سعد | I82: 71 | J82: 26 | K82: 10 | L82: 2008 | M82: 5 | N82: 11 | O82: 8 | P82: 38 | Q82: 55 | R82: 40 | S82: 58 | T82: 191 | U82: 95.5 | V82: ممتاز | W82: 39 | X82: 52 | Y82: 39 | Z82: 53 | AA82: 183 | AB82: 73.2 | AC82: ممتاز | AD82: 40 | AE82: 59 | AF82: 40 | AG82: 58 | AH82: 197 | AI82: 39.4 | AJ82: ممتاز | AK82: 39 | AL82: 56 | AM82: 39 | AN82: 58 | AO82: 192 | AP82: 38.4 | AQ82: ممتاز | AR82: 36 | AS82: 54 | AT82: 40 | AU82: 54 | AV82: 184 | AW82: 36.8 | AX82: ممتاز | AY82: 99 | AZ82: 97 | BA82: 196 | BB82: 19.6 | BC82: ممتاز | BD82: 98 | BE82: 98 | BF82: 196 | BG82: 19.6 | BH82: ممتاز | BI82: 99 | BJ82: 97 | BK82: 196 | BL82: 19.6 | BM82: ممتاز | BN82: 97 | BO82: 99 | BP82: 196 | BQ82: 19.6 | BR82: ممتاز | BS82: 98 | BT82: 98 | BU82: 196 | BV82: 19.6 | BW82: ممتاز | BX82: 322.5 | BY82: ممتاز | BZ82: 283.3 | CA82: 40 | CB82: 59 | CC82: 40 | CD82: 54 | CE82: 193 | CF82: 38.6 | CG82: ممتاز | CH82: 361.1 | CI82: =IF(ISNUMBER(BX82)=FALSE,MAX($G$12:$G$10003)-MIN($G$12:$G$10003)+COUNTIF($BX$12:BX82,BX82),RANK(BX82,$BX$12:$BX$268,0)) -> 50 | CV82: ناجح | DI82: 557 | EC82: 0 | ED82: 0 | EE82: 0 | EF82: 0 | EG82: 0 | EH82: 0 | EI82: 0 | EJ82: 0 | EK82: 0 | EL82: 0
A83: 30807161701241 | B83: 2008-07-16 | E83: 109 | F83: 35 | G83: =IF(H83="","",SUBTOTAL(3,$H$12:H83)) -> 72 | H83: تيسير ابراهيم عبدالعليم بيومى | I83: 72 | J83: 16 | K83: 7 | L83: 2008 | M83: 15 | N83: 2 | O83: 9 | P83: 37 | Q83: 57 | R83: 40 | S83: 50 | T83: 184 | U83: 92 | V83: ممتاز | W83: 38 | X83: 38 | Y83: 38 | Z83: 30 | AA83: 144 | AB83: 57.6 | AC83: جيد | AD83: 38 | AE83: 50 | AF83: 39 | AG83: 50 | AH83: 177 | AI83: 35.4 | AJ83: ممتاز | AK83: 37 | AL83: 56 | AM83: 37 | AN83: 52 | AO83: 182 | AP83: 36.4 | AQ83: ممتاز | AR83: 38 | AS83: 45 | AT83: 40 | AU83: 54 | AV83: 177 | AW83: 35.4 | AX83: ممتاز | AY83: 99 | AZ83: 97 | BA83: 196 | BB83: 19.6 | BC83: ممتاز | BD83: 98 | BE83: 98 | BF83: 196 | BG83: 19.6 | BH83: ممتاز | BI83: 99 | BJ83: 97 | BK83: 196 | BL83: 19.6 | BM83: ممتاز | BN83: 97 | BO83: 99 | BP83: 196 | BQ83: 19.6 | BR83: ممتاز | BS83: 98 | BT83: 98 | BU83: 196 | BV83: 19.6 | BW83: ممتاز | BX83: 296 | BY83: ممتاز | BZ83: 256.8 | CA83: 40 | CB83: 50 | CC83: 40 | CD83: 30 | CE83: 160 | CF83: 32 | CG83: ممتاز | CH83: 328 | CI83: =IF(ISNUMBER(BX83)=FALSE,MAX($G$12:$G$10003)-MIN($G$12:$G$10003)+COUNTIF($BX$12:BX83,BX83),RANK(BX83,$BX$12:$BX$268,0)) -> 96 | CV83: ناجح | DI83: 482 | EC83: 0 | ED83: 0 | EE83: 0 | EF83: 0 | EG83: 0 | EH83: 0 | EI83: 0 | EJ83: 0 | EK83: 0 | EL83: 0
A84: 30806161702861 | B84: 2008-06-16 | E84: 110 | F84: 36 | G84: =IF(H84="","",SUBTOTAL(3,$H$12:H84)) -> 73 | H84: جنه جمال امام محمد المرادى | I84: 73 | J84: 16 | K84: 6 | L84: 2008 | M84: 15 | N84: 3 | O84: 9 | P84: 38 | Q84: 57 | R84: 37 | S84: 52 | T84: 184 | U84: 92 | V84: ممتاز | W84: 38 | X84: 50 | Y84: 38 | Z84: 48 | AA84: 174 | AB84: 69.6 | AC84: ممتاز | AD84: 38 | AE84: 50 | AF84: 40 | AG84: 52 | AH84: 180 | AI84: 36 | AJ84: ممتاز | AK84: 37 | AL84: 50 | AM84: 37 | AN84: 52 | AO84: 176 | AP84: 35.2 | AQ84: ممتاز | AR84: 38 | AS84: 44 | AT84: 40 | AU84: 55 | AV84: 177 | AW84: 35.4 | AX84: ممتاز | AY84: 99 | AZ84: 99 | BA84: 198 | BB84: 19.8 | BC84: ممتاز | BD84: 98 | BE84: 98 | BF84: 196 | BG84: 19.6 | BH84: ممتاز | BI84: 99 | BJ84: 99 | BK84: 198 | BL84: 19.8 | BM84: ممتاز | BN84: 99 | BO84: 99 | BP84: 198 | BQ84: 19.8 | BR84: ممتاز | BS84: 98 | BT84: 98 | BU84: 196 | BV84: 19.6 | BW84: ممتاز | BX84: 307.6 | BY84: ممتاز | BZ84: 268.2 | CA84: 40 | CB84: 47 | CC84: 40 | CD84: 40 | CE84: 167 | CF84: 33.4 | CG84: ممتاز | CH84: 341 | CI84: =IF(ISNUMBER(BX84)=FALSE,MAX($G$12:$G$10003)-MIN($G$12:$G$10003)+COUNTIF($BX$12:BX84,BX84),RANK(BX84,$BX$12:$BX$268,0)) -> 78 | CV84: ناجح | DI84: 510 | EC84: 0 | ED84: 0 | EE84: 0 | EF84: 0 | EG84: 0 | EH84: 0 | EI84: 0 | EJ84: 0 | EK84: 0 | EL84: 0
A85: 30803121702363 | B85: 2008-03-12 | E85: 111 | F85: 37 | G85: =IF(H85="","",SUBTOTAL(3,$H$12:H85)) -> 74 | H85: جنى أحمد عبد العزيزمحمد عبد الغنى | I85: 74 | J85: 12 | K85: 3 | L85: 2008 | M85: 19 | N85: 6 | O85: 9 | P85: 39 | Q85: 60 | R85: 39 | S85: 60 | T85: 198 | U85: 99 | V85: ممتاز | W85: 39 | X85: 60 | Y85: 40 | Z85: 60 | AA85: 199 | AB85: 79.6 | AC85: ممتاز | AD85: 40 | AE85: 60 | AF85: 40 | AG85: 56 | AH85: 196 | AI85: 39.2 | AJ85: ممتاز | AK85: 38 | AL85: 60 | AM85: 38 | AN85: 58 | AO85: 194 | AP85: 38.8 | AQ85: ممتاز | AR85: 36 | AS85: 60 | AT85: 40 | AU85: 58 | AV85: 194 | AW85: 38.8 | AX85: ممتاز | AY85: 99 | AZ85: 97 | BA85: 196 | BB85: 19.6 | BC85: ممتاز | BD85: 98 | BE85: 98 | BF85: 196 | BG85: 19.6 | BH85: ممتاز | BI85: 99 | BJ85: 97 | BK85: 196 | BL85: 19.6 | BM85: ممتاز | BN85: 97 | BO85: 99 | BP85: 196 | BQ85: 19.6 | BR85: ممتاز | BS85: 98 | BT85: 98 | BU85: 196 | BV85: 19.6 | BW85: ممتاز | BX85: 334.6 | BY85: ممتاز | BZ85: 295.4 | CA85: 40 | CB85: 57 | CC85: 40 | CD85: 56 | CE85: 193 | CF85: 38.6 | CG85: ممتاز | CH85: 373.2 | CI85: =IF(ISNUMBER(BX85)=FALSE,MAX($G$12:$G$10003)-MIN($G$12:$G$10003)+COUNTIF($BX$12:BX85,BX85),RANK(BX85,$BX$12:$BX$268,0)) -> 6 | CV85: ناجح | DI85: 592 | EC85: 0 | ED85: 0 | EE85: 0 | EF85: 0 | EG85: 0 | EH85: 0 | EI85: 0 | EJ85: 0 | EK85: 0 | EL85: 0
A86: 30804251702906 | B86: 2008-04-25 | E86: 1 | F86: 89 | G86: =IF(H86="","",SUBTOTAL(3,$H$12:H86)) -> 75 | H86: جنى محمد حسن بازالشريف | I86: 75 | J86: 25 | K86: 4 | L86: 2008 | M86: 6 | N86: 5 | O86: 9 | P86: 39 | Q86: 60 | R86: 38 | S86: 60 | T86: 197 | U86: 98.5 | V86: ممتاز | W86: 39 | X86: 56 | Y86: 39 | Z86: 58 | AA86: 192 | AB86: 76.8 | AC86: ممتاز | AD86: 40 | AE86: 60 | AF86: 40 | AG86: 58 | AH86: 198 | AI86: 39.6 | AJ86: ممتاز | AK86: 38 | AL86: 60 | AM86: 38 | AN86: 58 | AO86: 194 | AP86: 38.8 | AQ86: ممتاز | AR86: 36 | AS86: 60 | AT86: 40 | AU86: 58 | AV86: 194 | AW86: 38.8 | AX86: ممتاز | AY86: 99 | AZ86: 99 | BA86: 198 | BB86: 19.8 | BC86: ممتاز | BD86: 98 | BE86: 98 | BF86: 196 | BG86: 19.6 | BH86: ممتاز | BI86: 99 | BJ86: 99 | BK86: 198 | BL86: 19.8 | BM86: ممتاز | BN86: 99 | BO86: 99 | BP86: 198 | BQ86: 19.8 | BR86: ممتاز | BS86: 98 | BT86: 98 | BU86: 196 | BV86: 19.6 | BW86: ممتاز | BX86: 331.9 | BY86: ممتاز | BZ86: 292.5 | CA86: 36 | CB86: 53 | CC86: 36 | CD86: 45 | CE86: 170 | CF86: 34 | CG86: ممتاز | CH86: 365.9 | CI86: =IF(ISNUMBER(BX86)=FALSE,MAX($G$12:$G$10003)-MIN($G$12:$G$10003)+COUNTIF($BX$12:BX86,BX86),RANK(BX86,$BX$12:$BX$268,0)) -> 14 | CV86: ناجح | DI86: 588 | EC86: 0 | ED86: 0 | EE86: 0 | EF86: 0 | EG86: 0 | EH86: 0 | EI86: 0 | EJ86: 0 | EK86: 0 | EL86: 0
A87: 30812031702282 | B87: 2008-12-03 | E87: 2 | F87: 90 | G87: =IF(H87="","",SUBTOTAL(3,$H$12:H87)) -> 76 | H87: جنى محمود جمال جوده على | I87: 76 | J87: 3 | K87: 12 | L87: 2008 | M87: 28 | N87: 9 | O87: 8 | P87: 40 | Q87: 59 | R87: 40 | S87: 57 | T87: 196 | U87: 98 | V87: ممتاز | W87: 39 | X87: 58 | Y87: 40 | Z87: 58 | AA87: 195 | AB87: 78 | AC87: ممتاز | AD87: 40 | AE87: 56 | AF87: 40 | AG87: 58 | AH87: 194 | AI87: 38.8 | AJ87: ممتاز | AK87: 38 | AL87: 60 | AM87: 38 | AN87: 54 | AO87: 190 | AP87: 38 | AQ87: ممتاز | AR87: 38 | AS87: 59 | AT87: 40 | AU87: 58 | AV87: 195 | AW87: 39 | AX87: ممتاز | AY87: 99 | AZ87: 97 | BA87: 196 | BB87: 19.6 | BC87: ممتاز | BD87: 98 | BE87: 98 | BF87: 196 | BG87: 19.6 | BH87: ممتاز | BI87: 99 | BJ87: 97 | BK87: 196 | BL87: 19.6 | BM87: ممتاز | BN87: 97 | BO87: 99 | BP87: 196 | BQ87: 19.6 | BR87: ممتاز | BS87: 98 | BT87: 98 | BU87: 196 | BV87: 19.6 | BW87: ممتاز | BX87: 331 | BY87: ممتاز | BZ87: 291.8 | CA87: 40 | CB87: 50 | CC87: 40 | CD87: 56 | CE87: 186 | CF87: 37.2 | CG87: ممتاز | CH87: 368.2 | CI87: =IF(ISNUMBER(BX87)=FALSE,MAX($G$12:$G$10003)-MIN($G$12:$G$10003)+COUNTIF($BX$12:BX87,BX87),RANK(BX87,$BX$12:$BX$268,0)) -> 18 | CV87: ناجح | DI87: 577 | EC87: 0 | ED87: 0 | EE87: 0 | EF87: 0 | EG87: 0 | EH87: 0 | EI87: 0 | EJ87: 0 | EK87: 0 | EL87: 0
A88: 30809301706667 | B88: 2008-09-30 | E88: 3 | F88: 91 | G88: =IF(H88="","",SUBTOTAL(3,$H$12:H88)) -> 77 | H88: جني الخضري وهبه الخضري | I88: 77 | J88: 30 | K88: 9 | L88: 2008 | M88: 1 | N88: 0 | O88: 9 | P88: 40 | Q88: 60 | R88: 40 | S88: 60 | T88: 200 | U88: 100 | V88: ممتاز | W88: 39 | X88: 56 | Y88: 40 | Z88: 56 | AA88: 191 | AB88: 76.4 | AC88: ممتاز | AD88: 40 | AE88: 60 | AF88: 40 | AG88: 60 | AH88: 200 | AI88: 40 | AJ88: ممتاز | AK88: 38 | AL88: 58 | AM88: 38 | AN88: 58 | AO88: 192 | AP88: 38.4 | AQ88: ممتاز | AR88: 36 | AS88: 59 | AT88: 40 | AU88: 59 | AV88: 194 | AW88: 38.8 | AX88: ممتاز | AY88: 97 | AZ88: 97 | BA88: 194 | BB88: 19.4 | BC88: ممتاز | BD88: 98 | BE88: 98 | BF88: 196 | BG88: 19.6 | BH88: ممتاز | BI88: 97 | BJ88: 97 | BK88: 194 | BL88: 19.4 | BM88: ممتاز | BN88: 97 | BO88: 97 | BP88: 194 | BQ88: 19.4 | BR88: ممتاز | BS88: 98 | BT88: 98 | BU88: 196 | BV88: 19.6 | BW88: ممتاز | BX88: 332.6 | BY88: ممتاز | BZ88: 293.6 | CA88: 40 | CB88: 57 | CC88: 40 | CD88: 52 | CE88: 189 | CF88: 37.8 | CG88: ممتاز | CH88: 370.4 | CI88: =IF(ISNUMBER(BX88)=FALSE,MAX($G$12:$G$10003)-MIN($G$12:$G$10003)+COUNTIF($BX$12:BX88,BX88),RANK(BX88,$BX$12:$BX$268,0)) -> 10 | CV88: ناجح | DI88: 586 | EC88: 0 | ED88: 0 | EE88: 0 | EF88: 0 | EG88: 0 | EH88: 0 | EI88: 0 | EJ88: 0 | EK88: 0 | EL88: 0
A89: 30802011702965 | B89: 2008-02-01 | E89: 4 | F89: 92 | G89: =IF(H89="","",SUBTOTAL(3,$H$12:H89)) -> 78 | H89: حبيبه محمد عبدالمنعم السيد | I89: 78 | J89: 1 | K89: 2 | L89: 2008 | M89: 0 | N89: 8 | O89: 9 | P89: 40 | Q89: 60 | R89: 40 | S89: 60 | T89: 200 | U89: 100 | V89: ممتاز | W89: 40 | X89: 52 | Y89: 40 | Z89: 58 | AA89: 190 | AB89: 76 | AC89: ممتاز | AD89: 40 | AE89: 59 | AF89: 40 | AG89: 60 | AH89: 199 | AI89: 39.8 | AJ89: ممتاز | AK89: 37 | AL89: 60 | AM89: 37 | AN89: 58 | AO89: 192 | AP89: 38.4 | AQ89: ممتاز | AR89: 39 | AS89: 56 | AT89: 40 | AU89: 60 | AV89: 195 | AW89: 39 | AX89: ممتاز | AY89: 99 | AZ89: 99 | BA89: 198 | BB89: 19.8 | BC89: ممتاز | BD89: 98 | BE89: 98 | BF89: 196 | BG89: 19.6 | BH89: ممتاز | BI89: 99 | BJ89: 99 | BK89: 198 | BL89: 19.8 | BM89: ممتاز | BN89: 99 | BO89: 99 | BP89: 198 | BQ89: 19.8 | BR89: ممتاز | BS89: 98 | BT89: 98 | BU89: 196 | BV89: 19.6 | BW89: ممتاز | BX89: 332.6 | BY89: ممتاز | BZ89: 293.2 | CA89: 40 | CB89: 60 | CC89: 40 | CD89: 58 | CE89: 198 | CF89: 39.6 | CG89: ممتاز | CH89: 372.2 | CI89: =IF(ISNUMBER(BX89)=FALSE,MAX($G$12:$G$10003)-MIN($G$12:$G$10003)+COUNTIF($BX$12:BX89,BX89),RANK(BX89,$BX$12:$BX$268,0)) -> 10 | CV89: ناجح | DI89: 583 | EC89: 0 | ED89: 0 | EE89: 0 | EF89: 0 | EG89: 0 | EH89: 0 | EI89: 0 | EJ89: 0 | EK89: 0 | EL89: 0
A90: 30802181701807 | B90: 2008-02-18 | E90: 5 | F90: 93 | G90: =IF(H90="","",SUBTOTAL(3,$H$12:H90)) -> 79 | H90: حبيبه هاني كرم عبد الرشيد | I90: 79 | J90: 18 | K90: 2 | L90: 2008 | M90: 13 | N90: 7 | O90: 9 | P90: 40 | Q90: 58 | R90: 40 | S90: 56 | T90: 194 | U90: 97 | V90: ممتاز | W90: 40 | X90: 58 | Y90: 40 | Z90: 54 | AA90: 192 | AB90: 76.8 | AC90: ممتاز | AD90: 38 | AE90: 54 | AF90: 39 | AG90: 60 | AH90: 191 | AI90: 38.2 | AJ90: ممتاز | AK90: 38 | AL90: 60 | AM90: 38 | AN90: 58 | AO90: 194 | AP90: 38.8 | AQ90: ممتاز | AR90: 39 | AS90: 60 | AT90: 40 | AU90: 59 | AV90: 198 | AW90: 39.6 | AX90: ممتاز | AY90: 99 | AZ90: 97 | BA90: 196 | BB90: 19.6 | BC90: ممتاز | BD90: 98 | BE90: 98 | BF90: 196 | BG90: 19.6 | BH90: ممتاز | BI90: 99 | BJ90: 97 | BK90: 196 | BL90: 19.6 | BM90: ممتاز | BN90: 97 | BO90: 99 | BP90: 196 | BQ90: 19.6 | BR90: ممتاز | BS90: 98 | BT90: 98 | BU90: 196 | BV90: 19.6 | BW90: ممتاز | BX90: 329.6 | BY90: ممتاز | BZ90: 290.4 | CA90: 40 | CB90: 60 | CC90: 40 | CD90: 56 | CE90: 196 | CF90: 39.2 | CG90: ممتاز | CH90: 368.8 | CI90: =IF(ISNUMBER(BX90)=FALSE,MAX($G$12:$G$10003)-MIN($G$12:$G$10003)+COUNTIF($BX$12:BX90,BX90),RANK(BX90,$BX$12:$BX$268,0)) -> 25 | CV90: ناجح | DI90: 577 | EC90: 0 | ED90: 0 | EE90: 0 | EF90: 0 | EG90: 0 | EH90: 0 | EI90: 0 | EJ90: 0 | EK90: 0 | EL90: 0
A91: 30801191800661 | B91: 2008-01-19 | E91: 6 | F91: 94 | G91: =IF(H91="","",SUBTOTAL(3,$H$12:H91)) -> 80 | H91: حنان عبد الحميد إبراهيم على عبد العزيز | I91: 80 | J91: 19 | K91: 1 | L91: 2008 | M91: 12 | N91: 8 | O91: 9 | P91: 39 | Q91: 50 | R91: 40 | S91: 53 | T91: 182 | U91: 91 | V91: ممتاز | W91: 38 | X91: 28 | Y91: 38 | Z91: 42 | AA91: 146 | AB91: 58.4 | AC91: جيد | AD91: 37 | AE91: 57 | AF91: 38 | AG91: 52 | AH91: 184 | AI91: 36.8 | AJ91: ممتاز | AK91: 38 | AL91: 48 | AM91: 38 | AN91: 46 | AO91: 170 | AP91: 34 | AQ91: ممتاز | AR91: 38 | AS91: 46 | AT91: 39 | AU91: 55 | AV91: 178 | AW91: 35.6 | AX91: ممتاز | AY91: 99 | AZ91: 97 | BA91: 196 | BB91: 19.6 | BC91: ممتاز | BD91: 98 | BE91: 98 | BF91: 196 | BG91: 19.6 | BH91: ممتاز | BI91: 99 | BJ91: 97 | BK91: 196 | BL91: 19.6 | BM91: ممتاز | BN91: 97 | BO91: 99 | BP91: 196 | BQ91: 19.6 | BR91: ممتاز | BS91: 98 | BT91: 98 | BU91: 196 | BV91: 19.6 | BW91: ممتاز | BX91: 295 | BY91: ممتاز | BZ91: 255.8 | CA91: 36 | CB91: 39 | CC91: 40 | CD91: 46 | CE91: 161 | CF91: 32.2 | CG91: ممتاز | CH91: 327.2 | CI91: =IF(ISNUMBER(BX91)=FALSE,MAX($G$12:$G$10003)-MIN($G$12:$G$10003)+COUNTIF($BX$12:BX91,BX91),RANK(BX91,$BX$12:$BX$268,0)) -> 97 | CV91: ناجح | DI91: 477 | EC91: 0 | ED91: 0 | EE91: 0 | EF91: 0 | EG91: 0 | EH91: 0 | EI91: 0 | EJ91: 0 | EK91: 0 | EL91: 0
A92: 30804011704944 | B92: 2008-04-01 | E92: 7 | F92: 95 | G92: =IF(H92="","",SUBTOTAL(3,$H$12:H92)) -> 81 | H92: حنين السيد البيومى السيد | I92: 81 | J92: 1 | K92: 4 | L92: 2008 | M92: 0 | N92: 6 | O92: 9 | P92: 36 | Q92: 42 | R92: 36 | S92: 32 | T92: 146 | U92: 73 | V92: جيد | W92: 37 | X92: 24 | Y92: 38 | Z92: 41 | AA92: 140 | AB92: 56 | AC92: جيد | AD92: 36 | AE92: 42 | AF92: 37 | AG92: 52 | AH92: 167 | AI92: 33.4 | AJ92: ممتاز | AK92: 38 | AL92: 42 | AM92: 38 | AN92: 42 | AO92: 160 | AP92: 32 | AQ92: ممتاز | AR92: 38 | AS92: 31 | AT92: 40 | AU92: 56 | AV92: 165 | AW92: 33 | AX92: ممتاز | AY92: 99 | AZ92: 97 | BA92: 196 | BB92: 19.6 | BC92: ممتاز | BD92: 98 | BE92: 98 | BF92: 196 | BG92: 19.6 | BH92: ممتاز | BI92: 99 | BJ92: 97 | BK92: 196 | BL92: 19.6 | BM92: ممتاز | BN92: 97 | BO92: 99 | BP92: 196 | BQ92: 19.6 | BR92: ممتاز | BS92: 98 | BT92: 98 | BU92: 196 | BV92: 19.6 | BW92: ممتاز | BX92: 266.6 | BY92: جيد جدا | BZ92: 227.4 | CA92: 36 | CB92: 44 | CC92: 36 | CD92: 39 | CE92: 155 | CF92: 31 | CG92: جيد جداً | CH92: 297.6 | CI92: =IF(ISNUMBER(BX92)=FALSE,MAX($G$12:$G$10003)-MIN($G$12:$G$10003)+COUNTIF($BX$12:BX92,BX92),RANK(BX92,$BX$12:$BX$268,0)) -> 112 | CV92: ناجح | DI92: 404 | EC92: 0 | ED92: رياضيات | EE92: 0 | EF92: 0 | EG92: 0 | EH92: 0 | EI92: 0 | EJ92: 0 | EK92: 0 | EL92: 0
A93: 30711111702886 | B93: 2007-11-11 | E93: 8 | F93: 96 | G93: =IF(H93="","",SUBTOTAL(3,$H$12:H93)) -> 82 | H93: دنيا وليد جمال السيد النجار | I93: 82 | J93: 11 | K93: 11 | L93: 2007 | M93: 20 | N93: 10 | O93: 9 | P93: 37 | Q93: 57 | R93: 39 | S93: 55 | T93: 188 | U93: 94 | V93: ممتاز | W93: 39 | X93: 58 | Y93: 40 | Z93: 58 | AA93: 195 | AB93: 78 | AC93: ممتاز | AD93: 38 | AE93: 57 | AF93: 39 | AG93: 60 | AH93: 194 | AI93: 38.8 | AJ93: ممتاز | AK93: 38 | AL93: 44 | AM93: 38 | AN93: 50 | AO93: 170 | AP93: 34 | AQ93: ممتاز | AR93: 36 | AS93: 47 | AT93: 40 | AU93: 53 | AV93: 176 | AW93: 35.2 | AX93: ممتاز | AY93: 99 | AZ93: 99 | BA93: 198 | BB93: 19.8 | BC93: ممتاز | BD93: 98 | BE93: 97 | BF93: 195 | BG93: 19.5 | BH93: ممتاز | BI93: 99 | BJ93: 99 | BK93: 198 | BL93: 19.8 | BM93: ممتاز | BN93: 99 | BO93: 99 | BP93: 198 | BQ93: 19.8 | BR93: ممتاز | BS93: 97 | BT93: 98 | BU93: 195 | BV93: 19.5 | BW93: ممتاز | BX93: 319.3 | BY93: ممتاز | BZ93: 280 | CA93: 40 | CB93: 46 | CC93: 40 | CD93: 33 | CE93: 159 | CF93: 31.8 | CG93: جيد جداً | CH93: 351.1 | CI93: =IF(ISNUMBER(BX93)=FALSE,MAX($G$12:$G$10003)-MIN($G$12:$G$10003)+COUNTIF($BX$12:BX93,BX93),RANK(BX93,$BX$12:$BX$268,0)) -> 55 | CV93: ناجح | DI93: 539 | EC93: 0 | ED93: 0 | EE93: 0 | EF93: 0 | EG93: 0 | EH93: 0 | EI93: 0 | EJ93: 0 | EK93: 0 | EL93: 0
A94: 30901221701927 | B94: 2009-01-22 | E94: 9 | F94: 97 | G94: =IF(H94="","",SUBTOTAL(3,$H$12:H94)) -> 83 | H94: رحمة صلاح الدين احمد عبد الوهاب | I94: 83 | J94: 22 | K94: 1 | L94: 2009 | M94: 9 | N94: 8 | O94: 8 | P94: 40 | Q94: 58 | R94: 40 | S94: 52 | T94: 190 | U94: 95 | V94: ممتاز | W94: 40 | X94: 36 | Y94: 40 | Z94: 44 | AA94: 160 | AB94: 64 | AC94: جيد جداً | AD94: 38 | AE94: 53 | AF94: 40 | AG94: 56 | AH94: 187 | AI94: 37.4 | AJ94: ممتاز | AK94: 36 | AL94: 50 | AM94: 36 | AN94: 52 | AO94: 174 | AP94: 34.8 | AQ94: ممتاز | AR94: 36 | AS94: 51 | AT94: 40 | AU94: 60 | AV94: 187 | AW94: 37.4 | AX94: ممتاز | AY94: 99 | AZ94: 99 | BA94: 198 | BB94: 19.8 | BC94: ممتاز | BD94: 98 | BE94: 98 | BF94: 196 | BG94: 19.6 | BH94: ممتاز | BI94: 99 | BJ94: 99 | BK94: 198 | BL94: 19.8 | BM94: ممتاز | BN94: 99 | BO94: 99 | BP94: 198 | BQ94: 19.8 | BR94: ممتاز | BS94: 98 | BT94: 98 | BU94: 196 | BV94: 19.6 | BW94: ممتاز | BX94: 308 | BY94: ممتاز | BZ94: 268.6 | CA94: 40 | CB94: 43 | CC94: 40 | CD94: 47 | CE94: 170 | CF94: 34 | CG94: ممتاز | CH94: 342 | CI94: =IF(ISNUMBER(BX94)=FALSE,MAX($G$12:$G$10003)-MIN($G$12:$G$10003)+COUNTIF($BX$12:BX94,BX94),RANK(BX94,$BX$12:$BX$268,0)) -> 75 | CV94: ناجح | DI94: 512 | EC94: 0 | ED94: 0 | EE94: 0 | EF94: 0 | EG94: 0 | EH94: 0 | EI94: 0 | EJ94: 0 | EK94: 0 | EL94: 0
A95: 30802081702407 | B95: 2008-02-08 | E95: 10 | F95: 98 | G95: =IF(H95="","",SUBTOTAL(3,$H$12:H95)) -> 84 | H95: رحيل سعيد مسعد السعيد سيد احمد | I95: 84 | J95: 8 | K95: 2 | L95: 2008 | M95: 23 | N95: 7 | O95: 9 | P95: 37 | Q95: 55 | R95: 37 | S95: 45 | T95: 174 | U95: 87 | V95: ممتاز | W95: 37 | X95: 42 | Y95: 37 | Z95: 48 | AA95: 164 | AB95: 65.6 | AC95: جيد جداً | AD95: 37 | AE95: 45 | AF95: 38 | AG95: 54 | AH95: 174 | AI95: 34.8 | AJ95: ممتاز | AK95: 37 | AL95: 44 | AM95: 37 | AN95: 52 | AO95: 170 | AP95: 34 | AQ95: ممتاز | AR95: 36 | AS95: 55 | AT95: 40 | AU95: 48 | AV95: 179 | AW95: 35.8 | AX95: ممتاز | AY95: 99 | AZ95: 97 | BA95: 196 | BB95: 19.6 | BC95: ممتاز | BD95: 98 | BE95: 98 | BF95: 196 | BG95: 19.6 | BH95: ممتاز | BI95: 99 | BJ95: 97 | BK95: 196 | BL95: 19.6 | BM95: ممتاز | BN95: 97 | BO95: 99 | BP95: 196 | BQ95: 19.6 | BR95: ممتاز | BS95: 98 | BT95: 98 | BU95: 196 | BV95: 19.6 | BW95: ممتاز | BX95: 296.4 | BY95: ممتاز | BZ95: 257.2 | CA95: 35 | CB95: 49 | CC95: 34 | CD95: 38 | CE95: 156 | CF95: 31.2 | CG95: جيد جداً | CH95: 327.6 | CI95: =IF(ISNUMBER(BX95)=FALSE,MAX($G$12:$G$10003)-MIN($G$12:$G$10003)+COUNTIF($BX$12:BX95,BX95),RANK(BX95,$BX$12:$BX$268,0)) -> 94 | CV95: ناجح | DI95: 488 | EC95: 0 | ED95: 0 | EE95: 0 | EF95: 0 | EG95: 0 | EH95: 0 | EI95: 0 | EJ95: 0 | EK95: 0 | EL95: 0
A96: 30808081707601 | B96: 2008-08-08 | E96: 11 | F96: 99 | G96: =IF(H96="","",SUBTOTAL(3,$H$12:H96)) -> 85 | H96: رزان محمد عبد العاطى عبد العزيز | I96: 85 | J96: 8 | K96: 8 | L96: 2008 | M96: 23 | N96: 1 | O96: 9 | P96: 40 | Q96: 59 | R96: 40 | S96: 58 | T96: 197 | U96: 98.5 | V96: ممتاز | W96: 40 | X96: 50 | Y96: 40 | Z96: 56 | AA96: 186 | AB96: 74.4 | AC96: ممتاز | AD96: 40 | AE96: 60 | AF96: 40 | AG96: 60 | AH96: 200 | AI96: 40 | AJ96: ممتاز | AK96: 40 | AL96: 58 | AM96: 40 | AN96: 60 | AO96: 198 | AP96: 39.6 | AQ96: ممتاز | AR96: 38 | AS96: 60 | AT96: 40 | AU96: 60 | AV96: 198 | AW96: 39.6 | AX96: ممتاز | AY96: 97 | AZ96: 97 | BA96: 194 | BB96: 19.4 | BC96: ممتاز | BD96: 98 | BE96: 97 | BF96: 195 | BG96: 19.5 | BH96: ممتاز | BI96: 97 | BJ96: 97 | BK96: 194 | BL96: 19.4 | BM96: ممتاز | BN96: 97 | BO96: 97 | BP96: 194 | BQ96: 19.4 | BR96: ممتاز | BS96: 97 | BT96: 98 | BU96: 195 | BV96: 19.5 | BW96: ممتاز | BX96: 331 | BY96: ممتاز | BZ96: 292.1 | CA96: 40 | CB96: 58 | CC96: 40 | CD96: 52 | CE96: 190 | CF96: 38 | CG96: ممتاز | CH96: 369 | CI96: =IF(ISNUMBER(BX96)=FALSE,MAX($G$12:$G$10003)-MIN($G$12:$G$10003)+COUNTIF($BX$12:BX96,BX96),RANK(BX96,$BX$12:$BX$268,0)) -> 19 | CV96: ناجح | DI96: 581 | EC96: 0 | ED96: 0 | EE96: 0 | EF96: 0 | EG96: 0 | EH96: 0 | EI96: 0 | EJ96: 0 | EK96: 0 | EL96: 0
A97: 30806011707709 | B97: 2008-06-01 | E97: 12 | F97: 100 | G97: =IF(H97="","",SUBTOTAL(3,$H$12:H97)) -> 86 | H97: روان السيد عبدالوهاب عبداللطيف | I97: 86 | J97: 1 | K97: 6 | L97: 2008 | M97: 0 | N97: 4 | O97: 9 | P97: 40 | Q97: 59 | R97: 40 | S97: 60 | T97: 199 | U97: 99.5 | V97: ممتاز | W97: 40 | X97: 54 | Y97: 40 | Z97: 60 | AA97: 194 | AB97: 77.6 | AC97: ممتاز | AD97: 38 | AE97: 60 | AF97: 40 | AG97: 56 | AH97: 194 | AI97: 38.8 | AJ97: ممتاز | AK97: 38 | AL97: 58 | AM97: 38 | AN97: 60 | AO97: 194 | AP97: 38.8 | AQ97: ممتاز | AR97: 36 | AS97: 60 | AT97: 40 | AU97: 60 | AV97: 196 | AW97: 39.2 | AX97: ممتاز | AY97: 99 | AZ97: 97 | BA97: 196 | BB97: 19.6 | BC97: ممتاز | BD97: 98 | BE97: 98 | BF97: 196 | BG97: 19.6 | BH97: ممتاز | BI97: 99 | BJ97: 97 | BK97: 196 | BL97: 19.6 | BM97: ممتاز | BN97: 97 | BO97: 99 | BP97: 196 | BQ97: 19.6 | BR97: ممتاز | BS97: 98 | BT97: 98 | BU97: 196 | BV97: 19.6 | BW97: ممتاز | BX97: 333.1 | BY97: ممتاز | BZ97: 293.9 | CA97: 40 | CB97: 53 | CC97: 40 | CD97: 58 | CE97: 191 | CF97: 38.2 | CG97: ممتاز | CH97: 371.3 | CI97: =IF(ISNUMBER(BX97)=FALSE,MAX($G$12:$G$10003)-MIN($G$12:$G$10003)+COUNTIF($BX$12:BX97,BX97),RANK(BX97,$BX$12:$BX$268,0)) -> 9 | CV97: ناجح | DI97: 587 | EC97: 0 | ED97: 0 | EE97: 0 | EF97: 0 | EG97: 0 | EH97: 0 | EI97: 0 | EJ97: 0 | EK97: 0 | EL97: 0
A98: 30809281704484 | B98: 2008-09-28 | E98: 13 | F98: 101 | G98: =IF(H98="","",SUBTOTAL(3,$H$12:H98)) -> 87 | H98: رويدا احمد صبحى عبد الرازق | I98: 87 | J98: 28 | K98: 9 | L98: 2008 | M98: 3 | N98: 0 | O98: 9 | P98: 40 | Q98: 59 | R98: 40 | S98: 58 | T98: 197 | U98: 98.5 | V98: ممتاز | W98: 40 | X98: 54 | Y98: 40 | Z98: 54 | AA98: 188 | AB98: 75.2 | AC98: ممتاز | AD98: 40 | AE98: 60 | AF98: 40 | AG98: 60 | AH98: 200 | AI98: 40 | AJ98: ممتاز | AK98: 40 | AL98: 60 | AM98: 40 | AN98: 60 | AO98: 200 | AP98: 40 | AQ98: ممتاز | AR98: 36 | AS98: 60 | AT98: 40 | AU98: 60 | AV98: 196 | AW98: 39.2 | AX98: ممتاز | AY98: 99 | AZ98: 97 | BA98: 196 | BB98: 19.6 | BC98: ممتاز | BD98: 98 | BE98: 98 | BF98: 196 | BG98: 19.6 | BH98: ممتاز | BI98: 99 | BJ98: 97 | BK98: 196 | BL98: 19.6 | BM98: ممتاز | BN98: 97 | BO98: 99 | BP98: 196 | BQ98: 19.6 | BR98: ممتاز | BS98: 98 | BT98: 98 | BU98: 196 | BV98: 19.6 | BW98: ممتاز | BX98: 332.1 | BY98: ممتاز | BZ98: 292.9 | CA98: 40 | CB98: 52 | CC98: 40 | CD98: 52 | CE98: 184 | CF98: 36.8 | CG98: ممتاز | CH98: 368.9 | CI98: =IF(ISNUMBER(BX98)=FALSE,MAX($G$12:$G$10003)-MIN($G$12:$G$10003)+COUNTIF($BX$12:BX98,BX98),RANK(BX98,$BX$12:$BX$268,0)) -> 13 | CV98: ناجح | DI98: 585 | EC98: 0 | ED98: 0 | EE98: 0 | EF98: 0 | EG98: 0 | EH98: 0 | EI98: 0 | EJ98: 0 | EK98: 0 | EL98: 0
A99: 30803161401285 | B99: 2008-03-16 | E99: 14 | F99: 102 | G99: =IF(H99="","",SUBTOTAL(3,$H$12:H99)) -> 88 | H99: سارة ابراهيم محمد فتوح أحمد | I99: 88 | J99: 16 | K99: 3 | L99: 2008 | M99: 15 | N99: 6 | O99: 9 | P99: 40 | Q99: 60 | R99: 40 | S99: 57 | T99: 197 | U99: 98.5 | V99: ممتاز | W99: 39 | X99: 54 | Y99: 39 | Z99: 57 | AA99: 189 | AB99: 75.6 | AC99: ممتاز | AD99: 40 | AE99: 60 | AF99: 40 | AG99: 60 | AH99: 200 | AI99: 40 | AJ99: ممتاز | AK99: 39 | AL99: 54 | AM99: 39 | AN99: 58 | AO99: 190 | AP99: 38 | AQ99: ممتاز | AR99: 36 | AS99: 60 | AT99: 40 | AU99: 60 | AV99: 196 | AW99: 39.2 | AX99: ممتاز | AY99: 99 | AZ99: 97 | BA99: 196 | BB99: 19.6 | BC99: ممتاز | BD99: 98 | BE99: 98 | BF99: 196 | BG99: 19.6 | BH99: ممتاز | BI99: 99 | BJ99: 97 | BK99: 196 | BL99: 19.6 | BM99: ممتاز | BN99: 97 | BO99: 99 | BP99: 196 | BQ99: 19.6 | BR99: ممتاز | BS99: 98 | BT99: 98 | BU99: 196 | BV99: 19.6 | BW99: ممتاز | BX99: 330.5 | BY99: ممتاز | BZ99: 291.3 | CA99: 40 | CB99: 48 | CC99: 40 | CD99: 54 | CE99: 182 | CF99: 36.4 | CG99: ممتاز | CH99: 366.9 | CI99: =IF(ISNUMBER(BX99)=FALSE,MAX($G$12:$G$10003)-MIN($G$12:$G$10003)+COUNTIF($BX$12:BX99,BX99),RANK(BX99,$BX$12:$BX$268,0)) -> 21 | CV99: ناجح | DI99: 580 | EC99: 0 | ED99: 0 | EE99: 0 | EF99: 0 | EG99: 0 | EH99: 0 | EI99: 0 | EJ99: 0 | EK99: 0 | EL99: 0
A100: 30808081702162 | B100: 2008-08-08 | E100: 15 | F100: 103 | G100: =IF(H100="","",SUBTOTAL(3,$H$12:H100)) -> 89 | H100: سلسبيل صالح عبد الحفيظ المرسى | I100: 89 | J100: 8 | K100: 8 | L100: 2008 | M100: 23 | N100: 1 | O100: 9 | P100: 37 | Q100: 52 | R100: 38 | S100: 54 | T100: 181 | U100: 90.5 | V100: ممتاز | W100: 38 | X100: 46 | Y100: 38 | Z100: 52 | AA100: 174 | AB100: 69.6 | AC100: ممتاز | AD100: 39 | AE100: 55 | AF100: 38 | AG100: 60 | AH100: 192 | AI100: 38.4 | AJ100: ممتاز | AK100: 36 | AL100: 52 | AM100: 36 | AN100: 60 | AO100: 184 | AP100: 36.8 | AQ100: ممتاز | AR100: 38 | AS100: 60 | AT100: 39 | AU100: 59 | AV100: 196 | AW100: 39.2 | AX100: ممتاز | AY100: 99 | AZ100: 97 | BA100: 196 | BB100: 19.6 | BC100: ممتاز | BD100: 98 | BE100: 98 | BF100: 196 | BG100: 19.6 | BH100: ممتاز | BI100: 99 | BJ100: 97 | BK100: 196 | BL100: 19.6 | BM100: ممتاز | BN100: 97 | BO100: 99 | BP100: 196 | BQ100: 19.6 | BR100: ممتاز | BS100: 98 | BT100: 98 | BU100: 196 | BV100: 19.6 | BW100: ممتاز | BX100: 313.7 | BY100: ممتاز | BZ100: 274.5 | CA100: 36 | CB100: 53 | CC100: 36 | CD100: 51 | CE100: 176 | CF100: 35.2 | CG100: ممتاز | CH100: 348.9 | CI100: =IF(ISNUMBER(BX100)=FALSE,MAX($G$12:$G$10003)-MIN($G$12:$G$10003)+COUNTIF($BX$12:BX100,BX100),RANK(BX100,$BX$12:$BX$268,0)) -> 66 | CV100: ناجح | DI100: 550 | EC100: 0 | ED100: 0 | EE100: 0 | EF100: 0 | EG100: 0 | EH100: 0 | EI100: 0 | EJ100: 0 | EK100: 0 | EL100: 0
A101: 30801221701248 | B101: 2008-01-22 | E101: 16 | F101: 104 | G101: =IF(H101="","",SUBTOTAL(3,$H$12:H101)) -> 90 | H101: سلمى أيمن محمود البحيرى | I101: 90 | J101: 22 | K101: 1 | L101: 2008 | M101: 9 | N101: 8 | O101: 9 | P101: 38 | Q101: 60 | R101: 37 | S101: 59 | T101: 194 | U101: 97 | V101: ممتاز | W101: 39 | X101: 60 | Y101: 39 | Z101: 54 | AA101: 192 | AB101: 76.8 | AC101: ممتاز | AD101: 40 | AE101: 60 | AF101: 40 | AG101: 60 | AH101: 200 | AI101: 40 | AJ101: ممتاز | AK101: 39 | AL101: 58 | AM101: 39 | AN101: 56 | AO101: 192 | AP101: 38.4 | AQ101: ممتاز | AR101: 38 | AS101: 60 | AT101: 40 | AU101: 59 | AV101: 197 | AW101: 39.4 | AX101: ممتاز | AY101: 97 | AZ101: 97 | BA101: 194 | BB101: 19.4 | BC101: ممتاز | BD101: 98 | BE101: 98 | BF101: 196 | BG101: 19.6 | BH101: ممتاز | BI101: 97 | BJ101: 97 | BK101: 194 | BL101: 19.4 | BM101: ممتاز | BN101: 97 | BO101: 97 | BP101: 194 | BQ101: 19.4 | BR101: ممتاز | BS101: 98 | BT101: 98 | BU101: 196 | BV101: 19.6 | BW101: ممتاز | BX101: 330.6 | BY101: ممتاز | BZ101: 291.6 | CA101: 40 | CB101: 57 | CC101: 40 | CD101: 58 | CE101: 195 | CF101: 39 | CG101: ممتاز | CH101: 369.6 | CI101: =IF(ISNUMBER(BX101)=FALSE,MAX($G$12:$G$10003)-MIN($G$12:$G$10003)+COUNTIF($BX$12:BX101,BX101),RANK(BX101,$BX$12:$BX$268,0)) -> 20 | CV101: ناجح | DI101: 586 | EC101: 0 | ED101: 0 | EE101: 0 | EF101: 0 | EG101: 0 | EH101: 0 | EI101: 0 | EJ101: 0 | EK101: 0 | EL101: 0
A102: 30901011702106 | B102: 2009-01-01 | E102: 17 | F102: 105 | G102: =IF(H102="","",SUBTOTAL(3,$H$12:H102)) -> 91 | H102: سما رامى فتحى عبد العزيز عبد الرحمن | I102: 91 | J102: 1 | K102: 1 | L102: 2009 | M102: 0 | N102: 9 | O102: 8 | P102: 39 | Q102: 50 | R102: 39 | S102: 60 | T102: 188 | U102: 94 | V102: ممتاز | W102: 38 | X102: 32 | Y102: 39 | Z102: 54 | AA102: 163 | AB102: 65.2 | AC102: جيد جداً | AD102: 39 | AE102: 60 | AF102: 40 | AG102: 60 | AH102: 199 | AI102: 39.8 | AJ102: ممتاز | AK102: 36 | AL102: 42 | AM102: 36 | AN102: 54 | AO102: 168 | AP102: 33.6 | AQ102: ممتاز | AR102: 38 | AS102: 55 | AT102: 40 | AU102: 59 | AV102: 192 | AW102: 38.4 | AX102: ممتاز | AY102: 99 | AZ102: 97 | BA102: 196 | BB102: 19.6 | BC102: ممتاز | BD102: 98 | BE102: 98 | BF102: 196 | BG102: 19.6 | BH102: ممتاز | BI102: 99 | BJ102: 97 | BK102: 196 | BL102: 19.6 | BM102: ممتاز | BN102: 97 | BO102: 99 | BP102: 196 | BQ102: 19.6 | BR102: ممتاز | BS102: 98 | BT102: 98 | BU102: 196 | BV102: 19.6 | BW102: ممتاز | BX102: 310.2 | BY102: ممتاز | BZ102: 271 | CA102: 36 | CB102: 47 | CC102: 36 | CD102: 56 | CE102: 175 | CF102: 35 | CG102: ممتاز | CH102: 345.2 | CI102: =IF(ISNUMBER(BX102)=FALSE,MAX($G$12:$G$10003)-MIN($G$12:$G$10003)+COUNTIF($BX$12:BX102,BX102),RANK(BX102,$BX$12:$BX$268,0)) -> 70 | CV102: ناجح | DI102: 526 | EC102: 0 | ED102: 0 | EE102: 0 | EF102: 0 | EG102: 0 | EH102: 0 | EI102: 0 | EJ102: 0 | EK102: 0 | EL102: 0
A103: 30804281701769 | B103: 2008-04-28 | E103: 18 | F103: 106 | G103: =IF(H103="","",SUBTOTAL(3,$H$12:H103)) -> 92 | H103: شهد أحمد مكاوى أحمد | I103: 92 | J103: 28 | K103: 4 | L103: 2008 | M103: 3 | N103: 5 | O103: 9 | P103: 37 | Q103: 51 | R103: 36 | S103: 52 | T103: 176 | U103: 88 | V103: ممتاز | W103: 38 | X103: 50 | Y103: 38 | Z103: 40 | AA103: 166 | AB103: 66.4 | AC103: جيد جداً | AD103: 37 | AE103: 50 | AF103: 38 | AG103: 56 | AH103: 181 | AI103: 36.2 | AJ103: ممتاز | AK103: 37 | AL103: 46 | AM103: 37 | AN103: 52 | AO103: 172 | AP103: 34.4 | AQ103: ممتاز | AR103: 38 | AS103: 48 | AT103: 40 | AU103: 54 | AV103: 180 | AW103: 36 | AX103: ممتاز | AY103: 99 | AZ103: 97 | BA103: 196 | BB103: 19.6 | BC103: ممتاز | BD103: 98 | BE103: 98 | BF103: 196 | BG103: 19.6 | BH103: ممتاز | BI103: 99 | BJ103: 97 | BK103: 196 | BL103: 19.6 | BM103: ممتاز | BN103: 97 | BO103: 99 | BP103: 196 | BQ103: 19.6 | BR103: ممتاز | BS103: 98 | BT103: 98 | BU103: 196 | BV103: 19.6 | BW103: ممتاز | BX103: 300.2 | BY103: ممتاز | BZ103: 261 | CA103: 40 | CB103: 47 | CC103: 40 | CD103: 44 | CE103: 171 | CF103: 34.2 | CG103: ممتاز | CH103: 334.4 | CI103: =IF(ISNUMBER(BX103)=FALSE,MAX($G$12:$G$10003)-MIN($G$12:$G$10003)+COUNTIF($BX$12:BX103,BX103),RANK(BX103,$BX$12:$BX$268,0)) -> 86 | CV103: ناجح | DI103: 499 | EC103: 0 | ED103: 0 | EE103: 0 | EF103: 0 | EG103: 0 | EH103: 0 | EI103: 0 | EJ103: 0 | EK103: 0 | EL103: 0
A104: 30803231702326 | B104: 2008-03-23 | E104: 19 | F104: 107 | G104: =IF(H104="","",SUBTOTAL(3,$H$12:H104)) -> 93 | H104: شهد شوقى محمد حلمى عبد العزيز | I104: 93 | J104: 23 | K104: 3 | L104: 2008 | M104: 8 | N104: 6 | O104: 9 | P104: 39 | Q104: 59 | R104: 38 | S104: 60 | T104: 196 | U104: 98 | V104: ممتاز | W104: 40 | X104: 54 | Y104: 40 | Z104: 60 | AA104: 194 | AB104: 77.6 | AC104: ممتاز | AD104: 40 | AE104: 60 | AF104: 40 | AG104: 60 | AH104: 200 | AI104: 40 | AJ104: ممتاز | AK104: 38 | AL104: 54 | AM104: 38 | AN104: 54 | AO104: 184 | AP104: 36.8 | AQ104: ممتاز | AR104: 39 | AS104: 47 | AT104: 40 | AU104: 59 | AV104: 185 | AW104: 37 | AX104: ممتاز | AY104: 99 | AZ104: 97 | BA104: 196 | BB104: 19.6 | BC104: ممتاز | BD104: 98 | BE104: 98 | BF104: 196 | BG104: 19.6 | BH104: ممتاز | BI104: 99 | BJ104: 97 | BK104: 196 | BL104: 19.6 | BM104: ممتاز | BN104: 97 | BO104: 99 | BP104: 196 | BQ104: 19.6 | BR104: ممتاز | BS104: 98 | BT104: 98 | BU104: 196 | BV104: 19.6 | BW104: ممتاز | BX104: 328.6 | BY104: ممتاز | BZ104: 289.4 | CA104: 40 | CB104: 50 | CC104: 40 | CD104: 52 | CE104: 182 | CF104: 36.4 | CG104: ممتاز | CH104: 365 | CI104: =IF(ISNUMBER(BX104)=FALSE,MAX($G$12:$G$10003)-MIN($G$12:$G$10003)+COUNTIF($BX$12:BX104,BX104),RANK(BX104,$BX$12:$BX$268,0)) -> 32 | CV104: ناجح | DI104: 567 | EC104: 0 | ED104: 0 | EE104: 0 | EF104: 0 | EG104: 0 | EH104: 0 | EI104: 0 | EJ104: 0 | EK104: 0 | EL104: 0
A105: 30807161702981 | B105: 2008-07-16 | E105: 20 | F105: 108 | G105: =IF(H105="","",SUBTOTAL(3,$H$12:H105)) -> 94 | H105: شيماء ابراهيم أحمد متولى | I105: 94 | J105: 16 | K105: 7 | L105: 2008 | M105: 15 | N105: 2 | O105: 9 | P105: 39 | Q105: 51 | R105: 38 | S105: 56 | T105: 184 | U105: 92 | V105: ممتاز | W105: 38 | X105: 30 | Y105: 38 | Z105: 52 | AA105: 158 | AB105: 63.2 | AC105: جيد جداً | AD105: 38 | AE105: 47 | AF105: 38 | AG105: 55 | AH105: 178 | AI105: 35.6 | AJ105: ممتاز | AK105: 38 | AL105: 56 | AM105: 38 | AN105: 48 | AO105: 180 | AP105: 36 | AQ105: ممتاز | AR105: 38 | AS105: 52 | AT105: 40 | AU105: 59 | AV105: 189 | AW105: 37.8 | AX105: ممتاز | AY105: 99 | AZ105: 97 | BA105: 196 | BB105: 19.6 | BC105: ممتاز | BD105: 98 | BE105: 98 | BF105: 196 | BG105: 19.6 | BH105: ممتاز | BI105: 99 | BJ105: 97 | BK105: 196 | BL105: 19.6 | BM105: ممتاز | BN105: 97 | BO105: 99 | BP105: 196 | BQ105: 19.6 | BR105: ممتاز | BS105: 98 | BT105: 98 | BU105: 196 | BV105: 19.6 | BW105: ممتاز | BX105: 303.8 | BY105: ممتاز | BZ105: 264.6 | CA105: 36 | CB105: 50 | CC105: 40 | CD105: 56 | CE105: 182 | CF105: 36.4 | CG105: ممتاز | CH105: 340.2 | CI105: =IF(ISNUMBER(BX105)=FALSE,MAX($G$12:$G$10003)-MIN($G$12:$G$10003)+COUNTIF($BX$12:BX105,BX105),RANK(BX105,$BX$12:$BX$268,0)) -> 81 | CV105: ناجح | DI105: 506 | EC105: 0 | ED105: 0 | EE105: 0 | EF105: 0 | EG105: 0 | EH105: 0 | EI105: 0 | EJ105: 0 | EK105: 0 | EL105: 0
A106: 30808081702227 | B106: 2008-08-08 | E106: 21 | F106: 109 | G106: =IF(H106="","",SUBTOTAL(3,$H$12:H106)) -> 95 | H106: صفا يوسف السيد محمد يوسف | I106: 95 | J106: 8 | K106: 8 | L106: 2008 | M106: 23 | N106: 1 | O106: 9 | P106: 39 | Q106: 51 | R106: 39 | S106: 50 | T106: 179 | U106: 89.5 | V106: ممتاز | W106: 38 | X106: 44 | Y106: 38 | Z106: 48 | AA106: 168 | AB106: 67.2 | AC106: جيد جداً | AD106: 40 | AE106: 57 | AF106: 40 | AG106: 54 | AH106: 191 | AI106: 38.2 | AJ106: ممتاز | AK106: 38 | AL106: 58 | AM106: 38 | AN106: 54 | AO106: 188 | AP106: 37.6 | AQ106: ممتاز | AR106: 38 | AS106: 53 | AT106: 40 | AU106: 59 | AV106: 190 | AW106: 38 | AX106: ممتاز | AY106: 99 | AZ106: 97 | BA106: 196 | BB106: 19.6 | BC106: ممتاز | BD106: 98 | BE106: 98 | BF106: 196 | BG106: 19.6 | BH106: ممتاز | BI106: 99 | BJ106: 97 | BK106: 196 | BL106: 19.6 | BM106: ممتاز | BN106: 97 | BO106: 99 | BP106: 196 | BQ106: 19.6 | BR106: ممتاز | BS106: 98 | BT106: 98 | BU106: 196 | BV106: 19.6 | BW106: ممتاز | BX106: 309.7 | BY106: ممتاز | BZ106: 270.5 | CA106: 40 | CB106: 44 | CC106: 36 | CD106: 51 | CE106: 171 | CF106: 34.2 | CG106: ممتاز | CH106: 343.9 | CI106: =IF(ISNUMBER(BX106)=FALSE,MAX($G$12:$G$10003)-MIN($G$12:$G$10003)+COUNTIF($BX$12:BX106,BX106),RANK(BX106,$BX$12:$BX$268,0)) -> 72 | CV106: ناجح | DI106: 528 | EC106: 0 | ED106: 0 | EE106: 0 | EF106: 0 | EG106: 0 | EH106: 0 | EI106: 0 | EJ106: 0 | EK106: 0 | EL106: 0
A107: 30711271701444 | B107: 2007-11-27 | E107: 22 | F107: 110 | G107: =IF(H107="","",SUBTOTAL(3,$H$12:H107)) -> 96 | H107: صفاء أيمن فتحى أحمد رضوان | I107: 96 | J107: 27 | K107: 11 | L107: 2007 | M107: 4 | N107: 10 | O107: 9 | P107: 37 | Q107: 52 | R107: 39 | S107: 59 | T107: 187 | U107: 93.5 | V107: ممتاز | W107: 38 | X107: 48 | Y107: 38 | Z107: 44 | AA107: 168 | AB107: 67.2 | AC107: جيد جداً | AD107: 37 | AE107: 54 | AF107: 39 | AG107: 56 | AH107: 186 | AI107: 37.2 | AJ107: ممتاز | AK107: 38 | AL107: 54 | AM107: 38 | AN107: 56 | AO107: 186 | AP107: 37.2 | AQ107: ممتاز | AR107: 36 | AS107: 46 | AT107: 40 | AU107: 59 | AV107: 181 | AW107: 36.2 | AX107: ممتاز | AY107: 99 | AZ107: 97 | BA107: 196 | BB107: 19.6 | BC107: ممتاز | BD107: 98 | BE107: 98 | BF107: 196 | BG107: 19.6 | BH107: ممتاز | BI107: 99 | BJ107: 97 | BK107: 196 | BL107: 19.6 | BM107: ممتاز | BN107: 97 | BO107: 99 | BP107: 196 | BQ107: 19.6 | BR107: ممتاز | BS107: 98 | BT107: 98 | BU107: 196 | BV107: 19.6 | BW107: ممتاز | BX107: 310.5 | BY107: ممتاز | BZ107: 271.3 | CA107: 40 | CB107: 50 | CC107: 40 | CD107: 55 | CE107: 185 | CF107: 37 | CG107: ممتاز | CH107: 347.5 | CI107: =IF(ISNUMBER(BX107)=FALSE,MAX($G$12:$G$10003)-MIN($G$12:$G$10003)+COUNTIF($BX$12:BX107,BX107),RANK(BX107,$BX$12:$BX$268,0)) -> 69 | CV107: ناجح | DI107: 528 | EC107: 0 | ED107: 0 | EE107: 0 | EF107: 0 | EG107: 0 | EH107: 0 | EI107: 0 | EJ107: 0 | EK107: 0 | EL107: 0
A108: 30806141702768 | B108: 2008-06-14 | E108: 23 | F108: 111 | G108: =IF(H108="","",SUBTOTAL(3,$H$12:H108)) -> 97 | H108: فرح حسن عبدالحفيظ حسن | I108: 97 | J108: =DAY(B108) -> 14 | K108: =MONTH(B108) -> 6 | L108: =YEAR(B108) -> 2008 | M108: =DATEDIF(DATE(L108,K108,J108),$M$11,"md") -> 17 | N108: =DATEDIF(DATE(L108,K108,J108),$M$11,"ym") -> 3 | O108: =DATEDIF(DATE(L108,K108,J108),$M$11,"y") -> 9 | P108: 37 | Q108: 51 | R108: 38 | S108: 54 | T108: 180 | U108: 90 | V108: ممتاز | W108: 37 | X108: 44 | Y108: 38 | Z108: 50 | AA108: 169 | AB108: 67.6 | AC108: جيد جداً | AD108: 40 | AE108: 59 | AF108: 40 | AG108: 58 | AH108: 197 | AI108: 39.4 | AJ108: ممتاز | AK108: 38 | AL108: 58 | AM108: 38 | AN108: 54 | AO108: 188 | AP108: 37.6 | AQ108: ممتاز | AR108: 38 | AS108: 55 | AT108: 40 | AU108: 59 | AV108: 192 | AW108: 38.4 | AX108: ممتاز | AY108: 99 | AZ108: 97 | BA108: 196 | BB108: 19.6 | BC108: ممتاز | BD108: 98 | BE108: 98 | BF108: 196 | BG108: 19.6 | BH108: ممتاز | BI108: 99 | BJ108: 97 | BK108: 196 | BL108: 19.6 | BM108: ممتاز | BN108: 97 | BO108: 99 | BP108: 196 | BQ108: 19.6 | BR108: ممتاز | BS108: 98 | BT108: 98 | BU108: 196 | BV108: 19.6 | BW108: ممتاز | BX108: =IF(AND(AW108="غ",AP108="غ",AI108="غ",AB108="غ",U108="غ"),"غ",SUM(AW108,AP108,AI108,AB108,U108,BQ108,BV108)) -> 312.2 | BY108: ممتاز | BZ108: =IF(AND(AW108="غ",AP108="غ",AI108="غ",AB108="غ",U108="غ"),"غ",SUM(AW108,AP108,AI108,AB108,U108)) -> 273 | CA108: 40 | CB108: 36 | CC108: 36 | CD108: 58 | CE108: 170 | CF108: 34 | CG108: ممتاز | CH108: 346.2 | CI108: =IF(ISNUMBER(BX108)=FALSE,MAX($G$12:$G$10003)-MIN($G$12:$G$10003)+COUNTIF($BX$12:BX108,BX108),RANK(BX108,$BX$12:$BX$268,0)) -> 68 | CK108: =IF(OR(S108<18,S108="غ",U108<50,U108="غ")," - عربى ","") ->  | CL108: =IF(OR(Z108<18,Z108="غ",AB108<40,AB108="غ")," - رياضيات ","") ->  | CM108: =IF(OR(AG108<18,AG108="غ",AI108<20,AI108="غ")," - إنجليزى ","") ->  | CN108: =IF(OR(AN108<18,AN108="غ",AP108<20,AP108="غ")," - دراسات ","") ->  | CO108: =IF(OR(AU108<18,AU108="غ",AW108<20,AW108="غ")," - علوم ","") ->  | CV108: ناجح | DI108: =IF(AND(Q108="غ",S108="غ",X108="غ",Z108="غ",AE108="غ",AG108="غ",AL108="غ",AN108="غ",AS108="غ",AU108="غ"),"غ",IF(AND(Q108="صفر",S108="صفر",X108="صفر",Z108="صفر",AE108="صفر",AG108="صفر",AL108="صفر",AN108="صفر",AS108="صفر",AU108="صفر"),"صفر",SUM(Q108,S108,X108,Z108,AE108,AG108,AL108,AN108,AS108,AU108))) -> 542 | EC108: =IF(Q108<26,"عربى",0) -> 0 | ED108: =IF(X108<26,"رياضيات",0) -> 0 | EE108: =IF(AE108<26,"إنجليزى",0) -> 0 | EF108: =IF(AL108<26,"دراسات",0) -> 0 | EG108: =IF(AS108<26,"علوم",0) -> 0 | EH108: =IF(BB108<13,"فنى",0) -> 0 | EI108: =IF(BG108<13,"رياضى",0) -> 0 | EJ108: =IF(BQ108<13,"نشاط1",0) -> 0 | EK108: =IF(BV108<13,"نشاط2",0) -> 0 | EL108: =IF(CB108<26,"دين",0) -> 0
A109: 30809241702284 | B109: 2008-09-24 | E109: 24 | F109: 112 | G109: =IF(H109="","",SUBTOTAL(3,$H$12:H109)) -> 98 | H109: فرح عبد الله عبد المنعم يوسف | I109: =IF(OR($I$4=0,$H109=""),"",$I108+1) -> 98 | J109: 24 | K109: 9 | L109: 2008 | M109: 7 | N109: 0 | O109: 9 | P109: 39 | Q109: 57 | R109: 39 | S109: 56 | T109: 191 | U109: 95.5 | V109: ممتاز | W109: 38 | X109: 42 | Y109: 39 | Z109: 54 | AA109: 173 | AB109: 69.2 | AC109: ممتاز | AD109: 37 | AE109: 48 | AF109: 38 | AG109: 58 | AH109: 181 | AI109: 36.2 | AJ109: ممتاز | AK109: 38 | AL109: 50 | AM109: 38 | AN109: 56 | AO109: 182 | AP109: 36.4 | AQ109: ممتاز | AR109: 38 | AS109: 60 | AT109: 40 | AU109: 59 | AV109: 197 | AW109: 39.4 | AX109: ممتاز | AY109: 99 | AZ109: 97 | BA109: 196 | BB109: 19.6 | BC109: ممتاز | BD109: 97 | BE109: 98 | BF109: 195 | BG109: 19.5 | BH109: ممتاز | BI109: 99 | BJ109: 97 | BK109: 196 | BL109: 19.6 | BM109: ممتاز | BN109: 97 | BO109: 99 | BP109: 196 | BQ109: 19.6 | BR109: ممتاز | BS109: 98 | BT109: 97 | BU109: 195 | BV109: 19.5 | BW109: ممتاز | BX109: 315.8 | BY109: ممتاز | BZ109: 276.7 | CA109: 36 | CB109: 47 | CC109: 36 | CD109: 54 | CE109: 173 | CF109: 34.6 | CG109: ممتاز | CH109: 350.4 | CI109: =IF(ISNUMBER(BX109)=FALSE,MAX($G$12:$G$10003)-MIN($G$12:$G$10003)+COUNTIF($BX$12:BX109,BX109),RANK(BX109,$BX$12:$BX$268,0)) -> 62 | CV109: ناجح | DI109: 540 | EC109: 0 | ED109: 0 | EE109: 0 | EF109: 0 | EG109: 0 | EH109: 0 | EI109: 0 | EJ109: 0 | EK109: 0 | EL109: 0
A110: 30810011724066 | B110: 2008-10-01 | E110: 25 | F110: 113 | G110: =IF(H110="","",SUBTOTAL(3,$H$12:H110)) -> 99 | H110: مريم احمد مأمون السيد زايد | I110: 99 | J110: 1 | K110: 10 | L110: 2008 | M110: 0 | N110: 0 | O110: 9 | P110: 40 | Q110: 59 | R110: 40 | S110: 60 | T110: 199 | U110: 99.5 | V110: ممتاز | W110: 39 | X110: 50 | Y110: 40 | Z110: 60 | AA110: 189 | AB110: 75.6 | AC110: ممتاز | AD110: 40 | AE110: 60 | AF110: 40 | AG110: 60 | AH110: 200 | AI110: 40 | AJ110: ممتاز | AK110: 38 | AL110: 54 | AM110: 38 | AN110: 60 | AO110: 190 | AP110: 38 | AQ110: ممتاز | AR110: 36 | AS110: 60 | AT110: 40 | AU110: 58 | AV110: 194 | AW110: 38.8 | AX110: ممتاز | AY110: 99 | AZ110: 99 | BA110: 198 | BB110: 19.8 | BC110: ممتاز | BD110: 98 | BE110: 98 | BF110: 196 | BG110: 19.6 | BH110: ممتاز | BI110: 99 | BJ110: 99 | BK110: 198 | BL110: 19.8 | BM110: ممتاز | BN110: 99 | BO110: 99 | BP110: 198 | BQ110: 19.8 | BR110: ممتاز | BS110: 98 | BT110: 98 | BU110: 196 | BV110: 19.6 | BW110: ممتاز | BX110: 331.3 | BY110: ممتاز | BZ110: 291.9 | CA110: 40 | CB110: 58 | CC110: 40 | CD110: 57 | CE110: 195 | CF110: 39 | CG110: ممتاز | CH110: 370.3 | CI110: =IF(ISNUMBER(BX110)=FALSE,MAX($G$12:$G$10003)-MIN($G$12:$G$10003)+COUNTIF($BX$12:BX110,BX110),RANK(BX110,$BX$12:$BX$268,0)) -> 17 | CV110: ناجح | DI110: 581 | EC110: 0 | ED110: 0 | EE110: 0 | EF110: 0 | EG110: 0 | EH110: 0 | EI110: 0 | EJ110: 0 | EK110: 0 | EL110: 0
A111: 30807101702222 | B111: 2008-07-10 | E111: 26 | F111: 114 | G111: =IF(H111="","",SUBTOTAL(3,$H$12:H111)) -> 100 | H111: مريم بشير فتحي عبد الكريم | I111: 100 | J111: 10 | K111: 7 | L111: 2008 | M111: 21 | N111: 2 | O111: 9 | P111: 38 | Q111: 57 | R111: 37 | S111: 57 | T111: 189 | U111: 94.5 | V111: ممتاز | W111: 40 | X111: 48 | Y111: 40 | Z111: 60 | AA111: 188 | AB111: 75.2 | AC111: ممتاز | AD111: 37 | AE111: 60 | AF111: 40 | AG111: 60 | AH111: 197 | AI111: 39.4 | AJ111: ممتاز | AK111: 37 | AL111: 58 | AM111: 37 | AN111: 60 | AO111: 192 | AP111: 38.4 | AQ111: ممتاز | AR111: 39 | AS111: 60 | AT111: 40 | AU111: 60 | AV111: 199 | AW111: 39.8 | AX111: ممتاز | AY111: 99 | AZ111: 97 | BA111: 196 | BB111: 19.6 | BC111: ممتاز | BD111: 98 | BE111: 98 | BF111: 196 | BG111: 19.6 | BH111: ممتاز | BI111: 99 | BJ111: 97 | BK111: 196 | BL111: 19.6 | BM111: ممتاز | BN111: 97 | BO111: 99 | BP111: 196 | BQ111: 19.6 | BR111: ممتاز | BS111: 98 | BT111: 98 | BU111: 196 | BV111: 19.6 | BW111: ممتاز | BX111: 326.5 | BY111: ممتاز | BZ111: 287.3 | CA111: 40 | CB111: 52 | CC111: 40 | CD111: 55 | CE111: 187 | CF111: 37.4 | CG111: ممتاز | CH111: 363.9 | CI111: =IF(ISNUMBER(BX111)=FALSE,MAX($G$12:$G$10003)-MIN($G$12:$G$10003)+COUNTIF($BX$12:BX111,BX111),RANK(BX111,$BX$12:$BX$268,0)) -> 41 | CV111: ناجح | DI111: 580 | EC111: 0 | ED111: 0 | EE111: 0 | EF111: 0 | EG111: 0 | EH111: 0 | EI111: 0 | EJ111: 0 | EK111: 0 | EL111: 0
A112: 30901011704125 | B112: 2009-01-01 | E112: 27 | F112: 115 | G112: =IF(H112="","",SUBTOTAL(3,$H$12:H112)) -> 101 | H112: مريم محمد حسن عبد الحفيظ | I112: 101 | J112: 1 | K112: 1 | L112: 2009 | M112: 0 | N112: 9 | O112: 8 | P112: 40 | Q112: 60 | R112: 40 | S112: 60 | T112: 200 | U112: 100 | V112: ممتاز | W112: 40 | X112: 60 | Y112: 40 | Z112: 54 | AA112: 194 | AB112: 77.6 | AC112: ممتاز | AD112: 40 | AE112: 60 | AF112: 40 | AG112: 60 | AH112: 200 | AI112: 40 | AJ112: ممتاز | AK112: 40 | AL112: 58 | AM112: 40 | AN112: 60 | AO112: 198 | AP112: 39.6 | AQ112: ممتاز | AR112: 38 | AS112: 60 | AT112: 40 | AU112: 60 | AV112: 198 | AW112: 39.6 | AX112: ممتاز | AY112: 99 | AZ112: 97 | BA112: 196 | BB112: 19.6 | BC112: ممتاز | BD112: 98 | BE112: 97 | BF112: 195 | BG112: 19.5 | BH112: ممتاز | BI112: 99 | BJ112: 97 | BK112: 196 | BL112: 19.6 | BM112: ممتاز | BN112: 97 | BO112: 99 | BP112: 196 | BQ112: 19.6 | BR112: ممتاز | BS112: 97 | BT112: 98 | BU112: 195 | BV112: 19.5 | BW112: ممتاز | BX112: 335.9 | BY112: ممتاز | BZ112: 296.8 | CA112: 40 | CB112: 60 | CC112: 40 | CD112: 58 | CE112: 198 | CF112: 39.6 | CG112: ممتاز | CH112: 375.5 | CI112: =IF(ISNUMBER(BX112)=FALSE,MAX($G$12:$G$10003)-MIN($G$12:$G$10003)+COUNTIF($BX$12:BX112,BX112),RANK(BX112,$BX$12:$BX$268,0)) -> 4 | CV112: ناجح | DI112: 592 | EC112: 0 | ED112: 0 | EE112: 0 | EF112: 0 | EG112: 0 | EH112: 0 | EI112: 0 | EJ112: 0 | EK112: 0 | EL112: 0
A113: 30809291704164 | B113: 2008-09-29 | E113: 28 | F113: 116 | G113: =IF(H113="","",SUBTOTAL(3,$H$12:H113)) -> 102 | H113: مريم محمد حسين محمد عفيفى | I113: 102 | J113: 29 | K113: 9 | L113: 2008 | M113: 2 | N113: 0 | O113: 9 | P113: 40 | Q113: 59 | R113: 39 | S113: 59 | T113: 197 | U113: 98.5 | V113: ممتاز | W113: 39 | X113: 52 | Y113: 39 | Z113: 54 | AA113: 184 | AB113: 73.6 | AC113: ممتاز | AD113: 40 | AE113: 60 | AF113: 40 | AG113: 58 | AH113: 198 | AI113: 39.6 | AJ113: ممتاز | AK113: 40 | AL113: 60 | AM113: 40 | AN113: 60 | AO113: 200 | AP113: 40 | AQ113: ممتاز | AR113: 38 | AS113: 54 | AT113: 40 | AU113: 60 | AV113: 192 | AW113: 38.4 | AX113: ممتاز | AY113: 99 | AZ113: 97 | BA113: 196 | BB113: 19.6 | BC113: ممتاز | BD113: 98 | BE113: 98 | BF113: 196 | BG113: 19.6 | BH113: ممتاز | BI113: 99 | BJ113: 97 | BK113: 196 | BL113: 19.6 | BM113: ممتاز | BN113: 97 | BO113: 99 | BP113: 196 | BQ113: 19.6 | BR113: ممتاز | BS113: 98 | BT113: 98 | BU113: 196 | BV113: 19.6 | BW113: ممتاز | BX113: 329.3 | BY113: ممتاز | BZ113: 290.1 | CA113: 40 | CB113: 60 | CC113: 40 | CD113: 58 | CE113: 198 | CF113: 39.6 | CG113: ممتاز | CH113: 368.9 | CI113: =IF(ISNUMBER(BX113)=FALSE,MAX($G$12:$G$10003)-MIN($G$12:$G$10003)+COUNTIF($BX$12:BX113,BX113),RANK(BX113,$BX$12:$BX$268,0)) -> 27 | CV113: ناجح | DI113: 576 | EC113: 0 | ED113: 0 | EE113: 0 | EF113: 0 | EG113: 0 | EH113: 0 | EI113: 0 | EJ113: 0 | EK113: 0 | EL113: 0
A114: 30807101702206 | B114: 2008-07-10 | E114: 29 | F114: 117 | G114: =IF(H114="","",SUBTOTAL(3,$H$12:H114)) -> 103 | H114: ملك احمد عبدالرازق يوسف | I114: 103 | J114: 10 | K114: 7 | L114: 2008 | M114: 21 | N114: 2 | O114: 9 | P114: 40 | Q114: 60 | R114: 40 | S114: 59 | T114: 199 | U114: 99.5 | V114: ممتاز | W114: 40 | X114: 46 | Y114: 40 | Z114: 56 | AA114: 182 | AB114: 72.8 | AC114: ممتاز | AD114: 40 | AE114: 60 | AF114: 40 | AG114: 60 | AH114: 200 | AI114: 40 | AJ114: ممتاز | AK114: 40 | AL114: 56 | AM114: 40 | AN114: 50 | AO114: 186 | AP114: 37.2 | AQ114: ممتاز | AR114: 39 | AS114: 59 | AT114: 40 | AU114: 60 | AV114: 198 | AW114: 39.6 | AX114: ممتاز | AY114: 99 | AZ114: 99 | BA114: 198 | BB114: 19.8 | BC114: ممتاز | BD114: 97 | BE114: 98 | BF114: 195 | BG114: 19.5 | BH114: ممتاز | BI114: 99 | BJ114: 99 | BK114: 198 | BL114: 19.8 | BM114: ممتاز | BN114: 99 | BO114: 99 | BP114: 198 | BQ114: 19.8 | BR114: ممتاز | BS114: 98 | BT114: 97 | BU114: 195 | BV114: 19.5 | BW114: ممتاز | BX114: 328.4 | BY114: ممتاز | BZ114: 289.1 | CA114: 40 | CB114: 51 | CC114: 40 | CD114: 58 | CE114: 189 | CF114: 37.8 | CG114: ممتاز | CH114: 366.2 | CI114: =IF(ISNUMBER(BX114)=FALSE,MAX($G$12:$G$10003)-MIN($G$12:$G$10003)+COUNTIF($BX$12:BX114,BX114),RANK(BX114,$BX$12:$BX$268,0)) -> 34 | CV114: ناجح | DI114: 566 | EC114: 0 | ED114: 0 | EE114: 0 | EF114: 0 | EG114: 0 | EH114: 0 | EI114: 0 | EJ114: 0 | EK114: 0 | EL114: 0
A115: 30805251703488 | B115: 2008-05-25 | E115: 30 | F115: 118 | G115: =IF(H115="","",SUBTOTAL(3,$H$12:H115)) -> 104 | H115: ملك أيمن صبحى حماد | I115: 104 | J115: 25 | K115: 5 | L115: 2008 | M115: 6 | N115: 4 | O115: 9 | P115: 40 | Q115: 46 | R115: 36 | S115: 31 | T115: 153 | U115: 76.5 | V115: جيد جداً | W115: 38 | X115: 34 | Y115: 38 | Z115: 44 | AA115: 154 | AB115: 61.6 | AC115: جيد جداً | AD115: 30 | AE115: 34 | AF115: 35 | AG115: 56 | AH115: 155 | AI115: 31 | AJ115: جيد جداً | AK115: 36 | AL115: 20 | AM115: 36 | AN115: 46 | AO115: 138 | AP115: 27.6 | AQ115: جيد | AR115: 36 | AS115: 49 | AT115: 40 | AU115: 50 | AV115: 175 | AW115: 35 | AX115: ممتاز | AY115: 99 | AZ115: 97 | BA115: 196 | BB115: 19.6 | BC115: ممتاز | BD115: 98 | BE115: 98 | BF115: 196 | BG115: 19.6 | BH115: ممتاز | BI115: 99 | BJ115: 97 | BK115: 196 | BL115: 19.6 | BM115: ممتاز | BN115: 97 | BO115: 99 | BP115: 196 | BQ115: 19.6 | BR115: ممتاز | BS115: 98 | BT115: 98 | BU115: 196 | BV115: 19.6 | BW115: ممتاز | BX115: 270.9 | BY115: جيد جدا | BZ115: 231.7 | CA115: 38 | CB115: 41 | CC115: 36 | CD115: 44 | CE115: 159 | CF115: 31.8 | CG115: جيد جداً | CH115: 302.7 | CI115: =IF(ISNUMBER(BX115)=FALSE,MAX($G$12:$G$10003)-MIN($G$12:$G$10003)+COUNTIF($BX$12:BX115,BX115),RANK(BX115,$BX$12:$BX$268,0)) -> 111 | CV115: ناجح | DI115: 410 | EC115: 0 | ED115: 0 | EE115: 0 | EF115: دراسات | EG115: 0 | EH115: 0 | EI115: 0 | EJ115: 0 | EK115: 0 | EL115: 0
A116: 30806011707989 | B116: =TEXT(LEFT(A116,7)+17000000,"####-##-##")+0 -> 2008-06-01 | E116: 31 | F116: 119 | G116: =IF(H116="","",SUBTOTAL(3,$H$12:H116)) -> 105 | H116: ملك حاتم عبد الله بكر | I116: 105 | J116: 1 | K116: 6 | L116: 2008 | M116: 0 | N116: 4 | O116: 9 | P116: 40 | Q116: 60 | R116: 40 | S116: 57 | T116: 197 | U116: 98.5 | V116: ممتاز | W116: 39 | X116: 58 | Y116: 40 | Z116: 57 | AA116: 194 | AB116: 77.6 | AC116: ممتاز | AD116: 40 | AE116: 60 | AF116: 40 | AG116: 58 | AH116: 198 | AI116: 39.6 | AJ116: ممتاز | AK116: 40 | AL116: 60 | AM116: 40 | AN116: 60 | AO116: 200 | AP116: 40 | AQ116: ممتاز | AR116: 38 | AS116: 55 | AT116: 40 | AU116: 60 | AV116: 193 | AW116: 38.6 | AX116: ممتاز | AY116: 99 | AZ116: 97 | BA116: 196 | BB116: 19.6 | BC116: ممتاز | BD116: 98 | BE116: 98 | BF116: 196 | BG116: 19.6 | BH116: ممتاز | BI116: 99 | BJ116: 97 | BK116: 196 | BL116: 19.6 | BM116: ممتاز | BN116: 97 | BO116: 99 | BP116: 196 | BQ116: 19.6 | BR116: ممتاز | BS116: 98 | BT116: 98 | BU116: 196 | BV116: 19.6 | BW116: ممتاز | BX116: 333.5 | BY116: ممتاز | BZ116: 294.3 | CA116: 40 | CB116: 52 | CC116: 40 | CD116: 51 | CE116: 183 | CF116: 36.6 | CG116: ممتاز | CH116: 370.1 | CI116: =IF(ISNUMBER(BX116)=FALSE,MAX($G$12:$G$10003)-MIN($G$12:$G$10003)+COUNTIF($BX$12:BX116,BX116),RANK(BX116,$BX$12:$BX$268,0)) -> 7 | CV116: ناجح | DI116: 585 | EC116: 0 | ED116: 0 | EE116: 0 | EF116: 0 | EG116: 0 | EH116: 0 | EI116: 0 | EJ116: 0 | EK116: 0 | EL116: 0
A117: 30805121702781 | B117: =TEXT(LEFT(A117,7)+17000000,"####-##-##")+0 -> 2008-05-12 | E117: 32 | F117: 120 | G117: =IF(H117="","",SUBTOTAL(3,$H$12:H117)) -> 106 | H117: ملك صالح السيد حسن عطية | I117: 106 | J117: =DAY(B117) -> 12 | K117: =MONTH(B117) -> 5 | L117: =YEAR(B117) -> 2008 | M117: 19 | N117: 4 | O117: 9 | P117: 36 | Q117: 32 | R117: 36 | S117: 21 | T117: 125 | U117: 62.5 | V117: مقبول | W117: 37 | X117: 30 | Y117: 37 | Z117: 40 | AA117: 144 | AB117: 57.6 | AC117: جيد | AD117: 30 | AE117: 23 | AF117: 35 | AG117: 45 | AH117: 133 | AI117: 26.6 | AJ117: جيد | AK117: 39 | AL117: 14 | AM117: 39 | AN117: 28 | AO117: 120 | AP117: 24 | AQ117: مقبول | AR117: 38 | AS117: 48 | AT117: 40 | AU117: 40 | AV117: 166 | AW117: 33.2 | AX117: ممتاز | AY117: 99 | AZ117: 97 | BA117: 196 | BB117: 19.6 | BC117: ممتاز | BD117: 98 | BE117: 98 | BF117: 196 | BG117: 19.6 | BH117: ممتاز | BI117: 99 | BJ117: 97 | BK117: 196 | BL117: 19.6 | BM117: ممتاز | BN117: 97 | BO117: 99 | BP117: 196 | BQ117: 19.6 | BR117: ممتاز | BS117: 98 | BT117: 98 | BU117: 196 | BV117: 19.6 | BW117: ممتاز | BX117: 243.1 | BY117: جيد | BZ117: 203.9 | CA117: 30 | CB117: 30 | CC117: 36 | CD117: 28 | CE117: 124 | CF117: 24.8 | CG117: مقبول | CH117: =IF(OR(BX117="غ",CF117="غ"),"غ",BX117+CF117) -> 267.9 | CI117: =IF(ISNUMBER(BX117)=FALSE,MAX($G$12:$G$10003)-MIN($G$12:$G$10003)+COUNTIF($BX$12:BX117,BX117),RANK(BX117,$BX$12:$BX$268,0)) -> 115 | CP117: =IF(OR(CD117<18,CD117="غ",CF117<20,CF117="غ")," - دين ","") ->  | CS117: =CONCATENATE(CK117,CL117,CM117,CN117,CO117,CP117) ->  | CV117: =IF(CS117="","ناجح","دور ثان") -> ناجح | DI117: 321 | EC117: 0 | ED117: 0 | EE117: إنجليزى | EF117: دراسات | EG117: 0 | EH117: 0 | EI117: 0 | EJ117: 0 | EK117: =IF(BV117<13,"نشاط2",0) -> 0 | EL117: =IF(CB117<26,"دين",0) -> 0
A118: 30810201703006 | B118: 2008-10-20 | E118: 33 | F118: 121 | G118: =IF(H118="","",SUBTOTAL(3,$H$12:H118)) -> 107 | H118: ملك محمد على عبد الجواد | I118: 107 | J118: 20 | K118: 10 | L118: 2008 | M118: 11 | N118: 11 | O118: 8 | P118: 39 | Q118: 51 | R118: 40 | S118: 46 | T118: 176 | U118: 88 | V118: ممتاز | W118: 38 | X118: 44 | Y118: 38 | Z118: 44 | AA118: 164 | AB118: 65.6 | AC118: جيد جداً | AD118: 40 | AE118: 60 | AF118: 40 | AG118: 54 | AH118: 194 | AI118: 38.8 | AJ118: ممتاز | AK118: 39 | AL118: 44 | AM118: 39 | AN118: 48 | AO118: 170 | AP118: 34 | AQ118: ممتاز | AR118: 36 | AS118: 52 | AT118: 40 | AU118: 52 | AV118: 180 | AW118: 36 | AX118: ممتاز | AY118: 99 | AZ118: 97 | BA118: 196 | BB118: 19.6 | BC118: ممتاز | BD118: 98 | BE118: 98 | BF118: 196 | BG118: 19.6 | BH118: ممتاز | BI118: 99 | BJ118: 97 | BK118: 196 | BL118: 19.6 | BM118: ممتاز | BN118: 97 | BO118: 99 | BP118: 196 | BQ118: 19.6 | BR118: ممتاز | BS118: 98 | BT118: 98 | BU118: 196 | BV118: 19.6 | BW118: ممتاز | BX118: 301.6 | BY118: ممتاز | BZ118: 262.4 | CA118: 39 | CB118: 36 | CC118: 40 | CD118: 31 | CE118: 146 | CF118: 29.2 | CG118: جيد | CH118: 330.8 | CI118: =IF(ISNUMBER(BX118)=FALSE,MAX($G$12:$G$10003)-MIN($G$12:$G$10003)+COUNTIF($BX$12:BX118,BX118),RANK(BX118,$BX$12:$BX$268,0)) -> 85 | CV118: ناجح | DI118: 495 | EC118: 0 | ED118: 0 | EE118: 0 | EF118: 0 | EG118: 0 | EH118: 0 | EI118: 0 | EJ118: 0 | EK118: 0 | EL118: 0
A119: 30806101703869 | B119: 2008-06-10 | E119: 34 | F119: 122 | G119: =IF(H119="","",SUBTOTAL(3,$H$12:H119)) -> 108 | H119: ملك مصطفي طه عبد الحميد | I119: 108 | J119: 10 | K119: 6 | L119: 2008 | M119: 21 | N119: 3 | O119: 9 | P119: 40 | Q119: 60 | R119: 40 | S119: 58 | T119: 198 | U119: 99 | V119: ممتاز | W119: 39 | X119: 52 | Y119: 40 | Z119: 50 | AA119: 181 | AB119: 72.4 | AC119: ممتاز | AD119: 40 | AE119: 60 | AF119: 40 | AG119: 58 | AH119: 198 | AI119: 39.6 | AJ119: ممتاز | AK119: 38 | AL119: 60 | AM119: 38 | AN119: 58 | AO119: 194 | AP119: 38.8 | AQ119: ممتاز | AR119: 38 | AS119: 58 | AT119: 40 | AU119: 60 | AV119: 196 | AW119: 39.2 | AX119: ممتاز | AY119: 99 | AZ119: 97 | BA119: 196 | BB119: 19.6 | BC119: ممتاز | BD119: 98 | BE119: 98 | BF119: 196 | BG119: 19.6 | BH119: ممتاز | BI119: 99 | BJ119: 97 | BK119: 196 | BL119: 19.6 | BM119: ممتاز | BN119: 97 | BO119: 99 | BP119: 196 | BQ119: 19.6 | BR119: ممتاز | BS119: 98 | BT119: 98 | BU119: 196 | BV119: 19.6 | BW119: ممتاز | BX119: 328.2 | BY119: ممتاز | BZ119: 289 | CA119: 40 | CB119: 54 | CC119: 40 | CD119: 42 | CE119: 176 | CF119: 35.2 | CG119: ممتاز | CH119: 363.4 | CI119: =IF(ISNUMBER(BX119)=FALSE,MAX($G$12:$G$10003)-MIN($G$12:$G$10003)+COUNTIF($BX$12:BX119,BX119),RANK(BX119,$BX$12:$BX$268,0)) -> 35 | CV119: ناجح | DI119: 574 | EC119: 0 | ED119: 0 | EE119: 0 | EF119: 0 | EG119: 0 | EH119: 0 | EI119: 0 | EJ119: 0 | EK119: 0 | EL119: 0
A120: 30806191702068 | B120: 2008-06-19 | E120: 35 | F120: 123 | G120: =IF(H120="","",SUBTOTAL(3,$H$12:H120)) -> 109 | H120: ملك وليد أحمد أحمد | I120: 109 | J120: 19 | K120: 6 | L120: 2008 | M120: 12 | N120: 3 | O120: 9 | P120: 37 | Q120: 49 | R120: 37 | S120: 50 | T120: 173 | U120: 86.5 | V120: ممتاز | W120: 37 | X120: 32 | Y120: 38 | Z120: 39 | AA120: 146 | AB120: 58.4 | AC120: جيد | AD120: 37 | AE120: 43 | AF120: 37 | AG120: 52 | AH120: 169 | AI120: 33.8 | AJ120: ممتاز | AK120: 40 | AL120: 42 | AM120: 40 | AN120: 40 | AO120: 162 | AP120: 32.4 | AQ120: ممتاز | AR120: 35 | AS120: 46 | AT120: 40 | AU120: 47 | AV120: 168 | AW120: 33.6 | AX120: ممتاز | AY120: 99 | AZ120: 97 | BA120: 196 | BB120: 19.6 | BC120: ممتاز | BD120: 98 | BE120: 98 | BF120: 196 | BG120: 19.6 | BH120: ممتاز | BI120: 99 | BJ120: 97 | BK120: 196 | BL120: 19.6 | BM120: ممتاز | BN120: 97 | BO120: 99 | BP120: 196 | BQ120: 19.6 | BR120: ممتاز | BS120: 98 | BT120: 98 | BU120: 196 | BV120: 19.6 | BW120: ممتاز | BX120: 283.9 | BY120: جيد جدا | BZ120: 244.7 | CA120: 36 | CB120: 35 | CC120: 36 | CD120: 40 | CE120: 147 | CF120: 29.4 | CG120: جيد | CH120: 313.3 | CI120: =IF(ISNUMBER(BX120)=FALSE,MAX($G$12:$G$10003)-MIN($G$12:$G$10003)+COUNTIF($BX$12:BX120,BX120),RANK(BX120,$BX$12:$BX$268,0)) -> 106 | CV120: ناجح | DI120: 440 | EC120: 0 | ED120: 0 | EE120: 0 | EF120: 0 | EG120: 0 | EH120: 0 | EI120: 0 | EJ120: 0 | EK120: 0 | EL120: 0
A121: 30802171701965 | B121: 2008-02-17 | E121: 36 | F121: 124 | G121: =IF(H121="","",SUBTOTAL(3,$H$12:H121)) -> 110 | H121: منه عصام عبد العال عبد الواحد | I121: 110 | J121: 17 | K121: 2 | L121: 2008 | M121: 14 | N121: 7 | O121: 9 | P121: 40 | Q121: 59 | R121: 40 | S121: 56 | T121: 195 | U121: 97.5 | V121: ممتاز | W121: 40 | X121: 52 | Y121: 40 | Z121: 60 | AA121: 192 | AB121: 76.8 | AC121: ممتاز | AD121: 40 | AE121: 60 | AF121: 40 | AG121: 56 | AH121: 196 | AI121: 39.2 | AJ121: ممتاز | AK121: 38 | AL121: 60 | AM121: 38 | AN121: 56 | AO121: 192 | AP121: 38.4 | AQ121: ممتاز | AR121: 36 | AS121: 54 | AT121: 40 | AU121: 57 | AV121: 187 | AW121: 37.4 | AX121: ممتاز | AY121: 99 | AZ121: 97 | BA121: 196 | BB121: 19.6 | BC121: ممتاز | BD121: 98 | BE121: 98 | BF121: 196 | BG121: 19.6 | BH121: ممتاز | BI121: 99 | BJ121: 97 | BK121: 196 | BL121: 19.6 | BM121: ممتاز | BN121: 97 | BO121: 99 | BP121: 196 | BQ121: 19.6 | BR121: ممتاز | BS121: 98 | BT121: 98 | BU121: 196 | BV121: 19.6 | BW121: ممتاز | BX121: 328.5 | BY121: ممتاز | BZ121: 289.3 | CA121: 40 | CB121: 58 | CC121: 40 | CD121: 49 | CE121: 187 | CF121: 37.4 | CG121: ممتاز | CH121: 365.9 | CI121: =IF(ISNUMBER(BX121)=FALSE,MAX($G$12:$G$10003)-MIN($G$12:$G$10003)+COUNTIF($BX$12:BX121,BX121),RANK(BX121,$BX$12:$BX$268,0)) -> 33 | CV121: ناجح | DI121: 570 | EC121: 0 | ED121: 0 | EE121: 0 | EF121: 0 | EG121: 0 | EH121: 0 | EI121: 0 | EJ121: 0 | EK121: 0 | EL121: 0
A122: 30804221400549 | B122: 2008-04-22 | E122: 37 | F122: 125 | G122: =IF(H122="","",SUBTOTAL(3,$H$12:H122)) -> 111 | H122: منى صبحى السيد السيد خليل | I122: 111 | J122: 22 | K122: 4 | L122: 2008 | M122: 9 | N122: 5 | O122: 9 | P122: 37 | Q122: 51 | R122: 38 | S122: 55 | T122: 181 | U122: 90.5 | V122: ممتاز | W122: 38 | X122: 44 | Y122: 38 | Z122: 46 | AA122: 166 | AB122: 66.4 | AC122: جيد جداً | AD122: 37 | AE122: 49 | AF122: 38 | AG122: 52 | AH122: 176 | AI122: 35.2 | AJ122: ممتاز | AK122: 38 | AL122: 52 | AM122: 38 | AN122: 54 | AO122: 182 | AP122: 36.4 | AQ122: ممتاز | AR122: 35 | AS122: 44 | AT122: 40 | AU122: 58 | AV122: 177 | AW122: 35.4 | AX122: ممتاز | AY122: 99 | AZ122: 97 | BA122: 196 | BB122: 19.6 | BC122: ممتاز | BD122: 98 | BE122: 98 | BF122: 196 | BG122: 19.6 | BH122: ممتاز | BI122: 99 | BJ122: 97 | BK122: 196 | BL122: 19.6 | BM122: ممتاز | BN122: 97 | BO122: 99 | BP122: 196 | BQ122: 19.6 | BR122: ممتاز | BS122: 98 | BT122: 98 | BU122: 196 | BV122: 19.6 | BW122: ممتاز | BX122: 303.1 | BY122: ممتاز | BZ122: 263.9 | CA122: 40 | CB122: 45 | CC122: 40 | CD122: 42 | CE122: 167 | CF122: 33.4 | CG122: ممتاز | CH122: 336.5 | CI122: =IF(ISNUMBER(BX122)=FALSE,MAX($G$12:$G$10003)-MIN($G$12:$G$10003)+COUNTIF($BX$12:BX122,BX122),RANK(BX122,$BX$12:$BX$268,0)) -> 82 | CV122: ناجح | DI122: 505 | EC122: 0 | ED122: 0 | EE122: 0 | EF122: 0 | EG122: 0 | EH122: 0 | EI122: 0 | EJ122: 0 | EK122: 0 | EL122: 0
A123: 30805131702186 | B123: 2008-05-13 | E123: 112 | F123: 38 | G123: =IF(H123="","",SUBTOTAL(3,$H$12:H123)) -> 112 | H123: ميار هشام محمود البحيرى | I123: 112 | J123: 13 | K123: 5 | L123: 2008 | M123: 18 | N123: 4 | O123: 9 | P123: 37 | Q123: 55 | R123: 37 | S123: 57 | T123: 186 | U123: 93 | V123: ممتاز | W123: 38 | X123: 44 | Y123: 38 | Z123: 38 | AA123: 158 | AB123: 63.2 | AC123: جيد جداً | AD123: 37 | AE123: 53 | AF123: 39 | AG123: 50 | AH123: 179 | AI123: 35.8 | AJ123: ممتاز | AK123: 37 | AL123: 54 | AM123: 37 | AN123: 42 | AO123: 170 | AP123: 34 | AQ123: ممتاز | AR123: 37 | AS123: 54 | AT123: 40 | AU123: 58 | AV123: 189 | AW123: 37.8 | AX123: ممتاز | AY123: 99 | AZ123: 97 | BA123: 196 | BB123: 19.6 | BC123: ممتاز | BD123: 98 | BE123: 98 | BF123: 196 | BG123: 19.6 | BH123: ممتاز | BI123: 99 | BJ123: 97 | BK123: 196 | BL123: 19.6 | BM123: ممتاز | BN123: 97 | BO123: 99 | BP123: 196 | BQ123: 19.6 | BR123: ممتاز | BS123: 98 | BT123: 98 | BU123: 196 | BV123: 19.6 | BW123: ممتاز | BX123: 303 | BY123: ممتاز | BZ123: 263.8 | CA123: 40 | CB123: 50 | CC123: 40 | CD123: 38 | CE123: 168 | CF123: 33.6 | CG123: ممتاز | CH123: 336.6 | CI123: =IF(ISNUMBER(BX123)=FALSE,MAX($G$12:$G$10003)-MIN($G$12:$G$10003)+COUNTIF($BX$12:BX123,BX123),RANK(BX123,$BX$12:$BX$268,0)) -> 83 | CV123: ناجح | DI123: 505 | EC123: 0 | ED123: 0 | EE123: 0 | EF123: 0 | EG123: 0 | EH123: 0 | EI123: 0 | EJ123: 0 | EK123: 0 | EL123: 0
A124: 30807101703105 | B124: 2008-07-10 | E124: 113 | F124: 39 | G124: =IF(H124="","",SUBTOTAL(3,$H$12:H124)) -> 113 | H124: ندى محمد غريب عبد العال امام | I124: 113 | J124: 10 | K124: 7 | L124: 2008 | M124: 21 | N124: 2 | O124: 9 | P124: 40 | Q124: 60 | R124: 40 | S124: 59 | T124: 199 | U124: 99.5 | V124: ممتاز | W124: 40 | X124: 58 | Y124: 40 | Z124: 60 | AA124: 198 | AB124: 79.2 | AC124: ممتاز | AD124: 40 | AE124: 60 | AF124: 40 | AG124: 60 | AH124: 200 | AI124: 40 | AJ124: ممتاز | AK124: 40 | AL124: 56 | AM124: 40 | AN124: 60 | AO124: 196 | AP124: 39.2 | AQ124: ممتاز | AR124: 38 | AS124: 59 | AT124: 40 | AU124: 55 | AV124: 192 | AW124: 38.4 | AX124: ممتاز | AY124: 99 | AZ124: 97 | BA124: 196 | BB124: 19.6 | BC124: ممتاز | BD124: 98 | BE124: 98 | BF124: 196 | BG124: 19.6 | BH124: ممتاز | BI124: 99 | BJ124: 97 | BK124: 196 | BL124: 19.6 | BM124: ممتاز | BN124: 97 | BO124: 99 | BP124: 196 | BQ124: 19.6 | BR124: ممتاز | BS124: 98 | BT124: 98 | BU124: 196 | BV124: 19.6 | BW124: ممتاز | BX124: 335.5 | BY124: ممتاز | BZ124: 296.3 | CA124: 40 | CB124: 47 | CC124: 40 | CD124: 56 | CE124: 183 | CF124: 36.6 | CG124: ممتاز | CH124: 372.1 | CI124: =IF(ISNUMBER(BX124)=FALSE,MAX($G$12:$G$10003)-MIN($G$12:$G$10003)+COUNTIF($BX$12:BX124,BX124),RANK(BX124,$BX$12:$BX$268,0)) -> 5 | CV124: ناجح | DI124: 587 | EC124: 0 | ED124: 0 | EE124: 0 | EF124: 0 | EG124: 0 | EH124: 0 | EI124: 0 | EJ124: 0 | EK124: 0 | EL124: 0
A125: 30812121701145 | B125: 2008-12-12 | E125: 114 | F125: 40 | G125: =IF(H125="","",SUBTOTAL(3,$H$12:H125)) -> 114 | H125: نهى عبد الله حسن محمد عبد الله | I125: 114 | J125: 12 | K125: 12 | L125: 2008 | M125: 19 | N125: 9 | O125: 8 | P125: 40 | Q125: 60 | R125: 40 | S125: 56 | T125: 196 | U125: 98 | V125: ممتاز | W125: 39 | X125: 50 | Y125: 40 | Z125: 53 | AA125: 182 | AB125: 72.8 | AC125: ممتاز | AD125: 40 | AE125: 60 | AF125: 40 | AG125: 56 | AH125: 196 | AI125: 39.2 | AJ125: ممتاز | AK125: 40 | AL125: 60 | AM125: 40 | AN125: 58 | AO125: 198 | AP125: 39.6 | AQ125: ممتاز | AR125: 35 | AS125: 59 | AT125: 40 | AU125: 60 | AV125: 194 | AW125: 38.8 | AX125: ممتاز | AY125: 99 | AZ125: 97 | BA125: 196 | BB125: 19.6 | BC125: ممتاز | BD125: 98 | BE125: 98 | BF125: 196 | BG125: 19.6 | BH125: ممتاز | BI125: 99 | BJ125: 97 | BK125: 196 | BL125: 19.6 | BM125: ممتاز | BN125: 97 | BO125: 99 | BP125: 196 | BQ125: 19.6 | BR125: ممتاز | BS125: 98 | BT125: 98 | BU125: 196 | BV125: 19.6 | BW125: ممتاز | BX125: 327.6 | BY125: ممتاز | BZ125: 288.4 | CA125: 40 | CB125: 51 | CC125: 40 | CD125: 48 | CE125: 179 | CF125: 35.8 | CG125: ممتاز | CH125: 363.4 | CI125: =IF(ISNUMBER(BX125)=FALSE,MAX($G$12:$G$10003)-MIN($G$12:$G$10003)+COUNTIF($BX$12:BX125,BX125),RANK(BX125,$BX$12:$BX$268,0)) -> 37 | CV125: ناجح | DI125: 572 | EC125: 0 | ED125: 0 | EE125: 0 | EF125: 0 | EG125: 0 | EH125: 0 | EI125: 0 | EJ125: 0 | EK125: 0 | EL125: 0
A126: 30812111700426 | B126: 2008-12-11 | E126: 115 | F126: 41 | G126: =IF(H126="","",SUBTOTAL(3,$H$12:H126)) -> 115 | H126: نور مصطفى عبد الرازق عبد الغنى | I126: 115 | J126: 11 | K126: 12 | L126: 2008 | M126: 20 | N126: 9 | O126: 8 | P126: 38 | Q126: 58 | R126: 38 | S126: 51 | T126: 185 | U126: 92.5 | V126: ممتاز | W126: 40 | X126: 30 | Y126: 40 | Z126: 50 | AA126: 160 | AB126: 64 | AC126: جيد جداً | AD126: 40 | AE126: 57 | AF126: 40 | AG126: 58 | AH126: 195 | AI126: 39 | AJ126: ممتاز | AK126: 37 | AL126: 54 | AM126: 37 | AN126: 46 | AO126: 174 | AP126: 34.8 | AQ126: ممتاز | AR126: 37 | AS126: 46 | AT126: 40 | AU126: 54 | AV126: 177 | AW126: 35.4 | AX126: ممتاز | AY126: 99 | AZ126: 97 | BA126: 196 | BB126: 19.6 | BC126: ممتاز | BD126: 98 | BE126: 98 | BF126: 196 | BG126: 19.6 | BH126: ممتاز | BI126: 99 | BJ126: 97 | BK126: 196 | BL126: 19.6 | BM126: ممتاز | BN126: 97 | BO126: 99 | BP126: 196 | BQ126: 19.6 | BR126: ممتاز | BS126: 98 | BT126: 98 | BU126: 196 | BV126: 19.6 | BW126: ممتاز | BX126: 304.9 | BY126: ممتاز | BZ126: 265.7 | CA126: 39 | CB126: 46 | CC126: 36 | CD126: 36 | CE126: 157 | CF126: 31.4 | CG126: جيد جداً | CH126: 336.3 | CI126: =IF(ISNUMBER(BX126)=FALSE,MAX($G$12:$G$10003)-MIN($G$12:$G$10003)+COUNTIF($BX$12:BX126,BX126),RANK(BX126,$BX$12:$BX$268,0)) -> 80 | CV126: ناجح | DI126: 504 | EC126: 0 | ED126: 0 | EE126: 0 | EF126: 0 | EG126: 0 | EH126: 0 | EI126: 0 | EJ126: 0 | EK126: 0 | EL126: 0
A127: 30711071701784 | B127: 2007-11-07 | E127: 116 | F127: 42 | G127: =IF(H127="","",SUBTOTAL(3,$H$12:H127)) -> 116 | H127: هاجر خالد محمود عطوه | I127: 116 | J127: 7 | K127: 11 | L127: 2007 | M127: 24 | N127: 10 | O127: 9 | P127: 40 | Q127: 60 | R127: 40 | S127: 60 | T127: 200 | U127: 100 | V127: ممتاز | W127: 40 | X127: 60 | Y127: 40 | Z127: 60 | AA127: 200 | AB127: 80 | AC127: ممتاز | AD127: 40 | AE127: 60 | AF127: 40 | AG127: 60 | AH127: 200 | AI127: 40 | AJ127: ممتاز | AK127: 40 | AL127: 60 | AM127: 40 | AN127: 60 | AO127: 200 | AP127: 40 | AQ127: ممتاز | AR127: 35 | AS127: 60 | AT127: 40 | AU127: 60 | AV127: 195 | AW127: 39 | AX127: ممتاز | AY127: 99 | AZ127: 97 | BA127: 196 | BB127: 19.6 | BC127: ممتاز | BD127: 98 | BE127: 98 | BF127: 196 | BG127: 19.6 | BH127: ممتاز | BI127: 99 | BJ127: 97 | BK127: 196 | BL127: 19.6 | BM127: ممتاز | BN127: 97 | BO127: 99 | BP127: 196 | BQ127: 19.6 | BR127: ممتاز | BS127: 98 | BT127: 98 | BU127: 196 | BV127: 19.6 | BW127: ممتاز | BX127: 338.2 | BY127: ممتاز | BZ127: 299 | CA127: 40 | CB127: 60 | CC127: 40 | CD127: 46 | CE127: 186 | CF127: 37.2 | CG127: ممتاز | CH127: 375.4 | CI127: =IF(ISNUMBER(BX127)=FALSE,MAX($G$12:$G$10003)-MIN($G$12:$G$10003)+COUNTIF($BX$12:BX127,BX127),RANK(BX127,$BX$12:$BX$268,0)) -> 3 | CV127: ناجح | DI127: 600 | EC127: 0 | ED127: 0 | EE127: 0 | EF127: 0 | EG127: 0 | EH127: 0 | EI127: 0 | EJ127: 0 | EK127: 0 | EL127: 0
A128: 30805181702101 | B128: 2008-05-18 | E128: 117 | F128: 43 | G128: =IF(H128="","",SUBTOTAL(3,$H$12:H128)) -> 117 | H128: هاجر طارق جلال أحمد السيد | I128: 117 | J128: 18 | K128: 5 | L128: 2008 | M128: 13 | N128: 4 | O128: 9 | P128: 40 | Q128: 53 | R128: 40 | S128: 56 | T128: 189 | U128: 94.5 | V128: ممتاز | W128: 39 | X128: 58 | Y128: 39 | Z128: 56 | AA128: 192 | AB128: 76.8 | AC128: ممتاز | AD128: 40 | AE128: 59 | AF128: 40 | AG128: 60 | AH128: 199 | AI128: 39.8 | AJ128: ممتاز | AK128: 40 | AL128: 54 | AM128: 40 | AN128: 58 | AO128: 192 | AP128: 38.4 | AQ128: ممتاز | AR128: 39 | AS128: 55 | AT128: 40 | AU128: 60 | AV128: 194 | AW128: 38.8 | AX128: ممتاز | AY128: 99 | AZ128: 97 | BA128: 196 | BB128: 19.6 | BC128: ممتاز | BD128: 98 | BE128: 98 | BF128: 196 | BG128: 19.6 | BH128: ممتاز | BI128: 99 | BJ128: 97 | BK128: 196 | BL128: 19.6 | BM128: ممتاز | BN128: 97 | BO128: 99 | BP128: 196 | BQ128: 19.6 | BR128: ممتاز | BS128: 98 | BT128: 98 | BU128: 196 | BV128: 19.6 | BW128: ممتاز | BX128: 327.5 | BY128: ممتاز | BZ128: 288.3 | CA128: 40 | CB128: 43 | CC128: 40 | CD128: 54 | CE128: 177 | CF128: 35.4 | CG128: ممتاز | CH128: 362.9 | CI128: =IF(ISNUMBER(BX128)=FALSE,MAX($G$12:$G$10003)-MIN($G$12:$G$10003)+COUNTIF($BX$12:BX128,BX128),RANK(BX128,$BX$12:$BX$268,0)) -> 38 | CV128: ناجح | DI128: 569 | EC128: 0 | ED128: 0 | EE128: 0 | EF128: 0 | EG128: 0 | EH128: 0 | EI128: 0 | EJ128: 0 | EK128: 0 | EL128: 0
A129: 30805031702502 | B129: 2008-05-03 | E129: 118 | F129: 44 | G129: =IF(H129="","",SUBTOTAL(3,$H$12:H129)) -> 118 | H129: هاجر محمد زكى محمد يوسف | I129: 118 | J129: 3 | K129: 5 | L129: 2008 | M129: 28 | N129: 4 | O129: 9 | P129: 40 | Q129: 60 | R129: 40 | S129: 60 | T129: 200 | U129: 100 | V129: ممتاز | W129: 40 | X129: 52 | Y129: 39 | Z129: 58 | AA129: 189 | AB129: 75.6 | AC129: ممتاز | AD129: 40 | AE129: 60 | AF129: 40 | AG129: 58 | AH129: 198 | AI129: 39.6 | AJ129: ممتاز | AK129: 38 | AL129: 56 | AM129: 38 | AN129: 58 | AO129: 190 | AP129: 38 | AQ129: ممتاز | AR129: 35 | AS129: 55 | AT129: 40 | AU129: 60 | AV129: 190 | AW129: 38 | AX129: ممتاز | AY129: 99 | AZ129: 97 | BA129: 196 | BB129: 19.6 | BC129: ممتاز | BD129: 98 | BE129: 98 | BF129: 196 | BG129: 19.6 | BH129: ممتاز | BI129: 99 | BJ129: 97 | BK129: 196 | BL129: 19.6 | BM129: ممتاز | BN129: 97 | BO129: 99 | BP129: 196 | BQ129: 19.6 | BR129: ممتاز | BS129: 98 | BT129: 98 | BU129: 196 | BV129: 19.6 | BW129: ممتاز | BX129: 330.4 | BY129: ممتاز | BZ129: 291.2 | CA129: 40 | CB129: 48 | CC129: 38 | CD129: 50 | CE129: 176 | CF129: 35.2 | CG129: ممتاز | CH129: 365.6 | CI129: =IF(ISNUMBER(BX129)=FALSE,MAX($G$12:$G$10003)-MIN($G$12:$G$10003)+COUNTIF($BX$12:BX129,BX129),RANK(BX129,$BX$12:$BX$268,0)) -> 22 | CV129: ناجح | DI129: 577 | EC129: 0 | ED129: 0 | EE129: 0 | EF129: 0 | EG129: 0 | EH129: 0 | EI129: 0 | EJ129: 0 | EK129: 0 | EL129: 0
A130: 30807311401705 | B130: 2008-07-31 | E130: 119 | F130: 45 | G130: =IF(H130="","",SUBTOTAL(3,$H$12:H130)) -> 119 | H130: هاجر محمود فتحى عواد فرج | I130: 119 | J130: 31 | K130: 7 | L130: 2008 | M130: 0 | N130: 2 | O130: 9 | P130: 40 | Q130: 58 | R130: 40 | S130: 59 | T130: 197 | U130: 98.5 | V130: ممتاز | W130: 38 | X130: 46 | Y130: 39 | Z130: 49 | AA130: 172 | AB130: 68.8 | AC130: ممتاز | AD130: 40 | AE130: 60 | AF130: 40 | AG130: 56 | AH130: 196 | AI130: 39.2 | AJ130: ممتاز | AK130: 37 | AL130: 56 | AM130: 37 | AN130: 56 | AO130: 186 | AP130: 37.2 | AQ130: ممتاز | AR130: 39 | AS130: 55 | AT130: 40 | AU130: 60 | AV130: 194 | AW130: 38.8 | AX130: ممتاز | AY130: 99 | AZ130: 97 | BA130: 196 | BB130: 19.6 | BC130: ممتاز | BD130: 98 | BE130: 98 | BF130: 196 | BG130: 19.6 | BH130: ممتاز | BI130: 99 | BJ130: 97 | BK130: 196 | BL130: 19.6 | BM130: ممتاز | BN130: 97 | BO130: 99 | BP130: 196 | BQ130: 19.6 | BR130: ممتاز | BS130: 98 | BT130: 98 | BU130: 196 | BV130: 19.6 | BW130: ممتاز | BX130: 321.7 | BY130: ممتاز | BZ130: 282.5 | CA130: 40 | CB130: 50 | CC130: 40 | CD130: 48 | CE130: 178 | CF130: 35.6 | CG130: ممتاز | CH130: 357.3 | CI130: =IF(ISNUMBER(BX130)=FALSE,MAX($G$12:$G$10003)-MIN($G$12:$G$10003)+COUNTIF($BX$12:BX130,BX130),RANK(BX130,$BX$12:$BX$268,0)) -> 51 | CV130: ناجح | DI130: 555 | EC130: 0 | ED130: 0 | EE130: 0 | EF130: 0 | EG130: 0 | EH130: 0 | EI130: 0 | EJ130: 0 | EK130: 0 | EL130: 0
A131: 30811251703984 | B131: 2008-11-25 | E131: 120 | F131: 46 | G131: =IF(H131="","",SUBTOTAL(3,$H$12:H131)) -> 120 | H131: هبه جمال ابراهيم محمد عبد الله | I131: 120 | J131: 25 | K131: 11 | L131: 2008 | M131: 6 | N131: 10 | O131: 8 | P131: 39 | Q131: 56 | R131: 40 | S131: 55 | T131: 190 | U131: 95 | V131: ممتاز | W131: 40 | X131: 46 | Y131: 40 | Z131: 46 | AA131: 172 | AB131: 68.8 | AC131: ممتاز | AD131: 38 | AE131: 51 | AF131: 39 | AG131: 52 | AH131: 180 | AI131: 36 | AJ131: ممتاز | AK131: 37 | AL131: 54 | AM131: 37 | AN131: 60 | AO131: 188 | AP131: 37.6 | AQ131: ممتاز | AR131: 37 | AS131: 48 | AT131: 40 | AU131: 60 | AV131: 185 | AW131: 37 | AX131: ممتاز | AY131: 99 | AZ131: 97 | BA131: 196 | BB131: 19.6 | BC131: ممتاز | BD131: 98 | BE131: 98 | BF131: 196 | BG131: 19.6 | BH131: ممتاز | BI131: 99 | BJ131: 97 | BK131: 196 | BL131: 19.6 | BM131: ممتاز | BN131: 97 | BO131: 99 | BP131: 196 | BQ131: 19.6 | BR131: ممتاز | BS131: 98 | BT131: 98 | BU131: 196 | BV131: 19.6 | BW131: ممتاز | BX131: 313.6 | BY131: ممتاز | BZ131: 274.4 | CA131: 38 | CB131: 52 | CC131: 40 | CD131: 45 | CE131: 175 | CF131: 35 | CG131: ممتاز | CH131: 348.6 | CI131: =IF(ISNUMBER(BX131)=FALSE,MAX($G$12:$G$10003)-MIN($G$12:$G$10003)+COUNTIF($BX$12:BX131,BX131),RANK(BX131,$BX$12:$BX$268,0)) -> 67 | CV131: ناجح | DI131: 528 | EC131: 0 | ED131: 0 | EE131: 0 | EF131: 0 | EG131: 0 | EH131: 0 | EI131: 0 | EJ131: 0 | EK131: 0 | EL131: 0
A132: 30903141702461 | B132: 2009-03-14 | E132: 121 | F132: 47 | G132: =IF(H132="","",SUBTOTAL(3,$H$12:H132)) -> 121 | H132: هبه خالد فراج أحمد فراج | I132: 121 | J132: 14 | K132: 3 | L132: 2009 | M132: 17 | N132: 6 | O132: 8 | P132: 38 | Q132: 53 | R132: 37 | S132: 51 | T132: 179 | U132: 89.5 | V132: ممتاز | W132: 38 | X132: 40 | Y132: 38 | Z132: 29 | AA132: 145 | AB132: 58 | AC132: جيد | AD132: 39 | AE132: 50 | AF132: 40 | AG132: 52 | AH132: 181 | AI132: 36.2 | AJ132: ممتاز | AK132: 36 | AL132: 38 | AM132: 36 | AN132: 54 | AO132: 164 | AP132: 32.8 | AQ132: ممتاز | AR132: 37 | AS132: 28 | AT132: 40 | AU132: 56 | AV132: 161 | AW132: 32.2 | AX132: ممتاز | AY132: 99 | AZ132: 97 | BA132: 196 | BB132: 19.6 | BC132: ممتاز | BD132: 98 | BE132: 98 | BF132: 196 | BG132: 19.6 | BH132: ممتاز | BI132: 99 | BJ132: 97 | BK132: 196 | BL132: 19.6 | BM132: ممتاز | BN132: 97 | BO132: 99 | BP132: 196 | BQ132: 19.6 | BR132: ممتاز | BS132: 98 | BT132: 98 | BU132: 196 | BV132: 19.6 | BW132: ممتاز | BX132: 287.9 | BY132: جيد جدا | BZ132: 248.7 | CA132: 40 | CB132: 37 | CC132: 36 | CD132: 30 | CE132: 143 | CF132: 28.6 | CG132: جيد | CH132: 316.5 | CI132: =IF(ISNUMBER(BX132)=FALSE,MAX($G$12:$G$10003)-MIN($G$12:$G$10003)+COUNTIF($BX$12:BX132,BX132),RANK(BX132,$BX$12:$BX$268,0)) -> 103 | CV132: ناجح | DI132: 451 | EC132: 0 | ED132: 0 | EE132: 0 | EF132: 0 | EG132: 0 | EH132: 0 | EI132: 0 | EJ132: 0 | EK132: 0 | EL132: 0
A133: 30805141401729 | B133: 2008-05-14 | E133: 122 | F133: 48 | G133: =IF(H133="","",SUBTOTAL(3,$H$12:H133)) -> 122 | H133: هدير هانى عبد الخالق المهدى | I133: 122 | J133: 14 | K133: 5 | L133: 2008 | M133: 17 | N133: 4 | O133: 9 | P133: 39 | Q133: 54 | R133: 37 | S133: 50 | T133: 180 | U133: 90 | V133: ممتاز | W133: 39 | X133: 56 | Y133: 39 | Z133: 50 | AA133: 184 | AB133: 73.6 | AC133: ممتاز | AD133: 40 | AE133: 59 | AF133: 40 | AG133: 58 | AH133: 197 | AI133: 39.4 | AJ133: ممتاز | AK133: 37 | AL133: 58 | AM133: 37 | AN133: 54 | AO133: 186 | AP133: 37.2 | AQ133: ممتاز | AR133: 36 | AS133: 54 | AT133: 40 | AU133: 58 | AV133: 188 | AW133: 37.6 | AX133: ممتاز | AY133: 99 | AZ133: 97 | BA133: 196 | BB133: 19.6 | BC133: ممتاز | BD133: 98 | BE133: 98 | BF133: 196 | BG133: 19.6 | BH133: ممتاز | BI133: 99 | BJ133: 97 | BK133: 196 | BL133: 19.6 | BM133: ممتاز | BN133: 97 | BO133: 99 | BP133: 196 | BQ133: 19.6 | BR133: ممتاز | BS133: 98 | BT133: 98 | BU133: 196 | BV133: 19.6 | BW133: ممتاز | BX133: 317 | BY133: ممتاز | BZ133: 277.8 | CA133: 40 | CB133: 48 | CC133: 38 | CD133: 48 | CE133: 174 | CF133: 34.8 | CG133: ممتاز | CH133: 351.8 | CI133: =IF(ISNUMBER(BX133)=FALSE,MAX($G$12:$G$10003)-MIN($G$12:$G$10003)+COUNTIF($BX$12:BX133,BX133),RANK(BX133,$BX$12:$BX$268,0)) -> 59 | CV133: ناجح | DI133: 551 | EC133: 0 | ED133: 0 | EE133: 0 | EF133: 0 | EG133: 0 | EH133: 0 | EI133: 0 | EJ133: 0 | EK133: 0 | EL133: 0
A134: 30804041703128 | B134: 2008-04-04 | E134: 123 | F134: 49 | G134: =IF(H134="","",SUBTOTAL(3,$H$12:H134)) -> 123 | H134: هنا أحمد محمد عبد العليم فرج | I134: 123 | J134: 4 | K134: 4 | L134: 2008 | M134: 27 | N134: 5 | O134: 9 | P134: 40 | Q134: 60 | R134: 40 | S134: 60 | T134: 200 | U134: 100 | V134: ممتاز | W134: 40 | X134: 60 | Y134: 40 | Z134: 60 | AA134: 200 | AB134: 80 | AC134: ممتاز | AD134: 40 | AE134: 60 | AF134: 40 | AG134: 60 | AH134: 200 | AI134: 40 | AJ134: ممتاز | AK134: 40 | AL134: 60 | AM134: 40 | AN134: 60 | AO134: 200 | AP134: 40 | AQ134: ممتاز | AR134: 36 | AS134: 60 | AT134: 40 | AU134: 60 | AV134: 196 | AW134: 39.2 | AX134: ممتاز | AY134: 99 | AZ134: 97 | BA134: 196 | BB134: 19.6 | BC134: ممتاز | BD134: 98 | BE134: 98 | BF134: 196 | BG134: 19.6 | BH134: ممتاز | BI134: 99 | BJ134: 97 | BK134: 196 | BL134: 19.6 | BM134: ممتاز | BN134: 97 | BO134: 99 | BP134: 196 | BQ134: 19.6 | BR134: ممتاز | BS134: 98 | BT134: 98 | BU134: 196 | BV134: 19.6 | BW134: ممتاز | BX134: 338.4 | BY134: ممتاز | BZ134: 299.2 | CA134: 40 | CB134: 60 | CC134: 40 | CD134: 60 | CE134: 200 | CF134: 40 | CG134: ممتاز | CH134: 378.4 | CI134: =IF(ISNUMBER(BX134)=FALSE,MAX($G$12:$G$10003)-MIN($G$12:$G$10003)+COUNTIF($BX$12:BX134,BX134),RANK(BX134,$BX$12:$BX$268,0)) -> 1 | CV134: ناجح | DI134: 600 | EC134: 0 | ED134: 0 | EE134: 0 | EF134: 0 | EG134: 0 | EH134: 0 | EI134: 0 | EJ134: 0 | EK134: 0 | EL134: 0
A135: 30810161701528 | B135: 2008-10-16 | E135: 124 | F135: 50 | G135: =IF(H135="","",SUBTOTAL(3,$H$12:H135)) -> 124 | H135: ياسمين عبد الكريم عبد الله عبد الكريم | I135: 124 | J135: 16 | K135: 10 | L135: 2008 | M135: 15 | N135: 11 | O135: 8 | P135: 39 | Q135: 59 | R135: 40 | S135: 57 | T135: 195 | U135: 97.5 | V135: ممتاز | W135: 38 | X135: 54 | Y135: 38 | Z135: 57 | AA135: 187 | AB135: 74.8 | AC135: ممتاز | AD135: 40 | AE135: 59 | AF135: 40 | AG135: 60 | AH135: 199 | AI135: 39.8 | AJ135: ممتاز | AK135: 36 | AL135: 56 | AM135: 36 | AN135: 54 | AO135: 182 | AP135: 36.4 | AQ135: ممتاز | AR135: 36 | AS135: 59 | AT135: 40 | AU135: 58 | AV135: 193 | AW135: 38.6 | AX135: ممتاز | AY135: 99 | AZ135: 97 | BA135: 196 | BB135: 19.6 | BC135: ممتاز | BD135: 98 | BE135: 98 | BF135: 196 | BG135: 19.6 | BH135: ممتاز | BI135: 99 | BJ135: 97 | BK135: 196 | BL135: 19.6 | BM135: ممتاز | BN135: 97 | BO135: 99 | BP135: 196 | BQ135: 19.6 | BR135: ممتاز | BS135: 98 | BT135: 98 | BU135: 196 | BV135: 19.6 | BW135: ممتاز | BX135: 326.3 | BY135: ممتاز | BZ135: 287.1 | CA135: 40 | CB135: 52 | CC135: 40 | CD135: 49 | CE135: 181 | CF135: 36.2 | CG135: ممتاز | CH135: 362.5 | CI135: =IF(ISNUMBER(BX135)=FALSE,MAX($G$12:$G$10003)-MIN($G$12:$G$10003)+COUNTIF($BX$12:BX135,BX135),RANK(BX135,$BX$12:$BX$268,0)) -> 43 | CV135: ناجح | DI135: 573 | EC135: 0 | ED135: 0 | EE135: 0 | EF135: 0 | EG135: 0 | EH135: 0 | EI135: 0 | EJ135: 0 | EK135: 0 | EL135: 0
A136: 30811171702448 | B136: 2008-11-17 | E136: 125 | F136: 51 | G136: =IF(H136="","",SUBTOTAL(3,$H$12:H136)) -> 125 | H136: يمنى عادل على محمد مصطفى | I136: 125 | J136: 17 | K136: 11 | L136: 2008 | M136: 14 | N136: 10 | O136: 8 | P136: 40 | Q136: 60 | R136: 40 | S136: 60 | T136: 200 | U136: 100 | V136: ممتاز | W136: 40 | X136: 60 | Y136: 40 | Z136: 60 | AA136: 200 | AB136: 80 | AC136: ممتاز | AD136: 40 | AE136: 60 | AF136: 40 | AG136: 60 | AH136: 200 | AI136: 40 | AJ136: ممتاز | AK136: 40 | AL136: 60 | AM136: 40 | AN136: 60 | AO136: 200 | AP136: 40 | AQ136: ممتاز | AR136: 36 | AS136: 60 | AT136: 40 | AU136: 60 | AV136: 196 | AW136: 39.2 | AX136: ممتاز | AY136: 99 | AZ136: 97 | BA136: =IF(AND(AY136="غ",AZ136="غ"),"غ",IF(AND(AY136="صفر",AZ136="صفر"),"صفر",SUM(AY136:AZ136))) -> 196 | BB136: =IF(AND(BA136="غ"),"غ",IF(AND(BA136="صفر"),"صفر",BA136*20/200)) -> 19.6 | BC136: ممتاز | BD136: 98 | BE136: 98 | BF136: 196 | BG136: 19.6 | BH136: ممتاز | BI136: 99 | BJ136: 97 | BK136: 196 | BL136: 19.6 | BM136: ممتاز | BN136: 97 | BO136: 99 | BP136: 196 | BQ136: 19.6 | BR136: ممتاز | BS136: 98 | BT136: 98 | BU136: 196 | BV136: 19.6 | BW136: ممتاز | BX136: 338.4 | BY136: ممتاز | BZ136: 299.2 | CA136: 40 | CB136: 60 | CC136: 40 | CD136: 60 | CE136: 200 | CF136: 40 | CG136: ممتاز | CH136: 378.4 | CI136: =IF(ISNUMBER(BX136)=FALSE,MAX($G$12:$G$10003)-MIN($G$12:$G$10003)+COUNTIF($BX$12:BX136,BX136),RANK(BX136,$BX$12:$BX$268,0)) -> 1 | CV136: ناجح | DI136: 600 | EC136: 0 | ED136: 0 | EE136: 0 | EF136: 0 | EG136: 0 | EH136: 0 | EI136: 0 | EJ136: 0 | EK136: 0 | EL136: 0
G137: =IF(H137="","",SUBTOTAL(3,$H$12:H137)) -> 
G138: =IF(H138="","",SUBTOTAL(3,$H$12:H138)) -> 
G139: =IF(H139="","",SUBTOTAL(3,$H$12:H139)) -> 
G140: =IF(H140="","",SUBTOTAL(3,$H$12:H140)) -> 
G141: =IF(H141="","",SUBTOTAL(3,$H$12:H141)) -> 
G142: =IF(H142="","",SUBTOTAL(3,$H$12:H142)) -> 
G143: =IF(H143="","",SUBTOTAL(3,$H$12:H143)) -> 
G144: =IF(H144="","",SUBTOTAL(3,$H$12:H144)) -> 
G145: =IF(H145="","",SUBTOTAL(3,$H$12:H145)) -> 
G146: =IF(H146="","",SUBTOTAL(3,$H$12:H146)) -> 
G147: =IF(H147="","",SUBTOTAL(3,$H$12:H147)) -> 
G148: =IF(H148="","",SUBTOTAL(3,$H$12:H148)) -> 
G149: =IF(H149="","",SUBTOTAL(3,$H$12:H149)) -> 
G150: =IF(H150="","",SUBTOTAL(3,$H$12:H150)) -> 
G151: =IF(H151="","",SUBTOTAL(3,$H$12:H151)) -> 
G152: =IF(H152="","",SUBTOTAL(3,$H$12:H152)) -> 
G153: =IF(H153="","",SUBTOTAL(3,$H$12:H153)) -> 
G154: =IF(H154="","",SUBTOTAL(3,$H$12:H154)) -> 
G155: =IF(H155="","",SUBTOTAL(3,$H$12:H155)) -> 
G156: =IF(H156="","",SUBTOTAL(3,$H$12:H156)) -> 
G157: =IF(H157="","",SUBTOTAL(3,$H$12:H157)) -> 
G158: =IF(H158="","",SUBTOTAL(3,$H$12:H158)) -> 
G159: =IF(H159="","",SUBTOTAL(3,$H$12:H159)) -> 
G160: =IF(H160="","",SUBTOTAL(3,$H$12:H160)) -> 
G161: =IF(H161="","",SUBTOTAL(3,$H$12:H161)) -> 
G162: =IF(H162="","",SUBTOTAL(3,$H$12:H162)) -> 
G163: =IF(H163="","",SUBTOTAL(3,$H$12:H163)) -> 
G164: =IF(H164="","",SUBTOTAL(3,$H$12:H164)) -> 
G165: =IF(H165="","",SUBTOTAL(3,$H$12:H165)) -> 
G166: =IF(H166="","",SUBTOTAL(3,$H$12:H166)) -> 
G167: =IF(H167="","",SUBTOTAL(3,$H$12:H167)) -> 
G168: =IF(H168="","",SUBTOTAL(3,$H$12:H168)) -> 
G169: =IF(H169="","",SUBTOTAL(3,$H$12:H169)) -> 
G170: =IF(H170="","",SUBTOTAL(3,$H$12:H170)) -> 
G171: =IF(H171="","",SUBTOTAL(3,$H$12:H171)) -> 
G172: =IF(H172="","",SUBTOTAL(3,$H$12:H172)) -> 
G173: =IF(H173="","",SUBTOTAL(3,$H$12:H173)) -> 
G174: =IF(H174="","",SUBTOTAL(3,$H$12:H174)) -> 
G175: =IF(H175="","",SUBTOTAL(3,$H$12:H175)) -> 
G176: =IF(H176="","",SUBTOTAL(3,$H$12:H176)) -> 
G177: =IF(H177="","",SUBTOTAL(3,$H$12:H177)) -> 
G178: =IF(H178="","",SUBTOTAL(3,$H$12:H178)) -> 
G179: =IF(H179="","",SUBTOTAL(3,$H$12:H179)) -> 
G180: =IF(H180="","",SUBTOTAL(3,$H$12:H180)) -> 
G181: =IF(H181="","",SUBTOTAL(3,$H$12:H181)) -> 
G182: =IF(H182="","",SUBTOTAL(3,$H$12:H182)) -> 
G183: =IF(H183="","",SUBTOTAL(3,$H$12:H183)) -> 
G184: =IF(H184="","",SUBTOTAL(3,$H$12:H184)) -> 
G185: =IF(H185="","",SUBTOTAL(3,$H$12:H185)) -> 
G186: =IF(H186="","",SUBTOTAL(3,$H$12:H186)) -> 
G187: =IF(H187="","",SUBTOTAL(3,$H$12:H187)) -> 
G188: =IF(H188="","",SUBTOTAL(3,$H$12:H188)) -> 
G189: =IF(H189="","",SUBTOTAL(3,$H$12:H189)) -> 
G190: =IF(H190="","",SUBTOTAL(3,$H$12:H190)) -> 
G191: =IF(H191="","",SUBTOTAL(3,$H$12:H191)) -> 
G192: =IF(H192="","",SUBTOTAL(3,$H$12:H192)) -> 
G193: =IF(H193="","",SUBTOTAL(3,$H$12:H193)) -> 
G194: =IF(H194="","",SUBTOTAL(3,$H$12:H194)) -> 
G195: =IF(H195="","",SUBTOTAL(3,$H$12:H195)) -> 
G196: =IF(H196="","",SUBTOTAL(3,$H$12:H196)) -> 
G197: =IF(H197="","",SUBTOTAL(3,$H$12:H197)) -> 
G198: =IF(H198="","",SUBTOTAL(3,$H$12:H198)) -> 
G199: =IF(H199="","",SUBTOTAL(3,$H$12:H199)) -> 
G200: =IF(H200="","",SUBTOTAL(3,$H$12:H200)) -> 
... 418 more rows

Sheet شهادات الرابع
M1: نور مصطفى عبد الرازق عبد الغنى
I7: الرئيسية
A19: إدارة / قويسنا التعليمة0 | F19: =IFERROR(VLOOKUP($M$1,'شيت الرابع'!$H$12:$I$136,2,0),"") -> 115 | N19: نتيجة امتحان اخرالعام 2018/2017
A20: مدرسة / عرب الرمل الإبتدائية سكة حديد0 | F20: رقم الجلوس | H20: =LOOKUP(F19,AC27:AC618,'شيت الرابع'!I12:I149) -> 115 | J20: =IF(M22>=90%,"بارك الله لك","") -> 
A21: الاسم/ | B21: =LOOKUP(F19,AC27:AC618,'شيت الرابع'!H12:H149) -> نور مصطفى عبد الرازق عبد الغنى | J21: =LOOKUP(F19,AC27:AC618,'شيت الرابع'!CV12:CV149) -> ناجح | K21: الترتيب بدون الأنشطه | M21: النسبة
A22: الصف/ الرابع | D22: =N19 -> نتيجة امتحان اخرالعام 2018/2017 | K22: =LOOKUP(F19,AC27:AC618,'شيت الرابع'!CI12:CI149) -> 80 | M22: =I26/I24 -> 0.8967647059
A23: النهاية | B23: عربي | C23: حساب | D23: انجليزي | E23: علوم | F23: دراسات | G23: نشاط1 | H23: نشاط2 | I23: المجموع | J23: فنى | K23: رياضى | L23: حاسب آلى | M23: دين
A24: الكبرى | B24: 100 | C24: 80 | D24: 40 | E24: 40 | F24: 40 | G24: 20 | H24: 20 | I24: =SUM(B24:H24) -> 340 | J24: 20 | K24: 20 | L24: 20 | M24: 40
A25: الصغرى | B25: 50 | C25: 40 | D25: 20 | E25: 20 | F25: 20 | G25: 10 | H25: 10 | I25: =SUM(B25:H25) -> 170 | J25: 10 | K25: 10 | L25: 10 | M25: 20
A26: الدرجة | B26: =LOOKUP(F19,'شهادات الرابع'!AC27:AC618,'شيت الرابع'!U12:U149) -> 92.5 | C26: =LOOKUP(F19,'شهادات الرابع'!AC27:AC618,'شيت الرابع'!AB12:AB149) -> 64 | D26: =LOOKUP(F19,'شهادات الرابع'!AC27:AC618,'شيت الرابع'!AI12:AI149) -> 39 | E26: =LOOKUP(F19,'شهادات الرابع'!AC27:AC618,'شيت الرابع'!AW12:AW149) -> 35.4 | F26: =LOOKUP(F19,'شهادات الرابع'!AC27:AC618,'شيت الرابع'!AP12:AP149) -> 34.8 | G26: =LOOKUP(F19,'شهادات الرابع'!AC27:AC618,'شيت الرابع'!BQ12:BQ149) -> 19.6 | H26: =LOOKUP(F19,'شهادات الرابع'!AC27:AC618,'شيت الرابع'!BV12:BV149) -> 19.6 | I26: =IF(AND(B26="غ",C26="غ",D26="غ",E26="غ",F26="غ",G26="غ",H26="غ"),"غ",SUM(B26:H26)) -> 304.9 | J26: =LOOKUP(F19,'شهادات الرابع'!AC27:AC618,'شيت الرابع'!BB12:BB149) -> 19.6 | K26: =LOOKUP(F19,'شهادات الرابع'!AC27:AC618,'شيت الرابع'!BG12:BG149) -> 19.6 | L26: =LOOKUP(F19,'شهادات الرابع'!$AC$27:$AC$618,'شيت الرابع'!$BL$12:$BL$149) -> 19.6 | M26: =LOOKUP(F19,'شهادات الرابع'!AC27:AC618,'شيت الرابع'!CF12:CF149) -> 31.4
A27: المستوى | B27: =LOOKUP(F19,AC27:AC618,'شيت الرابع'!V12:V149) -> ممتاز | C27: =LOOKUP(F19,AC27:AC618,'شيت الرابع'!AC12:AC149) -> جيد جداً | D27: =LOOKUP(F19,AC27:AC618,'شيت الرابع'!AJ12:AJ149) -> ممتاز | E27: =LOOKUP(F19,AC27:AC618,'شيت الرابع'!AX12:AX149) -> ممتاز | F27: =LOOKUP(F19,AC27:AC618,'شيت الرابع'!AQ12:AQ149) -> ممتاز | G27: =LOOKUP(F19,AC27:AC618,'شيت الرابع'!BR12:BR149) -> ممتاز | H27: =LOOKUP(F19,AC27:AC618,'شيت الرابع'!BW12:BW149) -> ممتاز | I27: =IF(OR(B21="",F19=""),"",IF(I26="غ","غ",IF(I26<I24*0.5,"دون المستوى",IF(I26>=I24*0.85,"ممتاز",IF(I26>=I24*0.75,"جيد جدا",IF(I26>=I24*0.65,"جيد",IF(I26>=I24*0.5,"مقبول"))))))) -> ممتاز | J27: =LOOKUP(F19,AC27:AC618,'شيت الرابع'!BC12:BC149) -> ممتاز | K27: =LOOKUP(F19,AC27:AC618,'شيت الرابع'!BH12:BH149) -> ممتاز | L27: =LOOKUP(F19,$AC$27:$AC$618,'شيت الرابع'!$BM$12:$BM$149) -> ممتاز | M27: =LOOKUP(F19,AC27:AC618,'شيت الرابع'!CG12:CG149) -> جيد جداً | AC27: 1
B28: =IF(H28="","ناجح ومنقول إلى الصف الخامس","مواد الدور الثانى") -> ناجح ومنقول إلى الصف الخامس | H28: =LOOKUP(F19,$AC$27:$AC$618,'شيت الرابع'!$CS$12:$CS$149) ->  | AC28: 2
AC29: 3
AC30: 4
AC31: 5
A32: إدارة / قويسنا التعليمة0 | F32: =F19+1 -> 116 | AC32: 6
A33: مدرسة / عرب الرمل الإبتدائية سكة حديد0 | F33: رقم الجلوس | H33: =LOOKUP(F32,AC27:AC618,'شيت الرابع'!I12:I149) -> 116 | J33: =IF(M35>=90%,"بارك الله لك","") -> بارك الله لك | AC33: 7
A34: الاسم/ | B34: =LOOKUP(F32,AC27:AC618,'شيت الرابع'!H12:H149) -> هاجر خالد محمود عطوه | J34: =LOOKUP(F32,AC27:AC618,'شيت الرابع'!CV12:CV149) -> ناجح | K34: الترتيب بدون الأنشطه | M34: النسبة | AC34: 8
A35: الصف/ الرابع | D35: =D22 -> نتيجة امتحان اخرالعام 2018/2017 | K35: =LOOKUP(F32,AC27:AC618,'شيت الرابع'!CI12:CI149) -> 3 | M35: =I39/I37 -> 0.9947058824 | AC35: 9
A36: النهاية | B36: عربي | C36: حساب | D36: انجليزي | E36: علوم | F36: دراسات | G36: نشاط1 | H36: نشاط2 | I36: المجموع | J36: فنى | K36: رياضى | L36: حاسب آلى | M36: دين | AC36: 10
A37: الكبرى | B37: 100 | C37: 80 | D37: 40 | E37: 40 | F37: 40 | G37: 20 | H37: 20 | I37: =SUM(B37:H37) -> 340 | J37: 20 | K37: 20 | L37: 20 | M37: 40 | AC37: 11
A38: الصغرى | B38: 50 | C38: 40 | D38: 20 | E38: 20 | F38: 20 | G38: 10 | H38: 10 | I38: =SUM(B38:H38) -> 170 | J38: 10 | K38: 10 | L38: 10 | M38: 20 | AC38: 12
A39: الدرجة | B39: =LOOKUP(F32,'شهادات الرابع'!AC27:AC618,'شيت الرابع'!U12:U149) -> 100 | C39: =LOOKUP(F32,'شهادات الرابع'!AC27:AC618,'شيت الرابع'!AB12:AB149) -> 80 | D39: =LOOKUP(F32,'شهادات الرابع'!AC27:AC618,'شيت الرابع'!AI12:AI149) -> 40 | E39: =LOOKUP(F32,'شهادات الرابع'!AC27:AC618,'شيت الرابع'!AW12:AW149) -> 39 | F39: =LOOKUP(F32,'شهادات الرابع'!AC27:AC618,'شيت الرابع'!AP12:AP149) -> 40 | G39: =LOOKUP(F32,'شهادات الرابع'!AC27:AC618,'شيت الرابع'!BQ12:BQ149) -> 19.6 | H39: =LOOKUP(F32,'شهادات الرابع'!AC27:AC618,'شيت الرابع'!BV12:BV149) -> 19.6 | I39: =IF(AND(B39="غ",C39="غ",D39="غ",E39="غ",F39="غ",G39="غ",H39="غ"),"غ",SUM(B39:H39)) -> 338.2 | J39: =LOOKUP(F32,'شهادات الرابع'!AC27:AC618,'شيت الرابع'!BB12:BB149) -> 19.6 | K39: =(LOOKUP(F32,'شهادات الرابع'!AC27:AC631,'شيت الرابع'!BG12:BG162)) -> 19.6 | L39: =LOOKUP(F32,'شهادات الرابع'!$AC$27:$AC$618,'شيت الرابع'!$BL$12:$BL$149) -> 19.6 | M39: =LOOKUP(F32,'شهادات الرابع'!AC27:AC618,'شيت الرابع'!CF12:CF149) -> 37.2 | AC39: 13
A40: المستوى | B40: =LOOKUP(F32,AC27:AC618,'شيت الرابع'!V12:V149) -> ممتاز | C40: =LOOKUP(F32,AC27:AC618,'شيت الرابع'!AC12:AC149) -> ممتاز | D40: =LOOKUP(F32,AC27:AC618,'شيت الرابع'!AJ12:AJ149) -> ممتاز | E40: =LOOKUP(F32,AC27:AC618,'شيت الرابع'!AX12:AX149) -> ممتاز | F40: =LOOKUP(F32,AC27:AC618,'شيت الرابع'!AQ12:AQ149) -> ممتاز | G40: =LOOKUP(F32,AC27:AC618,'شيت الرابع'!BR12:BR149) -> ممتاز | H40: =LOOKUP(F32,AC27:AC618,'شيت الرابع'!BW12:BW149) -> ممتاز | I40: =IF(OR(B34="",F32=""),"",IF(I39="غ","غ",IF(I39<I37*0.5,"دون المستوى",IF(I39>=I37*0.85,"ممتاز",IF(I39>=I37*0.75,"جيد جدا",IF(I39>=I37*0.65,"جيد",IF(I39>=I37*0.5,"مقبول"))))))) -> ممتاز | J40: =LOOKUP(F32,AC27:AC631,'شيت الرابع'!BC12:BC162) -> ممتاز | K40: =LOOKUP(F32,AC27:AC631,'شيت الرابع'!BH12:BH162) -> ممتاز | L40: =LOOKUP(F32,$AC$27:$AC$618,'شيت الرابع'!$BM$12:$BM$149) -> ممتاز | M40: =LOOKUP(F32,AC27:AC618,'شيت الرابع'!CG12:CG149) -> ممتاز | AC40: 14
B41: =IF(H41="","ناجح ومنقول إلى الصف الخامس","مواد الدور الثانى") -> ناجح ومنقول إلى الصف الخامس | H41: =LOOKUP(F32,$AC$27:$AC$618,'شيت الرابع'!$CS$12:$CS$149) ->  | AC41: 15
AC42: 16
AC43: 17
AC44: 18
A45: إدارة / قويسنا التعليمة0 | F45: =F19+2 -> 117 | AC45: 19
A46: مدرسة / عرب الرمل الإبتدائية سكة حديد0 | F46: رقم الجلوس | H46: =LOOKUP(F45,AC27:AC618,'شيت الرابع'!I12:I149) -> 117 | J46: =IF(M48>=90%,"بارك الله لك","") -> بارك الله لك | AC46: 20
A47: الاسم/ | B47: =LOOKUP(F45,AC27:AC618,'شيت الرابع'!H12:H149) -> هاجر طارق جلال أحمد السيد | J47: =LOOKUP(F45,AC27:AC618,'شيت الرابع'!CV12:CV149) -> ناجح | K47: الترتيب بدون الأنشطه | M47: النسبة | AC47: 21
A48: الصف/ الرابع | C48: =D35 -> نتيجة امتحان اخرالعام 2018/2017 | K48: =LOOKUP(F45,AC27:AC618,'شيت الرابع'!CI12:CI149) -> 38 | M48: =I52/I50 -> 0.9632352941 | AC48: 22
A49: النهاية | B49: عربي | C49: حساب | D49: انجليزي | E49: علوم | F49: دراسات | G49: نشاط1 | H49: نشاط2 | I49: المجموع | J49: فنى | K49: رياضى | L49: حاسب آلى | M49: دين | AC49: 23
A50: الكبرى | B50: 100 | C50: 80 | D50: 40 | E50: 40 | F50: 40 | G50: 20 | H50: 20 | I50: =SUM(B50:H50) -> 340 | J50: 20 | K50: 20 | L50: 20 | M50: 40 | AC50: 24
A51: الصغرى | B51: 50 | C51: 40 | D51: 20 | E51: 20 | F51: 20 | G51: 10 | H51: 10 | I51: =SUM(B51:H51) -> 170 | J51: 10 | K51: 10 | L51: 10 | M51: 20 | AC51: 25
A52: الدرجة | B52: =LOOKUP(F45,'شهادات الرابع'!AC27:AC618,'شيت الرابع'!U12:U149) -> 94.5 | C52: =LOOKUP(F45,'شهادات الرابع'!AC27:AC618,'شيت الرابع'!AB12:AB149) -> 76.8 | D52: =LOOKUP(F45,'شهادات الرابع'!AC27:AC618,'شيت الرابع'!AI12:AI149) -> 39.8 | E52: =LOOKUP(F45,'شهادات الرابع'!AC27:AC618,'شيت الرابع'!AW12:AW149) -> 38.8 | F52: =LOOKUP(F45,'شهادات الرابع'!AC27:AC618,'شيت الرابع'!AP12:AP149) -> 38.4 | G52: =LOOKUP(F45,'شهادات الرابع'!AC27:AC618,'شيت الرابع'!BQ12:BQ149) -> 19.6 | H52: =LOOKUP(F45,'شهادات الرابع'!AC27:AC618,'شيت الرابع'!BV12:BV149) -> 19.6 | I52: =IF(AND(B52="غ",C52="غ",D52="غ",E52="غ",F52="غ",G52="غ",H52="غ"),"غ",SUM(B52:H52)) -> 327.5 | J52: =LOOKUP(F45,'شهادات الرابع'!AC27:AC618,'شيت الرابع'!BB12:BB149) -> 19.6 | K52: =(LOOKUP(F45,'شهادات الرابع'!AC27:AC644,'شيت الرابع'!BG12:BG175)) -> 19.6 | L52: =LOOKUP(F45,'شهادات الرابع'!$AC$27:$AC$618,'شيت الرابع'!$BL$12:$BL$149) -> 19.6 | M52: =LOOKUP(F45,'شهادات الرابع'!AC27:AC618,'شيت الرابع'!CF12:CF149) -> 35.4 | AC52: 26
A53: المستوى | B53: =LOOKUP(F45,AC27:AC618,'شيت الرابع'!V12:V149) -> ممتاز | C53: =LOOKUP(F45,AC27:AC618,'شيت الرابع'!AC12:AC149) -> ممتاز | D53: =LOOKUP(F45,AC27:AC618,'شيت الرابع'!AJ12:AJ149) -> ممتاز | E53: =LOOKUP(F45,AC27:AC618,'شيت الرابع'!AX12:AX149) -> ممتاز | F53: =LOOKUP(F45,AC27:AC618,'شيت الرابع'!AQ12:AQ149) -> ممتاز | G53: =LOOKUP(F45,AC27:AC618,'شيت الرابع'!BR12:BR149) -> ممتاز | H53: =LOOKUP(F45,AC27:AC618,'شيت الرابع'!BW12:BW149) -> ممتاز | I53: =IF(OR(B47="",F45=""),"",IF(I52="غ","غ",IF(I52<I50*0.5,"دون المستوى",IF(I52>=I50*0.85,"ممتاز",IF(I52>=I50*0.75,"جيد جدا",IF(I52>=I50*0.65,"جيد",IF(I52>=I50*0.5,"مقبول"))))))) -> ممتاز | J53: =LOOKUP(F45,AC27:AC644,'شيت الرابع'!BC12:BC175) -> ممتاز | K53: =LOOKUP(F45,AC27:AC644,'شيت الرابع'!BH12:BH175) -> ممتاز | L53: =LOOKUP(F45,$AC$27:$AC$618,'شيت الرابع'!$BM$12:$BM$149) -> ممتاز | M53: =LOOKUP(F45,AC27:AC618,'شيت الرابع'!CG12:CG149) -> ممتاز | AC53: 27
B54: =IF(H54="","ناجح ومنقول إلى الصف الخامس","مواد الدور الثانى") -> ناجح ومنقول إلى الصف الخامس | H54: =LOOKUP(F45,$AC$27:$AC$618,'شيت الرابع'!$CS$12:$CS$149) ->  | AC54: 28
AC55: 29
AC56: 30
AC57: 31
A58: إدارة / قويسنا التعليمة0 | F58: =F19+3 -> 118 | AC58: 32
A59: مدرسة / عرب الرمل الإبتدائية سكة حديد0 | F59: رقم الجلوس | H59: =LOOKUP(F58,AC27:AC618,'شيت الرابع'!I12:I149) -> 118 | J59: =IF(M61>=90%,"بارك الله لك","") -> بارك الله لك | AC59: 33
A60: الاسم/ | B60: =LOOKUP(F58,AC27:AC618,'شيت الرابع'!H12:H149) -> هاجر محمد زكى محمد يوسف | J60: =LOOKUP(F58,AC27:AC618,'شيت الرابع'!CV12:CV149) -> ناجح | K60: الترتيب بدون الأنشطه | M60: النسبة | AC60: 34
A61: الصف/ الرابع | D61: =C48 -> نتيجة امتحان اخرالعام 2018/2017 | K61: =LOOKUP(F58,AC27:AC618,'شيت الرابع'!CI12:CI149) -> 22 | M61: =I65/I63 -> 0.9717647059 | AC61: 35
A62: النهاية | B62: عربي | C62: حساب | D62: انجليزي | E62: علوم | F62: دراسات | G62: نشاط1 | H62: نشاط2 | I62: المجموع | J62: فنى | K62: رياضى | L62: حاسب آلى | M62: دين | AC62: 36
A63: الكبرى | B63: 100 | C63: 80 | D63: 40 | E63: 40 | F63: 40 | G63: 20 | H63: 20 | I63: =SUM(B63:H63) -> 340 | J63: 20 | K63: 20 | L63: 20 | M63: 40 | AC63: 37
A64: الصغرى | B64: 50 | C64: 40 | D64: 20 | E64: 20 | F64: 20 | G64: 10 | H64: 10 | I64: =SUM(B64:H64) -> 170 | J64: 10 | K64: 10 | L64: 10 | M64: 20 | AC64: 38
A65: الدرجة | B65: =LOOKUP(F58,'شهادات الرابع'!AC27:AC618,'شيت الرابع'!U12:U149) -> 100 | C65: =LOOKUP(F58,'شهادات الرابع'!AC27:AC618,'شيت الرابع'!AB12:AB149) -> 75.6 | D65: =LOOKUP(F58,'شهادات الرابع'!AC27:AC618,'شيت الرابع'!AI12:AI149) -> 39.6 | E65: =LOOKUP(F58,'شهادات الرابع'!AC27:AC618,'شيت الرابع'!AW12:AW149) -> 38 | F65: =LOOKUP(F58,'شهادات الرابع'!AC27:AC618,'شيت الرابع'!AP12:AP149) -> 38 | G65: =LOOKUP(F58,'شهادات الرابع'!AC27:AC618,'شيت الرابع'!BQ12:BQ149) -> 19.6 | H65: =LOOKUP(F58,'شهادات الرابع'!AC27:AC618,'شيت الرابع'!BV12:BV149) -> 19.6 | I65: =IF(AND(B65="غ",C65="غ",D65="غ",E65="غ",F65="غ",G65="غ",H65="غ"),"غ",SUM(B65:H65)) -> 330.4 | J65: =LOOKUP(F58,'شهادات الرابع'!AC27:AC618,'شيت الرابع'!BB12:BB149) -> 19.6 | K65: =(LOOKUP(F58,'شهادات الرابع'!AC27:AC655,'شيت الرابع'!BG12:BG186)) -> 19.6 | L65: =LOOKUP(F58,'شهادات الرابع'!$AC$27:$AC$618,'شيت الرابع'!$BL$12:$BL$149) -> 19.6 | M65: =LOOKUP(F58,'شهادات الرابع'!AC27:AC618,'شيت الرابع'!CF12:CF149) -> 35.2 | AC65: 39
A66: المستوى | B66: =LOOKUP(F58,AC27:AC618,'شيت الرابع'!V12:V149) -> ممتاز | C66: =LOOKUP(F58,AC27:AC618,'شيت الرابع'!AC12:AC149) -> ممتاز | D66: =LOOKUP(F58,AC27:AC618,'شيت الرابع'!AJ12:AJ149) -> ممتاز | E66: =LOOKUP(F58,AC27:AC618,'شيت الرابع'!AX12:AX149) -> ممتاز | F66: =LOOKUP(F58,AC27:AC618,'شيت الرابع'!AQ12:AQ149) -> ممتاز | G66: =LOOKUP(F58,AC27:AC618,'شيت الرابع'!BR12:BR149) -> ممتاز | H66: =LOOKUP(F58,AC27:AC618,'شيت الرابع'!BW12:BW149) -> ممتاز | I66: =IF(OR(B60="",F58=""),"",IF(I65="غ","غ",IF(I65<I63*0.5,"دون المستوى",IF(I65>=I63*0.85,"ممتاز",IF(I65>=I63*0.75,"جيد جدا",IF(I65>=I63*0.65,"جيد",IF(I65>=I63*0.5,"مقبول"))))))) -> ممتاز | J66: =LOOKUP(F58,AC27:AC655,'شيت الرابع'!BC12:BC186) -> ممتاز | K66: =LOOKUP(F58,AC27:AC655,'شيت الرابع'!BH12:BH186) -> ممتاز | L66: =LOOKUP(F58,$AC$27:$AC$618,'شيت الرابع'!$BM$12:$BM$149) -> ممتاز | M66: =LOOKUP(F58,AC27:AC618,'شيت الرابع'!CG12:CG149) -> ممتاز | AC66: 40
B67: =IF(H67="","ناجح ومنقول إلى الصف الخامس","مواد الدور الثانى") -> ناجح ومنقول إلى الصف الخامس | H67: =LOOKUP(F58,$AC$27:$AC$618,'شيت الرابع'!$CS$12:$CS$149) ->  | AC67: 41
AC68: 42
AC69: 43
AC70: 44
A71: إدارة / قويسنا التعليمة0 | F71: =F19+4 -> 119 | AC71: 45
A72: مدرسة / عرب الرمل الإبتدائية سكة حديد0 | F72: رقم الجلوس | H72: =LOOKUP(F71,AC27:AC618,'شيت الرابع'!I12:I149) -> 119 | J72: =IF(M74>=90%,"بارك الله لك","") -> بارك الله لك | AC72: 46
A73: الاسم/ | B73: =LOOKUP(F71,AC27:AC618,'شيت الرابع'!H12:H149) -> هاجر محمود فتحى عواد فرج | J73: =LOOKUP(F71,AC27:AC618,'شيت الرابع'!CV12:CV149) -> ناجح | K73: الترتيب بدون الأنشطه | M73: النسبة | AC73: 47
A74: الصف/ الرابع | D74: =D61 -> نتيجة امتحان اخرالعام 2018/2017 | K74: =LOOKUP(F71,AC27:AC618,'شيت الرابع'!CI12:CI149) -> 51 | M74: =I78/I76 -> 0.9461764706 | AC74: 48
A75: النهاية | B75: عربي | C75: حساب | D75: انجليزي | E75: علوم | F75: دراسات | G75: نشاط1 | H75: نشاط2 | I75: المجموع | J75: فنى | K75: رياضى | L75: حاسب آلى | M75: دين | AC75: 49
A76: الكبرى | B76: 100 | C76: 80 | D76: 40 | E76: 40 | F76: 40 | G76: 20 | H76: 20 | I76: =SUM(B76:H76) -> 340 | J76: 20 | K76: 20 | L76: 20 | M76: 40 | AC76: 50
A77: الصغرى | B77: 50 | C77: 40 | D77: 20 | E77: 20 | F77: 20 | G77: 10 | H77: 10 | I77: =SUM(B77:H77) -> 170 | J77: 10 | K77: 10 | L77: 10 | M77: 20 | AC77: 51
A78: الدرجة | B78: =LOOKUP(F71,'شهادات الرابع'!AC27:AC618,'شيت الرابع'!U12:U149) -> 98.5 | C78: =LOOKUP(F71,'شهادات الرابع'!AC27:AC618,'شيت الرابع'!AB12:AB149) -> 68.8 | D78: =LOOKUP(F71,'شهادات الرابع'!AC27:AC618,'شيت الرابع'!AI12:AI149) -> 39.2 | E78: =LOOKUP(F71,'شهادات الرابع'!AC27:AC618,'شيت الرابع'!AW12:AW149) -> 38.8 | F78: =LOOKUP(F71,'شهادات الرابع'!AC27:AC618,'شيت الرابع'!AP12:AP149) -> 37.2 | G78: =LOOKUP(F71,'شهادات الرابع'!AC27:AC618,'شيت الرابع'!BQ12:BQ149) -> 19.6 | H78: =LOOKUP(F71,'شهادات الرابع'!AC27:AC618,'شيت الرابع'!BV12:BV149) -> 19.6 | I78: =IF(AND(B78="غ",C78="غ",D78="غ",E78="غ",F78="غ",G78="غ",H78="غ"),"غ",SUM(B78:H78)) -> 321.7 | J78: =LOOKUP(F71,'شهادات الرابع'!AC27:AC618,'شيت الرابع'!BB12:BB149) -> 19.6 | K78: =(LOOKUP(F71,'شهادات الرابع'!AC27:AC667,'شيت الرابع'!BG12:BG198)) -> 19.6 | L78: =LOOKUP(F71,'شهادات الرابع'!$AC$27:$AC$618,'شيت الرابع'!$BL$12:$BL$149) -> 19.6 | M78: =LOOKUP(F71,'شهادات الرابع'!AC27:AC618,'شيت الرابع'!CF12:CF149) -> 35.6 | AC78: 52
A79: المستوى | B79: =LOOKUP(F71,AC27:AC618,'شيت الرابع'!V12:V149) -> ممتاز | C79: =LOOKUP(F71,AC27:AC618,'شيت الرابع'!AC12:AC149) -> ممتاز | D79: =LOOKUP(F71,AC27:AC618,'شيت الرابع'!AJ12:AJ149) -> ممتاز | E79: =LOOKUP(F71,AC27:AC618,'شيت الرابع'!AX12:AX149) -> ممتاز | F79: =LOOKUP(F71,AC27:AC618,'شيت الرابع'!AQ12:AQ149) -> ممتاز | G79: =LOOKUP(F71,AC27:AC618,'شيت الرابع'!BR12:BR149) -> ممتاز | H79: =LOOKUP(F71,AC27:AC618,'شيت الرابع'!BW12:BW149) -> ممتاز | I79: =IF(OR(B73="",F71=""),"",IF(I78="غ","غ",IF(I78<I76*0.5,"دون المستوى",IF(I78>=I76*0.85,"ممتاز",IF(I78>=I76*0.75,"جيد جدا",IF(I78>=I76*0.65,"جيد",IF(I78>=I76*0.5,"مقبول"))))))) -> ممتاز | J79: =LOOKUP(F71,AC27:AC667,'شيت الرابع'!BC12:BC198) -> ممتاز | K79: =LOOKUP(F71,AC27:AC667,'شيت الرابع'!BH12:BH198) -> ممتاز | L79: =LOOKUP(F71,$AC$27:$AC$618,'شيت الرابع'!$BM$12:$BM$149) -> ممتاز | M79: =LOOKUP(F71,AC27:AC618,'شيت الرابع'!CG12:CG149) -> ممتاز | AC79: 53
B80: =IF(H80="","ناجح ومنقول إلى الصف الخامس","مواد الدور الثانى") -> ناجح ومنقول إلى الصف الخامس | H80: =LOOKUP(F71,$AC$27:$AC$618,'شيت الرابع'!$CS$12:$CS$149) ->  | AC80: 54
AC81: 55
AC82: 56
AC83: 57
A84: إدارة / قويسنا التعليمة0 | F84: =F19+5 -> 120 | AC84: 58
A85: مدرسة / عرب الرمل الإبتدائية سكة حديد0 | F85: رقم الجلوس | H85: =LOOKUP(F84,AC27:AC618,'شيت الرابع'!I12:I149) -> 120 | J85: =IF(M87>=90%,"بارك الله لك","") -> بارك الله لك | AC85: 59
A86: الاسم/ | B86: =LOOKUP(F84,AC27:AC618,'شيت الرابع'!H12:H149) -> هبه جمال ابراهيم محمد عبد الله | J86: =LOOKUP(F84,AC27:AC618,'شيت الرابع'!CV12:CV149) -> ناجح | K86: الترتيب بدون الأنشطه | M86: النسبة | AC86: 60
A87: الصف/ الرابع | D87: =D74 -> نتيجة امتحان اخرالعام 2018/2017 | K87: =LOOKUP(F84,AC27:AC618,'شيت الرابع'!CI12:CI149) -> 67 | M87: =I91/I89 -> 0.9223529412 | AC87: 61
A88: النهاية | B88: عربي | C88: حساب | D88: انجليزي | E88: علوم | F88: دراسات | G88: نشاط1 | H88: نشاط2 | I88: المجموع | J88: فنى | K88: رياضى | L88: حاسب آلى | M88: دين | AC88: 62
A89: الكبرى | B89: 100 | C89: 80 | D89: 40 | E89: 40 | F89: 40 | G89: 20 | H89: 20 | I89: =SUM(B89:H89) -> 340 | J89: 20 | K89: 20 | L89: 20 | M89: 40 | AC89: 63
A90: الصغرى | B90: 50 | C90: 40 | D90: 20 | E90: 20 | F90: 20 | G90: 10 | H90: 10 | I90: =SUM(B90:H90) -> 170 | J90: 10 | K90: 10 | L90: 10 | M90: 20 | AC90: 64
A91: الدرجة | B91: =LOOKUP(F84,'شهادات الرابع'!AC27:AC618,'شيت الرابع'!U12:U149) -> 95 | C91: =LOOKUP(F84,'شهادات الرابع'!AC27:AC618,'شيت الرابع'!AB12:AB149) -> 68.8 | D91: =LOOKUP(F84,'شهادات الرابع'!AC27:AC618,'شيت الرابع'!AI12:AI149) -> 36 | E91: =LOOKUP(F84,'شهادات الرابع'!AC27:AC618,'شيت الرابع'!AW12:AW149) -> 37 | F91: =LOOKUP(F84,'شهادات الرابع'!AC27:AC618,'شيت الرابع'!AP12:AP149) -> 37.6 | G91: =LOOKUP(F84,'شهادات الرابع'!AC27:AC618,'شيت الرابع'!BQ12:BQ149) -> 19.6 | H91: =LOOKUP(F84,'شهادات الرابع'!AC27:AC618,'شيت الرابع'!BV12:BV149) -> 19.6 | I91: =IF(AND(B91="غ",C91="غ",D91="غ",E91="غ",F91="غ",G91="غ",H91="غ"),"غ",SUM(B91:H91)) -> 313.6 | J91: =LOOKUP(F84,'شهادات الرابع'!AC27:AC618,'شيت الرابع'!BB12:BB149) -> 19.6 | K91: =(LOOKUP(F84,'شهادات الرابع'!AC27:AC679,'شيت الرابع'!BG12:BG210)) -> 19.6 | L91: =LOOKUP(F84,'شهادات الرابع'!$AC$27:$AC$618,'شيت الرابع'!$BL$12:$BL$149) -> 19.6 | M91: =LOOKUP(F84,'شهادات الرابع'!AC27:AC618,'شيت الرابع'!CF12:CF149) -> 35 | AC91: 65
A92: المستوى | B92: =LOOKUP(F84,AC27:AC618,'شيت الرابع'!V12:V149) -> ممتاز | C92: =LOOKUP(F84,AC27:AC618,'شيت الرابع'!AC12:AC149) -> ممتاز | D92: =LOOKUP(F84,AC27:AC618,'شيت الرابع'!AJ12:AJ149) -> ممتاز | E92: =LOOKUP(F84,AC27:AC618,'شيت الرابع'!AX12:AX149) -> ممتاز | F92: =LOOKUP(F84,AC27:AC618,'شيت الرابع'!AQ12:AQ149) -> ممتاز | G92: =LOOKUP(F84,AC27:AC618,'شيت الرابع'!BR12:BR149) -> ممتاز | H92: =LOOKUP(F84,AC27:AC618,'شيت الرابع'!BW12:BW149) -> ممتاز | I92: =IF(OR(B86="",F84=""),"",IF(I91="غ","غ",IF(I91<I89*0.5,"دون المستوى",IF(I91>=I89*0.85,"ممتاز",IF(I91>=I89*0.75,"جيد جدا",IF(I91>=I89*0.65,"جيد",IF(I91>=I89*0.5,"مقبول"))))))) -> ممتاز | J92: =LOOKUP(F84,AC27:AC679,'شيت الرابع'!BC12:BC210) -> ممتاز | K92: =LOOKUP(F84,AC27:AC679,'شيت الرابع'!BH12:BH210) -> ممتاز | L92: =LOOKUP(F84,$AC$27:$AC$618,'شيت الرابع'!$BM$12:$BM$149) -> ممتاز | M92: =LOOKUP(F84,AC27:AC618,'شيت الرابع'!CG12:CG149) -> ممتاز | AC92: 66
B93: =IF(H93="","ناجح ومنقول إلى الصف الخامس","مواد الدور الثانى") -> ناجح ومنقول إلى الصف الخامس | H93: =LOOKUP(F84,$AC$27:$AC$618,'شيت الرابع'!$CS$12:$CS$149) ->  | AC93: 67
AC94: 68
AC95: 69
AC96: 70
AC97: 71
AC98: 72
AC99: 73
AC100: 74
AC101: 75
AC102: 76
AC103: 77
AC104: 78
AC105: 79
AC106: 80
AC107: 81
AC108: 82
AC109: 83
AC110: 84
AC111: 85
AC112: 86
AC113: 87
AC114: 88
AC115: 89
AC116: 90
AC117: 91
AC118: 92
AC119: 93
AC120: 94
AC121: 95
AC122: 96
AC123: 97
AC124: 98
AC125: 99
AC126: 100
AC127: 101
AC128: 102
AC129: 103
AC130: 104
AC131: 105
AC132: 106
AC133: 107
AC134: 108
AC135: 109
AC136: 110
AC137: 111
AC138: 112
AC139: 113
AC140: 114
AC141: 115
AC142: 116
AC143: 117
AC144: 118
AC145: 119
AC146: 120
AC147: 121
AC148: 122
AC149: 123
AC150: 124
AC151: 125
AC152: 126
AC153: 127
AC154: 128
AC155: 129
AC156: 130
AC157: 131
AC158: 132
AC159: 133
AC160: 134
AC161: 135
AC162: 136
AC163: 137
AC164: 138
AC165: 139
AC166: 140
AC167: 141
AC168: 142
AC169: 143
AC170: 144
AC171: 145
AC172: 146
AC173: 147
AC174: 148
AC175: 149
AC176: 150
AC177: 151
AC178: 152
AC179: 153
AC180: 154
AC181: 155
AC182: 156
AC183: 157
AC184: 158
AC185: 159
AC186: 160
AC187: 161
AC188: 162
AC189: 163
AC190: 164
AC191: 165
AC192: 166
AC193: 167
AC194: 168
AC195: 169
AC196: 170
AC197: 171
AC198: 172
AC199: 173
AC200: 174
AC201: 175
AC202: 176
AC203: 177
AC204: 178
AC205: 179
AC206: 180
AC207: 181
AC208: 182
AC209: 183
AC210: 184
AC211: 185
AC212: 186
AC213: 187
AC214: 188
AC215: 189
AC216: 190
... 131 more rows

Sheet شهادات الأوائل (hidden)
A2: إدارة قويسنا التعليمية | P2: الــرابـــــــــــــع
A3: مدرسة / منشاة دملو الإبتدائية0 | E3: رقم الجلوس | G3: =LOOKUP(F4,AB7:AB23,'شيت الرابع'!DJ12:DJ23) -> 123 | K3: =IF(L5>=90%,"بارك الله لك","") -> 
A4: الاســـم/ | B4: =LOOKUP(F4,AB7:AB22,'شيت الرابع'!DK12:DK23) -> هنا أحمد محمد عبد العليم فرج | F4: 1 | J4: =LOOKUP(F4,AB7:AB23,'شيت الرابع'!DO12:DO23) -> ناجح | K4: الترتيب | L4: النسبة
A5: الصف الرابع | D5: نتيجة امتحان اخرالعام 2013/2012 | K5: =LOOKUP(F4,AB7:AB23,'شيت الرابع'!DM12:DM23) -> الأول | L5: =K9/K7 -> 0.8839473684
A6: النهاية | B6: عربي | C6: حساب | D6: انجليزي | E6: علوم | F6: دراسات | G6: فنى | H6: رياضى | I6: نشاط1 | J6: نشاط2 | K6: المجموع | L6: دين
A7: الكبرى | B7: 100 | C7: 80 | D7: 40 | E7: 40 | F7: 40 | G7: 20 | H7: 20 | I7: 20 | J7: 20 | K7: 380 | L7: 40 | Q7: الرئيسية | AB7: 1
A8: الصغرى | B8: 50 | C8: 40 | D8: 20 | E8: 20 | F8: 20 | G8: 10 | H8: 10 | I8: 10 | J8: 10 | K8: 190 | L8: 20 | AB8: 2
A9: الدرجة | B9: =LOOKUP(F4,AB7:AB23,'شيت الرابع'!DQ12:DQ23) -> 100 | C9: =LOOKUP(F4,AB7:AB23,'شيت الرابع'!DR12:DR23) -> 77.6 | D9: =LOOKUP(F4,AB7:AB23,'شيت الرابع'!DS12:DS23) -> 40 | E9: =LOOKUP(F4,AB7:AB23,'شيت الرابع'!DU12:DU23) -> 39.6 | F9: =LOOKUP(F4,AB7:AB23,'شيت الرابع'!DT12:DT23) -> 39.6 | G9: =LOOKUP(F4,AB7:AB23,'شيت الرابع'!DW12:DW23) -> 19.6 | H9: =LOOKUP(F4,AB7:AB23,'شيت الرابع'!DX12:DX23) -> 19.5 | I9: =LOOKUP(F4,AB7:AB23,'شيت الرابع'!DY12:DY23) -> 19.6 | J9: =LOOKUP(F4,AB7:AB23,'شيت الرابع'!DZ12:DZ23) -> 19.5 | K9: =LOOKUP(F4,AB7:AB23,'شيت الرابع'!DV12:DV23) -> 335.9 | L9: =LOOKUP(F4,AB7:AB23,'شيت الرابع'!EA12:EA23) -> 39.6 | AB9: 3
A10: ش / ط | D10: وكيل المدرسة | K10: مديرة المدرسة | O10: الإســـــــــــم | AB10: 4
A11: عايده | AB11: 5
AB12: 6
AB13: 7
AB14: 8
AB15: 9
O16: رقم الجلوس | AB16: 10
A17: إدارة قويسنا التعليمية | F17: =F4+1 -> 2 | AB17: 11
A18: مدرسة / منشاة دملو الإبتدائية0 | E18: رقم الجلوس | G18: =LOOKUP(F17,AB7:AB23,'شيت الرابع'!DJ12:DJ23) -> 125 | K18: =IF(L20>=90%,"بارك الله لك","") ->  | AB18: 12
A19: الاســـم/ | B19: =LOOKUP(F17,AB7:AB22,'شيت الرابع'!DK12:DK23) -> يمنى عادل على محمد مصطفى | J19: =LOOKUP(F17,AB7:AB23,'شيت الرابع'!DO12:DO23) -> ناجح | K19: الترتيب | L19: النسبة المئوية | AB19: 13
A20: الصف الرابع | D20: نتيجة امتحان اخرالعام 2013/2012 | K20: =LOOKUP(F17,AB7:AB23,'شيت الرابع'!DM12:DM23) -> الأول مكرر | L20: =K24/K22 -> 0.8805263158 | AB20: 14
A21: النهاية | B21: عربي | C21: حساب | D21: انجليزي | E21: علوم | F21: دراسات | G21: فنى | H21: رياضى | I21: نشاط1 | J21: نشاط2 | K21: المجموع | L21: دين | AB21: 15
A22: الكبرى | B22: 100 | C22: 80 | D22: 40 | E22: 40 | F22: 40 | G22: 20 | H22: 20 | I22: 20 | J22: 20 | K22: 380 | L22: 40 | AB22: 16
A23: الصغرى | B23: 50 | C23: 40 | D23: 20 | E23: 20 | F23: 20 | G23: 10 | H23: 10 | I23: 10 | J23: 10 | K23: 190 | L23: 20 | AB23: 17
A24: الدرجة | B24: =LOOKUP(F17,AB7:AB23,'شيت الرابع'!DQ12:DQ23) -> 99 | C24: =LOOKUP(F17,AB7:AB23,'شيت الرابع'!DR12:DR23) -> 79.6 | D24: =LOOKUP(F17,AB7:AB23,'شيت الرابع'!DS12:DS23) -> 39.2 | E24: =LOOKUP(F17,AB7:AB23,'شيت الرابع'!DU12:DU23) -> 38.8 | F24: =LOOKUP(F17,AB7:AB23,'شيت الرابع'!DT12:DT23) -> 38.8 | G24: =LOOKUP(F17,AB7:AB23,'شيت الرابع'!DW12:DW23) -> 19.6 | H24: =LOOKUP(F17,AB7:AB23,'شيت الرابع'!DX12:DX23) -> 19.6 | I24: =LOOKUP(F17,AB7:AB23,'شيت الرابع'!DY12:DY23) -> 19.6 | J24: =LOOKUP(F17,AB7:AB23,'شيت الرابع'!DZ12:DZ23) -> 19.6 | K24: =LOOKUP(F17,AB7:AB23,'شيت الرابع'!DV12:DV23) -> 334.6 | L24: =LOOKUP(F17,AB7:AB23,'شيت الرابع'!EA12:EA23) -> 38.6
A25: ش / ط | D25: وكيل المدرسة | K25: مديرة المدرسة
A26: عايده
A30: إدارة قويسنا التعليمية | F30: =F17+1 -> 3
A31: مدرسة / منشاة دملو الإبتدائية0 | E31: رقم الجلوس | G31: =LOOKUP(F30,AB7:AB23,'شيت الرابع'!DJ12:DJ23) -> 116 | K31: =IF(L33>=90%,"بارك الله لك","") -> 
A32: الاســـم/ | B32: =LOOKUP(F30,AB7:AB22,'شيت الرابع'!DK12:DK23) -> هاجر خالد محمود عطوه | J32: =LOOKUP(F30,AB7:AB23,'شيت الرابع'!DO12:DO23) -> ناجح | K32: الترتيب | L32: النسبة المئوية
A33: الصف الرابع | D33: نتيجة امتحان اخرالعام 2013/2012 | K33: =LOOKUP(F30,AB7:AB23,'شيت الرابع'!DM12:DM23) -> الثاني | L33: =K37/K35 -> 0.8776315789
A34: النهاية | B34: عربي | C34: حساب | D34: انجليزي | E34: علوم | F34: دراسات | G34: فنى | H34: رياضى | I34: نشاط1 | J34: نشاط2 | K34: المجموع | L34: دين
A35: الكبرى | B35: 100 | C35: 80 | D35: 40 | E35: 40 | F35: 40 | G35: 20 | H35: 20 | I35: 20 | J35: 20 | K35: 380 | L35: 40
A36: الصغرى | B36: 50 | C36: 40 | D36: 20 | E36: 20 | F36: 20 | G36: 10 | H36: 10 | I36: 10 | J36: 10 | K36: 190 | L36: 20
A37: الدرجة | B37: =LOOKUP(F30,AB7:AB23,'شيت الرابع'!DQ12:DQ23) -> 98.5 | C37: =LOOKUP(F30,AB7:AB23,'شيت الرابع'!DR12:DR23) -> 77.6 | D37: =LOOKUP(F30,AB7:AB23,'شيت الرابع'!DS12:DS23) -> 39.6 | E37: =LOOKUP(F30,AB7:AB23,'شيت الرابع'!DU12:DU23) -> 38.6 | F37: =LOOKUP(F30,AB7:AB23,'شيت الرابع'!DT12:DT23) -> 40 | G37: =LOOKUP(F30,AB7:AB23,'شيت الرابع'!DW12:DW23) -> 19.6 | H37: =LOOKUP(F30,AB7:AB23,'شيت الرابع'!DX12:DX23) -> 19.6 | I37: =LOOKUP(F30,AB7:AB23,'شيت الرابع'!DY12:DY23) -> 19.6 | J37: =LOOKUP(F30,AB7:AB23,'شيت الرابع'!DZ12:DZ23) -> 19.6 | K37: =LOOKUP(F30,AB7:AB23,'شيت الرابع'!DV12:DV23) -> 333.5 | L37: =LOOKUP(F30,AB7:AB23,'شيت الرابع'!EA12:EA23) -> 36.6
A38: ش / ط | D38: وكيل المدرسة | K38: مديرة المدرسة
A39: عايده
